Workbook

Sheet Sommario
B4: SISTEMI TARIFFARI AUTOSTRADALI
B6: Tool di monitoraggio annuale e adeguamento tariffario
C9: Contenuti | I9: Legenda
C11: Z0 - Modulo di acquisizione dati: fogli di lavoro di input | I11: Input del concessionario | J11: 1000
D13: Z0.1 Dati generali | E13: Termini e scadenze concessioni; principali input esogeni ed endogeni | I13: Campo calcolato:
D14: Z0.2 UltimoAggPFR | E14: Piano finanziario regolatorio, nel formato definito dall'Autorità - Ultimo aggiornamento approvato | I14: Livello 1 | J14: 1000
D15: Z0.2.a PR Pregressi | E15: Informazioni afferenti ai periodi regolatori pregressi rispetto a quello di riferimento per la costruzione tariffaria | I15: Livello 2 | J15: 1000
C16: Programma degli investimenti: interventi riconosciuti in tariffa | I16: Livello 3 | J16: 1000
D17: Z0.4.a ProgrammaInvest_Spesa | E17: Informazioni anagrafiche e regolatorie sui singoli interventi e spesa annua complessiva - Ultimo aggiornamento approvato | I17: Livello 4 | J17: 1000
D18: Z0.4.b ProgrammaInvest_Contrib | E18: Eventuali contributi in conto impianti o in conto capitale - Ultimo aggiornamento approvato | I18: Macro | J18: 1000
D19: Z0.4.c ProgrammaInvest_Dismiss | E19: Eventuali dismissioni - Ultimo aggiornamento approvato
C20: Programma degli investimenti: interventi non riconosciuti in tariffa | I20: Campo desunto da altro foglio di lavoro:
D21: Z0.5.a InvestNoTar_Spesa | E21: Informazioni anagrafiche e regolatorie sui singoli interventi e spesa annua complessiva - Ultimo aggiornamento approvato | I21: Livello 1 | J21: 1000
D22: Z0.5.b InvestNoTar_Contrib | E22: Eventuali contributi in conto impianti o in conto capitale - Ultimo aggiornamento approvato | I22: Livello 2 | J22: 1000
D23: Z0.5.c InvestNoTar_Dismiss | E23: Eventuali dismissioni - Ultimo aggiornamento approvato
I24: Campo di controllo (check):
C25: Z0 - Modulo di acquisizione dati: fogli di lavoro di aggiornamento | I25: Livello 1 | J25: 1000
I26: Livello 2 | J26: 1000
D27: Z0.3.a DiscontinuitaCosto Tg | E27: Importi annui afferenti alle discontinuità di costo per componente tariffaria di gestione - Esiti monitoraggio annuale
D28: Z0.3.b Qualita | E28: Valori di riferimento per il calcolo dell’indicatore sintetico di qualità - Esiti monitoraggio annuale | I28: Campo non compilabile o nullo
C29: Interventi riconosciuti in tariffa
D30: Z0.6.a ProgInvest_Spesa agg | E30: Informazioni anagrafiche e regolatorie sui singoli interventi e spesa annua complessiva - Esiti monitoraggio annuale | I30: Campo con valore stabilito da ART | J30: 1000
D31: Z0.6.b ProgInvest_Contr agg | E31: Eventuali contributi in conto impianti o in conto capitale - Esiti monitoraggio annuale
D32: Z0.6.c ProgInvest_Dism agg | E32: Eventuali dismissioni - Esiti monitoraggio annuale
C33: Interventi non riconosciuti in tariffa
D34: Z0.7.a InvestNoTar_Spesa agg | E34: Informazioni anagrafiche e regolatorie sui singoli interventi e spesa annua complessiva - Esiti monitoraggio annuale
D35: Z0.7.b InvestNoTar_Contr agg | E35: Eventuali contributi in conto impianti o in conto capitale - Esiti monitoraggio annuale
D36: Z0.7.c InvestNoTar_Dismiss agg | E36: Eventuali dismissioni - Esiti monitoraggio annuale
C38: Moduli di calcolo
D40: C1 Tk Riepilogo variazioni | E40: Dati di riepilogo da monitoraggio delle variazioni del Programma degli Investimenti - interventi riconosciuti in tariffa
D41: C2 Riepilogo InvestNoTar | E41: Dati di riepilogo da monitoraggio delle variazioni del Programma degli Investimenti - interventi non riconosciuti in tariffa
D42: C3 Tk Supporto | E42: Dati di supporto per i moduli di programmazione degli investimenti e per il calcolo della componente tariffaria di costruzione
D43: C4 Tk Ricalcolo | E43: Ricalcolo automatico dei costi di capitale afferenti alla componente tariffaria di costruzione
D44: C5 Tk RicalcoloPF | E44: Ricalcolo automatico delle poste figurative da applicare ai fini della determinazione della componente tariffaria di costruzione
C46: Y2 Piano Finanziario Regolatorio (PFR)
D48: Z2 PFR aggiornato | E48: Piano finanziario regolatorio aggiornato in esito al monitoraggio, nel formato definito dall'Autorità
D49: Z2.a ModulTariffaria agg | E49: Ricalcolo dei livelli tariffari annualmente applicabili alle differenti tipologie di rete e classi veicolari

Sheet Z0.1 Dati generali
C2: Concessione - Informazioni generali
C4: Termini e scadenze
C6: Data di prima applicazione Sistema tariffario ART | D6: 2020-01-01
C7: Ultimo anno di applicazione regime tariffario previgente | D7: =YEAR(DataAvvioSTART)-1 -> 2019
C8: Data di scadenza primo periodo regolatorio di applicazione Sistema tariffario ART | D8: 2024-12-31
C9: Durata standard periodo regolatorio | D9: 5 | F9: Ultima generazione schema: 03/11/2025 14:30:01
C11: Esiste un periodo regolatorio precedente, con regolazione ART? | D11: TRUE
C12: Data di inizio nuovo periodo regolatorio | D12: =IF(D11,D8+1,DataAvvioSTART) -> 2025-01-01
C13: Data di inizio applicazione nuova disciplina ART | D13: 2026-01-01
C14: Primo anno applicazione nuova disciplina ART | D14: =YEAR(D13) -> 2026
C15: Ultimo anno nuovo periodo regolatorio | D15: =YEAR(D12)+DurataPR-1 -> 2029
C16: Anno base nuovo periodo regolatorio | D16: =AnnoPonte-1 -> 2024 | F16: Ultima copia schemi: 03/11/2025 15:03:14
C17: Anno ponte nuovo periodo regolatorio | D17: =PrimoAnnoPR1-1 -> 2025
C19: Data di scadenza della concessione | D19: 2038-12-31
C20: Anno di scadenza della concessione | D20: =YEAR(D19) -> 2038
C21: Numero periodi regolatori residui, a partire dal nuovo | D21: =1+CEILING((ScadenzaConcessione-UltimoAnnoPR1)/DurataPR,1) -> 3
C23: Anno | F23: =AnnoBase -> 2024 | G23: =F23+1 -> 2025 | H23: 2026 | I23: 2027 | J23: 2028 | K23: 2029 | L23: 2030 | M23: 2031 | N23: 2032 | O23: 2033 | P23: 2034 | Q23: 2035 | R23: 2036 | S23: 2037 | T23: 2038
C25: Anno base | F25: 1 | G25: 0 | H25: 0 | I25: 0 | J25: 1 | K25: 0 | L25: 0 | M25: 0 | N25: 0 | O25: 1 | P25: 0 | Q25: 0 | R25: 0 | S25: 0 | T25: 0
C26: Anno ponte | F26: 0 | G26: 1 | H26: 0 | I26: 0 | J26: 0 | K26: 1 | L26: 0 | M26: 0 | N26: 0 | O26: 0 | P26: 1 | Q26: 0 | R26: 0 | S26: 0 | T26: 0
C27: Periodo regolatorio | F27: 0 | G27: 0 | H27: 1 | I27: 1 | J27: 1 | K27: 1 | L27: 2 | M27: 2 | N27: 2 | O27: 2 | P27: 2 | Q27: 3 | R27: 3 | S27: 3 | T27: 3
C28: Anno del periodo regolatorio | F28: 0 | G28: 0 | H28: 1 | I28: 2 | J28: 3 | K28: 4 | L28: 1 | M28: 2 | N28: 3 | O28: 4 | P28: 5 | Q28: 1 | R28: 2 | S28: 3 | T28: 4
C29: Frazione di anno significativa | H29: 1 | I29: 1 | J29: 1 | K29: 1 | L29: 1 | M29: 1 | N29: 1 | O29: 1 | P29: 1 | Q29: 1 | R29: 1 | S29: 1 | T29: 1
F31: Ultimo adattamento schema: 03/11/2025 14:32:29
C33: Annualità di riferimento per monitoraggio
C35: Annualità di riferimento per monitoraggio | D35: =INDEX(G35:BZ35,MATCH(TRUE,G36:BZ36,0)) -> 2027 | G35: =IF(G27=1,G23,"") ->  | H35: 2026 | I35: =IF(I27=1,I23,"") -> 2027 | J35: 2028 | K35: 2029
C36: Selezione annualità di riferimento per monitoraggio | G36: FALSE | H36: FALSE | I36: TRUE | J36: FALSE | K36: FALSE | L36: FALSE | M36: FALSE | N36: FALSE | O36: FALSE | P36: FALSE | Q36: FALSE | R36: FALSE | S36: FALSE | T36: FALSE
C39: Input esogeni
C41: Inflazione programmata
C43: Tasso di inflazione programmata | G43: 0.021 | H43: 0.019 | I43: 0.018 | J43: 0.02 | K43: 0.02 | L43: 0.02 | M43: 0.02 | N43: 0.02 | O43: 0.02 | P43: 0.02 | Q43: 0.02 | R43: 0.02 | S43: 0.02 | T43: 0.02
C45: Recupero di produttività da efficientamento ART
C47: Percentuale complessiva di recupero di efficienza produttiva X* (fornito da ART) | E47: -0.03
C48: Numero di annualità per conseguimento X* | E48: 5
C49: Calcolo indicatore di produttività annuale Xt (se costante) | E49: =IFERROR(((1+E47)^(1/E48))-1,0) -> -0.006073323852
C51: Applicazione efficientamento | H51: =IF(SUM($G51:G51)<$E$48,1,0) -> 1 | I51: =IF(SUM($G51:H51)<$E$48,1,0) -> 1 | J51: =IF(SUM($G51:I51)<$E$48,1,0) -> 1 | K51: =IF(SUM($G51:J51)<$E$48,1,0) -> 1 | L51: =IF(SUM($G51:K51)<$E$48,1,0) -> 1 | M51: =IF(SUM($G51:L51)<$E$48,1,0) -> 0 | N51: =IF(SUM($G51:M51)<$E$48,1,0) -> 0 | O51: =IF(SUM($G51:N51)<$E$48,1,0) -> 0 | P51: =IF(SUM($G51:O51)<$E$48,1,0) -> 0 | Q51: =IF(SUM($G51:P51)<$E$48,1,0) -> 0 | R51: =IF(SUM($G51:Q51)<$E$48,1,0) -> 0 | S51: =IF(SUM($G51:R51)<$E$48,1,0) -> 0 | T51: =IF(SUM($G51:S51)<$E$48,1,0) -> 0
C52: Xt | H52: =IF(H51,$E$49,0) -> -0.006073323852 | I52: =IF(I51,$E$49,0) -> -0.006073323852 | J52: -0.006073323852 | K52: -0.006073323852 | L52: -0.006073323852 | M52: 0 | N52: 0 | O52: 0 | P52: 0 | Q52: 0 | R52: 0 | S52: 0 | T52: 0
C53: Fattore di efficientamento | G53: 1000 | H53: =G53*(1+H52) -> 993.9266761 | I53: 987.8902376 | J53: 981.8904602 | K53: 975.9271215 | L53: 970 | M53: 970 | N53: 970 | O53: 970 | P53: 970 | Q53: 970 | R53: 970 | S53: 970 | T53: 970
C54: Xt cumulato | H54: =($G$53-H53)/$G$53 -> 0.006073323852 | I54: =($G$53-I53)/$G$53 -> 0.01210976244 | J54: 0.01810953978 | K54: 0.02407287854 | L54: 0.03 | M54: 0.03 | N54: 0.03 | O54: 0.03 | P54: 0.03 | Q54: 0.03 | R54: 0.03 | S54: 0.03 | T54: 0.03
D55: check X* | E55: =IF(ROUND(MAX(54:54)+E47,10)=0,"ok","errore") -> ok
C57: Tassi di remunerazione del capitale investito
C59: TIR previgente | E59: 0.1387 | G59: =E59 -> 0.1387 | H59: =G59 -> 0.1387 | I59: 0.1387 | J59: 0.1387 | K59: 0.1387 | L59: 0.1387 | M59: 0.1387 | N59: 0.1387 | O59: 0.1387 | P59: 0.1387 | Q59: 0.1387 | R59: 0.1387 | S59: 0.1387 | T59: 0.1387
C60: WACC ART | E60: =7.51% -> 0.0751 | G60: =E60 -> 0.0751 | H60: 0.0751 | I60: 0.0751 | J60: 0.0751 | K60: 0.0751 | L60: 0.0751 | M60: 0.0751 | N60: 0.0751 | O60: 0.0751 | P60: 0.0751 | Q60: 0.0751 | R60: 0.0751 | S60: 0.0751 | T60: 0.0751
C61: Costo ammesso sul capitale di debito (Rd) da WACC ART | E61: 0.0435 | G61: =E61 -> 0.0435 | H61: 0.0435 | I61: 0.0435 | J61: 0.0435 | K61: 0.0435 | L61: 0.0435 | M61: 0.0435 | N61: 0.0435 | O61: 0.0435 | P61: 0.0435 | Q61: 0.0435 | R61: 0.0435 | S61: 0.0435 | T61: 0.0435
C62: Costo ammesso sul capitale di rischio (Re) da WACC ART | E62: 0.1066 | G62: =E62 -> 0.1066 | H62: 0.1066 | I62: 0.1066 | J62: 0.1066 | K62: 0.1066 | L62: 0.1066 | M62: 0.1066 | N62: 0.1066 | O62: 0.1066 | P62: 0.1066 | Q62: 0.1066 | R62: 0.1066 | S62: 0.1066 | T62: 0.1066
C65: Tasso di remunerazione del CIN ante (TIR previgente) | G65: =TIR -> 0.1387 | H65: =G65 -> 0.1387 | I65: 0.1387 | J65: 0.1387 | K65: 0.1387 | L65: 0.1387 | M65: 0.1387 | N65: 0.1387 | O65: 0.1387 | P65: 0.1387 | Q65: 0.1387 | R65: 0.1387 | S65: 0.1387 | T65: 0.1387
C66: Tasso di remunerazione del CIN pre2026 e post2026 (WACC) | G66: =WACC -> 0.0751 | H66: =G66 -> 0.0751 | I66: 0.0751 | J66: 0.0751 | K66: 0.0751 | L66: 0.0751 | M66: 0.0751 | N66: 0.0751 | O66: 0.0751 | P66: 0.0751 | Q66: 0.0751 | R66: 0.0751 | S66: 0.0751 | T66: 0.0751
C67: Tasso di remunerazione del valore di subentro (Rtv) per CIN ante | G67: =IF(F67,E67,G65) -> 0.1387 | H67: =G67 -> 0.1387 | I67: 0.1387 | J67: 0.1387 | K67: 0.1387 | L67: 0.1387 | M67: 0.1387 | N67: 0.1387 | O67: 0.1387 | P67: 0.1387 | Q67: 0.1387 | R67: 0.1387 | S67: 0.1387 | T67: 0.1387
C68: Tasso di remunerazione del valore di subentro (Rtv) per CIN pre2026 e post2026 | G68: =IF(F68,E68,G66) -> 0.0751 | H68: =G68 -> 0.0751 | I68: =H68 -> 0.0751 | J68: =I68 -> 0.0751 | K68: =J68 -> 0.0751 | L68: =K68 -> 0.0751 | M68: =L68 -> 0.0751 | N68: =M68 -> 0.0751 | O68: =N68 -> 0.0751 | P68: =O68 -> 0.0751 | Q68: =P68 -> 0.0751 | R68: =Q68 -> 0.0751 | S68: =R68 -> 0.0751 | T68: =S68 -> 0.0751
C69: Tasso di remunerazione delle lavorazioni in corso di secondo livello (vite utili) | E69: TRUE | G69: =IF(E69,E61,G66) -> 0.0435 | H69: =G69 -> 0.0435 | I69: 0.0435 | J69: 0.0435 | K69: 0.0435 | L69: 0.0435 | M69: 0.0435 | N69: 0.0435 | O69: 0.0435 | P69: 0.0435 | Q69: 0.0435 | R69: 0.0435 | S69: 0.0435 | T69: 0.0435
C71: Canoni
C73: Canone annuo L. 296/2006 | E73: 0.024
C74: Integrazione canone d.l. 78/2009 s.m.i. (3,4,5) | E74: 0.006
C75: Integrazione canone d.l. 78/2009 s.m.i. (A,B) | E75: 0.018
C76: Canone annuo subconcessioni | E76: 0.2
C79: Input concessione
C81: Parametri per l'avviamento
C83: Ammissibilità tariffaria dell'avviamento | E83: TRUE
C85: Parametri per ammortamento finanziario
C87: Priorità: ammortamento anticipato | E87: TRUE
C89: CIN ante
C91: Tasso di remunerazione del CIN ante (TIR previgente) | E91: =TIR -> 0.1387
C92: Tasso di remunerazione del CIN post (WACC delibera n. 240/2025 e 241/2025) | E92: =7.51% -> 0.0751
C93: Annualità di durata residua della concessione, dal 1° gennaio 2026 | E93: =ScadenzaConcessione-2026 -> 12
C94: Fattore Theta (del. 241/2025, Misura 35) | E94: =IF(ScadenzaConcessione<=2026+5,1,IF(E91/E92<=1.5,1,E91/E92)) -> 1.846870839
C95: Numero di annualità per il completo consguimento dell'ammortamento del CIN ante dal 2026 | E95: =ROUNDUP(E93/E94,0) -> 7
C96: Annualità di completo recupero del capitale investito in caso di ammortamento anticipato | E96: =2026+(E95) -> 2033
C98: Parametro di riferimento annuo per ammortamento finanziario (se quote costanti: inserire per ciascuna annualità lo stesso valore) | H98: 1 | I98: 1 | J98: 1 | K98: 1 | L98: 1 | M98: 1 | N98: 1 | O98: 1 | P98: 1 | Q98: 1 | R98: 1 | S98: 1 | T98: 1
C99: Aliquota di ammortamento annua da applicare al CIN residuo per ammortamento finanziario | H99: =IF($E$87,IF(H$23>$E$96,0,H98/SUM(OFFSET(H98,0,0,1,$E$96-H$23+1))),H98/SUM(OFFSET(H98,0,0,1,ScadenzaConcessione-H$23+1))) -> 0.125 | I99: 0.1428571429 | J99: 0.1666666667 | K99: 0.2 | L99: 0.25 | M99: 0.3333333333 | N99: 0.5 | O99: 1 | P99: 0 | Q99: 0 | R99: 0 | S99: 0 | T99: 0
C101: CIN post
C103: Selezione manuale dell'annualità di avvio del recupero del capitale investito | D103: FALSE | E103: 2026
C104: Annualità di avvio del recupero del capitale investito in caso di ammortamento ritardato | E104: =IF(D103,E103,E96+1) -> 2034
C106: Parametro di riferimento annuo per ammortamento finanziario CIN post (se quote costanti: inserire per ciascuna annualità lo stesso valore) | H106: 1 | I106: 1 | J106: 1 | K106: 1 | L106: 1 | M106: 1 | N106: 1 | O106: 1 | P106: 1 | Q106: 1 | R106: 1 | S106: 1 | T106: 1
C107: Aliquota di ammortamento annua da applicare al CIN post residuo per ammortamento finanziario | H107: =IF($E$83,IF(H$23<$E$104,0,H106/SUM(OFFSET(H106,0,0,1,ScadenzaConcessione-H$23+1))),H106/SUM(OFFSET(H106,0,0,1,ScadenzaConcessione-H$23+1))) -> 0 | I107: 0 | J107: 0 | K107: 0 | L107: 0 | M107: 0 | N107: 0 | O107: 0 | P107: 0.2 | Q107: 0.25 | R107: 0.3333333333 | S107: 0.5 | T107: 1
C109: Parametri per dinamica poste figurative
C111: Attivazione deroga su annualità per il completamento del ciclo di recupero CIN ante e CIN pre2026 | E111: FALSE
C112: Numero annualità per il completamento del ciclo di recupero CIN ante e CIN pre2026 | D112: 10 | E112: =IF($E$111,ScadenzaConcessione-AnnoPonte,D112) -> 10
C114: Attivazione deroga su annualità per il completamento del ciclo di recupero CIN post2026 | E114: FALSE
C115: Numero annualità per il completamento del ciclo di recupero CIN post2026 | D115: 15 | E115: =IF(E114,ScadenzaConcessione-AnnoPonte,D115) -> 15
C117: Fattore di riduzione nel tempo dell’incremento annuo (compreso fra 1,3 e 1,7) | D117: μ | E117: 1.3
C118: Quota di inflazione programmata da utilizzare nel calcolo (compresa fra 50% e 100%) | D118: τ | E118: 1
C120: Eventuale variazione tariffaria nominale bloccata | H120: 0.015
C122: Tasso di attualizzazione CIN ante | H122: =(H65) -> 0.1387 | I122: 0.1387 | J122: 0.1387 | K122: 0.1387 | L122: 0.1387 | M122: 0.1387 | N122: 0.1387 | O122: 0.1387 | P122: 0.1387 | Q122: 0.1387 | R122: 0.1387 | S122: 0.1387 | T122: 0.1387
C123: Tasso di attualizzazione CIN pre 2026 | H123: 0.0751 | I123: 0.0751 | J123: 0.0751 | K123: 0.0751 | L123: 0.0751 | M123: 0.0751 | N123: 0.0751 | O123: 0.0751 | P123: 0.0751 | Q123: 0.0751 | R123: 0.0751 | S123: 0.0751 | T123: 0.0751
C124: Tasso di attualizzazione componente ammortamenti CIN post 2026 | H124: =(H66) -> 0.0751 | I124: 0.0751 | J124: 0.0751 | K124: 0.0751 | L124: 0.0751 | M124: 0.0751 | N124: 0.0751 | O124: 0.0751 | P124: 0.0751 | Q124: 0.0751 | R124: 0.0751 | S124: 0.0751 | T124: 0.0751
C125: Tasso di attualizzazione componente remunerazioni CIN post 2026 | H125: =H69 -> 0.0435 | I125: =I69 -> 0.0435 | J125: 0.0435 | K125: 0.0435 | L125: 0.0435 | M125: 0.0435 | N125: 0.0435 | O125: 0.0435 | P125: 0.0435 | Q125: 0.0435 | R125: 0.0435 | S125: 0.0435 | T125: 0.0435
C130: Previsioni di traffico
C132: (nel caso di ulteriore o differente disaggregazione, si prega di documentare distintamente i valori assunti, mediante specifici fogli di lavoro di supporto)
F134: =IF(F$23=AnnoPonte,"Preconsuntivo",IF(F$23>AnnoPonte,"Preventivo","Consuntivo")) -> Consuntivo | G134: Preconsuntivo | H134: Preventivo | I134: Preventivo | J134: Preventivo | K134: Preventivo | L134: Preventivo | M134: Preventivo | N134: Preventivo | O134: Preventivo | P134: Preventivo | Q134: Preventivo | R134: Preventivo | S134: Preventivo | T134: Preventivo
C136: (tipologia di rete #1)
C137: Classe
C138: A | F138: 652286.2923 | G138: 655547.7237 | H138: 658825.4624 | I138: 662119.5897 | J138: 665430.1876 | K138: 668757.3386 | L138: 672101.1252 | M138: 675461.6309 | N138: 678838.939 | O138: 682233.1337 | P138: 685644.2994 | Q138: 689072.5209 | R138: 692517.8835 | S138: 695980.4729 | T138: 699460.3753
C139: B | F139: 104693.4538 | G139: 105216.9211 | H139: 105743.0057 | I139: 106271.7207 | J139: 106803.0793 | K139: 107337.0947 | L139: 107873.7802 | M139: 108413.1491 | N139: 108955.2148 | O139: 109499.9909 | P139: 110047.4908 | Q139: 110597.7283 | R139: 111150.7169 | S139: 111706.4705 | T139: 112265.0029
C140: 3 | F140: 20337.46545 | G140: 20439.15278 | H140: 20541.34854 | I140: 20644.05529 | J140: 20747.27556 | K140: 20851.01194 | L140: 20955.267 | M140: 21060.04334 | N140: 21165.34355 | O140: 21271.17027 | P140: 21377.52612 | Q140: 21484.41375 | R140: 21591.83582 | S140: 21699.795 | T140: 21808.29398
C141: 4 | F141: 16141.15227 | G141: 16221.85803 | H141: 16302.96732 | I141: 16384.48215 | J141: 16466.40457 | K141: 16548.73659 | L141: 16631.48027 | M141: 16714.63767 | N141: 16798.21086 | O141: 16882.20191 | P141: 16966.61292 | Q141: 17051.44599 | R141: 17136.70322 | S141: 17222.38674 | T141: 17308.49867
C142: 5 | F142: 230156.0547 | G142: 231306.8349 | H142: 232463.3691 | I142: 233625.686 | J142: 234793.8144 | K142: 235967.7835 | L142: 237147.6224 | M142: 238333.3605 | N142: 239525.0273 | O142: 240722.6524 | P142: 241926.2657 | Q142: 243135.897 | R142: 244351.5765 | S142: 245573.3344 | T142: 246801.2011
C143: Sub totale leggeri | F143: =+F138 -> 652286.2923 | G143: =+G138 -> 655547.7237 | H143: 658825.4624 | I143: =+I138 -> 662119.5897 | J143: 665430.1876 | K143: 668757.3386 | L143: 672101.1252 | M143: 675461.6309 | N143: 678838.939 | O143: 682233.1337 | P143: 685644.2994 | Q143: 689072.5209 | R143: 692517.8835 | S143: 695980.4729 | T143: 699460.3753
C144: Sub totale pesanti | F144: =+SUM(F139:F142) -> 371328.1262 | G144: =+SUM(G139:G142) -> 373184.7668 | H144: 375050.6906 | I144: =+SUM(I139:I142) -> 376925.9441 | J144: 378810.5738 | K144: 380704.6267 | L144: 382608.1498 | M144: 384521.1906 | N144: 386443.7965 | O144: 388376.0155 | P144: 390317.8956 | Q144: 392269.485 | R144: 394230.8325 | S144: 396201.9866 | T144: 398182.9966
C145: Totale | F145: =SUM(F138:F142) -> 1023614.418 | G145: =SUM(G138:G142) -> 1028732.491 | H145: 1033876.153 | I145: =SUM(I138:I142) -> 1039045.534 | J145: 1044240.761 | K145: 1049461.965 | L145: 1054709.275 | M145: 1059982.821 | N145: 1065282.736 | O145: 1070609.149 | P145: 1075962.195 | Q145: 1081342.006 | R145: 1086748.716 | S145: 1092182.46 | T145: 1097643.372
C147: (tipologia di rete #2)
C148: Classe
C149: A | F149: 9606.958087 | G149: 9654.992878 | H149: 9703.267842 | I149: 9751.784181 | J149: 9800.543102 | K149: 9849.545818 | L149: 9898.793547 | M149: 9948.287514 | N149: 9998.028952 | O149: 10048.0191 | P149: 10098.25919 | Q149: 10148.75049 | R149: 10199.49424 | S149: 10250.49171 | T149: 10301.74417
C150: B | F150: 2200.923061 | G150: 2211.927676 | H150: 2222.987315 | I150: 2234.102251 | J150: 2245.272762 | K150: 2256.499126 | L150: 2267.781622 | M150: 2279.12053 | N150: 2290.516133 | O150: 2301.968713 | P150: 2313.478557 | Q150: 2325.04595 | R150: 2336.671179 | S150: 2348.354535 | T150: 2360.096308
C151: 3 | F151: 368.6398106 | G151: 370.4830097 | H151: 372.3354247 | I151: 374.1971018 | J151: 376.0680874 | K151: 377.9484278 | L151: 379.8381699 | M151: 381.7373608 | N151: 383.6460476 | O151: 385.5642778 | P151: 387.4920992 | Q151: 389.4295597 | R151: 391.3767075 | S151: 393.333591 | T151: 395.300259
C152: 4 | F152: 247.8760679 | G152: 249.1154482 | H152: 250.3610254 | I152: 251.6128306 | J152: 252.8708947 | K152: 254.1352492 | L152: 255.4059254 | M152: 256.6829551 | N152: 257.9663698 | O152: 259.2562017 | P152: 260.5524827 | Q152: 261.8552451 | R152: 263.1645213 | S152: 264.4803439 | T152: 265.8027457
C153: 5 | F153: 3109.881463 | G153: 3125.43087 | H153: 3141.058025 | I153: 3156.763315 | J153: 3172.547132 | K153: 3188.409867 | L153: 3204.351917 | M153: 3220.373676 | N153: 3236.475544 | O153: 3252.657922 | P153: 3268.921212 | Q153: 3285.265818 | R153: 3301.692147 | S153: 3318.200608 | T153: 3334.791611
C154: Sub totale leggeri | F154: =+F149 -> 9606.958087 | G154: =+G149 -> 9654.992878 | H154: 9703.267842 | I154: =+I149 -> 9751.784181 | J154: 9800.543102 | K154: 9849.545818 | L154: 9898.793547 | M154: 9948.287514 | N154: 9998.028952 | O154: 10048.0191 | P154: 10098.25919 | Q154: 10148.75049 | R154: 10199.49424 | S154: 10250.49171 | T154: 10301.74417
C155: Sub totale pesanti | F155: =+SUM(F150:F153) -> 5927.320403 | G155: =+SUM(G150:G153) -> 5956.957005 | H155: 5986.74179 | I155: =+SUM(I150:I153) -> 6016.675499 | J155: 6046.758876 | K155: 6076.99267 | L155: 6107.377634 | M155: 6137.914522 | N155: 6168.604095 | O155: 6199.447115 | P155: 6230.444351 | Q155: 6261.596572 | R155: 6292.904555 | S155: 6324.369078 | T155: 6355.990923
C156: Totale | F156: =SUM(F149:F153) -> 15534.27849 | G156: =SUM(G149:G153) -> 15611.94988 | H156: 15690.00963 | I156: =SUM(I149:I153) -> 15768.45968 | J156: 15847.30198 | K156: 15926.53849 | L156: 16006.17118 | M156: 16086.20204 | N156: 16166.63305 | O156: 16247.46621 | P156: 16328.70354 | Q156: 16410.34706 | R156: 16492.3988 | S156: 16574.86079 | T156: 16657.73509
C158: (tipologia di rete #3)
C159: Classe
C160: A | F160: 0 | G160: 0 | H160: 0 | I160: 0 | J160: 0 | K160: 0 | L160: 0 | M160: 0 | N160: 0 | O160: 0 | P160: 0 | Q160: 0 | R160: 0 | S160: 0 | T160: 0
C161: B | F161: 0 | G161: 0 | H161: 0 | I161: 0 | J161: 0 | K161: 0 | L161: 0 | M161: 0 | N161: 0 | O161: 0 | P161: 0 | Q161: 0 | R161: 0 | S161: 0 | T161: 0
C162: 3 | F162: 0 | G162: 0 | H162: 0 | I162: 0 | J162: 0 | K162: 0 | L162: 0 | M162: 0 | N162: 0 | O162: 0 | P162: 0 | Q162: 0 | R162: 0 | S162: 0 | T162: 0
C163: 4 | F163: 0 | G163: 0 | H163: 0 | I163: 0 | J163: 0 | K163: 0 | L163: 0 | M163: 0 | N163: 0 | O163: 0 | P163: 0 | Q163: 0 | R163: 0 | S163: 0 | T163: 0
C164: 5 | F164: 0 | G164: 0 | H164: 0 | I164: 0 | J164: 0 | K164: 0 | L164: 0 | M164: 0 | N164: 0 | O164: 0 | P164: 0 | Q164: 0 | R164: 0 | S164: 0 | T164: 0
C165: Sub totale leggeri | F165: =+F160 -> 0 | G165: =+G160 -> 0 | H165: 0 | I165: =+I160 -> 0 | J165: 0 | K165: 0 | L165: 0 | M165: 0 | N165: 0 | O165: 0 | P165: 0 | Q165: 0 | R165: 0 | S165: 0 | T165: 0
C166: Sub totale pesanti | F166: =+SUM(F161:F164) -> 0 | G166: =+SUM(G161:G164) -> 0 | H166: 0 | I166: =+SUM(I161:I164) -> 0 | J166: 0 | K166: 0 | L166: 0 | M166: 0 | N166: 0 | O166: 0 | P166: 0 | Q166: 0 | R166: 0 | S166: 0 | T166: 0
C167: Totale | F167: =SUM(F160:F164) -> 0 | G167: =SUM(G160:G164) -> 0 | H167: 0 | I167: =SUM(I160:I164) -> 0 | J167: 0 | K167: 0 | L167: 0 | M167: 0 | N167: 0 | O167: 0 | P167: 0 | Q167: 0 | R167: 0 | S167: 0 | T167: 0
C169: (tipologia di rete #4)
C170: Classe
C171: A | F171: 0 | G171: 0 | H171: 0 | I171: 0 | J171: 0 | K171: 0 | L171: 0 | M171: 0 | N171: 0 | O171: 0 | P171: 0 | Q171: 0 | R171: 0 | S171: 0 | T171: 0
C172: B | F172: 0 | G172: 0 | H172: 0 | I172: 0 | J172: 0 | K172: 0 | L172: 0 | M172: 0 | N172: 0 | O172: 0 | P172: 0 | Q172: 0 | R172: 0 | S172: 0 | T172: 0
C173: 3 | F173: 0 | G173: 0 | H173: 0 | I173: 0 | J173: 0 | K173: 0 | L173: 0 | M173: 0 | N173: 0 | O173: 0 | P173: 0 | Q173: 0 | R173: 0 | S173: 0 | T173: 0
C174: 4 | F174: 0 | G174: 0 | H174: 0 | I174: 0 | J174: 0 | K174: 0 | L174: 0 | M174: 0 | N174: 0 | O174: 0 | P174: 0 | Q174: 0 | R174: 0 | S174: 0 | T174: 0
C175: 5 | F175: 0 | G175: 0 | H175: 0 | I175: 0 | J175: 0 | K175: 0 | L175: 0 | M175: 0 | N175: 0 | O175: 0 | P175: 0 | Q175: 0 | R175: 0 | S175: 0 | T175: 0
C176: Sub totale leggeri | F176: =+F171 -> 0 | G176: =+G171 -> 0 | H176: 0 | I176: =+I171 -> 0 | J176: 0 | K176: 0 | L176: 0 | M176: 0 | N176: 0 | O176: 0 | P176: 0 | Q176: 0 | R176: 0 | S176: 0 | T176: 0
C177: Sub totale pesanti | F177: =+SUM(F172:F175) -> 0 | G177: =+SUM(G172:G175) -> 0 | H177: 0 | I177: =+SUM(I172:I175) -> 0 | J177: 0 | K177: 0 | L177: 0 | M177: 0 | N177: 0 | O177: 0 | P177: 0 | Q177: 0 | R177: 0 | S177: 0 | T177: 0
C178: Totale | F178: =SUM(F171:F175) -> 0 | G178: =SUM(G171:G175) -> 0 | H178: 0 | I178: =SUM(I171:I175) -> 0 | J178: 0 | K178: 0 | L178: 0 | M178: 0 | N178: 0 | O178: 0 | P178: 0 | Q178: 0 | R178: 0 | S178: 0 | T178: 0
C180: Previsione volumi di traffico Totali (mln di veicoli km)
C181: Classe
C182: A | F182: =IFERROR(+F138+F149+F160+F171,0) -> 661893.2504 | G182: 665202.7166 | H182: 668528.7302 | I182: =IFERROR(+I138+I149+I160+I171,0) -> 671871.3738 | J182: 675230.7307 | K182: 678606.8844 | L182: 681999.9188 | M182: 685409.9184 | N182: 688836.968 | O182: 692281.1528 | P182: 695742.5586 | Q182: 699221.2714 | R182: 702717.3777 | S182: 706230.9646 | T182: 709762.1194
C183: B | F183: 106894.3768 | G183: =IFERROR(+G139+G150+G161+G172,0) -> 107428.8487 | H183: 107965.993 | I183: =IFERROR(+I139+I150+I161+I172,0) -> 108505.8229 | J183: 109048.3521 | K183: 109593.5938 | L183: 110141.5618 | M183: 110692.2696 | N183: 111245.7309 | O183: 111801.9596 | P183: 112360.9694 | Q183: 112922.7742 | R183: 113487.3881 | S183: 114054.8251 | T183: 114625.0992
C184: 3 | F184: 20706.10526 | G184: 20809.63579 | H184: 20913.68397 | I184: =IFERROR(+I140+I151+I162+I173,0) -> 21018.25239 | J184: 21123.34365 | K184: 21228.96037 | L184: 21335.10517 | M184: 21441.7807 | N184: 21548.9896 | O184: 21656.73455 | P184: 21765.01822 | Q184: 21873.84331 | R184: 21983.21253 | S184: 22093.12859 | T184: 22203.59423
C185: 4 | F185: 16389.02833 | G185: 16470.97348 | H185: 16553.32834 | I185: =IFERROR(+I141+I152+I163+I174,0) -> 16636.09498 | J185: 16719.27546 | K185: 16802.87184 | L185: 16886.8862 | M185: 16971.32063 | N185: 17056.17723 | O185: 17141.45812 | P185: 17227.16541 | Q185: 17313.30123 | R185: 17399.86774 | S185: 17486.86708 | T185: 17574.30141
C186: 5 | F186: 233265.9361 | G186: 234432.2658 | H186: 235604.4271 | I186: =IFERROR(+I142+I153+I164+I175,0) -> 236782.4493 | J186: 237966.3615 | K186: 239156.1933 | L186: 240351.9743 | M186: 241553.7342 | N186: 242761.5028 | O186: 243975.3103 | P186: 245195.1869 | Q186: 246421.1628 | R186: 247653.2686 | S186: 248891.535 | T186: 250135.9927
C187: Sub totale leggeri | F187: =SUM(F182) -> 661893.2504 | G187: 665202.7166 | H187: 668528.7302 | I187: =SUM(I182) -> 671871.3738 | J187: 675230.7307 | K187: 678606.8844 | L187: 681999.9188 | M187: 685409.9184 | N187: 688836.968 | O187: 692281.1528 | P187: 695742.5586 | Q187: 699221.2714 | R187: 702717.3777 | S187: 706230.9646 | T187: 709762.1194
C188: Sub totale pesanti | F188: =+SUM(F183:F186) -> 377255.4466 | G188: 379141.7238 | H188: 381037.4324 | I188: =+SUM(I183:I186) -> 382942.6196 | J188: 384857.3327 | K188: 386781.6193 | L188: 388715.5274 | M188: 390659.1051 | N188: 392612.4006 | O188: 394575.4626 | P188: 396548.3399 | Q188: 398531.0816 | R188: 400523.737 | S188: 402526.3557 | T188: 404538.9875
C189: Totale complessivo | F189: =SUM(F182:F186) -> 1039148.697 | G189: 1044344.44 | H189: 1049566.163 | I189: =SUM(I182:I186) -> 1054813.993 | J189: 1060088.063 | K189: 1065388.504 | L189: 1070715.446 | M189: 1076069.023 | N189: 1081449.369 | O189: 1086856.615 | P189: 1092290.899 | Q189: 1097752.353 | R189: 1103241.115 | S189: 1108757.32 | T189: 1114301.107
C191: Informazioni di riepilogo
C193: Volumi di traffico previsti (000 veicoli/km) | D193: V | F193: =F189 -> 1039148.697 | G193: =G189 -> 1044344.44 | H193: 1049566.163 | I193: =I189 -> 1054813.993 | J193: 1060088.063 | K193: 1065388.504 | L193: 1070715.446 | M193: 1076069.023 | N193: 1081449.369 | O193: 1086856.615 | P193: 1092290.899 | Q193: 1097752.353 | R193: 1103241.115 | S193: 1108757.32 | T193: 1114301.107
C194: Volumi di traffico medi annui per periodo regolatorio (000 veicoli/km) | D194: V' | G194: =IF(G$26,SUMIF(27:27,H27,193:193)/COUNTIF(27:27,H27),"") -> 1057464.181 | K194: 1081476.27 | P194: 1106012.974
C195: Volumi di traffico medi annui per discontinuità di costo (000 veicoli/km) | D195: V'' | G195: =IF(G27=0,G194,SUM(OFFSET(G193,,,,IF(G26,1,_xlfn.MAXIFS(28:28,27:27,G27)+1-G28))/IF(G26,1,_xlfn.MAXIFS(28:28,27:27,G27)+1-G28))) -> 1057464.181 | H195: =IF(H27=0,H194,SUM(OFFSET(H193,,,,IF(H26,1,_xlfn.MAXIFS(28:28,27:27,H27)+1-H28))/IF(H26,1,_xlfn.MAXIFS(28:28,27:27,H27)+1-H28))) -> 1057464.181 | I195: =IF(I27=0,I194,SUM(OFFSET(I193,,,,IF(I26,1,_xlfn.MAXIFS(28:28,27:27,I27)+1-I28))/IF(I26,1,_xlfn.MAXIFS(28:28,27:27,I27)+1-I28))) -> 1060096.854 | J195: =IF(J27=0,J194,SUM(OFFSET(J193,,,,IF(J26,1,_xlfn.MAXIFS(28:28,27:27,J27)+1-J28))/IF(J26,1,_xlfn.MAXIFS(28:28,27:27,J27)+1-J28))) -> 1062738.284 | K195: =IF(K27=0,K194,SUM(OFFSET(K193,,,,IF(K26,1,_xlfn.MAXIFS(28:28,27:27,K27)+1-K28))/IF(K26,1,_xlfn.MAXIFS(28:28,27:27,K27)+1-K28))) -> 1065388.504 | L195: =IF(L27=0,L194,SUM(OFFSET(L193,,,,IF(L26,1,_xlfn.MAXIFS(28:28,27:27,L27)+1-L28))/IF(L26,1,_xlfn.MAXIFS(28:28,27:27,L27)+1-L28))) -> 1081476.27 | M195: =IF(M27=0,M194,SUM(OFFSET(M193,,,,IF(M26,1,_xlfn.MAXIFS(28:28,27:27,M27)+1-M28))/IF(M26,1,_xlfn.MAXIFS(28:28,27:27,M27)+1-M28))) -> 1084166.476 | N195: =IF(N27=0,N194,SUM(OFFSET(N193,,,,IF(N26,1,_xlfn.MAXIFS(28:28,27:27,N27)+1-N28))/IF(N26,1,_xlfn.MAXIFS(28:28,27:27,N27)+1-N28))) -> 1086865.628 | O195: =IF(O27=0,O194,SUM(OFFSET(O193,,,,IF(O26,1,_xlfn.MAXIFS(28:28,27:27,O27)+1-O28))/IF(O26,1,_xlfn.MAXIFS(28:28,27:27,O27)+1-O28))) -> 1089573.757 | P195: =IF(P27=0,P194,SUM(OFFSET(P193,,,,IF(P26,1,_xlfn.MAXIFS(28:28,27:27,P27)+1-P28))/IF(P26,1,_xlfn.MAXIFS(28:28,27:27,P27)+1-P28))) -> 1092290.899 | Q195: =IF(Q27=0,Q194,SUM(OFFSET(Q193,,,,IF(Q26,1,_xlfn.MAXIFS(28:28,27:27,Q27)+1-Q28))/IF(Q26,1,_xlfn.MAXIFS(28:28,27:27,Q27)+1-Q28))) -> 1106012.974 | R195: =IF(R27=0,R194,SUM(OFFSET(R193,,,,IF(R26,1,_xlfn.MAXIFS(28:28,27:27,R27)+1-R28))/IF(R26,1,_xlfn.MAXIFS(28:28,27:27,R27)+1-R28))) -> 1108766.514 | S195: =IF(S27=0,S194,SUM(OFFSET(S193,,,,IF(S26,1,_xlfn.MAXIFS(28:28,27:27,S27)+1-S28))/IF(S26,1,_xlfn.MAXIFS(28:28,27:27,S27)+1-S28))) -> 1111529.214 | T195: =IF(T27=0,T194,SUM(OFFSET(T193,,,,IF(T26,1,_xlfn.MAXIFS(28:28,27:27,T27)+1-T28))/IF(T26,1,_xlfn.MAXIFS(28:28,27:27,T27)+1-T28))) -> 1114301.107
C202: termine foglio di lavoro

Sheet Z0.2 UltimoAggPFR
C2: Piano finanziario regolatorio (PFR) di periodo - da ultimo aggiornamento approvato
C4: Anno | E4: 2024 | F4: 2025 | G4: 2026 | H4: 2027 | I4: 2028 | J4: 2029 | K4: 2030 | L4: 2031 | M4: 2032 | N4: 2033 | O4: 2034 | P4: 2035 | Q4: 2036 | R4: 2037 | S4: 2038
C6: Anno base | E6: 1 | F6: 0 | G6: 0 | H6: 0 | I6: 1 | J6: 0 | K6: 0 | L6: 0 | M6: 0 | N6: 1 | O6: 0 | P6: 0 | Q6: 0 | R6: 0 | S6: 0
C7: Anno ponte | E7: 0 | F7: 1 | G7: 0 | H7: 0 | I7: 0 | J7: 1 | K7: 0 | L7: 0 | M7: 0 | N7: 0 | O7: 1 | P7: 0 | Q7: 0 | R7: 0 | S7: 0
C8: Periodo regolatorio | E8: 0 | F8: 0 | G8: 1 | H8: 1 | I8: 1 | J8: 1 | K8: 2 | L8: 2 | M8: 2 | N8: 2 | O8: 2 | P8: 3 | Q8: 3 | R8: 3 | S8: 3
C9: Anno del periodo regolatorio | E9: 0 | F9: 0 | G9: 1 | H9: 2 | I9: 3 | J9: 4 | K9: 1 | L9: 2 | M9: 3 | N9: 4 | O9: 5 | P9: 1 | Q9: 2 | R9: 3 | S9: 4
C10: Frazione di anno significativa | G10: 1 | H10: 1 | I10: 1 | J10: 1 | K10: 1 | L10: 1 | M10: 1 | N10: 1 | O10: 1 | P10: 1 | Q10: 1 | R10: 1 | S10: 1
F12: Ultimo adattamento schema: 03/11/2025 14:32:31
C14: Informazioni generali
C16: Tasso di remunerazione del CIN ante (TIR previgente) | D16: TIR | F16: ='Z0.1 Dati generali'!G65 -> 0.1387 | G16: ='Z0.1 Dati generali'!H65 -> 0.1387 | H16: ='Z0.1 Dati generali'!I65 -> 0.1387 | I16: ='Z0.1 Dati generali'!J65 -> 0.1387 | J16: ='Z0.1 Dati generali'!K65 -> 0.1387 | K16: ='Z0.1 Dati generali'!L65 -> 0.1387 | L16: ='Z0.1 Dati generali'!M65 -> 0.1387 | M16: ='Z0.1 Dati generali'!N65 -> 0.1387 | N16: ='Z0.1 Dati generali'!O65 -> 0.1387 | O16: ='Z0.1 Dati generali'!P65 -> 0.1387 | P16: ='Z0.1 Dati generali'!Q65 -> 0.1387 | Q16: ='Z0.1 Dati generali'!R65 -> 0.1387 | R16: ='Z0.1 Dati generali'!S65 -> 0.1387 | S16: ='Z0.1 Dati generali'!T65 -> 0.1387
C17: Tasso di remunerazione del CIN pre2026 e post2026 (WACC) | D17: WACC | F17: ='Z0.1 Dati generali'!G66 -> 0.0751 | G17: ='Z0.1 Dati generali'!H66 -> 0.0751 | H17: ='Z0.1 Dati generali'!I66 -> 0.0751 | I17: ='Z0.1 Dati generali'!J66 -> 0.0751 | J17: ='Z0.1 Dati generali'!K66 -> 0.0751 | K17: ='Z0.1 Dati generali'!L66 -> 0.0751 | L17: ='Z0.1 Dati generali'!M66 -> 0.0751 | M17: ='Z0.1 Dati generali'!N66 -> 0.0751 | N17: ='Z0.1 Dati generali'!O66 -> 0.0751 | O17: ='Z0.1 Dati generali'!P66 -> 0.0751 | P17: ='Z0.1 Dati generali'!Q66 -> 0.0751 | Q17: ='Z0.1 Dati generali'!R66 -> 0.0751 | R17: ='Z0.1 Dati generali'!S66 -> 0.0751 | S17: ='Z0.1 Dati generali'!T66 -> 0.0751
C18: Tasso di remunerazione del valore di subentro (Rtv) per CIN ante | D18: Rtv - ante | F18: ='Z0.1 Dati generali'!G67 -> 0.1387 | G18: ='Z0.1 Dati generali'!H67 -> 0.1387 | H18: ='Z0.1 Dati generali'!I67 -> 0.1387 | I18: ='Z0.1 Dati generali'!J67 -> 0.1387 | J18: ='Z0.1 Dati generali'!K67 -> 0.1387 | K18: ='Z0.1 Dati generali'!L67 -> 0.1387 | L18: ='Z0.1 Dati generali'!M67 -> 0.1387 | M18: ='Z0.1 Dati generali'!N67 -> 0.1387 | N18: ='Z0.1 Dati generali'!O67 -> 0.1387 | O18: ='Z0.1 Dati generali'!P67 -> 0.1387 | P18: ='Z0.1 Dati generali'!Q67 -> 0.1387 | Q18: ='Z0.1 Dati generali'!R67 -> 0.1387 | R18: ='Z0.1 Dati generali'!S67 -> 0.1387 | S18: ='Z0.1 Dati generali'!T67 -> 0.1387
C19: Tasso di remunerazione del valore di subentro (Rtv) per CIN pre2026 e post2026 | D19: Rtv - post | F19: ='Z0.1 Dati generali'!G68 -> 0.0751 | G19: ='Z0.1 Dati generali'!H68 -> 0.0751 | H19: ='Z0.1 Dati generali'!I68 -> 0.0751 | I19: ='Z0.1 Dati generali'!J68 -> 0.0751 | J19: ='Z0.1 Dati generali'!K68 -> 0.0751 | K19: ='Z0.1 Dati generali'!L68 -> 0.0751 | L19: ='Z0.1 Dati generali'!M68 -> 0.0751 | M19: ='Z0.1 Dati generali'!N68 -> 0.0751 | N19: ='Z0.1 Dati generali'!O68 -> 0.0751 | O19: ='Z0.1 Dati generali'!P68 -> 0.0751 | P19: ='Z0.1 Dati generali'!Q68 -> 0.0751 | Q19: ='Z0.1 Dati generali'!R68 -> 0.0751 | R19: ='Z0.1 Dati generali'!S68 -> 0.0751 | S19: ='Z0.1 Dati generali'!T68 -> 0.0751
C20: Tasso di remunerazione delle lavorazioni in corso di secondo livello (vite utili) | D20: Rlic | F20: ='Z0.1 Dati generali'!G69 -> 0.0435 | G20: ='Z0.1 Dati generali'!H69 -> 0.0435 | H20: ='Z0.1 Dati generali'!I69 -> 0.0435 | I20: ='Z0.1 Dati generali'!J69 -> 0.0435 | J20: ='Z0.1 Dati generali'!K69 -> 0.0435 | K20: ='Z0.1 Dati generali'!L69 -> 0.0435 | L20: ='Z0.1 Dati generali'!M69 -> 0.0435 | M20: ='Z0.1 Dati generali'!N69 -> 0.0435 | N20: ='Z0.1 Dati generali'!O69 -> 0.0435 | O20: ='Z0.1 Dati generali'!P69 -> 0.0435 | P20: ='Z0.1 Dati generali'!Q69 -> 0.0435 | Q20: ='Z0.1 Dati generali'!R69 -> 0.0435 | R20: ='Z0.1 Dati generali'!S69 -> 0.0435 | S20: ='Z0.1 Dati generali'!T69 -> 0.0435
C22: Tasso di inflazione | D22: P | F22: ='Z0.1 Dati generali'!G43 -> 0.021 | G22: ='Z0.1 Dati generali'!H43 -> 0.019 | H22: ='Z0.1 Dati generali'!I43 -> 0.018 | I22: ='Z0.1 Dati generali'!J43 -> 0.02 | J22: ='Z0.1 Dati generali'!K43 -> 0.02 | K22: ='Z0.1 Dati generali'!L43 -> 0.02 | L22: ='Z0.1 Dati generali'!M43 -> 0.02 | M22: ='Z0.1 Dati generali'!N43 -> 0.02 | N22: ='Z0.1 Dati generali'!O43 -> 0.02 | O22: ='Z0.1 Dati generali'!P43 -> 0.02 | P22: ='Z0.1 Dati generali'!Q43 -> 0.02 | Q22: ='Z0.1 Dati generali'!R43 -> 0.02 | R22: ='Z0.1 Dati generali'!S43 -> 0.02 | S22: ='Z0.1 Dati generali'!T43 -> 0.02
C23: Indicatore di produttività annuale | D23: X | G23: ='Z0.1 Dati generali'!H52 -> -0.006073323852 | H23: ='Z0.1 Dati generali'!I52 -> -0.006073323852 | I23: ='Z0.1 Dati generali'!J52 -> -0.006073323852 | J23: ='Z0.1 Dati generali'!K52 -> -0.006073323852 | K23: ='Z0.1 Dati generali'!L52 -> -0.006073323852 | L23: ='Z0.1 Dati generali'!M52 -> 0 | M23: ='Z0.1 Dati generali'!N52 -> 0 | N23: ='Z0.1 Dati generali'!O52 -> 0 | O23: ='Z0.1 Dati generali'!P52 -> 0 | P23: ='Z0.1 Dati generali'!Q52 -> 0 | Q23: ='Z0.1 Dati generali'!R52 -> 0 | R23: ='Z0.1 Dati generali'!S52 -> 0 | S23: ='Z0.1 Dati generali'!T52 -> 0
C25: Volumi di traffico previsti (000 veicoli/km) | D25: V | E25: ='Z0.1 Dati generali'!F193 -> 1039148.697 | F25: ='Z0.1 Dati generali'!G193 -> 1044344.44 | G25: ='Z0.1 Dati generali'!H193 -> 1049566.163 | H25: ='Z0.1 Dati generali'!I193 -> 1054813.993 | I25: ='Z0.1 Dati generali'!J193 -> 1060088.063 | J25: ='Z0.1 Dati generali'!K193 -> 1065388.504 | K25: ='Z0.1 Dati generali'!L193 -> 1070715.446 | L25: ='Z0.1 Dati generali'!M193 -> 1076069.023 | M25: ='Z0.1 Dati generali'!N193 -> 1081449.369 | N25: ='Z0.1 Dati generali'!O193 -> 1086856.615 | O25: ='Z0.1 Dati generali'!P193 -> 1092290.899 | P25: ='Z0.1 Dati generali'!Q193 -> 1097752.353 | Q25: ='Z0.1 Dati generali'!R193 -> 1103241.115 | R25: ='Z0.1 Dati generali'!S193 -> 1108757.32 | S25: ='Z0.1 Dati generali'!T193 -> 1114301.107
C26: Volumi di traffico medi annui per periodo regolatorio (000 veicoli/km) | D26: V' | F26: ='Z0.1 Dati generali'!G194 -> 1057464.181 | G26: ='Z0.1 Dati generali'!H194 ->  | H26: ='Z0.1 Dati generali'!I194 ->  | I26: ='Z0.1 Dati generali'!J194 ->  | J26: ='Z0.1 Dati generali'!K194 -> 1081476.27 | K26: ='Z0.1 Dati generali'!L194 ->  | L26: ='Z0.1 Dati generali'!M194 ->  | M26: ='Z0.1 Dati generali'!N194 ->  | N26: ='Z0.1 Dati generali'!O194 ->  | O26: ='Z0.1 Dati generali'!P194 -> 1106012.974 | P26: ='Z0.1 Dati generali'!Q194 ->  | Q26: ='Z0.1 Dati generali'!R194 ->  | R26: ='Z0.1 Dati generali'!S194 ->  | S26: ='Z0.1 Dati generali'!T194 -> 
C27: Volumi di traffico medi annui per discontinuità di costo (000 veicoli/km) | D27: V'' | F27: ='Z0.1 Dati generali'!G195 -> 1057464.181 | G27: ='Z0.1 Dati generali'!H195 -> 1057464.181 | H27: ='Z0.1 Dati generali'!I195 -> 1060096.854 | I27: ='Z0.1 Dati generali'!J195 -> 1062738.284 | J27: ='Z0.1 Dati generali'!K195 -> 1065388.504 | K27: ='Z0.1 Dati generali'!L195 -> 1081476.27 | L27: ='Z0.1 Dati generali'!M195 -> 1084166.476 | M27: ='Z0.1 Dati generali'!N195 -> 1086865.628 | N27: ='Z0.1 Dati generali'!O195 -> 1089573.757 | O27: ='Z0.1 Dati generali'!P195 -> 1092290.899 | P27: ='Z0.1 Dati generali'!Q195 -> 1106012.974 | Q27: ='Z0.1 Dati generali'!R195 -> 1108766.514 | R27: ='Z0.1 Dati generali'!S195 -> 1111529.214 | S27: ='Z0.1 Dati generali'!T195 -> 1114301.107
C30: COMPONENTE TARIFFARIA DI GESTIONE - Tg
C32: Costi operativi totali ammessi | D32: A | E32: 37640
C33: Utilizzo di fondo accantonamento per rinnovi | D33: A'' | E33: 340
C34: Extraprofitto da attività accessorie (in deduzione) | D34: A''' | E34: 571.165
C35: Costi operativi totali ammessi netti | D35: B = A+A'-A'' | E35: =+E32+E33-E34 -> 37408.835
C37: Immobilizzazioni non reversibili al 31/12 | D37: C | E37: 810
C38: Ammortamento annuo CIN | D38: C' | E38: 210
C39: Remunerazione annua opere in esercizio | D39: C'' | E39: 76.602
C40: Costi totali afferenti a componente tariffaria di gestione | D40: D = B+C'+C'' | E40: =+E35+E38+E39 -> 37695.437 | F40: =+E40*(1+F22) -> 38487.04118 | G40: =F40*(1+G$22+G$23)+ IF(G7, (((((B$46*(1+C$22+C$23)+C$46)*(1+D$22+D$23)+D$46)*(1+E$22+E$23)+E$46)*(1+F$22+F$23)+F$46)*(1+G$22+G$23)),0) -> 38984.55069 | H40: 39449.50681 | I40: 39998.90731 | J40: 41010.9234 | K40: 41582.06924 | L40: 42413.71063 | M40: 43261.98484 | N40: 44127.22454 | O40: 45592.9392 | P40: 46504.79798 | Q40: 47434.89394 | R40: 48383.59182 | S40: 49351.26366
C42: Componente tariffaria di gestione unitaria | D42: G = D/V' --> G ∙ (1+P-X) | F42: =IFERROR( IF(AND(F$8=0,F$7=1), (F$40/F$26), IF(AND(E$8>0,E$7=1), (F$40/F$26)*(1+F$22+F$23), E42*(1+F$22+F$23))),0) -> 0.03639559796 | G42: =IFERROR( IF(AND(G$8=0,G$7=1), (G$40/G$26), IF(AND(F$8>0,F$7=1), (F$40/F$26)*(1+G$22+G$23), F42*(1+G$22+G$23))),0) -> 0.03686607206 | H42: 0.03730576177 | I42: 0.03782530703 | J42: 0.03835208783 | K42: 0.03844935888 | L42: 0.03921834606 | M42: 0.04000271298 | N42: 0.04080276724 | O42: 0.04161882258 | P42: 0.04204724455 | Q42: 0.04288818944 | R42: 0.04374595323 | S42: 0.04462087229
C44: Discontinuità di costo da nuovi investimenti | D44: I* | F44: 10 | G44: 10 | H44: 10 | I44: 10 | J44: 10 | K44: 10 | L44: 10 | M44: 10 | N44: 10 | O44: 10 | P44: 10 | Q44: 10 | R44: 10 | S44: 10
C45: Discontinuità di costo da sopravvenienze normative | D45: I** | F45: 100 | G45: 100 | H45: 100 | I45: 100 | J45: 100 | K45: 100 | L45: 100 | M45: 100 | N45: 100 | O45: 100 | P45: 100 | Q45: 100 | R45: 100 | S45: 100
C46: Totale discontinuità di costo | D46: E=I*+I** | F46: =+F44+F45 -> 110 | G46: =+G44+G45 -> 110 | H46: =+H44+H45 -> 110 | I46: 110 | J46: 110 | K46: 110 | L46: 110 | M46: 110 | N46: 110 | O46: 110 | P46: 110 | Q46: 110 | R46: 110 | S46: 110
C48: Sub-componente tariffaria di gestione unitaria - discontinuità di costo anno ponte | D48: I1=E/V'' --> I1 ∙ (1+P-X) | F48: =IFERROR(IF(F9=1,(E$46/E$26)*(1+F$22+F$23),E48*(1+F$22+F$23)),0) -> 0 | G48: 0.0001053671003 | H48: 0.0001066237796 | I48: 0.0001081086944 | J48: 0.0001096142892 | K48: 0.0001031293404 | L48: 0.0001051919272 | M48: 0.0001072957657 | N48: 0.000109441681 | O48: 0.0001116305146 | P48: 0.0001014454646 | Q48: 0.0001034743739 | R48: 0.0001055438614 | S48: 0.0001076547386
C49: Sub-componente tariffaria di gestione unitaria - discontinuità di costo 1° anno | D49: I2=E/V'' --> I2 ∙ (1+P-X) | F49: =IF(F$8>0,IF(F$9=1,F$46/F$27,E49*(1+F$22+F$23)),"") ->  | G49: 0.0001040224359 | H49: 0.0001052630778 | I49: 0.0001067290426 | J49: 0.0001082154234 | K49: 0.0001017128189 | L49: 0.0001037470752 | M49: 0.0001058220167 | N49: 0.0001079384571 | O49: 0.0001100972262 | P49: 9.945633786e-05 | Q49: 0.0001014454646 | R49: 0.0001034743739 | S49: 0.0001055438614
C50: Sub-componente tariffaria di gestione unitaria - discontinuità di costo 2° anno | D50: I3=E/V'' --> I3 ∙ (1+P-X) | F50: =IF(F$8>0,IF(F$9<2,"",IF(F$9=2,F$46/F$27,E50*(1+F$22+F$23))),"") ->  | H50: 0.0001037641039 | I50: 0.0001052091929 | J50: 0.0001066744073 | L50: 0.0001014604329 | M50: 0.0001034896415 | N50: 0.0001055594344 | O50: 0.000107670623 | Q50: 9.920934535e-05 | R50: 0.0001011935323 | S50: 0.0001032174029
C51: Sub-componente tariffaria di gestione unitaria - discontinuità di costo 3° anno | D51: I4=E/V'' --> I4 ∙ (1+P-X) | F51: =IF(F$8>0,IF(F$9<3,"",IF(F$9=3,F$46/F$27,E51*(1+F$22+F$23))),"") ->  | I51: 0.0001035061988 | J51: 0.0001049476961 | M51: 0.0001012084633 | N51: 0.0001032326326 | O51: 0.0001052972852 | R51: 9.896276108e-05 | S51: 0.0001009420163
C52: Sub-componente tariffaria di gestione unitaria - discontinuità di costo 4° anno | D52: I5=E/V'' --> I5 ∙ (1+P-X) | F52: =IF(F$8>0,IF(F$9<4,"",IF(F$9=4,F$46/F$27,E52*(1+F$22+F$23))),"") ->  | J52: 0.0001032487206 | N52: 0.0001009569103 | O52: 0.0001029760485 | S52: 9.871658506e-05
C53: Sub-componente tariffaria di gestione unitaria - discontinuità di costo 5° anno | D53: I6=E/V'' --> I6 ∙ (1+P-X) | F53: =IF(F$8>0,IF(F$9<5,"",IF(F$9=5,F$46/F$27,E53*(1+F$22+F$23))),"") ->  | O53: 0.0001007057737
C54: Sub-componente tariffaria di gestione da discontinuità di costo | D54: G'= I1+I2+I3+I4+I5+I6 | F54: =IFERROR(SUM(F48:F53),0) -> 0 | G54: =IFERROR(SUM(G48:G53),0) -> 0.0002093895362 | H54: =IFERROR(SUM(H48:H53),0) -> 0.0003156509612 | I54: 0.0004235531287 | J54: 0.0005327005366 | K54: 0.0002048421592 | L54: 0.0003103994353 | M54: 0.0004178158873 | N54: 0.0005271291153 | O54: 0.0006383774713 | P54: 0.0002009018025 | Q54: 0.0003041291839 | R54: 0.0004091745286 | S54: 0.0005160746043
C56: Componente tariffaria di gestione unitaria (comprensiva delle discontinuità di costo) | D56: Tg= G+G' | F56: =+F42+F54 -> 0.03639559796 | G56: 0.0370754616 | H56: =+H42+H54 -> 0.03762141273 | I56: 0.03824886016 | J56: 0.03888478837 | K56: 0.03865420104 | L56: 0.03952874549 | M56: 0.04042052887 | N56: 0.04132989636 | O56: 0.04225720006 | P56: 0.04224814635 | Q56: 0.04319231863 | R56: 0.04415512776 | S56: 0.0451369469
C57: Totale ricavi da componente tariffaria di gestione (comprensivi delle discontinuità di costo) | D57: G*= Tg ∙ V | F57: =+F56*F25 -> 38009.54038 | G57: =+G56*G25*G10 -> 38913.14996 | H57: 39683.5926 | I57: 40547.16009 | J57: 41427.4065 | K57: 41387.65012 | L57: 42535.65856 | M57: 43712.75542 | N57: 44919.67127 | O57: 46157.15502 | P57: 46378.00207 | Q57: 47651.54175 | R57: 48957.32113 | S57: 50296.14989
C59: Effetto meccanismo premialità/penalità da qualità dei servizi
C61: Indicatore sintetico di qualità anni precedenti | D61: Qt | G61: -0.005 | H61: -0.004
C63: Componente tariffaria di gestione unitaria (effettiva) | D63: G**= G*· (1+Qt) | G63: =IF(G61<>"",G56*(1+G61),"") -> 0.03689008429 | H63: =IF(H61<>"",H56*(1+H61),"") -> 0.03747092708
C64: Scostamento da componente tariffaria di gestione determinata ex ante | G64: =IF(G61<>"",G63-G56,"") -> -0.000185377308 | H64: =IF(H61<>"",H63-H56,"") -> -0.0001504856509
C65: Totale ricavi da componente di gestione (effettivi) | D65: G**∙V | G65: =IF(G61<>"",G63*G$25,"") -> 38718.58421 | H65: =IF(H61<>"",H63*H$25,"") -> 39524.85823
C66: Scostamento ricavi da componente di gestione determinati ex ante | G66: =IF(G61<>"",G65-G57,"") -> -194.5657498 | H66: =IF(H61<>"",H65-H57,"") -> -158.7343704
C68: Componente tariffaria di gestione unitaria applicata | D68: Tg= G+G' | F68: =IF(F63="",F56,F63) -> 0.03639559796 | G68: =IF(G63="",G56,G63) -> 0.03689008429 | H68: 0.03747092708 | I68: 0.03824886016 | J68: 0.03888478837 | K68: 0.03865420104 | L68: 0.03952874549 | M68: 0.04042052887 | N68: 0.04132989636 | O68: 0.04225720006 | P68: 0.04224814635 | Q68: 0.04319231863 | R68: 0.04415512776 | S68: 0.0451369469
C69: Totale ricavi da componente tariffaria di gestione (comprensivi delle discontinuità di costo) aggiornati | D69: G*= Tg ∙ V | F69: =+F68*F25 -> 38009.54038 | G69: 38718.58421 | H69: 39524.85823 | I69: 40547.16009 | J69: 41427.4065 | K69: 41387.65012 | L69: 42535.65856 | M69: 43712.75542 | N69: 44919.67127 | O69: 46157.15502 | P69: 46378.00207 | Q69: 47651.54175 | R69: 48957.32113 | S69: 50296.14989
C72: COMPONENTE TARIFFARIA DI COSTRUZIONE - Tk
C74: CIN ante (TIR)
B75: 1a | C75: CIN ante - investimenti (opere) (01/01) - SAL contabilizzati | D75: H1a | G75: 208421.0526 | H75: 183618.4211 | I75: 158815.7895 | J75: 134013.1579 | K75: 109210.5263 | L75: 84407.89474 | M75: 59605.26316 | N75: 34802.63158 | O75: 10000 | P75: 10000 | Q75: 10000 | R75: 10000 | S75: 9980
B76: 1b | C76: CIN ante - investimenti (opere) (01/01) - SAL da contabilizzare | D76: H1b | G76: 10000 | H76: 18750 | I76: 26071.42857 | J76: 21726.19048 | K76: 17380.95238 | L76: 13035.71429 | M76: 8690.47619 | N76: 4345.238095 | O76: 0 | P76: 0 | Q76: 0 | R76: 0 | S76: -20
B77: 2a | C77: CIN ante - investimenti (contributo) (01/01) - SAL contabilizzati | D77: F1a | G77: 0 | H77: -2000 | I77: -1714.285714 | J77: -1428.571429 | K77: -1142.857143 | L77: -857.1428571 | M77: -571.4285714 | N77: -285.7142857 | O77: 0 | P77: 0 | Q77: 0 | R77: 0 | S77: 0
B78: 2b | C78: CIN ante - investimenti (contributo) (01/01) - SAL da contabilizzare | D78: F1b | G78: 0 | H78: -1000 | I78: -857.1428571 | J78: -714.2857143 | K78: -571.4285714 | L78: -428.5714286 | M78: -285.7142857 | N78: -142.8571429 | O78: 0 | P78: 0 | Q78: 0 | R78: 0 | S78: 0
B79: 3 | C79: CIN ante - avviamento (01/01) | D79: H1' | G79: 0 | H79: 0 | I79: 0 | J79: 0 | K79: 0 | L79: 0 | M79: 0 | N79: 0 | O79: 0 | P79: 0 | Q79: 0 | R79: 0 | S79: 0
C81: CIN pre2026 (WACC) - ammortamento finanziario
B82: 4 | C82: CIN post - finanziario - investimenti (opere) (01/01) | D82: H2 | G82: 20000 | H82: 30000 | I82: 40000 | J82: 40000 | K82: 40000 | L82: 40000 | M82: 40000 | N82: 40000 | O82: 40000 | P82: 32200 | Q82: 24400 | R82: 16600 | S82: 8780
B83: 5 | C83: CIN post - finanziario - investimenti (contributo) (01/01) | D83: F2 | G83: 0 | H83: -1000 | I83: -1000 | J83: -1000 | K83: -1000 | L83: -1000 | M83: -1000 | N83: -1000 | O83: -1000 | P83: -800 | Q83: -600 | R83: -400 | S83: -200
C85: CIN post2026 (WACC) - ammortamento finanziario
B86: 9 | C86: CIN post - finanziario - investimenti (opere) (01/01) | D86: H2 | G86: 0 | H86: 50000 | I86: 100000 | J86: 100000 | K86: 100000 | L86: 100000 | M86: 100000 | N86: 100000 | O86: 100000 | P86: 80000 | Q86: 60000 | R86: 40000 | S86: 19980
B87: 10 | C87: CIN post - finanziario - investimenti (contributo) (01/01) | D87: F2 | G87: 0 | H87: -1000 | I87: -1000 | J87: -1000 | K87: -1000 | L87: -1000 | M87: -1000 | N87: -1000 | O87: -1000 | P87: -800 | Q87: -600 | R87: -400 | S87: -200
C89: CIN post2026 (WACC) - ammortamento a vite utili
B90: 12a | C90: CIN post - vite utili - LIC di primo livello (01/01) | D90: L1 | G90: 0 | H90: 0 | I90: 100 | J90: 100 | K90: 100 | L90: 100 | M90: 100 | N90: 100 | O90: 100 | P90: 100 | Q90: 100 | R90: 100 | S90: 0
B91: 12b | C91: CIN post - vite utili - LIC di secondo livello (01/01) | D91: L2 | G91: 0 | H91: 0 | I91: 100 | J91: 100 | K91: 100 | L91: 100 | M91: 100 | N91: 100 | O91: 100 | P91: 100 | Q91: 100 | R91: 100 | S91: 0
B92: 14 | C92: CIN post - vite utili - investimenti (opere) (01/01) | D92: H4 | G92: 0 | H92: 0 | I92: 0 | J92: 400 | K92: 790 | L92: 1170 | M92: 1534 | N92: 1884.666667 | O92: 2215.333333 | P92: 2526 | Q92: 2816.666667 | R92: 3067.333333 | S92: 3308
B93: 15 | C93: CIN post - vite utili - investimenti (contributo) (01/01) | D93: F4 | G93: 0 | H93: 0 | I93: -40 | J93: -79 | K93: -117 | L93: -153.4 | M93: -188.4666667 | N93: -221.5333333 | O93: -252.6 | P93: -281.6666667 | Q93: -306.7333333 | R93: -330.8 | S93: -313.5333333
C95: Valore di subentro
B96: 6 | C96: CIN ante - valore di subentro investimenti (cumulato) | D96: N1 | G96: 10000 | H96: 10000 | I96: 10000 | J96: 10000 | K96: 10000 | L96: 10000 | M96: 10000 | N96: 10000 | O96: 10000 | P96: 10000 | Q96: 10000 | R96: 10000 | S96: 9960
B97: 7 | C97: CIN pre2026 - valore di subentro investimenti (cumulato) | D97: N2 | G97: 1000 | H97: 1000 | I97: 1000 | J97: 1000 | K97: 1000 | L97: 1000 | M97: 1000 | N97: 1000 | O97: 1000 | P97: 1000 | Q97: 1000 | R97: 1000 | S97: 1000
B98: 8 | C98: CIN post - finanziario - valore di subentro LIC | D98: N3 | G98: 0 | H98: 0 | I98: 0 | J98: 0 | K98: 0 | L98: 0 | M98: 0 | N98: 0 | O98: 0 | P98: 0 | Q98: 0 | R98: 0 | S98: 0
B99: 11 | C99: CIN post - finanziario - valore di subentro investimenti (cumulato) | D99: N4 | G99: 0 | H99: 0 | I99: 0 | J99: 0 | K99: 0 | L99: 0 | M99: 0 | N99: 0 | O99: 0 | P99: 0 | Q99: 0 | R99: 0 | S99: 0
B100: 13a | C100: CIN post - vite utili - valore di subentro LIC di primo livello | D100: N51 | G100: 0 | H100: 0 | I100: 0 | J100: 0 | K100: 0 | L100: 0 | M100: 0 | N100: 0 | O100: 0 | P100: 0 | Q100: 0 | R100: 0 | S100: 0
B101: 13b | C101: CIN post - vite utili - valore di subentro LIC di secondo livello | D101: N52 | G101: 0 | H101: 0 | I101: 0 | J101: 0 | K101: 0 | L101: 0 | M101: 0 | N101: 0 | O101: 0 | P101: 0 | Q101: 0 | R101: 0 | S101: 0
B102: 16 | C102: CIN post - vite utili - valore di subentro investimenti (opere) (cumulato) | D102: N6 | G102: 0 | H102: 0 | I102: 300 | J102: 610 | K102: 882 | L102: 1188.666667 | M102: 1468.666667 | N102: 1768.666667 | O102: 2088.666667 | P102: 2368.666667 | Q102: 2748.666667 | R102: 3135.333333 | S102: 2935.333333
B103: 17 | C103: CIN post - vite utili - valore di subentro investimenti (contributo) (cumulato) | D103: N7 | G103: 0 | H103: -29 | I103: -59 | J103: -84.6 | K103: -113.9333333 | L103: -139.9333333 | M103: -167.9333333 | N103: -197.9333333 | O103: -221.9333333 | P103: -258.9333333 | Q103: -296.2666667 | R103: -296.2666667 | S103: -296.2666667
C106: Totale ammortamenti
B107: 22a | C107: Ammortamento CIN ante - investimenti (opere) - SAL contabilizzati | D107: J1a | G107: 24802.63158 | H107: 24802.63158 | I107: 24802.63158 | J107: 24802.63158 | K107: 24802.63158 | L107: 24802.63158 | M107: 24802.63158 | N107: 24802.63158 | O107: 0 | P107: 0 | Q107: 0 | R107: 0 | S107: 0
B108: 22b | C108: Ammortamento CIN ante - investimenti (opere) - SAL da contabilizzare | D108: J1b | G108: 1250 | H108: 2678.571429 | I108: 4345.238095 | J108: 4345.238095 | K108: 4345.238095 | L108: 4345.238095 | M108: 4345.238095 | N108: 4345.238095 | O108: 0 | P108: 0 | Q108: 0 | R108: 0 | S108: 0
B109: 23a | C109: Ammortamento CIN ante - investimenti (contributo) - SAL contabilizzati | D109: K1a | G109: 0 | H109: -285.7142857 | I109: -285.7142857 | J109: -285.7142857 | K109: -285.7142857 | L109: -285.7142857 | M109: -285.7142857 | N109: -285.7142857 | O109: 0 | P109: 0 | Q109: 0 | R109: 0 | S109: 0
B110: 23b | C110: Ammortamento CIN ante - investimenti (contributo) - SAL da contabilizzare | D110: K1b | G110: 0 | H110: -142.8571429 | I110: -142.8571429 | J110: -142.8571429 | K110: -142.8571429 | L110: -142.8571429 | M110: -142.8571429 | N110: -142.8571429 | O110: 0 | P110: 0 | Q110: 0 | R110: 0 | S110: 0
B111: 24 | C111: Ammortamento CIN ante - avviamento | D111: J1' | G111: 0 | H111: 0 | I111: 0 | J111: 0 | K111: 0 | L111: 0 | M111: 0 | N111: 0 | O111: 0 | P111: 0 | Q111: 0 | R111: 0 | S111: 0
B112: 25 | C112: Ammortamento CIN pre2026 - investimenti (opere) | D112: J2 | G112: 0 | H112: 0 | I112: 0 | J112: 0 | K112: 0 | L112: 0 | M112: 0 | N112: 0 | O112: 7800 | P112: 7800 | Q112: 7800 | R112: 7800 | S112: 7780
B113: 26 | C113: Ammortamento CIN pre2026 - investimenti (contributo) | D113: K2 | G113: 0 | H113: 0 | I113: 0 | J113: 0 | K113: 0 | L113: 0 | M113: 0 | N113: 0 | O113: -200 | P113: -200 | Q113: -200 | R113: -200 | S113: -200
B114: 29 | C114: Ammortamento CIN post2026 - finanziario - investimenti (opere) | D114: J3 | G114: 0 | H114: 0 | I114: 0 | J114: 0 | K114: 0 | L114: 0 | M114: 0 | N114: 0 | O114: 20000 | P114: 20000 | Q114: 20000 | R114: 20000 | S114: 19980
B115: 30 | C115: Ammortamento CIN post2026 - finanziario - investimenti (contributo) | D115: K3 | G115: 0 | H115: 0 | I115: 0 | J115: 0 | K115: 0 | L115: 0 | M115: 0 | N115: 0 | O115: -200 | P115: -200 | Q115: -200 | R115: -200 | S115: -200
B116: 34 | C116: Ammortamento CIN post2026 - vite utili - investimenti (opere) | D116: J4 | G116: 0 | H116: 0 | I116: 0 | J116: 10 | K116: 20 | L116: 36 | M116: 49.33333333 | N116: 69.33333333 | O116: 89.33333333 | P116: 109.3333333 | Q116: 149.3333333 | R116: 159.3333333 | S116: 172.6666667
B117: 35 | C117: Ammortamento CIN post2026 - vite utili - investimenti (contributo) | D117: K4 | G117: 0 | H117: 0 | I117: -1 | J117: -2 | K117: -3.6 | L117: -4.933333333 | M117: -6.933333333 | N117: -8.933333333 | O117: -10.93333333 | P117: -14.93333333 | Q117: -15.93333333 | R117: -17.26666667 | S117: -17.26666667
C118: Totale | D118: Amm =somma (Jx+Kx) | G118: =SUM(G107:G117) -> 26052.63158 | H118: =SUM(H107:H117) -> 27052.63158 | I118: 28718.29825 | J118: 28727.29825 | K118: 28735.69825 | L118: 28750.36491 | M118: 28761.69825 | N118: 28779.69825 | O118: 27478.4 | P118: 27494.4 | Q118: 27533.4 | R118: 27542.06667 | S118: 27515.4
C120: Totale remunerazioni
B121: 42a | C121: Remunerazione CIN ante - investimenti (opere) - SAL contabilizzati | D121: O1a | G121: 27521 | H121: 24080.875 | I121: 20640.75 | J121: 17200.625 | K121: 13760.5 | L121: 10320.375 | M121: 6880.25 | N121: 3440.125 | O121: 0 | P121: 0 | Q121: 0 | R121: 0 | S121: 2.774
B122: 42b | C122: Remunerazione CIN ante - investimenti (opere) - SAL da contabilizzare | D122: O1b | G122: 1387 | H122: 2600.625 | I122: 3616.107143 | J122: 3013.422619 | K122: 2410.738095 | L122: 1808.053571 | M122: 1205.369048 | N122: 602.6845238 | O122: 0 | P122: 0 | Q122: 0 | R122: 0 | S122: -2.774
B123: 43a | C123: Remunerazione CIN ante - investimenti (contributo) - SAL contabilizzati | D123: P1a | G123: 0 | H123: -277.4 | I123: -237.7714286 | J123: -198.1428571 | K123: -158.5142857 | L123: -118.8857143 | M123: -79.25714286 | N123: -39.62857143 | O123: 0 | P123: 0 | Q123: 0 | R123: 0 | S123: 0
B124: 43b | C124: Remunerazione CIN ante - investimenti (contributo) - SAL da contabilizzare | D124: P1b | G124: 0 | H124: -138.7 | I124: -118.8857143 | J124: -99.07142857 | K124: -79.25714286 | L124: -59.44285714 | M124: -39.62857143 | N124: -19.81428571 | O124: 0 | P124: 0 | Q124: 0 | R124: 0 | S124: 0
B125: 46 | C125: Remunerazione CIN ante - valore di subentro investimenti | D125: Q1 | G125: 1387 | H125: 1387 | I125: 1387 | J125: 1387 | K125: 1387 | L125: 1387 | M125: 1387 | N125: 1387 | O125: 1387 | P125: 1387 | Q125: 1387 | R125: 1387 | S125: 1381.452
B126: 44 | C126: Remunerazione CIN ante - avviamento | D126: O1' | G126: 0 | H126: 0 | I126: 0 | J126: 0 | K126: 0 | L126: 0 | M126: 0 | N126: 0 | O126: 0 | P126: 0 | Q126: 0 | R126: 0 | S126: 0
B127: 45 | C127: Remunerazione CIN pre2026 - finanziario - investimenti (opere) | D127: O2 | G127: 1426.9 | H127: 2177.9 | I127: 2928.9 | J127: 2928.9 | K127: 2928.9 | L127: 2928.9 | M127: 2928.9 | N127: 2928.9 | O127: 2928.9 | P127: 2343.12 | Q127: 1757.34 | R127: 1171.56 | S127: 584.278
B128: 48 | C128: Remunerazione CIN pre2026 - finanziario - investimenti (contributo) | D128: P2 | G128: 0 | H128: -75.1 | I128: -75.1 | J128: -75.1 | K128: -75.1 | L128: -75.1 | M128: -75.1 | N128: -75.1 | O128: -75.1 | P128: -60.08 | Q128: -45.06 | R128: -30.04 | S128: -15.02
B129: 47 | C129: Remunerazione CIN pre2026 - finanziario - valore di subentro investimenti | D129: Q2 | G129: 75.1 | H129: 75.1 | I129: 75.1 | J129: 75.1 | K129: 75.1 | L129: 75.1 | M129: 75.1 | N129: 75.1 | O129: 75.1 | P129: 75.1 | Q129: 75.1 | R129: 75.1 | S129: 75.1
B130: 49 | C130: Remunerazione CIN post2026 - finanziario - investimenti (opere) | D130: O3 | G130: 0 | H130: 3755 | I130: 7510 | J130: 7510 | K130: 7510 | L130: 7510 | M130: 7510 | N130: 7510 | O130: 7510 | P130: 6008 | Q130: 4506 | R130: 3004 | S130: 1500.498
B131: 50 | C131: Remunerazione CIN post2026 - finanziario - investimenti (contributo) | D131: P3 | G131: 0 | H131: -75.1 | I131: -75.1 | J131: -75.1 | K131: -75.1 | L131: -75.1 | M131: -75.1 | N131: -75.1 | O131: -75.1 | P131: -60.08 | Q131: -45.06 | R131: -30.04 | S131: -15.02
B132: 51 | C132: Remunerazione CIN post2026 - finanziario - valore di subentro investimenti | D132: Q3 | G132: 0 | H132: 0 | I132: 0 | J132: 0 | K132: 0 | L132: 0 | M132: 0 | N132: 0 | O132: 0 | P132: 0 | Q132: 0 | R132: 0 | S132: 0
B133: 52a | C133: Remunerazione CIN post2026 - vite utili - LIC di primo livello | D133: O41 | G133: 0 | H133: 0 | I133: 7.51 | J133: 7.51 | K133: 7.51 | L133: 7.51 | M133: 7.51 | N133: 7.51 | O133: 7.51 | P133: 7.51 | Q133: 7.51 | R133: 7.51 | S133: 0
B134: 52b | C134: Remunerazione CIN post2026 - vite utili - LIC di secondo livello | D134: O42 | G134: 0 | H134: 0 | I134: 4.35 | J134: 4.35 | K134: 4.35 | L134: 4.35 | M134: 4.35 | N134: 4.35 | O134: 4.35 | P134: 4.35 | Q134: 4.35 | R134: 4.35 | S134: 0
B135: 54 | C135: Remunerazione CIN post2026 - vite utili - investimenti (opere) | D135: O5 | G135: 0 | H135: 0 | I135: 0 | J135: 7.51 | K135: 13.518 | L135: 21.6288 | M135: 25.93453333 | N135: 31.2416 | O135: 33.54466667 | P135: 32.84373333 | Q135: 33.6448 | R135: 23.93186667 | S135: 12.96726667
B136: 55 | C136: Remunerazione CIN post2026 - vite utili - investimenti (contributo) | D136: P5 | G136: 0 | H136: 0 | I136: -0.8261 | J136: -1.502 | K136: -2.43324 | L136: -2.963946667 | M136: -3.644853333 | N136: -4.02536 | O136: -4.105466667 | P136: -4.485973333 | Q136: -3.58978 | R136: -2.593453333 | S136: -1.296726667
B137: 56 | C137: Remunerazione CIN post2026 - vite utili - valore di subentro investimenti | D137: Q5 | G137: 0 | H137: 0 | I137: 0 | J137: 22.53 | K137: 45.811 | L137: 66.2382 | M137: 89.26886667 | N137: 110.2968667 | O137: 132.8268667 | P137: 156.8588667 | Q137: 177.8868667 | R137: 206.4248667 | S137: 235.4635333
B138: 57 | C138: Remunerazione CIN post2026 - vite utili - valore di subentro investimenti (contributo) | D138: R5 | G138: 0 | H138: 0 | I138: -2.1779 | J138: -4.4309 | K138: -6.35346 | L138: -8.556393333 | M138: -10.50899333 | N138: -12.61179333 | O138: -14.86479333 | P138: -16.66719333 | Q138: -19.44589333 | R138: -22.24962667 | S138: -22.24962667
C139: Totale | D139: Rem = somma (Ox+Px+Qx+Rx) | G139: =SUM(G121:G138) -> 31797 | H139: 33510.2 | I139: 35659.856 | J139: 31703.60043 | K139: 27746.66897 | L139: 23789.10666 | M139: 19830.44289 | N139: 15870.92798 | O139: 11910.06127 | P139: 9873.469433 | Q139: 7835.675993 | R139: 5794.953653 | S139: 3736.172447
C141: Totale costi ammessi di costruzione | D141: M = Amm + Rem | G141: =+G118+G139 -> 57849.63158 | H141: 60562.83158 | I141: 64378.15425 | J141: 60430.89868 | K141: 56482.36721 | L141: 52539.47157 | M141: 48592.14113 | N141: 44650.62623 | O141: 39388.46127 | P141: 37367.86943 | Q141: 35369.07599 | R141: 33337.02032 | S141: 31251.57245
C143: Componente tariffaria di costruzione (senza poste figurative) | D143: Tk = M / V | G143: =+G141/(G25*G10) -> 0.05511766065 | H143: 0.05741565049 | I143: 0.06072906249 | J143: 0.05672193615 | K143: 0.05275198692 | L143: 0.04882537312 | M143: 0.0449324236 | N143: 0.04108235216 | O143: 0.03606041333 | P143: 0.03404034556 | Q143: 0.03205924391 | R143: 0.0300670126 | S143: 0.02804589554
C144: Ricavi da Tk | G144: =G143*G$25*G$10 -> 57849.63158 | H144: =H143*H$25*H$10 -> 60562.83158 | I144: 64378.15425 | J144: 60430.89868 | K144: 56482.36721 | L144: 52539.47157 | M144: 48592.14113 | N144: 44650.62623 | O144: 39388.46127 | P144: 37367.86943 | Q144: 35369.07599 | R144: 33337.02032 | S144: 31251.57245
C146: Poste figurative annue | D146: PF | G146: -6961.486633 | H146: -5442.860476 | I146: -5668.627667 | J146: 1287.382459 | K146: 7740.163989 | L146: 13761.67121 | M146: 19436.18562 | N146: 25085.21153 | O146: 32097.74601 | P146: 35912.64165 | Q146: 39750.77592 | R146: 43668.33987 | S146: 47686.62229
C147: Poste figurative annue unitarie | D147: TPF = PF / V | G147: =G146/(G25*G10) -> -0.006632727769 | H147: -0.005160019216 | I147: -0.005347317702 | J147: 0.001208369017 | K147: 0.007228964536 | L147: 0.01278883688 | M147: 0.01797234913 | N147: 0.02308051602 | O147: 0.02938571222 | P147: 0.0327147025 | Q147: 0.03603090511 | R147: 0.0393849394 | S147: 0.0427950955
C148: Saldo poste figurative | D148: SPF = SPF(t-1) ∙ (1+Tasso) + PF | F148: -82216.89427 | G148: -100264.5338 | H148: -119153.4453 | I148: -140614.3986 | J148: -158692.0094 | K148: -172816.7249 | L148: -182871.2298 | M148: -190878.1038 | N148: -174096.0898 | O148: -149571.5237 | P148: -120165.2433 | Q148: -85641.6555 | R148: -45698.72764 | S148: 7.13771442e-09
D149: Check azzermento saldo PF alla scadenza della concessione | E149: =+IF(ROUND(OFFSET(G148,0,ScadenzaConcessione-AnnoPonte-1,1,1),5)=0,"Ok","Verificare") -> Ok
C151: Componente tariffaria di costruzione (con poste figurative) | D151: Tk' = Tk + TPF | G151: =+G143+G147 -> 0.04848493288 | H151: 0.05225563127 | I151: 0.05538174479 | J151: 0.05793030516 | K151: 0.05998095145 | L151: 0.06161421 | M151: 0.06290477273 | N151: 0.06416286819 | O151: 0.06544612555 | P151: 0.06675504806 | Q151: 0.06809014902 | R151: 0.069451952 | S151: 0.07084099104
C152: Ricavi da Tk (con poste figurative) | G152: =G151*G$25*G$10 -> 50888.14495 | H152: 55119.9711 | I152: 58709.52658 | J152: 61718.28114 | K152: 64222.5312 | L152: 66301.14278 | M152: 68028.32675 | N152: 69735.83775 | O152: 71486.20728 | P152: 73280.51108 | Q152: 75119.85191 | R152: 77005.36019 | S152: 78938.19473
C155: COMPONENTE TARIFFARIA PER ONERI INTEGRATIVI (in migliaia di euro)
C157: Costi totali afferenti a componente tariffaria per oneri integrativi | D157: U | G157: 508.7563733 | H157: 453.088977 | I157: 393.2409591 | J157: 328.8983552 | K157: 1250 | L157: 1250 | M157: 1250 | N157: 1250 | O157: 1250 | P157: 1250 | Q157: 1250 | R157: 1250 | S157: 1250
C159: Componente tariffaria per oneri integrativi | D159: Toi = U / V | G159: =+IFERROR(G157/G25,0) -> 0.0004847301594 | H159: 0.0004295439573 | I159: 0.0003709512188 | J159: 0.0003087121308 | K159: 0.001167443698 | L159: 0.00116163552 | M159: 0.001155856239 | N159: 0.001150105711 | O159: 0.001144383792 | P159: 0.00113869034 | Q159: 0.001133025214 | R159: 0.001127388273 | S159: 0.001121779376
C162: TARIFFA UNITARIA MEDIA INTEGRATA
C164: Tariffa unitaria media (con poste figurative) | D164: Tumi = Tg + Tk' + Toi | F164: 0.08663730269 | G164: =+G68+G151+G159 -> 0.08585974733 | H164: =+H68+H151+H159 -> 0.09015610231 | I164: 0.09400155616 | J164: 0.09712380566 | K164: 0.09980259619 | L164: 0.102304591 | M164: 0.1044811578 | N164: 0.1066428703 | O164: 0.1088477094 | P164: 0.1101418848 | Q164: 0.1124154929 | R164: 0.114734468 | S164: 0.1170997173
C165: Ricavi da traffico previsti (con poste figurative) | D165: Y = Tumi · T | G165: =G164*G25*G10 -> 90115.48553 | H165: 95097.91831 | I165: 99649.92763 | J165: 103474.586 | K165: 106860.1813 | L165: 110086.8013 | M165: 112991.0822 | N165: 115905.509 | O165: 118893.3623 | P165: 120908.5132 | Q165: 124021.3937 | R165: 127212.6813 | S165: 130484.3446
C168: RENDIMENTO PFR
C170: Flusso di cassa per costi di gestione efficientati | D170: Cash out: gestione | G170: =-(G40+G46)*G10 -> -39094.55069 | H170: -39559.50681 | I170: -40108.90731 | J170: -41120.9234 | K170: -41692.06924 | L170: -42523.71063 | M170: -43371.98484 | N170: -44237.22454 | O170: -45702.9392 | P170: -46614.79798 | Q170: -47544.89394 | R170: -48493.59182 | S170: -49461.26366
C171: Flusso di cassa da CIN residuo | D171: CIN residuo | F171: =-(OFFSET('Z0.2.a PR Pregressi'!E671,0,AnnoPonte-UltimoAnnoRTP,1,1)) -> -238421.0526
C172: Flusso di cassa per investimenti in beni reversibili | D172: Cash out: investimenti reversibili | G172: =-(SUM('Z0.4.a ProgrammaInvest_Spesa'!W19:W1003)-SUM('Z0.4.b ProgrammaInvest_Contrib'!W19:W1003)-SUM('Z0.4.c ProgrammaInvest_Dismiss'!W19:W1003)) -> -65000 | H172: =-(SUM('Z0.4.a ProgrammaInvest_Spesa'!X19:X10000)-SUM('Z0.4.b ProgrammaInvest_Contrib'!X19:X10000)-SUM('Z0.4.c ProgrammaInvest_Dismiss'!X19:X10000)) -> -70160 | I172: =-(SUM('Z0.4.a ProgrammaInvest_Spesa'!Y19:Y1003)-SUM('Z0.4.b ProgrammaInvest_Contrib'!Y19:Y1003)-SUM('Z0.4.c ProgrammaInvest_Dismiss'!Y19:Y1003)) -> -360 | J172: =-(SUM('Z0.4.a ProgrammaInvest_Spesa'!Z19:Z1003)-SUM('Z0.4.b ProgrammaInvest_Contrib'!Z19:Z1003)-SUM('Z0.4.c ProgrammaInvest_Dismiss'!Z19:Z1003)) -> -360 | K172: =-(SUM('Z0.4.a ProgrammaInvest_Spesa'!AA19:AA1003)-SUM('Z0.4.b ProgrammaInvest_Contrib'!AA19:AA1003)-SUM('Z0.4.c ProgrammaInvest_Dismiss'!AA19:AA1003)) -> -360 | L172: =-(SUM('Z0.4.a ProgrammaInvest_Spesa'!AB19:AB1003)-SUM('Z0.4.b ProgrammaInvest_Contrib'!AB19:AB1003)-SUM('Z0.4.c ProgrammaInvest_Dismiss'!AB19:AB1003)) -> -360 | M172: =-(SUM('Z0.4.a ProgrammaInvest_Spesa'!AC19:AC1003)-SUM('Z0.4.b ProgrammaInvest_Contrib'!AC19:AC1003)-SUM('Z0.4.c ProgrammaInvest_Dismiss'!AC19:AC1003)) -> -360 | N172: =-(SUM('Z0.4.a ProgrammaInvest_Spesa'!AD19:AD1003)-SUM('Z0.4.b ProgrammaInvest_Contrib'!AD19:AD1003)-SUM('Z0.4.c ProgrammaInvest_Dismiss'!AD19:AD1003)) -> -360 | O172: =-(SUM('Z0.4.a ProgrammaInvest_Spesa'!AE19:AE1003)-SUM('Z0.4.b ProgrammaInvest_Contrib'!AE19:AE1003)-SUM('Z0.4.c ProgrammaInvest_Dismiss'!AE19:AE1003)) -> -360 | P172: =-(SUM('Z0.4.a ProgrammaInvest_Spesa'!AF19:AF1003)-SUM('Z0.4.b ProgrammaInvest_Contrib'!AF19:AF1003)-SUM('Z0.4.c ProgrammaInvest_Dismiss'!AF19:AF1003)) -> -360 | Q172: =-(SUM('Z0.4.a ProgrammaInvest_Spesa'!AG19:AG1003)-SUM('Z0.4.b ProgrammaInvest_Contrib'!AG19:AG1003)-SUM('Z0.4.c ProgrammaInvest_Dismiss'!AG19:AG1003)) -> -360 | R172: =-(SUM('Z0.4.a ProgrammaInvest_Spesa'!AH19:AH1003)-SUM('Z0.4.b ProgrammaInvest_Contrib'!AH19:AH1003)-SUM('Z0.4.c ProgrammaInvest_Dismiss'!AH19:AH1003)) -> -120 | S172: =-(SUM('Z0.4.a ProgrammaInvest_Spesa'!AI19:AI1003)-SUM('Z0.4.b ProgrammaInvest_Contrib'!AI19:AI1003)-SUM('Z0.4.c ProgrammaInvest_Dismiss'!AI19:AI1003)) -> 200
C173: Valore di subentro | D173: Cash in: valore di subentro | G173: =IF(G4=ScadenzaConcessione,SUM(G96:G103),"") ->  | S173: 13599.06667
C174: Saldo poste figurative (inizio periodo regolatorio) | D174: Cash out: saldo iniziale PF | F174: =F148 -> -82216.89427
C175: Flusso di cassa per oneri integrativi | D175: Cash out: oneri integrativi | G175: =-G157 -> -508.7563733 | H175: =-H157 -> -453.088977 | I175: -393.2409591 | J175: -328.8983552 | K175: -1250 | L175: -1250 | M175: -1250 | N175: -1250 | O175: -1250 | P175: -1250 | Q175: -1250 | R175: -1250 | S175: -1250
C176: Flusso di cassa per ricavi tariffari (con remunerazione annualizzata) | D176: Cash in: ricavi da traffico | G176: =G165+G139*(1/G10-1) -> 90115.48553 | H176: 95097.91831 | I176: 99649.92763 | J176: 103474.586 | K176: 106860.1813 | L176: 110086.8013 | M176: 112991.0822 | N176: 115905.509 | O176: 118893.3623 | P176: 120908.5132 | Q176: 124021.3937 | R176: 127212.6813 | S176: 130484.3446
C178: Flusso di cassa regolatorio complessivo | D178: Cash flow complessivo | F178: =SUM(F170:F176) -> -320637.9469 | G178: -14487.82154 | H178: =SUM(H170:H176) -> -15074.67747 | I178: 58787.77936 | J178: 61664.76424 | K178: 63558.11207 | L178: 65953.09072 | M178: 68009.09733 | N178: 70058.28448 | O178: 71580.4231 | P178: 72683.71517 | Q178: 74866.49972 | R178: 77349.0895 | S178: 93572.14764
C180: Tasso interno di rendimento PFR | E180: =IRR(OFFSET(F178,,,,ScadenzaConcessione-AnnoPonte+1)) -> 0.1088208912
C184: Riepilogo componenti tariffarie
C186: Anno | F186: =OFFSET($F$4,0,0,1,ScadenzaConcessione-AnnoPonte+1) -> 2025 | G186: 2026 | H186: 2027 | I186: 2028 | J186: 2029 | K186: 2030 | L186: 2031 | M186: 2032 | N186: 2033 | O186: 2034 | P186: 2035 | Q186: 2036 | R186: 2037 | S186: 2038
C187: Componente tariffaria di gestione (Tg) | D187: Tg - base | G187: =IF(G61="",G42,G42*(1+G61)) -> 0.0366817417 | H187: =IF(H61="",H42,H42*(1+H61)) -> 0.03715653872 | I187: 0.03782530703 | J187: 0.03835208783 | K187: 0.03844935888 | L187: 0.03921834606 | M187: 0.04000271298 | N187: 0.04080276724 | O187: 0.04161882258 | P187: 0.04204724455 | Q187: 0.04288818944 | R187: 0.04374595323 | S187: 0.04462087229
C188: Componente tariffaria di gestione da discontinuità di costo (Tg') | D188: Tg - discontinuità costo | G188: =IF(G61="",G54,G54*(1+G61)) -> 0.0002083425885 | H188: =IF(H61="",H54,H54*(1+H61)) -> 0.0003143883574 | I188: 0.0004235531287 | J188: 0.0005327005366 | K188: 0.0002048421592 | L188: 0.0003103994353 | M188: 0.0004178158873 | N188: 0.0005271291153 | O188: 0.0006383774713 | P188: 0.0002009018025 | Q188: 0.0003041291839 | R188: 0.0004091745286 | S188: 0.0005160746043
C189: Componente tariffaria di costruzione (Tk): ammortamenti CIN ante | D189: Tk - ammortamenti CIN ante | G189: =(G107+G108+G109+G110+G111)/(G$25*G$10) -> 0.02482228611 | H189: 0.02564682659 | I189: 0.02709142687 | J189: 0.02695664365 | K189: 0.026822531 | L189: 0.02668908557 | M189: 0.02655630405 | N189: 0.02642418313 | O189: 0 | P189: 0 | Q189: 0 | R189: 0 | S189: 0
C190: Componente tariffaria di costruzione (Tk): ammortamenti CIN pre2026 | D190: Tk - ammortamenti CIN pre2026 | G190: =(G112+G113)/(G$25*G$10) -> 0 | H190: 0 | I190: 0 | J190: 0 | K190: 0 | L190: 0 | M190: 0 | N190: 0 | O190: 0.006957853453 | P190: 0.006923237267 | Q190: 0.0068887933 | R190: 0.006854520697 | S190: 0.006802470134
C191: Componente tariffaria di costruzione (Tk): ammortamenti CIN post2026 | D191: Tk - ammortamenti CIN post2026 | G191: =(G114+G115+G116+G117)/(G$25*G$10) -> 0 | H191: 0 | I191: -9.433178568e-07 | J191: 7.508997865e-06 | K191: 1.531686132e-05 | L191: 2.88705148e-05 | M191: 3.920664363e-05 | N191: 5.557310794e-05 | O191: 0.01819881501 | P191: 0.01812284888 | Q191: 0.01806803584 | R191: 0.01798596167 | S191: 0.01789049645
C192: Componente tariffaria di costruzione (Tk): remunerazioni CIN ante | D192: Tk - remunerazioni CIN ante | G192: =(G121+G122+G125+G123+G124+G126)/(G$25*G$10) -> 0.02886430706 | H192: 0.02621542772 | I192: 0.02385386731 | J192: 0.01999630488 | K192: 0.01617653572 | L192: 0.01239427928 | M192: 0.008649256826 | N192: 0.004941191497 | O192: 0.001269808255 | P192: 0.001263490801 | Q192: 0.001257204777 | R192: 0.001250950027 | S192: 0.00123974749
C193: Componente tariffaria di costruzione (Tk): remunerazioni CIN pre2026 | D193: Tk - remunerazioni CIN pre2026 | G193: =(G127+G129+G128)/(G$25*G$10) -> 0.001431067477 | H193: 0.00206472422 | I193: 0.002762883671 | J193: 0.002749137981 | K193: 0.002735460678 | L193: 0.00272185142 | M193: 0.002708309871 | N193: 0.002694835693 | O193: 0.00268142855 | P193: 0.002148152991 | Q193: 0.001620117285 | R193: 0.001097282496 | S193: 0.0005782620119
C194: Componente tariffaria di costruzione (Tk): remunerazioni CIN post2026 | D194: Tk - remunerazioni CIN post2026 | G194: =(G130+G131+G132+G133+G134+G135+G136+G137+G138)/(G$25*G$10) -> 0 | H194: =(H130+H131+H132+H133+H134+H135+H136+H137+H138)/(H$25*H$10) -> 0.003488671958 | I194: 0.007021827957 | J194: 0.007012340638 | K194: 0.007002142657 | L194: 0.006991286336 | M194: 0.006979346211 | N194: 0.006966568732 | O194: 0.006952508058 | P194: 0.005582615621 | Q194: 0.004225092712 | R194: 0.002878297708 | S194: 0.001534919454
C195: Componente tariffaria di costruzione (Tk): poste figurative | D195: Poste figurative unitarie | G195: =G147 -> -0.006632727769 | H195: =H147 -> -0.005160019216 | I195: -0.005347317702 | J195: 0.001208369017 | K195: 0.007228964536 | L195: 0.01278883688 | M195: 0.01797234913 | N195: 0.02308051602 | O195: 0.02938571222 | P195: 0.0327147025 | Q195: 0.03603090511 | R195: 0.0393849394 | S195: 0.0427950955
C196: Componente tariffaria per oneri integrativi (Toi) | D196: Toi | G196: =G159 -> 0.0004847301594 | H196: 0.0004295439573 | I196: 0.0003709512188 | J196: 0.0003087121308 | K196: 0.001167443698 | L196: 0.00116163552 | M196: 0.001155856239 | N196: 0.001150105711 | O196: 0.001144383792 | P196: 0.00113869034 | Q196: 0.001133025214 | R196: 0.001127388273 | S196: 0.001121779376
C197: Tariffa unitaria media integrata (Tumi) | D197: TUMI | F197: =F164 -> 0.08663730269 | G197: =SUM(G187:G196) -> 0.08585974733 | H197: =SUM(H187:H196) -> 0.09015610231 | I197: 0.09400155616 | J197: 0.09712380566 | K197: 0.09980259619 | L197: 0.102304591 | M197: 0.1044811578 | N197: 0.1066428703 | O197: 0.1088477094 | P197: 0.1101418848 | Q197: 0.1124154929 | R197: 0.114734468 | S197: 0.1170997173
C198: incremento tariffario annuo (Tumi) | G198: =G197/F197-1 -> -0.008974833371 | H198: 0.05003922223 | I198: 0.04265328421 | J198: 0.03321487032 | K198: 0.02758119406 | L198: 0.02506943622 | M198: 0.02127535826 | N198: 0.02068997376 | O198: 0.0206749794 | P198: 0.01188978035 | Q198: 0.0206425386 | R198: 0.02062860833 | S198: 0.02061498453
C199: CAGR (Tumi) sull'orizzonte concessorio | F199: =((OFFSET(F197,0,ScadenzaConcessione-PrimoAnnoPR1+1,1,1)/F197)^(1/(ScadenzaConcessione-PrimoAnnoPR1+1))-1) -> 0.02344723185
D201: check Tg | G201: =SUM(G187:G188)-G68 -> 0 | H201: =SUM(H187:H188)-H68 -> 0 | I201: 0 | J201: 0 | K201: 0 | L201: 0 | M201: 0 | N201: 0 | O201: 0 | P201: 0 | Q201: 0 | R201: 0 | S201: 0
D202: check Tk (senza PF) | G202: =SUM(G189:G194)-G143 -> 0 | H202: 0 | I202: 0 | J202: 0 | K202: 0 | L202: 0 | M202: 0 | N202: 0 | O202: 0 | P202: 0 | Q202: 0 | R202: 0 | S202: 0
D203: check Tk (con PF) | G203: =SUM(G189:G195)-G151 -> 0 | H203: 0 | I203: 0 | J203: 0 | K203: 0 | L203: 0 | M203: 0 | N203: 0 | O203: 0 | P203: 0 | Q203: 0 | R203: 0 | S203: 0
D204: check Tumi | G204: =G197-G164 -> 0 | H204: =H197-H164 -> 0 | I204: 0 | J204: 0 | K204: 0 | L204: 0 | M204: 0 | N204: 0 | O204: 0 | P204: 0 | Q204: 0 | R204: 0 | S204: 0
C206: Tariffa unitaria media iniziale (Anno ponte) | D206: TUMI iniziale | F206: =F164 -> 0.08663730269
C207: Evoluzione teorica TUMI iniziale per effetto di inflazione programmata | D207: TUMI iniziale + inflazione | F207: =F206 -> 0.08663730269 | G207: =F207*(1+G22) -> 0.08828341144 | H207: 0.08987251284 | I207: 0.0916699631 | J207: 0.09350336236 | K207: 0.09537342961 | L207: 0.0972808982 | M207: 0.09922651616 | N207: 0.1012110465 | O207: 0.1032352674 | P207: 0.1052999728 | Q207: 0.1074059722 | R207: 0.1095540917 | S207: 0.1117451735
C254: termine foglio di lavoro

Sheet Z0.2.a PR Pregressi
C2: Calcolo Saldi Periodo regolatorio cessante: Capitale Investito netto, Componenti tariffarie e Poste figurative
C4: Anno | E4: =YEAR(DataAvvioSTART)-1 -> 2019 | F4: =E4+1 -> 2020 | G4: 2021 | H4: 2022 | I4: 2023 | J4: 2024 | K4: 2025
C6: Anno base | E6: 0 | F6: 0 | G6: 0 | H6: 0 | I6: 0 | J6: 1 | K6: 0
C7: Anno ponte | E7: 1 | F7: 0 | G7: 0 | H7: 0 | I7: 0 | J7: 0 | K7: 1
E9: Ultimo adattamento schema: 03/11/2025 15:37:49
C12: Informazioni generali
C14: Tassi di riferimento
C16: Tasso di remunerazione del CIN ante (TIR previgente) | D16: TIR | F16: 0.1387 | G16: 0.1387 | H16: 0.1387 | I16: 0.1387 | J16: 0.1387 | K16: 0.1387
C17: Tasso di remunerazione del CIN pre2026 e post2026 (WACC) | D17: WACC | F17: 0.0709 | G17: 0.0709 | H17: 0.0709 | I17: 0.0709 | J17: 0.0709 | K17: 0.0709
C18: Tasso di remunerazione del valore di subentro (Rtv) - CIN ante | D18: Rtv - ante | F18: 0.1387 | G18: 0.1387 | H18: 0.1387 | I18: 0.1387 | J18: 0.1387 | K18: 0.1387
C19: Tasso di remunerazione del valore di subentro (Rtv) - CIN pre2026 e post2026 | D19: Rtv - post | F19: 0.0709 | G19: 0.0709 | H19: 0.0709 | I19: 0.0709 | J19: 0.0709 | K19: 0.0709
C20: Tasso di remunerazione delle lavorazioni in corso di secondo livello (vite utili) | D20: Rlic | F20: 0.0709 | G20: 0.0709 | H20: 0.0709 | I20: 0.0709 | J20: 0.0709 | K20: 0.0709
C21: Costo ammesso sul capitale di debito (Rd) | D21: Rd | F21: 0.04441697106 | G21: 0.04441697106 | H21: 0.04441697106 | I21: 0.04441697106 | J21: 0.04441697106 | K21: 0.04441697106
C22: Costo ammesso sul capitale di rischio (Re) | D22: Re | F22: 0.1263427959 | G22: 0.1263427959 | H22: 0.1263427959 | I22: 0.1263427959 | J22: 0.1263427959 | K22: 0.1263427959
C24: Tasso di inflazione | D24: P | F24: 0.008 | G24: 0.008 | H24: 0.008 | I24: 0.008 | J24: 0.008 | K24: 0.008
C26: Utilizzo fondi di accantonamento per rinnovo beni reversibili
C28: Utilizzo di fondo accantonamento per rinnovo beni reversibili | F28: 300 | G28: 300 | H28: 300 | I28: 300 | J28: 300 | K28: 300
C30: Parametri per ammortamento finanziario
C32: CIN ante
C34: Parametro di riferimento annuo per ammortamento finanziario CIN ante | F34: 1 | G34: 1 | H34: 1 | I34: 1 | J34: 1 | K34: 1
C35: (se quote costanti: inserire per ciascuna annualità sempre lo stesso valore, pari a quello inserito nel foglio 'Dati generali')
C36: Priorità: ammortamento anticipato | D36: ='Z0.1 Dati generali'!E87 -> TRUE | F36: FALSE | G36: FALSE | H36: FALSE | I36: FALSE | J36: FALSE | K36: FALSE
C37: Annualità di completo recupero del capitale investito in caso di ammortamento anticipato | D37: ='Z0.1 Dati generali'!E96 -> 2033
C38: Aliquota di ammortamento annua da applicare al CIN ante residuo per ammortamento finanziario | F38: =IF(AND($D$36,F36), IF(F$4>$D$37, 0, F34/(SUM(OFFSET(F34,0,0,1,AnnoPonte-F$4+1))+SUM(OFFSET('Z0.1 Dati generali'!$H$98,0,0,1,$D$37-'Z0.1 Dati generali'!$H$23+1)))), F34/(SUM(OFFSET(F34,0,0,1,AnnoPonte-F$4+1))+SUM('Z0.1 Dati generali'!98:98))) -> 0.05263157895 | G38: =IF(AND($D$36,G36), IF(G$4>$D$37, 0, G34/(SUM(OFFSET(G34,0,0,1,AnnoPonte-G$4+1))+SUM(OFFSET('Z0.1 Dati generali'!$H$98,0,0,1,$D$37-'Z0.1 Dati generali'!$H$23+1)))), G34/(SUM(OFFSET(G34,0,0,1,AnnoPonte-G$4+1))+SUM('Z0.1 Dati generali'!98:98))) -> 0.05555555556 | H38: =IF(AND($D$36,H36), IF(H$4>$D$37, 0, H34/(SUM(OFFSET(H34,0,0,1,AnnoPonte-H$4+1))+SUM(OFFSET('Z0.1 Dati generali'!$H$98,0,0,1,$D$37-'Z0.1 Dati generali'!$H$23+1)))), H34/(SUM(OFFSET(H34,0,0,1,AnnoPonte-H$4+1))+SUM('Z0.1 Dati generali'!98:98))) -> 0.05882352941 | I38: =IF(AND($D$36,I36), IF(I$4>$D$37, 0, I34/(SUM(OFFSET(I34,0,0,1,AnnoPonte-I$4+1))+SUM(OFFSET('Z0.1 Dati generali'!$H$98,0,0,1,$D$37-'Z0.1 Dati generali'!$H$23+1)))), I34/(SUM(OFFSET(I34,0,0,1,AnnoPonte-I$4+1))+SUM('Z0.1 Dati generali'!98:98))) -> 0.0625 | J38: =IF(AND($D$36,J36), IF(J$4>$D$37, 0, J34/(SUM(OFFSET(J34,0,0,1,AnnoPonte-J$4+1))+SUM(OFFSET('Z0.1 Dati generali'!$H$98,0,0,1,$D$37-'Z0.1 Dati generali'!$H$23+1)))), J34/(SUM(OFFSET(J34,0,0,1,AnnoPonte-J$4+1))+SUM('Z0.1 Dati generali'!98:98))) -> 0.06666666667 | K38: =IF(AND($D$36,K36), IF(K$4>$D$37, 0, K34/(SUM(OFFSET(K34,0,0,1,AnnoPonte-K$4+1))+SUM(OFFSET('Z0.1 Dati generali'!$H$98,0,0,1,$D$37-'Z0.1 Dati generali'!$H$23+1)))), K34/(SUM(OFFSET(K34,0,0,1,AnnoPonte-K$4+1))+SUM('Z0.1 Dati generali'!98:98))) -> 0.07142857143
C40: CIN post
C42: Parametro di riferimento annuo per ammortamento finanziario CIN post | F42: 1 | G42: 1 | H42: 1 | I42: 1 | J42: 1 | K42: 1
C43: (se quote costanti: inserire per ciascuna annualità sempre lo stesso valore, pari a quello inserito nel foglio 'Dati generali')
C44: Priorità: ammortamento ritardato | F44: FALSE | G44: FALSE | H44: FALSE | I44: FALSE | J44: FALSE | K44: FALSE
C45: Annualità di avvio del recupero del capitale investito in caso di ammortamento ritardato | D45: ='Z0.1 Dati generali'!E104 -> 2034
C46: Aliquota di ammortamento annua da applicare al CIN post residuo per ammortamento finanziario | F46: =IF(AND($D$36,F44), IF(F$4<$D$45, 0, F42/(SUM(OFFSET(F42,0,0,1,AnnoPonte-F$4+1))+SUM('Z0.1 Dati generali'!106:106))), F42/(SUM(OFFSET(F42,0,0,1,AnnoPonte-F$4+1))+SUM('Z0.1 Dati generali'!106:106))) -> 0.05263157895 | G46: =IF(AND($D$36,G44), IF(G$4<$D$45, 0, G42/(SUM(OFFSET(G42,0,0,1,AnnoPonte-G$4+1))+SUM('Z0.1 Dati generali'!106:106))), G42/(SUM(OFFSET(G42,0,0,1,AnnoPonte-G$4+1))+SUM('Z0.1 Dati generali'!106:106))) -> 0.05555555556 | H46: =IF(AND($D$36,H44), IF(H$4<$D$45, 0, H42/(SUM(OFFSET(H42,0,0,1,AnnoPonte-H$4+1))+SUM('Z0.1 Dati generali'!106:106))), H42/(SUM(OFFSET(H42,0,0,1,AnnoPonte-H$4+1))+SUM('Z0.1 Dati generali'!106:106))) -> 0.05882352941 | I46: =IF(AND($D$36,I44), IF(I$4<$D$45, 0, I42/(SUM(OFFSET(I42,0,0,1,AnnoPonte-I$4+1))+SUM('Z0.1 Dati generali'!106:106))), I42/(SUM(OFFSET(I42,0,0,1,AnnoPonte-I$4+1))+SUM('Z0.1 Dati generali'!106:106))) -> 0.0625 | J46: =IF(AND($D$36,J44), IF(J$4<$D$45, 0, J42/(SUM(OFFSET(J42,0,0,1,AnnoPonte-J$4+1))+SUM('Z0.1 Dati generali'!106:106))), J42/(SUM(OFFSET(J42,0,0,1,AnnoPonte-J$4+1))+SUM('Z0.1 Dati generali'!106:106))) -> 0.06666666667 | K46: =IF(AND($D$36,K44), IF(K$4<$D$45, 0, K42/(SUM(OFFSET(K42,0,0,1,AnnoPonte-K$4+1))+SUM('Z0.1 Dati generali'!106:106))), K42/(SUM(OFFSET(K42,0,0,1,AnnoPonte-K$4+1))+SUM('Z0.1 Dati generali'!106:106))) -> 0.07142857143
C50: Volumi di traffico
C52: Previsioni
E54: Preventivo | F54: Preventivo | G54: Preventivo | H54: Preventivo | I54: Preventivo | J54: Preventivo | K54: Preventivo
C56: (tipologia di rete #1)
C57: Classe
C58: A | E58: 617690.2105 | F58: 620778.6616 | G58: 623882.5549 | H58: 627001.9677 | I58: 630136.9775 | J58: 633287.6624 | K58: 636454.1007
C59: B | E59: 99140.70291 | F59: 99636.40642 | G59: 100134.5885 | H59: 100635.2614 | I59: 101138.4377 | J59: 101644.1299 | K59: 102152.3505
C60: 3 | E60: 19258.80318 | F60: 19355.09719 | G60: 19451.87268 | H60: 19549.13204 | I60: 19646.8777 | J60: 19745.11209 | K60: 19843.83765
C61: 4 | E61: 15285.05483 | F61: 15361.4801 | G61: 15438.2875 | H61: 15515.47894 | I61: 15593.05634 | J61: 15671.02162 | K61: 15749.37673
C62: 5 | E62: 217948.995 | F62: 219038.74 | G62: 220133.9337 | H62: 221234.6034 | I62: 222340.7764 | J62: 223452.4803 | K62: 224569.7427
C63: Sub totale leggeri | E63: =+E58 -> 617690.2105 | F63: =+F58 -> 620778.6616 | G63: =+G58 -> 623882.5549 | H63: 627001.9677 | I63: 630136.9775 | J63: 633287.6624 | K63: 636454.1007
C64: Sub totale pesanti | E64: =+SUM(E59:E62) -> 351633.5559 | F64: =+SUM(F59:F62) -> 353391.7237 | G64: =+SUM(G59:G62) -> 355158.6823 | H64: 356934.4757 | I64: 358719.1481 | J64: 360512.7438 | K64: 362315.3076
C65: Totale | E65: =SUM(E58:E62) -> 969323.7665 | F65: =SUM(F58:F62) -> 974170.3853 | G65: =SUM(G58:G62) -> 979041.2372 | H65: 983936.4434 | I65: 988856.1256 | J65: 993800.4063 | K65: 998769.4083
C67: (tipologia di rete #2)
C68: Classe
C69: A | E69: 9097.422457 | F69: 9142.909569 | G69: 9188.624117 | H69: 9234.567237 | I69: 9280.740074 | J69: 9327.143774 | K69: 9373.779493
C70: B | E70: 2084.190094 | F70: 2094.611045 | G70: 2105.0841 | H70: 2115.60952 | I70: 2126.187568 | J70: 2136.818506 | K70: 2147.502598
C71: 3 | E71: 349.0878238 | F71: 350.8332629 | G71: 352.5874292 | H71: 354.3503663 | I71: 356.1221182 | J71: 357.9027288 | K71: 359.6922424
C72: 4 | E72: 234.7291709 | F72: 235.9028167 | G72: 237.0823308 | H72: 238.2677424 | I72: 239.4590812 | J72: 240.6563766 | K72: 241.8596584
C73: 5 | E73: 2944.938991 | F73: 2959.663686 | G73: 2974.462005 | H73: 2989.334315 | I73: 3004.280986 | J73: 3019.302391 | K73: 3034.398903
C74: Sub totale leggeri | E74: =+E69 -> 9097.422457 | F74: =+F69 -> 9142.909569 | G74: =+G69 -> 9188.624117 | H74: 9234.567237 | I74: 9280.740074 | J74: 9327.143774 | K74: 9373.779493
C75: Sub totale pesanti | E75: =+SUM(E70:E73) -> 5612.94608 | F75: =+SUM(F70:F73) -> 5641.010811 | G75: =+SUM(G70:G73) -> 5669.215865 | H75: 5697.561944 | I75: 5726.049754 | J75: 5754.680003 | K75: 5783.453403
C76: Totale | E76: =SUM(E69:E73) -> 14710.36854 | F76: =SUM(F69:F73) -> 14783.92038 | G76: =SUM(G69:G73) -> 14857.83998 | H76: 14932.12918 | I76: 15006.78983 | J76: 15081.82378 | K76: 15157.2329
C78: (tipologia di rete #3)
C79: Classe
C80: A | E80: 0 | F80: 0 | G80: 0 | H80: 0 | I80: 0 | J80: 0 | K80: 0
C81: B | E81: 0 | F81: 0 | G81: 0 | H81: 0 | I81: 0 | J81: 0 | K81: 0
C82: 3 | E82: 0 | F82: 0 | G82: 0 | H82: 0 | I82: 0 | J82: 0 | K82: 0
C83: 4 | E83: 0 | F83: 0 | G83: 0 | H83: 0 | I83: 0 | J83: 0 | K83: 0
C84: 5 | E84: 0 | F84: 0 | G84: 0 | H84: 0 | I84: 0 | J84: 0 | K84: 0
C85: Sub totale leggeri | E85: =+E80 -> 0 | F85: =+F80 -> 0 | G85: =+G80 -> 0 | H85: 0 | I85: 0 | J85: 0 | K85: 0
C86: Sub totale pesanti | E86: =+SUM(E81:E84) -> 0 | F86: =+SUM(F81:F84) -> 0 | G86: =+SUM(G81:G84) -> 0 | H86: 0 | I86: 0 | J86: 0 | K86: 0
C87: Totale | E87: =SUM(E80:E84) -> 0 | F87: =SUM(F80:F84) -> 0 | G87: =SUM(G80:G84) -> 0 | H87: 0 | I87: 0 | J87: 0 | K87: 0
C89: (tipologia di rete #4)
C90: Classe
C91: A | E91: 0 | F91: 0 | G91: 0 | H91: 0 | I91: 0 | J91: 0 | K91: 0
C92: B | E92: 0 | F92: 0 | G92: 0 | H92: 0 | I92: 0 | J92: 0 | K92: 0
C93: 3 | E93: 0 | F93: 0 | G93: 0 | H93: 0 | I93: 0 | J93: 0 | K93: 0
C94: 4 | E94: 0 | F94: 0 | G94: 0 | H94: 0 | I94: 0 | J94: 0 | K94: 0
C95: 5 | E95: 0 | F95: 0 | G95: 0 | H95: 0 | I95: 0 | J95: 0 | K95: 0
C96: Sub totale leggeri | E96: =+E91 -> 0 | F96: =+F91 -> 0 | G96: =+G91 -> 0 | H96: 0 | I96: 0 | J96: 0 | K96: 0
C97: Sub totale pesanti | E97: =+SUM(E92:E95) -> 0 | F97: =+SUM(F92:F95) -> 0 | G97: =+SUM(G92:G95) -> 0 | H97: 0 | I97: 0 | J97: 0 | K97: 0
C98: Totale | E98: =SUM(E91:E95) -> 0 | F98: =SUM(F91:F95) -> 0 | G98: =SUM(G91:G95) -> 0 | H98: 0 | I98: 0 | J98: 0 | K98: 0
C100: Volumi di traffico Totali (mln di veicoli km)
C101: Classe
C102: A | E102: =+E58+E69+E80+E91 -> 626787.633 | F102: =+F58+F69+F80+F91 -> 629921.5712 | G102: =+G58+G69+G80+G91 -> 633071.179 | H102: 636236.5349 | I102: 639417.7176 | J102: 642614.8062 | K102: 645827.8802
C103: B | E103: =+E59+E70+E81+E92 -> 101224.893 | F103: 101731.0175 | G103: =+G59+G70+G81+G92 -> 102239.6726 | H103: 102750.8709 | I103: 103264.6253 | J103: 103780.9484 | K103: 104299.8531
C104: 3 | E104: 19607.891 | F104: 19705.93045 | G104: =+G60+G71+G82+G93 -> 19804.46011 | H104: 19903.48241 | I104: 20002.99982 | J104: 20103.01482 | K104: 20203.52989
C105: 4 | E105: 15519.784 | F105: 15597.38292 | G105: =+G61+G72+G83+G94 -> 15675.36983 | H105: 15753.74668 | I105: 15832.51542 | J105: 15911.67799 | K105: 15991.23638
C106: 5 | E106: 220893.934 | F106: 221998.4037 | G106: =+G62+G73+G84+G95 -> 223108.3957 | H106: 224223.9377 | I106: 225345.0574 | J106: 226471.7826 | K106: 227604.1416
C107: Sub totale leggeri | E107: =+E102 -> 626787.633 | F107: =+F102 -> 629921.5712 | G107: =+G102 -> 633071.179 | H107: 636236.5349 | I107: 639417.7176 | J107: 642614.8062 | K107: 645827.8802
C108: Sub totale pesanti | E108: =+SUM(E103:E106) -> 357246.502 | F108: =+SUM(F103:F106) -> 359032.7345 | G108: =+SUM(G103:G106) -> 360827.8982 | H108: 362632.0377 | I108: 364445.1979 | J108: 366267.4239 | K108: 368098.761
C109: Totale complessivo | E109: =E107+E108 -> 984034.135 | F109: =F107+F108 -> 988954.3057 | G109: =G107+G108 -> 993899.0772 | H109: 998868.5726 | I109: 1003862.915 | J109: 1008882.23 | K109: 1013926.641
C112: Dati a consuntivo
E114: =IF(E4<AnnoPonte,"Consuntivo",IF(E4=AnnoPonte,"Preconsuntivo","Preventivo")) -> Consuntivo | F114: Consuntivo | G114: Consuntivo | H114: Consuntivo | I114: Consuntivo | J114: Consuntivo | K114: Preconsuntivo
C116: (tipologia di rete #1)
C117: Classe
C118: A | E118: 636220.9169 | F118: 639402.0214 | G118: 642599.0316 | H118: 645812.0267 | I118: 649041.0868 | J118: 652286.2923 | K118: 655547.7237
C119: B | E119: 102114.924 | F119: 102625.4986 | G119: 103138.6261 | H119: 103654.3192 | I119: 104172.5908 | J119: 104693.4538 | K119: 105216.9211
C120: 3 | E120: 19836.56727 | F120: 19935.75011 | G120: 20035.42886 | H120: 20135.606 | I120: 20236.28403 | J120: 20337.46545 | K120: 20439.15278
C121: 4 | E121: 15743.60647 | F121: 15822.32451 | G121: 15901.43613 | H121: 15980.94331 | I121: 16060.84803 | J121: 16141.15227 | K121: 16221.85803
C122: 5 | E122: 224487.4649 | F122: 225609.9022 | G122: 226737.9517 | H122: 227871.6415 | I122: 229010.9997 | J122: 230156.0547 | K122: 231306.8349
C123: Sub totale leggeri | E123: =+E118 -> 636220.9169 | F123: =+F118 -> 639402.0214 | G123: =+G118 -> 642599.0316 | H123: 645812.0267 | I123: 649041.0868 | J123: 652286.2923 | K123: 655547.7237
C124: Sub totale pesanti | E124: =+SUM(E119:E122) -> 362182.5626 | F124: =+SUM(F119:F122) -> 363993.4754 | G124: =+SUM(G119:G122) -> 365813.4428 | H124: 367642.51 | I124: 369480.7226 | J124: 371328.1262 | K124: 373184.7668
C125: Totale | E125: =SUM(E118:E122) -> 998403.4795 | F125: =SUM(F118:F122) -> 1003395.497 | G125: =SUM(G118:G122) -> 1008412.474 | H125: 1013454.537 | I125: 1018521.809 | J125: 1023614.418 | K125: 1028732.491
C127: (tipologia di rete #2)
C128: Classe
C129: A | E129: 9370.34513 | F129: 9417.196856 | G129: 9464.28284 | H129: 9511.604255 | I129: 9559.162276 | J129: 9606.958087 | K129: 9654.992878
C130: B | E130: 2146.715797 | F130: 2157.449376 | G130: 2168.236623 | H130: 2179.077806 | I130: 2189.973195 | J130: 2200.923061 | K130: 2211.927676
C131: 3 | E131: 359.5604585 | F131: 361.3582608 | G131: 363.1650521 | H131: 364.9808773 | I131: 366.8057817 | J131: 368.6398106 | K131: 370.4830097
C132: 4 | E132: 241.771046 | F132: 242.9799012 | G132: 244.1948007 | H132: 245.4157747 | I132: 246.6428536 | J132: 247.8760679 | K132: 249.1154482
C133: 5 | E133: 3033.287161 | F133: 3048.453597 | G133: 3063.695865 | H133: 3079.014344 | I133: 3094.409416 | J133: 3109.881463 | K133: 3125.43087
C134: Sub totale leggeri | E134: =+E129 -> 9370.34513 | F134: =+F129 -> 9417.196856 | G134: =+G129 -> 9464.28284 | H134: 9511.604255 | I134: 9559.162276 | J134: 9606.958087 | K134: 9654.992878
C135: Sub totale pesanti | E135: =+SUM(E130:E133) -> 5781.334463 | F135: =+SUM(F130:F133) -> 5810.241135 | G135: =+SUM(G130:G133) -> 5839.292341 | H135: 5868.488802 | I135: 5897.831246 | J135: 5927.320403 | K135: 5956.957005
C136: Totale | E136: =SUM(E129:E133) -> 15151.67959 | F136: =SUM(F129:F133) -> 15227.43799 | G136: =SUM(G129:G133) -> 15303.57518 | H136: 15380.09306 | I136: 15456.99352 | J136: 15534.27849 | K136: 15611.94988
C138: (tipologia di rete #3)
C139: Classe
C140: A | E140: 0 | F140: 0 | G140: 0 | H140: 0 | I140: 0 | J140: 0 | K140: 0
C141: B | E141: 0 | F141: 0 | G141: 0 | H141: 0 | I141: 0 | J141: 0 | K141: 0
C142: 3 | E142: 0 | F142: 0 | G142: 0 | H142: 0 | I142: 0 | J142: 0 | K142: 0
C143: 4 | E143: 0 | F143: 0 | G143: 0 | H143: 0 | I143: 0 | J143: 0 | K143: 0
C144: 5 | E144: 0 | F144: 0 | G144: 0 | H144: 0 | I144: 0 | J144: 0 | K144: 0
C145: Sub totale leggeri | E145: =+E140 -> 0 | F145: =+F140 -> 0 | G145: =+G140 -> 0 | H145: 0 | I145: 0 | J145: 0 | K145: 0
C146: Sub totale pesanti | E146: =+SUM(E141:E144) -> 0 | F146: =+SUM(F141:F144) -> 0 | G146: =+SUM(G141:G144) -> 0 | H146: 0 | I146: 0 | J146: 0 | K146: 0
C147: Totale | E147: =SUM(E140:E144) -> 0 | F147: =SUM(F140:F144) -> 0 | G147: =SUM(G140:G144) -> 0 | H147: 0 | I147: 0 | J147: 0 | K147: 0
C149: (tipologia di rete #4)
C150: Classe
C151: A | E151: 0 | F151: 0 | G151: 0 | H151: 0 | I151: 0 | J151: 0 | K151: 0
C152: B | E152: 0 | F152: 0 | G152: 0 | H152: 0 | I152: 0 | J152: 0 | K152: 0
C153: 3 | E153: 0 | F153: 0 | G153: 0 | H153: 0 | I153: 0 | J153: 0 | K153: 0
C154: 4 | E154: 0 | F154: 0 | G154: 0 | H154: 0 | I154: 0 | J154: 0 | K154: 0
C155: 5 | E155: 0 | F155: 0 | G155: 0 | H155: 0 | I155: 0 | J155: 0 | K155: 0
C156: Sub totale leggeri | E156: =+E151 -> 0 | F156: =+F151 -> 0 | G156: =+G151 -> 0 | H156: 0 | I156: 0 | J156: 0 | K156: 0
C157: Sub totale pesanti | E157: =+SUM(E152:E155) -> 0 | F157: =+SUM(F152:F155) -> 0 | G157: =+SUM(G152:G155) -> 0 | H157: 0 | I157: 0 | J157: 0 | K157: 0
C158: Totale | E158: =SUM(E151:E155) -> 0 | F158: =SUM(F151:F155) -> 0 | G158: =SUM(G151:G155) -> 0 | H158: 0 | I158: 0 | J158: 0 | K158: 0
C160: Volumi di traffico Totali (mln di veicoli km)
C161: Classe
C162: A | E162: =+E118+E129+E140+E151 -> 645591.262 | F162: =+F118+F129+F140+F151 -> 648819.2183 | G162: =+G118+G129+G140+G151 -> 652063.3144 | H162: 655323.631 | I162: 658600.2491 | J162: 661893.2504 | K162: 665202.7166
C163: B | E163: =+E119+E130+E141+E152 -> 104261.6398 | F163: 104782.948 | G163: =+G119+G130+G141+G152 -> 105306.8627 | H163: 105833.397 | I163: 106362.564 | J163: 106894.3768 | K163: 107428.8487
C164: 3 | E164: 20196.12773 | F164: 20297.10837 | G164: =+G120+G131+G142+G153 -> 20398.59391 | H164: 20500.58688 | I164: 20603.08981 | J164: 20706.10526 | K164: 20809.63579
C165: 4 | E165: 15985.37752 | F165: 16065.30441 | G165: =+G121+G132+G143+G154 -> 16145.63093 | H165: 16226.35908 | I165: 16307.49088 | J165: 16389.02833 | K165: 16470.97348
C166: 5 | E166: 227520.752 | F166: 228658.3558 | G166: =+G122+G133+G144+G155 -> 229801.6476 | H166: 230950.6558 | I166: 232105.4091 | J166: 233265.9361 | K166: 234432.2658
C167: Sub totale leggeri | E167: =+E162 -> 645591.262 | F167: =+F162 -> 648819.2183 | G167: =+G162 -> 652063.3144 | H167: 655323.631 | I167: 658600.2491 | J167: 661893.2504 | K167: 665202.7166
C168: Sub totale pesanti | E168: =+SUM(E163:E166) -> 367963.8971 | F168: =+SUM(F163:F166) -> 369803.7165 | G168: =+SUM(G163:G166) -> 371652.7351 | H168: 373510.9988 | I168: 375378.5538 | J168: 377255.4466 | K168: 379141.7238
C169: Totale complessivo | E169: =E167+E168 -> 1013555.159 | F169: =F167+F168 -> 1018622.935 | G169: =G167+G168 -> 1023716.05 | H169: 1028834.63 | I169: 1033978.803 | J169: 1039148.697 | K169: 1044344.44
C173: Componenti tariffarie effettivamente assunte (da ultimo adeguamento tariffario annuale approvato)
C175: Tariffa unitaria media integrata (TUMI)
C177: Componente tariffaria di gestione (Tg) | E177: 0.03541625819 | F177: 0.03577042077 | G177: 0.03612812498 | H177: 0.03648940623 | I177: 0.03685430029 | J177: 0.0372228433 | K177: 0.03759507173
C178: Componente tariffaria di costruzione con poste figurative (Tk) | E178: 0.045 | F178: 0.04545 | G178: 0.0459045 | H178: 0.046363545 | I178: 0.04682718045 | J178: 0.04729545225 | K178: 0.04776840678
C179: Componente tariffaria per oneri integrativi (Toi) | E179: 0.0012 | F179: 0.001212 | G179: 0.00122412 | H179: 0.0012363612 | I179: 0.001248724812 | J179: 0.00126121206 | K179: 0.001273824181
C180: Tariffa unitaria media integrata (TUMI) | E180: =SUM(E177:E179) -> 0.08161625819 | F180: 0.08243242077 | G180: =SUM(G177:G179) -> 0.08325674498 | H180: 0.08408931243 | I180: 0.08493020555 | J180: 0.08577950761 | K180: 0.08663730269
C182: Modulazione tariffaria
C184: =C113 -> 0
C185: Classe
C186: A | E186: 0.05115263837 | F186: 0.05196880095 | G186: 0.05279312516 | H186: 0.05362569261 | I186: 0.05446658574 | J186: 0.05531588779 | K186: 0.05617368287
C187: B | E187: 0.08505615613 | F187: 0.08587231871 | G187: 0.08669664292 | H187: 0.08752921037 | I187: 0.08837010349 | J187: 0.08921940555 | K187: 0.09007720062
C188: 3 | E188: 0.08910600402 | F188: 0.0899221666 | G188: 0.09074649081 | H188: 0.09157905826 | I188: 0.09241995138 | J188: 0.09326925344 | K188: 0.09412704851
C189: 4 | E189: 0.09720569979 | F189: 0.09802186237 | G189: 0.09884618658 | H189: 0.09967875403 | I189: 0.1005196472 | J189: 0.1013689492 | K189: 0.1022267443
C190: 5 | E190: 0.162003266 | F190: 0.1628194286 | G190: 0.1636437528 | H190: 0.1644763202 | I190: 0.1653172134 | J190: 0.1661665154 | K190: 0.1670243105
C192: =C124 -> Sub totale pesanti
C193: Classe
C194: A | E194: 0.0773108425 | F194: 0.07812700508 | G194: 0.07895132929 | H194: 0.07978389674 | I194: 0.08062478986 | J194: 0.08147409192 | K194: 0.08233188699
C195: B | E195: 0.1285549571 | F195: 0.1293711197 | G195: 0.1301954439 | H195: 0.1310280114 | I195: 0.1318689045 | J195: 0.1327182065 | K195: 0.1335760016
C196: 3 | E196: 0.1346761765 | F196: 0.1354923391 | G196: 0.1363166633 | H196: 0.1371492307 | I196: 0.1379901238 | J196: 0.1388394259 | K196: 0.139697221
C197: 4 | E197: 0.1469186152 | F197: 0.1477347778 | G197: 0.148559102 | H197: 0.1493916695 | I197: 0.1502325626 | J197: 0.1510818646 | K197: 0.1519396597
C198: 5 | E198: 0.244858125 | F198: 0.2456742876 | G198: 0.2464986118 | H198: 0.2473311793 | I198: 0.2481720724 | J198: 0.2490213745 | K198: 0.2498791695
C200: =C135 -> Sub totale pesanti
C201: Classe
C202: A | E202: 0.05154367849 | F202: 0.05235984107 | G202: 0.05318416528 | H202: 0.05401673273 | I202: 0.05485762585 | J202: 0.05570692791 | K202: 0.05656472298
C203: B | E203: 0.08570642157 | F203: 0.08652258415 | G203: 0.08734690836 | H203: 0.08817947581 | I203: 0.08902036894 | J203: 0.08986967099 | K203: 0.09072746607
C204: 3 | E204: 0.08978723448 | F204: 0.09060339706 | G204: 0.09142772127 | H204: 0.09226028872 | I204: 0.09310118184 | J204: 0.0939504839 | K204: 0.09480827898
C205: 4 | E205: 0.0979488603 | F205: 0.09876502288 | G205: 0.09958934709 | H205: 0.1004219145 | I205: 0.1012628077 | J205: 0.1021121097 | K205: 0.1029699048
C206: 5 | E206: 0.1632418669 | F206: 0.1640580294 | G206: 0.1648823536 | H206: 0.1657149211 | I206: 0.1665558142 | J206: 0.1674051163 | K206: 0.1682629113
C208: =C146 -> Sub totale pesanti
C209: Classe
C210: A | E210: 0.05154367849 | F210: 0.05235984107 | G210: 0.05318416528 | H210: 0.05401673273 | I210: 0.05485762585 | J210: 0.05570692791 | K210: 0.05656472298
C211: B | E211: 0.08570642157 | F211: 0.08652258415 | G211: 0.08734690836 | H211: 0.08817947581 | I211: 0.08902036894 | J211: 0.08986967099 | K211: 0.09072746607
C212: 3 | E212: 0.08978723448 | F212: 0.09060339706 | G212: 0.09142772127 | H212: 0.09226028872 | I212: 0.09310118184 | J212: 0.0939504839 | K212: 0.09480827898
C213: 4 | E213: 0.0979488603 | F213: 0.09876502288 | G213: 0.09958934709 | H213: 0.1004219145 | I213: 0.1012628077 | J213: 0.1021121097 | K213: 0.1029699048
C214: 5 | E214: 0.1632418669 | F214: 0.1640580294 | G214: 0.1648823536 | H214: 0.1657149211 | I214: 0.1665558142 | J214: 0.1674051163 | K214: 0.1682629113
C219: Capitale investito netto (da ultimo adeguamento tariffario annuale approvato)
C221: CIN ante (TIR)
C223: CIN ante (TIR) opere - SAL contabilizzati
C225: CIN ante (TIR) opere - bop | F225: =IF(EsistePrev,E229,0) -> 300000 | G225: 284736.8421 | H225: 269473.6842 | I225: 254210.5263 | J225: 238947.3684 | K225: 223684.2105
C226: Investimenti CIN ante | F226: 0 | G226: 0 | H226: 0 | I226: 0 | J226: 0 | K226: 0
C227: Dismissioni CIN ante | F227: 0 | G227: 0 | H227: 0 | I227: 0 | J227: 0 | K227: 0
C228: Ammortamento CIN ante (TIR) opere | F228: =(F225-F230)*F$38 -> 15263.15789 | G228: =(G225-G230)*G$38 -> 15263.15789 | H228: 15263.15789 | I228: 15263.15789 | J228: 15263.15789 | K228: 15263.15789
C229: CIN ante (TIR) opere - eop | E229: 300000 | F229: =F225+F226-F227-F228 -> 284736.8421 | G229: 269473.6842 | H229: 254210.5263 | I229: 238947.3684 | J229: 223684.2105 | K229: 208421.0526
C230: Valore di subentro eventualmente pattuito | E230: 10000 | F230: =IF(EsistePrev,MIN(F225,$E230),0) -> 10000 | G230: 10000 | H230: 10000 | I230: 10000 | J230: 10000 | K230: 10000
C231: Remunerazione CIN ante (TIR) opere - escluso valore di subentro | F231: =(F225-F230)*F$16 -> 40223 | G231: =(G225-G230)*G$16 -> 38106 | H231: 35989 | I231: 33872 | J231: 31755 | K231: 29638
C232: Remunerazione CIN ante (TIR) opere - solo valore di subentro | F232: =F230*F$18 -> 1387 | G232: =G230*G$18 -> 1387 | H232: 1387 | I232: 1387 | J232: 1387 | K232: 1387
C234: CIN ante (TIR) contributi - bop | F234: =IF(EsistePrev,E237,0) -> 0 | G234: 0 | H234: 0 | I234: 0 | J234: 0 | K234: 0
C235: Contributi CIN ante (erogazione) | F235: 0 | G235: 0 | H235: 0 | I235: 0 | J235: 0 | K235: 0
C236: Ammortamento CIN ante (TIR) contributi | F236: =(F234)*F$38 -> 0 | G236: =(G234)*G$38 -> 0 | H236: 0 | I236: 0 | J236: 0 | K236: 0
C237: CIN ante (TIR) contributi - eop | E237: 0 | F237: =F234+F235-F236 -> 0 | G237: 0 | H237: 0 | I237: 0 | J237: 0 | K237: 0
C238: Remunerazione CIN ante (TIR) contributi | F238: =F234*F$16 -> 0 | G238: =G234*G$16 -> 0 | H238: 0 | I238: 0 | J238: 0 | K238: 0
C240: CIN ante (TIR) avviamento
C242: CIN ante (TIR) avviamento - bop | F242: =IF(EsistePrev,E244,0) -> 0 | G242: 0 | H242: 0 | I242: 0 | J242: 0 | K242: 0
C243: Ammortamento CIN ante (TIR) avviamento | F243: =(F242)*$F$38 -> 0 | G243: =(G242)*$F$38 -> 0 | H243: 0 | I243: 0 | J243: 0 | K243: 0
C244: CIN ante (TIR) avviamento - eop | E244: 0 | F244: =F242-F243 -> 0 | G244: 0 | H244: 0 | I244: 0 | J244: 0 | K244: 0
C245: Remunerazione CIN ante (TIR) avviamento | F245: =F242*F$16 -> 0 | G245: 0 | H245: 0 | I245: 0 | J245: 0 | K245: 0
C247: CIN ante (TIR) opere - SAL da contabilizzare
C249: CIN ante (TIR) opere - bop | F249: =IF(EsistePrev,E253,0) -> 0 | G249: =IF(EsistePrev,F253,0) -> 0 | H249: =IF(EsistePrev,G253,0) -> 0 | I249: =IF(EsistePrev,H253,0) -> 0 | J249: =IF(EsistePrev,I253,0) -> 0 | K249: =IF(EsistePrev,J253,0) -> 0
C250: Investimenti CIN ante | F250: 0 | G250: 0 | H250: 0 | I250: 0 | J250: 0 | K250: 10000
C251: Dismissioni CIN ante | F251: 0 | G251: 0 | H251: 0 | I251: 0 | J251: 0 | K251: 0
C252: Ammortamento CIN ante (TIR) opere | F252: =(F249)*F$38 -> 0 | G252: =(G249)*G$38 -> 0 | H252: 0 | I252: 0 | J252: 0 | K252: 0
C253: CIN ante (TIR) opere - eop | E253: 0 | F253: =F249+F250-F251-F252 -> 0 | G253: 0 | H253: 0 | I253: 0 | J253: 0 | K253: 10000
C254: Remunerazione CIN ante (TIR) opere | F254: =(F249)*F$16 -> 0 | G254: =(G249)*G$16 -> 0 | H254: 0 | I254: 0 | J254: 0 | K254: 0
C256: CIN ante (TIR) contributi - bop | F256: =IF(EsistePrev,E259,0) -> 0 | G256: =IF(EsistePrev,F259,0) -> 0 | H256: =IF(EsistePrev,G259,0) -> 0 | I256: =IF(EsistePrev,H259,0) -> 0 | J256: =IF(EsistePrev,I259,0) -> 0 | K256: =IF(EsistePrev,J259,0) -> 0
C257: Contributi CIN ante (erogazione) | F257: 0 | G257: 0 | H257: 0 | I257: 0 | J257: 0 | K257: 0
... 402 more rows

Sheet Z0.3.a DiscontinuitaCosto Tg
C2: Discontinuità di costo per nuovi investimenti e sopravvenienze normative - aggiornamento
C4: Anno | E4: 2024 | F4: 2025 | G4: 2026 | H4: 2027 | I4: 2028 | J4: 2029 | K4: 2030 | L4: 2031 | M4: 2032 | N4: 2033 | O4: 2034 | P4: 2035 | Q4: 2036 | R4: 2037 | S4: 2038
C6: Anno base | E6: 1 | F6: 0 | G6: 0 | H6: 0 | I6: 1 | J6: 0 | K6: 0 | L6: 0 | M6: 0 | N6: 1 | O6: 0 | P6: 0 | Q6: 0 | R6: 0 | S6: 0
C7: Anno ponte | E7: 0 | F7: 1 | G7: 0 | H7: 0 | I7: 0 | J7: 1 | K7: 0 | L7: 0 | M7: 0 | N7: 0 | O7: 1 | P7: 0 | Q7: 0 | R7: 0 | S7: 0
C8: Periodo regolatorio | E8: 0 | F8: 0 | G8: 1 | H8: 1 | I8: 1 | J8: 1 | K8: 2 | L8: 2 | M8: 2 | N8: 2 | O8: 2 | P8: 3 | Q8: 3 | R8: 3 | S8: 3
C9: Anno del periodo regolatorio | E9: 0 | F9: 0 | G9: 1 | H9: 2 | I9: 3 | J9: 4 | K9: 1 | L9: 2 | M9: 3 | N9: 4 | O9: 5 | P9: 1 | Q9: 2 | R9: 3 | S9: 4
C10: Frazione di anno significativa | G10: 1 | H10: 1 | I10: 1 | J10: 1 | K10: 1 | L10: 1 | M10: 1 | N10: 1 | O10: 1 | P10: 1 | Q10: 1 | R10: 1 | S10: 1
F12: Ultimo adattamento schema: 03/11/2025 14:32:33
C14: Discontinuità di costo
C16: NB: per ogni annualità va inserito il valore incrementale/decrementale rispetto all'annualità precedente.
C17: (per ciascuna specifica discontinuità di costo, si prega di documentare distintamente i valori assunti, mediante specifici fogli di lavoro di supporto)
C19: Discontinuità di costi operativi da nuovi investimenti
B23: t | C23: (specificare) | F23: 10 | G23: 10 | H23: 10 | I23: 10 | J23: 10 | K23: 10 | L23: 10 | M23: 10 | N23: 10 | O23: 10 | P23: 10 | Q23: 10 | R23: 10 | S23: 10
B24: t
B25: t
B26: t
B27: t
C30: Totale discontinuità di costi operativi da nuovi investimenti | F30: =SUM(F23:F27) -> 10 | G30: 10 | H30: =SUM(H23:H27) -> 10 | I30: 10 | J30: 10 | K30: 10 | L30: 10 | M30: 10 | N30: 10 | O30: 10 | P30: 10 | Q30: 10 | R30: 10 | S30: 10
C33: Discontinuità di costi operativi da sopravvenienze normative
B37: t | C37: (specificare) | F37: 100 | G37: 100 | H37: 100 | I37: 100 | J37: 100 | K37: 100 | L37: 100 | M37: 100 | N37: 100 | O37: 100 | P37: 100 | Q37: 100 | R37: 100 | S37: 100
B38: t
B39: t
B40: t
B41: t
B42: t
C44: Totale discontinuità di costi operativi da sopravvenienze normative | F44: =SUM(F37:F43) -> 100 | G44: 100 | H44: =SUM(H37:H43) -> 100 | I44: 100 | J44: 100 | K44: 100 | L44: 100 | M44: 100 | N44: 100 | O44: 100 | P44: 100 | Q44: 100 | R44: 100 | S44: 100
C46: termine foglio di lavoro

Sheet Z0.3.b Qualita
C2: Meccanismo di premialità/penalità correlato alla qualità dei servizi
C5: Informazioni generali
C7: Periodo di riferimento
D10: Anno applicazione meccanismo (t) | E10: =PrimoAnnoPR1+1 -> 2027 | F10: =IF(E10>UltimoAnnoPR1,"",E10+1) -> 2028 | G10: 2029 | H10: 2030 | O10: =IF(N10>UltimoAnnoPR1,"",N10+1) ->  | P10: =IF(O10>UltimoAnnoPR1,"",O10+1) ->  | Q10: =IF(P10>UltimoAnnoPR1,"",P10+1) -> 
D11: Anno di riferimento per misurazioni (t-2) | E11: =IFERROR(E10-2,"") -> 2025 | F11: =IFERROR(F10-2,"") -> 2026 | G11: 2027 | H11: 2028 | O11: =IFERROR(O10-2,"") -> 
D13: Anno di riferimento per adeguamento tariffario | E13: =IF(E10=AnnoMon+1,TRUE,FALSE) -> FALSE | F13: =IF(F10=AnnoMon+1,TRUE,FALSE) -> TRUE | G13: =IF(G10=AnnoMon+1,TRUE,FALSE) -> FALSE | H13: =IF(H10=AnnoMon+1,TRUE,FALSE) -> FALSE | I13: =IF(I10=AnnoMon+1,TRUE,FALSE) -> FALSE
C16: Tratte elementari
D20: Tratte elementari | E20: Lunghezza tratta elementare | F20: Veicoli leggeri: Tempo di percorrenza a flusso libero (secondi) | G20: Veicoli leggeri: volumi di traffico annui (veicoli*km anno base) | H20: Veicoli pesanti: Tempo di percorrenza a flusso libero (secondi) | I20: Veicoli pesanti: volumi di traffico annui (veicoli*km anno base) | J20: Velocità media a flusso libero (km/h) | K20: Lunghezza tratta a 1 corsia | L20: Lunghezza tratta a 2 corsie | M20: Lunghezza tratta a 3 corsie | N20: Lunghezza tratta a 4 corsie | O20: Lunghezza tratta a 5 corsie | P20: numero medio corsie | Q20: ore*km*corsie annue disponibili per la circolazione
B22: t | D22: Tratta 1 | E22: 10 | F22: 360 | G22: 1000000 | H22: 540 | I22: 200000 | J22: =IFERROR(E22/((F22*G22+H22*I22)/(G22+I22))*3600,0) -> 92.30769231 | L22: 4 | M22: 6 | P22: =IFERROR(IF(SUM(K22:O22)=E22,(K22*1+L22*2+M22*3+N22*4+O22*5)/E22,"errore"),"") -> 2.6 | Q22: =IFERROR(24*365*E22*P22,0) -> 227760
B23: t | D23: Tratta 2 | E23: 6.5 | F23: 240 | G23: 650000 | H23: 360 | I23: 195000 | J23: =IFERROR(E23/((F23*G23+H23*I23)/(G23+I23))*3600,0) -> 87.4137931 | L23: 6.5 | P23: =IFERROR(IF(SUM(K23:O23)=E23,(K23*1+L23*2+M23*3+N23*4+O23*5)/E23,"errore"),"") -> 2 | Q23: 113880
B24: t | D24: Tratta 3 | E24: 8 | F24: 300 | G24: 800000 | H24: 450 | I24: 240000 | J24: 86.06896552 | L24: 8 | P24: 2 | Q24: 140160
B25: t | D25: Tratta 4 | E25: 5.5 | F25: 216 | G25: 550000 | H25: 324 | I25: 165000 | J25: 82.18390805 | L25: 5.5 | P25: 2 | Q25: 96360
B26: t | D26: Tratta 5 | E26: 16 | F26: 600 | G26: 1600000 | H26: 900 | I26: 480000 | J26: 86.06896552 | L26: 16 | P26: 2 | Q26: 280320
B27: t | D27: Tratta 6 | E27: 21 | F27: 780 | G27: 2100000 | H27: 1170 | I27: 420000 | J27: 89.46745562 | L27: 12 | M27: 9 | P27: 2.428571429 | Q27: 446760
B28: t | D28: Tratta 7 | E28: 2.5 | F28: 120 | G28: 250000 | H28: 180 | I28: 50000 | J28: 69.23076923 | M28: 2.5 | P28: 3 | Q28: 65700
B29: t | D29: Tratta 8 | E29: 4 | F29: 180 | G29: 400000 | H29: 270 | I29: 120000 | J29: 71.72413793 | L29: 4 | P29: 2 | Q29: 70080
B30: t | D30: Tratta 9 | E30: 12.3 | F30: 432 | G30: 1230000 | H30: 648 | I30: 369000 | J30: 91.89655172 | L30: 12.3 | P30: 2 | Q30: 215496
B31: t | D31: Tratta 10 | E31: 7 | F31: 300 | G31: 700000 | H31: 450 | I31: 140000 | J31: 77.53846154 | L31: 7 | P31: 2 | Q31: 122640
B32: t | D32: Tratta 11 | E32: 4.5 | F32: 216 | G32: 450000 | H32: 324 | I32: 135000 | J32: 67.24137931 | L32: 4.5 | P32: 2 | Q32: 78840
B33: t | D33: Tratta 12 | E33: 12 | F33: 432 | G33: 1200000 | H33: 648 | I33: 360000 | J33: 89.65517241 | L33: 12 | P33: 2 | Q33: 210240
B34: t | D34: Tratta 13 | E34: 15 | F34: 600 | G34: 1500000 | H34: 900 | I34: 450000 | J34: 80.68965517 | L34: 5 | M34: 5 | N34: 5 | P34: 3 | Q34: 394200
B35: t | D35: Tratta 14 | E35: 8 | F35: 300 | G35: 800000 | H35: 500 | I35: 200000 | J35: 84.70588235 | M35: 8 | P35: =IFERROR(IF(SUM(K35:O35)=E35,(K35*1+L35*2+M35*3+N35*4+O35*5)/E35,"errore"),"") -> 3 | Q35: =IFERROR(24*365*E35*P35,0) -> 210240
D37: Intera rete | E37: =SUM(E21:E36) -> 132.3 | F37: =SUM(F21:F36) -> 5076 | G37: =SUM(G21:G36) -> 13230000 | H37: =SUM(H21:H36) -> 7664 | I37: =SUM(I21:I36) -> 3524000 | J37: =SUMPRODUCT(J21:J36,E21:E36)/E37 -> 85.31564828 | P37: =SUMPRODUCT(P21:P36,E21:E36)/E37 -> 2.306122449 | Q37: =SUM(Q21:Q36) -> 2672676
C40: Stazioni di esazione
D44: Stazioni di esazione | E44: Numero piste con pagamento automatizzato del pedaggio | F44: Tasso di operatività annua delle piste con pagamento automatizzato del pedaggio | G44: Numero piste senza pagamento automatizzato del pedaggio | H44: Tasso di operatività annua delle piste senza pagamento automatizzato del pedaggio | I44: Numero piste totali | J44: Tasso di operatività annua totale | K44: ore*km annue disponibili per l'esazione
B46: e | D46: Stazione di esazione 1 | E46: 10 | F46: 0.949 | G46: 2 | H46: 0.984 | I46: =E46+G46 -> 12 | J46: =(E46*F46+G46*H46)/I46 -> 0.9548333333 | K46: =IFERROR(24*365*I46*J46,0) -> 100372.08
B47: e | D47: Stazione di esazione 2 | E47: 6 | F47: 0.917 | G47: 1 | H47: 0.939 | I47: =E47+G47 -> 7 | J47: =(E47*F47+G47*H47)/I47 -> 0.9201428571 | K47: =IFERROR(24*365*I47*J47,0) -> 56423.16
B48: e | D48: Stazione di esazione 3 | E48: 4 | F48: 0.935 | G48: 1 | H48: 0.927 | I48: 5 | J48: 0.9334 | K48: 40882.92
B49: e | D49: Stazione di esazione 4 | E49: 4 | F49: 0.978 | G49: 1 | H49: 0.969 | I49: 5 | J49: 0.9762 | K49: 42757.56
B50: e | D50: Stazione di esazione 5 | E50: 4 | F50: 0.988 | G50: 1 | H50: 0.905 | I50: 5 | J50: 0.9714 | K50: 42547.32
B51: e | D51: Stazione di esazione 6 | E51: 6 | F51: 0.939 | G51: 1 | H51: 0.974 | I51: 7 | J51: 0.944 | K51: 57886.08
B52: e | D52: Stazione di esazione 7 | E52: 8 | F52: 0.975 | G52: 2 | H52: 0.918 | I52: 10 | J52: 0.9636 | K52: 84411.36
B53: e | D53: Stazione di esazione 8 | E53: 12 | F53: 0.99 | G53: 3 | H53: 0.959 | I53: 15 | J53: 0.9838 | K53: 129271.32
B54: e | D54: Stazione di esazione 9 | E54: 12.3 | F54: 0.969 | G54: 3 | H54: 0.963 | I54: 15.3 | J54: 0.9678235294 | K54: 129715.452
B55: e | D55: Stazione di esazione 10 | E55: 6 | F55: 0.995 | G55: 1 | H55: 0.927 | I55: 7 | J55: 0.9852857143 | K55: 60417.72
B56: e | D56: Stazione di esazione 11 | E56: 6 | F56: 0.937 | G56: 1 | H56: 0.919 | I56: 7 | J56: 0.9344285714 | K56: 57299.16
B57: e | D57: Stazione di esazione 12 | E57: 6 | F57: 0.985 | G57: 1 | H57: 0.974 | I57: 7 | J57: 0.9834285714 | K57: 60303.84
B58: e | D58: Stazione di esazione 13 | E58: 6 | F58: 0.997 | G58: 1 | H58: 0.916 | I58: 7 | J58: 0.9854285714 | K58: 60426.48
D60: Intera rete | E60: =SUM(E45:E59) -> 90.3 | F60: =SUMPRODUCT(F45:F59,E45:E59)/E60 -> 0.9669180509 | G60: =SUM(G45:G59) -> 19 | H60: =SUMPRODUCT(H45:H59,G45:G59)/G60 -> 0.9484210526 | I60: =SUM(I45:I59) -> 109.3 | J60: =SUMPRODUCT(J45:J59,I45:I59)/I60 -> 0.9637026532 | K60: =SUM(K45:K59) -> 922714.452
C64: Misurazione degli indicatori analitici e confronto con metriche, valori-obiettivo di soglia e dati di base
C66: 1 | D66: Velocità media di percorrenza del flusso veicolare
D68: Metrica
D69: Rapporto fra: (i) velocità media effettiva, calcolata come rapporto fra lunghezza di ciascuna tratta elementare percorsa e tempo medio di percorrenza effettivo; (ii) velocità di riferimento di ciascuna tratta elementare, determinata con la metodologia di cui alla delibera ART n. 132/2024, come modificata dalla delibera ART n. 211/2025.
D71: Valori di soglia | E71: =E$10 -> 2027 | F71: =F$10 -> 2028 | G71: =G$10 -> 2029 | H71: =H$10 -> 2030 | I71: =I$10 -> 
D72: Soglia minima | E72: 0.75 | F72: 0.75 | G72: 0.75 | H72: 0.75
D73: Soglia equilibrio | E73: 0.9 | F73: 0.905 | G73: 0.91 | H73: 0.915
D74: Soglia eccellenza | E74: 1 | F74: 1 | G74: 1 | H74: 1
D76: Dati di base
D77: Tratte elementari | E77: lunghezza tratta | F77: Velocità media a flusso libero (km/h)
D78: Intera rete | E78: =E37 -> 132.3 | F78: =J37 -> 85.31564828
D81: Misurazione | I81: Anno | J81: =INDEX($11:$11,MATCH(TRUE,$13:$13,0)) -> 2026
D82: Tratte elementari | E82: lunghezza tratta | F82: Veicoli leggeri: Tempo di percorrenza rilevato (secondi) | G82: Veicoli leggeri: volumi di traffico annui (veicoli*km anno di riferimento) | H82: Veicoli pesanti: Tempo di percorrenza rilevato (secondi) | I82: Veicoli pesanti: volumi di traffico annui (veicoli*km anno di riferimento) | J82: Velocità media rilevata (km/h)
E84: =IF(E20="","",E20) -> Lunghezza tratta elementare | F84: =F20*RANDBETWEEN(105,120)/100 ->  | G84: =G20*RANDBETWEEN(98,102)/100 ->  | H84: =H20*RANDBETWEEN(105,120)/100 ->  | I84: =I20*RANDBETWEEN(98,102)/100 ->  | J84: =IFERROR(E84/((F84*G84+H84*I84)/(G84+I84))*3600,0) -> 0
B86: t1 | D86: =IF(D22="","",D22) -> Tratta 1 | E86: =IF(E22="","",E22) -> 10 | F86: =F22*RANDBETWEEN(105,120)/100 -> 414 | G86: =G22*RANDBETWEEN(98,102)/100 -> 990000 | H86: =H22*RANDBETWEEN(105,120)/100 -> 615.6 | I86: =I22*RANDBETWEEN(98,102)/100 -> 202000 | J86: =IFERROR(E86/((F86*G86+H86*I86)/(G86+I86))*3600,0) -> 80.32778047
B87: t1 | D87: =IF(D23="","",D23) -> Tratta 2 | E87: 6.5 | F87: =F23*RANDBETWEEN(105,120)/100 -> 288 | G87: =G23*RANDBETWEEN(98,102)/100 -> 663000 | H87: =H23*RANDBETWEEN(105,120)/100 -> 385.2 | I87: =I23*RANDBETWEEN(98,102)/100 -> 198900 | J87: =IFERROR(E87/((F87*G87+H87*I87)/(G87+I87))*3600,0) -> 75.37912578
B88: t1 | D88: =IF(D24="","",D24) -> Tratta 3 | E88: 8 | F88: 348 | G88: 800000 | H88: 490.5 | I88: 242400 | J88: 75.56338177
B89: t1 | D89: =IF(D25="","",D25) -> Tratta 4 | E89: 5.5 | F89: 239.76 | G89: 561000 | H89: 388.8 | I89: 166650 | J89: 72.29077253
B90: t1 | D90: =IF(D26="","",D26) -> Tratta 5 | E90: 16 | F90: 696 | G90: 1568000 | H90: 963 | I90: 489600 | J90: 75.8361846
B91: t1 | D91: =IF(D27="","",D27) -> Tratta 6 | E91: 21 | F91: 928.2 | G91: 2079000 | H91: 1357.2 | I91: 424200 | J91: 75.5320465
B92: t1 | D92: =IF(D28="","",D28) -> Tratta 7 | E92: 2.5 | F92: 126 | G92: 245000 | H92: 207 | I92: 51000 | J92: 64.30588746
B93: t1 | D93: =IF(D29="","",D29) -> Tratta 8 | E93: 4 | F93: 189 | G93: 396000 | H93: 305.1 | I93: 117600 | J93: 66.79541952
B94: t1 | D94: =IF(D30="","",D30) -> Tratta 9 | E94: 12.3 | F94: 453.6 | G94: 1205400 | H94: 732.24 | I94: 369000 | J94: 85.33333333
B95: t1 | D95: =IF(D31="","",D31) -> Tratta 10 | E95: 7 | F95: 354 | G95: 686000 | H95: 490.5 | I95: 140000 | J95: 66.81946879
B96: t1 | D96: =IF(D32="","",D32) -> Tratta 11 | E96: 4.5 | F96: 252.72 | G96: 454500 | H96: 366.12 | I96: 135000 | J96: 58.12921548
B97: t1 | D97: =IF(D33="","",D33) -> Tratta 12 | E97: 12 | F97: 492.48 | G97: 1224000 | H97: 758.16 | I97: 367200 | J97: 78.00780078
B98: t1 | D98: =IF(D34="","",D34) -> Tratta 13 | E98: 15 | F98: 690 | G98: 1530000 | H98: 1071 | I98: 450000 | J98: 69.53467954
B99: t1 | D99: =IF(D35="","",D35) -> Tratta 14 | E99: 8 | F99: 318 | G99: 808000 | H99: 550 | I99: 200000 | J99: 79.11397924
D101: Intera rete | E101: =SUM(E85:E100) -> 132.3 | F101: =SUM(F85:F100) -> 5789.76 | G101: =SUM(G85:G100) -> 13209900 | H101: =SUM(H85:H100) -> 8680.42 | I101: =SUM(I85:I100) -> 3553550 | J101: =SUMPRODUCT(J85:J100,E85:E100)/E101 -> 74.93416584 | L101: Indicatore | M101: =J101/F78 -> 0.8783167842
C104: 2 | D104: Disponibilità dell’infrastruttura
D106: Metrica
D107: Rapporto fra: (i) ore*km annue non impegnate da cantieri in ciascuna tratta elementare, sulla base del numero di corsie di marcia occupate e della lunghezza dello spazio occupato e (ii) ore*km disponibili per la circolazione in ciascuna tratta elementare (inclusa fascia notturna, dalle 22:00 alle 6:00), ossia 24*365=8760 ore, per numero di corsie di marcia e per lunghezza di ciascuna tratta elementare.
D109: Valori di soglia | E109: =E$10 -> 2027 | F109: =F$10 -> 2028 | G109: =G$10 -> 2029 | H109: =H$10 -> 2030 | I109: =I$10 -> 
D110: Soglia minima | E110: 0.85 | F110: 0.85 | G110: 0.85 | H110: 0.85
D111: Soglia equilibrio | E111: 0.93 | F111: 0.935 | G111: 0.94 | H111: 0.945
D112: Soglia eccellenza | E112: 1 | F112: 1 | G112: 1 | H112: 1
D114: Dati di base
D115: Tratte elementari | E115: lunghezza tratta | F115: numero medio corsie | G115: ore*km annue disponibili per la circolazione
D116: Intera rete | E116: =E37 -> 132.3 | F116: =P37 -> 2.306122449 | G116: =Q37 -> 2672676
D119: Misurazione | H119: Anno | I119: =INDEX($11:$11,MATCH(TRUE,$13:$13,0)) -> 2026
D120: Cantieri | E120: numero corsie occupate | F120: lunghezza occupazione (km) | G120: ore di occupazione | H120: ore*km occupazione | I120: Ore*km disponibilità
B124: c | D124: Cantiere 1 | E124: 1 | F124: 15 | G124: 1500 | H124: =G124*F124*E124 -> 22500
B125: c | D125: Cantiere 2 | E125: 1 | F125: 10 | G125: 1500 | H125: =G125*F125*E125 -> 15000
B126: c | D126: Cantiere 3 | E126: 1 | F126: 18 | G126: 1500 | H126: 27000
B127: c | D127: Cantiere 4 | E127: 2 | F127: 20 | G127: 1500 | H127: 60000
B128: c | D128: Cantiere 5 | E128: 2 | F128: 13 | G128: 1500 | H128: 39000
B129: c | D129: Cantiere 6 | E129: 1 | F129: 14 | G129: 1500 | H129: 21000
B130: c | D130: Cantiere 7 | E130: 1 | F130: 5 | G130: 1500 | H130: 7500
D132: Intera rete | E132: =SUM(E123:E131) -> 9 | F132: =SUM(F123:F131) -> 95 | G132: =SUM(G123:G131) -> 10500 | H132: =SUM(H123:H131) -> 192000 | I132: =(G116-H132) -> 2480676 | K132: Indicatore | L132: =I132/G116 -> 0.9281618872
C135: 3 | D135: Fluidità ai caselli
D137: Metrica
D138: Rapporto fra: (i) ore annue effettivamente disponibili per il pagamento automatizzato del pedaggio in ciascuna stazione di esazione, per numero di piste e (ii) ore annue teoriche complessivamente disponibili per il pagamento del pedaggio in ciascuna stazione di esazione, considerato il numero di piste complessive presenti e operative.
D140: Valori di soglia | E140: =E$10 -> 2027 | F140: =F$10 -> 2028 | G140: =G$10 -> 2029 | H140: =H$10 -> 2030 | I140: =I$10 -> 
D141: Soglia minima | E141: 0.88 | F141: 0.88 | G141: 0.88 | H141: 0.88 | I141: 0.88
D142: Soglia equilibrio | E142: 0.95 | F142: =E142+0.005 -> 0.955 | G142: =F142+0.005 -> 0.96 | H142: 0.965 | I142: 0.97
D143: Soglia eccellenza | E143: 1 | F143: 1 | G143: 1 | H143: 1 | I143: 1
D145: Dati di base
D146: Stazioni di esazione | E146: numero piste | F146: ore*km annue disponibili per l'esazione
D147: Intera rete | E147: =E60 -> 90.3 | F147: =$K$60 -> 922714.452
D150: Misurazione | E150: Anno | F150: =INDEX($11:$11,MATCH(TRUE,$13:$13,0)) -> 2026
D151: Stazioni di esazione | E151: Somma ore*piste indisponibili | F151: ore*km annue disponibili per l'esazione
E153: =K44*RANDBETWEEN(2,12)/100 -> 
B155: e1 | D155: =IF(D46="","",D46) -> Stazione di esazione 1 | E155: =K46*RANDBETWEEN(2,12)/100 -> 7026.0456 | F155: =IFERROR(INDEX($K$45:$K$59,MATCH(D155,$D$45:$D$59,0))-E155,0) -> 93346.0344
B156: e1 | D156: Stazione di esazione 2 | E156: 5078.0844 | F156: 51345.0756
B157: e1 | D157: Stazione di esazione 3 | E157: 1635.3168 | F157: 39247.6032
B158: e1 | D158: Stazione di esazione 4 | E158: 1710.3024 | F158: 41047.2576
B159: e1 | D159: Stazione di esazione 5 | E159: 2552.8392 | F159: 39994.4808
B160: e1 | D160: Stazione di esazione 6 | E160: 2315.4432 | F160: 55570.6368
B161: e1 | D161: Stazione di esazione 7 | E161: 2532.3408 | F161: 81879.0192
B162: e1 | D162: Stazione di esazione 8 | E162: 2585.4264 | F162: 126685.8936
B163: e1 | D163: Stazione di esazione 9 | E163: 5188.61808 | F163: 124526.8339
B164: e1 | D164: Stazione di esazione 10 | E164: 4229.2404 | F164: 56188.4796
B165: e1 | D165: Stazione di esazione 11 | E165: 5156.9244 | F165: 52142.2356
B166: e1 | D166: Stazione di esazione 12 | E166: 3618.2304 | F166: 56685.6096
B167: e1 | D167: Stazione di esazione 13 | E167: 3021.324 | F167: 57405.156
D169: Intera rete | E169: =SUM(E154:E168) -> 46650.13608 | F169: =SUM(F154:F168) -> 876064.3159 | H169: Indicatore | I169: =F169/$F$147 -> 0.9494424998
C172: 4a | D172: Stato della pavimentazione: aderenza
D174: Metrica
D175: Parametro CAT (Coefficiente di aderenza trasversale), misurato per ciascuna tratta elementare con apparecchiatura SUMMS o SCRIM, sulla corsia di marcia caratterizzata dal massimo degrado.
D177: Valori di soglia | E177: =E$10 -> 2027 | F177: =F$10 -> 2028 | G177: =G$10 -> 2029 | H177: =H$10 -> 2030 | I177: =I$10 -> 
D178: Soglia minima | E178: 0.5 | F178: =E178+0.01 -> 0.51 | G178: =F178+0.01 -> 0.52 | H178: 0.53 | I178: 0.54
D179: Soglia equilibrio | E179: 0.65 | F179: =E179+0.01 -> 0.66 | G179: =F179+0.01 -> 0.67 | H179: 0.68 | I179: 0.69
D180: Soglia eccellenza | E180: 0.9 | F180: =E180 -> 0.9 | G180: =F180 -> 0.9 | H180: 0.9 | I180: 0.9
D182: Dati di base
D183: Tratte elementari | E183: lunghezza tratta
D184: Intera rete | E184: =E37 -> 132.3
D187: Misurazione | E187: Anno | F187: =INDEX($11:$11,MATCH(TRUE,$13:$13,0)) -> 2026
D188: Tratte elementari | E188: lunghezza tratta | F188: CAT medio misurato
F190: =RANDBETWEEN(50,90)/100 -> 0.64
B192: t2 | D192: =IF(D22="","",D22) -> Tratta 1 | E192: =IF(E22="","",E22) -> 10 | F192: =RANDBETWEEN(50,90)/100 -> 0.75
B193: t2 | D193: =IF(D23="","",D23) -> Tratta 2 | E193: 6.5 | F193: 0.76
B194: t2 | D194: =IF(D24="","",D24) -> Tratta 3 | E194: 8 | F194: 0.81
B195: t2 | D195: =IF(D25="","",D25) -> Tratta 4 | E195: 5.5 | F195: 0.5
B196: t2 | D196: =IF(D26="","",D26) -> Tratta 5 | E196: 16 | F196: 0.58
B197: t2 | D197: =IF(D27="","",D27) -> Tratta 6 | E197: 21 | F197: 0.68
B198: t2 | D198: =IF(D28="","",D28) -> Tratta 7 | E198: 2.5 | F198: 0.73
B199: t2 | D199: =IF(D29="","",D29) -> Tratta 8 | E199: 4 | F199: 0.85
B200: t2 | D200: =IF(D30="","",D30) -> Tratta 9 | E200: 12.3 | F200: 0.64
B201: t2 | D201: =IF(D31="","",D31) -> Tratta 10 | E201: 7 | F201: 0.79
B202: t2 | D202: =IF(D32="","",D32) -> Tratta 11 | E202: 4.5 | F202: 0.76
B203: t2 | D203: =IF(D33="","",D33) -> Tratta 12 | E203: 12 | F203: 0.71
B204: t2 | D204: =IF(D34="","",D34) -> Tratta 13 | E204: 15 | F204: 0.52
B205: t2 | D205: =IF(D35="","",D35) -> Tratta 14 | E205: 8 | F205: 0.68
D207: Intera rete | E207: =SUM(E189:E206) -> 132.3 | H207: Indicatore | I207: =SUMPRODUCT(F189:F206,E189:E206)/E207 -> 0.6729931973
C210: 4b | D210: Stato della pavimentazione: rugosità
D212: Metrica
D213: Parametro IRI (International roughness index), misurato per ciascuna tratta elementare con profilometro ARAN o similare, sulla corsia di marcia caratterizzata dal massimo degrado.
D215: Valori di soglia | E215: =E$10 -> 2027 | F215: =F$10 -> 2028 | G215: =G$10 -> 2029 | H215: =H$10 -> 2030 | I215: =I$10 -> 
D216: Soglia minima | E216: 4 | F216: 4 | G216: 4 | H216: 4
D217: Soglia equilibrio | E217: 2 | F217: 2 | G217: 2 | H217: 2
D218: Soglia eccellenza | E218: 0 | F218: 0 | G218: 0 | H218: 0
D220: Dati di base
D221: Tratte elementari | E221: lunghezza tratta
D222: Intera rete | E222: =E37 -> 132.3
D225: Misurazione | E225: Anno | F225: =INDEX($11:$11,MATCH(TRUE,$13:$13,0)) -> 2026
D226: Tratte elementari | E226: lunghezza tratta | F226: IRI medio misurato
F228: =RANDBETWEEN(0,400)/100 -> 2.97
B230: t3 | D230: =IF(D22="","",D22) -> Tratta 1 | E230: =IF(E22="","",E22) -> 10 | F230: =RANDBETWEEN(0,400)/100 -> 1.76
B231: t3 | D231: =IF(D23="","",D23) -> Tratta 2 | E231: 6.5 | F231: 0.89
B232: t3 | D232: =IF(D24="","",D24) -> Tratta 3 | E232: 8 | F232: 2.36
B233: t3 | D233: =IF(D25="","",D25) -> Tratta 4 | E233: 5.5 | F233: 1.06
B234: t3 | D234: =IF(D26="","",D26) -> Tratta 5 | E234: 16 | F234: 3.35
B235: t3 | D235: =IF(D27="","",D27) -> Tratta 6 | E235: 21 | F235: 3.96
B236: t3 | D236: =IF(D28="","",D28) -> Tratta 7 | E236: 2.5 | F236: 1.89
B237: t3 | D237: =IF(D29="","",D29) -> Tratta 8 | E237: 4 | F237: 3.94
B238: t3 | D238: =IF(D30="","",D30) -> Tratta 9 | E238: 12.3 | F238: 2.77
B239: t3 | D239: =IF(D31="","",D31) -> Tratta 10 | E239: 7 | F239: 3.15
B240: t3 | D240: =IF(D32="","",D32) -> Tratta 11 | E240: 4.5 | F240: 2.19
B241: t3 | D241: =IF(D33="","",D33) -> Tratta 12 | E241: 12 | F241: 2.66
B242: t3 | D242: =IF(D34="","",D34) -> Tratta 13 | E242: 15 | F242: 2.15
B243: t3 | D243: =IF(D35="","",D35) -> Tratta 14 | E243: 8 | F243: 2.01
D245: Intera rete | E245: =SUM(E227:E244) -> 132.3 | H245: Indicatore | I245: =SUMPRODUCT(F227:F244,E227:E244)/E245 -> 2.65733938
C248: 5 | D248: Aggiornamento informazioni tramite panelli a messaggio variabile
D250: Metrica
D251: Tempo medio, espresso in secondi, che intercorre tra la ricezione dell’informazione relativa ad un evento presso il centro di controllo e il successivo inoltro al PMV, sulla base di un set di eventi: incidente, evento meteo, code, ostacolo.
D253: Valori di soglia | E253: =E$10 -> 2027 | F253: =F$10 -> 2028 | G253: =G$10 -> 2029 | H253: =H$10 -> 2030 | I253: =I$10 -> 
D254: Soglia minima | E254: 120 | F254: 120 | G254: 120 | H254: 120
D255: Soglia equilibrio | E255: 90 | F255: =E255-1 -> 89 | G255: =F255-1 -> 88 | H255: 87
D256: Soglia eccellenza | E256: 60 | F256: =E256 -> 60 | G256: =F256 -> 60 | H256: 60
D258: Misurazione | E258: Anno | F258: =INDEX($11:$11,MATCH(TRUE,$13:$13,0)) -> 2026
D259: Tipologia di evento | E259: numero eventi | F259: tempo medio per evento (secondi)
E261: =RANDBETWEEN(20,100) -> 21 | F261: =RANDBETWEEN(35,95) -> 83
D263: Incidente | E263: =RANDBETWEEN(20,100) -> 83 | F263: =RANDBETWEEN(60,120) -> 64
D264: Evento meteo | E264: 99 | F264: =RANDBETWEEN(60,120) -> 62
D265: Code | E265: 57 | F265: 119
D266: Ostacolo | E266: 86 | F266: 61
D267: Intera rete | E267: =SUM(E263:E266) -> 325 | F267: =SUMPRODUCT(F263:F266,E263:E266)/E267 -> 72.24307692 | H267: Indicatore | I267: =F267 -> 72.24307692
C270: 6 | D270: Customer satisfaction rispetto ai livelli di servizio complessivo
D272: Metrica
D273: Percentuale di utenti soddisfatti del livello di servizio reso dal concessionario per le seguenti aree di interesse: sicurezza stradale (peso: 30); informazione (peso: 30); esazione pedaggio (peso: 30); aree di servizio e sosta (peso: 10).
D275: Valori di soglia | E275: =E$10 -> 2027 | F275: =F$10 -> 2028 | G275: =G$10 -> 2029 | H275: =H$10 -> 2030 | I275: =I$10 -> 
D276: Soglia minima | E276: 0.8 | F276: =E276+0.005 -> 0.805 | G276: =F276+0.005 -> 0.81 | H276: 0.815
D277: Soglia equilibrio | E277: 0.9 | F277: =E277+0.005 -> 0.905 | G277: =F277+0.005 -> 0.91 | H277: 0.915
D278: Soglia eccellenza | E278: 1 | F278: 1 | G278: 1 | H278: 1
D280: Dati di base
D281: Settore di indagine | E281: peso
D282: Sicurezza stradale | E282: 0.3
D283: Informazione | E283: 0.3
D284: Esazione pedaggio | E284: 0.3
D285: Aree di servizio e sosta | E285: 0.1
D286: Intera rete | E286: =SUM(E282:E285) -> 1
... 38 more rows

Sheet Z0.4.a ProgrammaInvest_Spesa
C2: Programma degli Investimenti (1/6) - da ultimo aggiornamento approvato
R4: Anno | U4: 2024 | V4: 2025 | W4: 2026 | X4: 2027 | Y4: 2028 | Z4: 2029 | AA4: 2030 | AB4: 2031 | AC4: 2032 | AD4: 2033 | AE4: 2034 | AF4: 2035 | AG4: 2036 | AH4: 2037 | AI4: 2038
R6: Anno base | U6: 1 | V6: 0 | W6: 0 | X6: 0 | Y6: 1 | Z6: 0 | AA6: 0 | AB6: 0 | AC6: 0 | AD6: 1 | AE6: 0 | AF6: 0 | AG6: 0 | AH6: 0 | AI6: 0
R7: Anno ponte | U7: 0 | V7: 1 | W7: 0 | X7: 0 | Y7: 0 | Z7: 1 | AA7: 0 | AB7: 0 | AC7: 0 | AD7: 0 | AE7: 1 | AF7: 0 | AG7: 0 | AH7: 0 | AI7: 0
R8: Periodo regolatorio | U8: 0 | V8: 0 | W8: 1 | X8: 1 | Y8: 1 | Z8: 1 | AA8: 2 | AB8: 2 | AC8: 2 | AD8: 2 | AE8: 2 | AF8: 3 | AG8: 3 | AH8: 3 | AI8: 3
R9: Anno del periodo regolatorio | U9: 0 | V9: 0 | W9: 1 | X9: 2 | Y9: 3 | Z9: 4 | AA9: 1 | AB9: 2 | AC9: 3 | AD9: 4 | AE9: 5 | AF9: 1 | AG9: 2 | AH9: 3 | AI9: 4
R10: Frazione di anno significativa | W10: 1 | X10: 1 | Y10: 1 | Z10: 1 | AA10: 1 | AB10: 1 | AC10: 1 | AD10: 1 | AE10: 1 | AF10: 1 | AG10: 1 | AH10: 1 | AI10: 1
V12: Ultimo adattamento schema: 03/11/2025 14:32:34
C14: Programmazione ammissibile in tariffa: Importo della spesa annua complessiva (al lordo di eventuali contributi in c/impianti e in c/capitale)
C15: Tabella da alimentare solo con spese per beni reversibili, autorizzati e ammissibili in tariffa
C17: Atto convenzionale di riferimento | D17: Rif. macro intervento | E17: Rif. lett. art. | F17: Codice univoco intervento | G17: Descrizione intervento | H17: Codice SIVCA | I17: Tratta autostradale da convenzione | J17: Macro tipologia intervento | K17: Tipologia intervento | L17: Stato lavori | M17: Tipologia CIN | N17: Stati di avanzamento CIN ante | O17: Criterio di ammortamento | P17: Data presunta entrata in esercizio (anno) | Q17: Spesa programmata totale | R17: Contributo a fondo perduto | S17: Eventuali dismissioni | V17: ="Spesa programmata " & V4 -> Spesa programmata 2025 | W17: Spesa programmata 2026 | X17: ="Spesa programmata " & X4 -> Spesa programmata 2027 | Y17: Spesa programmata 2028 | Z17: Spesa programmata 2029 | AA17: Spesa programmata 2030 | AB17: Spesa programmata 2031 | AC17: Spesa programmata 2032 | AD17: Spesa programmata 2033 | AE17: Spesa programmata 2034 | AF17: Spesa programmata 2035 | AG17: Spesa programmata 2036 | AH17: Spesa programmata 2037 | AI17: Spesa programmata 2038
B19: x | F19: 1 | G19: Intervento 1 | H19: SIVCA 1 | K19: (assoggettata ad ammortamento finanziario) | L19: in corso | M19: CIN ante | N19: SAL contabilizzati | O19: Finanziario | Q19: =SUM(OFFSET(U19,0,0,1,ScadenzaConcessione-AnnoBase+1)) -> 0 | R19: =SUM(OFFSET('Z0.4.b ProgrammaInvest_Contrib'!U19,0,0,1,ScadenzaConcessione-AnnoBase+1)) -> 2000 | S19: =SUM(OFFSET('Z0.4.c ProgrammaInvest_Dismiss'!U19,0,0,1,ScadenzaConcessione-AnnoBase+1)) -> 20
B20: x | F20: 2 | G20: Intervento 2 | H20: SIVCA 2 | K20: (assoggettata ad ammortamento finanziario) | L20: in corso | M20: CIN ante | N20: SAL da contabilizzare | O20: Finanziario | Q20: 20000 | R20: =SUM(OFFSET('Z0.4.b ProgrammaInvest_Contrib'!U20,0,0,1,ScadenzaConcessione-AnnoBase+1)) -> 1000 | S20: =SUM(OFFSET('Z0.4.c ProgrammaInvest_Dismiss'!U20,0,0,1,ScadenzaConcessione-AnnoBase+1)) -> 20 | W20: 10000 | X20: 10000
B21: x | F21: 3 | G21: Intervento 2 | H21: SIVCA 2 | K21: (assoggettata ad ammortamento finanziario) | L21: in corso | M21: CIN pre2026 | O21: Finanziario | Q21: 20000 | R21: =SUM(OFFSET('Z0.4.b ProgrammaInvest_Contrib'!U21,0,0,1,ScadenzaConcessione-AnnoBase+1)) -> 1000 | S21: =SUM(OFFSET('Z0.4.c ProgrammaInvest_Dismiss'!U21,0,0,1,ScadenzaConcessione-AnnoBase+1)) -> 20 | W21: 10000 | X21: 10000
B22: x | F22: 4 | G22: Intervento 2 | H22: SIVCA 2 | K22: (assoggettata ad ammortamento finanziario) | L22: in corso | M22: CIN post2026 | O22: Finanziario | Q22: 100000 | R22: =SUM(OFFSET('Z0.4.b ProgrammaInvest_Contrib'!U22,0,0,1,ScadenzaConcessione-AnnoBase+1)) -> 1000 | S22: =SUM(OFFSET('Z0.4.c ProgrammaInvest_Dismiss'!U22,0,0,1,ScadenzaConcessione-AnnoBase+1)) -> 20 | W22: 50000 | X22: 50000
B23: x | F23: 5 | G23: Intervento 3 | H23: SIVCA 3 | K23: Viadotti/Ponti/Cavalcavia | L23: in corso | M23: CIN post2026 | O23: Vite utili 1 | P23: 2028 | Q23: 200 | R23: =SUM(OFFSET('Z0.4.b ProgrammaInvest_Contrib'!U23,0,0,1,ScadenzaConcessione-AnnoBase+1)) -> 20 | S23: =SUM(OFFSET('Z0.4.c ProgrammaInvest_Dismiss'!U23,0,0,1,ScadenzaConcessione-AnnoBase+1)) -> 10 | X23: 100 | Y23: 100
B24: x | F24: 6 | G24: Intervento 4 | H24: SIVCA 4 | K24: Gallerie | L24: in corso | M24: CIN post2026 | O24: Vite utili 1 | P24: 2029 | Q24: 200 | R24: =SUM(OFFSET('Z0.4.b ProgrammaInvest_Contrib'!U24,0,0,1,ScadenzaConcessione-AnnoBase+1)) -> 20 | S24: =SUM(OFFSET('Z0.4.c ProgrammaInvest_Dismiss'!U24,0,0,1,ScadenzaConcessione-AnnoBase+1)) -> 10 | Y24: 100 | Z24: 100
B25: x | F25: 7 | G25: Intervento 5 | H25: SIVCA 5 | K25: Barriere | L25: in corso | M25: CIN post2026 | O25: Vite utili 1 | P25: 2030 | Q25: 200 | R25: =SUM(OFFSET('Z0.4.b ProgrammaInvest_Contrib'!U25,0,0,1,ScadenzaConcessione-AnnoBase+1)) -> 20 | S25: =SUM(OFFSET('Z0.4.c ProgrammaInvest_Dismiss'!U25,0,0,1,ScadenzaConcessione-AnnoBase+1)) -> 10 | Z25: 100 | AA25: 100
B26: x | F26: 8 | G26: Intervento 6 | H26: SIVCA 6 | K26: Corpo autostradale, opere sul territorio | L26: in corso | M26: CIN post2026 | O26: Vite utili 1 | P26: 2031 | Q26: 200 | R26: =SUM(OFFSET('Z0.4.b ProgrammaInvest_Contrib'!U26,0,0,1,ScadenzaConcessione-AnnoBase+1)) -> 20 | S26: =SUM(OFFSET('Z0.4.c ProgrammaInvest_Dismiss'!U26,0,0,1,ScadenzaConcessione-AnnoBase+1)) -> 10 | AA26: 100 | AB26: 100
B27: x | F27: 9 | G27: Intervento 7 | H27: SIVCA 7 | K27: Reti recinzione | L27: in corso | M27: CIN post2026 | O27: Vite utili 1 | P27: 2032 | Q27: 200 | R27: =SUM(OFFSET('Z0.4.b ProgrammaInvest_Contrib'!U27,0,0,1,ScadenzaConcessione-AnnoBase+1)) -> 20 | S27: =SUM(OFFSET('Z0.4.c ProgrammaInvest_Dismiss'!U27,0,0,1,ScadenzaConcessione-AnnoBase+1)) -> 10 | AB27: 100 | AC27: 100
B28: x | F28: 10 | G28: Intervento 8 | H28: SIVCA 8 | K28: Portali e segnaletica | L28: in corso | M28: CIN post2026 | O28: Vite utili 1 | P28: 2033 | Q28: 200 | R28: =SUM(OFFSET('Z0.4.b ProgrammaInvest_Contrib'!U28,0,0,1,ScadenzaConcessione-AnnoBase+1)) -> 20 | S28: =SUM(OFFSET('Z0.4.c ProgrammaInvest_Dismiss'!U28,0,0,1,ScadenzaConcessione-AnnoBase+1)) -> 10 | AC28: 100 | AD28: 100
B29: x | F29: 11 | G29: Intervento 9 | H29: SIVCA 9 | K29: Pavimentazioni | L29: in corso | M29: CIN post2026 | O29: Vite utili 1 | P29: 2034 | Q29: 200 | R29: =SUM(OFFSET('Z0.4.b ProgrammaInvest_Contrib'!U29,0,0,1,ScadenzaConcessione-AnnoBase+1)) -> 20 | S29: =SUM(OFFSET('Z0.4.c ProgrammaInvest_Dismiss'!U29,0,0,1,ScadenzaConcessione-AnnoBase+1)) -> 10 | AD29: 100 | AE29: 100
B30: x | F30: 12 | G30: Intervento 10 | H30: SIVCA 10 | K30: Infrastrutture tecnologiche ed impianti | L30: in corso | M30: CIN post2026 | O30: Vite utili 1 | P30: 2035 | Q30: 200 | R30: =SUM(OFFSET('Z0.4.b ProgrammaInvest_Contrib'!U30,0,0,1,ScadenzaConcessione-AnnoBase+1)) -> 20 | S30: =SUM(OFFSET('Z0.4.c ProgrammaInvest_Dismiss'!U30,0,0,1,ScadenzaConcessione-AnnoBase+1)) -> 10 | AE30: 100 | AF30: 100
B31: x | F31: 13 | G31: Intervento 11 | H31: SIVCA 11 | K31: Stazioni/Barriere di esazione, fabbricati, aree di servizio | L31: in corso | M31: CIN post2026 | O31: Vite utili 1 | P31: 2036 | Q31: =SUM(OFFSET(U31,0,0,1,ScadenzaConcessione-AnnoBase+1)) -> 200 | R31: =SUM(OFFSET('Z0.4.b ProgrammaInvest_Contrib'!U44,0,0,1,ScadenzaConcessione-AnnoBase+1)) -> 0 | S31: =SUM(OFFSET('Z0.4.c ProgrammaInvest_Dismiss'!U44,0,0,1,ScadenzaConcessione-AnnoBase+1)) -> 0 | AF31: 100 | AG31: 100
B32: x | F32: 14 | G32: Intervento 12 | H32: SIVCA 12 | K32: Altro | L32: in corso | M32: CIN post2026 | O32: Vite utili 1 | P32: 2037 | Q32: 200 | R32: =SUM(OFFSET('Z0.4.b ProgrammaInvest_Contrib'!U45,0,0,1,ScadenzaConcessione-AnnoBase+1)) -> 0 | S32: =SUM(OFFSET('Z0.4.c ProgrammaInvest_Dismiss'!U45,0,0,1,ScadenzaConcessione-AnnoBase+1)) -> 0 | AG32: 100 | AH32: 100
B33: x | F33: 15 | G33: Intervento 13 | H33: SIVCA 13 | K33: Viadotti/Ponti/Cavalcavia | L33: in corso | M33: CIN post2026 | O33: Vite utili 2 | P33: 2028 | Q33: 200 | R33: =SUM(OFFSET('Z0.4.b ProgrammaInvest_Contrib'!U46,0,0,1,ScadenzaConcessione-AnnoBase+1)) -> 0 | S33: =SUM(OFFSET('Z0.4.c ProgrammaInvest_Dismiss'!U46,0,0,1,ScadenzaConcessione-AnnoBase+1)) -> 0 | X33: 100 | Y33: 100
B34: x | F34: 16 | G34: Intervento 14 | H34: SIVCA 14 | K34: Gallerie | L34: in corso | M34: CIN post2026 | O34: Vite utili 2 | P34: 2029 | Q34: 200 | R34: =SUM(OFFSET('Z0.4.b ProgrammaInvest_Contrib'!U47,0,0,1,ScadenzaConcessione-AnnoBase+1)) -> 0 | S34: =SUM(OFFSET('Z0.4.c ProgrammaInvest_Dismiss'!U47,0,0,1,ScadenzaConcessione-AnnoBase+1)) -> 0 | Y34: 100 | Z34: 100
B35: x | F35: 17 | G35: Intervento 15 | H35: SIVCA 15 | K35: Barriere | L35: in corso | M35: CIN post2026 | O35: Vite utili 2 | P35: 2030 | Q35: 200 | R35: =SUM(OFFSET('Z0.4.b ProgrammaInvest_Contrib'!U48,0,0,1,ScadenzaConcessione-AnnoBase+1)) -> 0 | S35: =SUM(OFFSET('Z0.4.c ProgrammaInvest_Dismiss'!U48,0,0,1,ScadenzaConcessione-AnnoBase+1)) -> 0 | Z35: 100 | AA35: 100
B36: x | F36: 18 | G36: Intervento 16 | H36: SIVCA 16 | K36: Corpo autostradale, opere sul territorio | L36: in corso | M36: CIN post2026 | O36: Vite utili 2 | P36: 2031 | Q36: 200 | R36: =SUM(OFFSET('Z0.4.b ProgrammaInvest_Contrib'!U49,0,0,1,ScadenzaConcessione-AnnoBase+1)) -> 0 | S36: =SUM(OFFSET('Z0.4.c ProgrammaInvest_Dismiss'!U49,0,0,1,ScadenzaConcessione-AnnoBase+1)) -> 0 | AA36: 100 | AB36: 100
B37: x | F37: 19 | G37: Intervento 17 | H37: SIVCA 17 | K37: Reti recinzione | L37: in corso | M37: CIN post2026 | O37: Vite utili 2 | P37: 2032 | Q37: 200 | R37: =SUM(OFFSET('Z0.4.b ProgrammaInvest_Contrib'!U50,0,0,1,ScadenzaConcessione-AnnoBase+1)) -> 0 | S37: =SUM(OFFSET('Z0.4.c ProgrammaInvest_Dismiss'!U50,0,0,1,ScadenzaConcessione-AnnoBase+1)) -> 0 | AB37: 100 | AC37: 100
B38: x | F38: 20 | G38: Intervento 18 | H38: SIVCA 18 | K38: Portali e segnaletica | L38: in corso | M38: CIN post2026 | O38: Vite utili 2 | P38: 2033 | Q38: 200 | R38: =SUM(OFFSET('Z0.4.b ProgrammaInvest_Contrib'!U51,0,0,1,ScadenzaConcessione-AnnoBase+1)) -> 0 | S38: =SUM(OFFSET('Z0.4.c ProgrammaInvest_Dismiss'!U51,0,0,1,ScadenzaConcessione-AnnoBase+1)) -> 0 | AC38: 100 | AD38: 100
B39: x | F39: 21 | G39: Intervento 19 | H39: SIVCA 19 | K39: Pavimentazioni | L39: in corso | M39: CIN post2026 | O39: Vite utili 2 | P39: 2034 | Q39: 200 | R39: =SUM(OFFSET('Z0.4.b ProgrammaInvest_Contrib'!U52,0,0,1,ScadenzaConcessione-AnnoBase+1)) -> 0 | S39: =SUM(OFFSET('Z0.4.c ProgrammaInvest_Dismiss'!U52,0,0,1,ScadenzaConcessione-AnnoBase+1)) -> 0 | AD39: 100 | AE39: 100
B40: x | F40: 22 | G40: Intervento 20 | H40: SIVCA 20 | K40: Infrastrutture tecnologiche ed impianti | L40: in corso | M40: CIN post2026 | O40: Vite utili 2 | P40: 2035 | Q40: 200 | R40: =SUM(OFFSET('Z0.4.b ProgrammaInvest_Contrib'!U53,0,0,1,ScadenzaConcessione-AnnoBase+1)) -> 0 | S40: =SUM(OFFSET('Z0.4.c ProgrammaInvest_Dismiss'!U53,0,0,1,ScadenzaConcessione-AnnoBase+1)) -> 0 | AE40: 100 | AF40: 100
B41: x | F41: 23 | G41: Intervento 21 | H41: SIVCA 21 | K41: Stazioni/Barriere di esazione, fabbricati, aree di servizio | L41: in corso | M41: CIN post2026 | O41: Vite utili 2 | P41: 2036 | Q41: =SUM(OFFSET(U41,0,0,1,ScadenzaConcessione-AnnoBase+1)) -> 200 | R41: =SUM(OFFSET('Z0.4.b ProgrammaInvest_Contrib'!U54,0,0,1,ScadenzaConcessione-AnnoBase+1)) -> 0 | S41: =SUM(OFFSET('Z0.4.c ProgrammaInvest_Dismiss'!U54,0,0,1,ScadenzaConcessione-AnnoBase+1)) -> 0 | AF41: 100 | AG41: 100
B42: x | F42: 24 | G42: Intervento 22 | H42: SIVCA 22 | K42: Altro | L42: in corso | M42: CIN post2026 | O42: Vite utili 2 | P42: 2037 | Q42: 200 | R42: =SUM(OFFSET('Z0.4.b ProgrammaInvest_Contrib'!U55,0,0,1,ScadenzaConcessione-AnnoBase+1)) -> 0 | S42: =SUM(OFFSET('Z0.4.c ProgrammaInvest_Dismiss'!U55,0,0,1,ScadenzaConcessione-AnnoBase+1)) -> 0 | AG42: 100 | AH42: 100

Sheet Z0.4.b ProgrammaInvest_Contrib
C2: Programma degli Investimenti (2/6) - da ultimo aggiornamento approvato
R4: Anno | U4: 2024 | V4: 2025 | W4: 2026 | X4: 2027 | Y4: 2028 | Z4: 2029 | AA4: 2030 | AB4: 2031 | AC4: 2032 | AD4: 2033 | AE4: 2034 | AF4: 2035 | AG4: 2036 | AH4: 2037 | AI4: 2038
R6: Anno base | U6: 1 | V6: 0 | W6: 0 | X6: 0 | Y6: 1 | Z6: 0 | AA6: 0 | AB6: 0 | AC6: 0 | AD6: 1 | AE6: 0 | AF6: 0 | AG6: 0 | AH6: 0 | AI6: 0
R7: Anno ponte | U7: 0 | V7: 1 | W7: 0 | X7: 0 | Y7: 0 | Z7: 1 | AA7: 0 | AB7: 0 | AC7: 0 | AD7: 0 | AE7: 1 | AF7: 0 | AG7: 0 | AH7: 0 | AI7: 0
R8: Periodo regolatorio | U8: 0 | V8: 0 | W8: 1 | X8: 1 | Y8: 1 | Z8: 1 | AA8: 2 | AB8: 2 | AC8: 2 | AD8: 2 | AE8: 2 | AF8: 3 | AG8: 3 | AH8: 3 | AI8: 3
R9: Anno del periodo regolatorio | U9: 0 | V9: 0 | W9: 1 | X9: 2 | Y9: 3 | Z9: 4 | AA9: 1 | AB9: 2 | AC9: 3 | AD9: 4 | AE9: 5 | AF9: 1 | AG9: 2 | AH9: 3 | AI9: 4
R10: Frazione di anno significativa | W10: 1 | X10: 1 | Y10: 1 | Z10: 1 | AA10: 1 | AB10: 1 | AC10: 1 | AD10: 1 | AE10: 1 | AF10: 1 | AG10: 1 | AH10: 1 | AI10: 1
V12: Ultimo adattamento schema: 03/11/2025 14:32:36
C14: Programmazione ammissibile in tariffa: Importo annuo eventuali contributi in c/impianti o in c/capitale
C15: Tabella da alimentare solo con spese per beni reversibili, autorizzati e ammissibili in tariffa
C17: Atto convenzionale di riferimento | D17: Rif. macro intervento | E17: Rif. lett. art. | F17: Codice univoco intervento | G17: Descrizione intervento | H17: Codice SIVCA | I17: Tratta autostradale da convenzione | J17: Macro tipologia intervento | K17: Tipologia intervento | L17: Stato lavori | M17: Tipologia CIN | N17: Stati di avanzamento CIN ante | O17: Criterio di ammortamento | P17: Data presunta entrata in esercizio (anno) | Q17: Spesa programmata totale | R17: Contributo a fondo perduto | S17: Eventuali dismissioni | V17: ="Contributo programmato " & V4 -> Contributo programmato 2025 | W17: Contributo programmato 2026 | X17: ="Contributo programmato " & X4 -> Contributo programmato 2027 | Y17: Contributo programmato 2028 | Z17: Contributo programmato 2029 | AA17: Contributo programmato 2030 | AB17: Contributo programmato 2031 | AC17: Contributo programmato 2032 | AD17: Contributo programmato 2033 | AE17: Contributo programmato 2034 | AF17: Contributo programmato 2035 | AG17: Contributo programmato 2036 | AH17: Contributo programmato 2037 | AI17: Contributo programmato 2038
B19: x | C19: =IF('Z0.4.a ProgrammaInvest_Spesa'!C19="","",'Z0.4.a ProgrammaInvest_Spesa'!C19) ->  | D19: =IF('Z0.4.a ProgrammaInvest_Spesa'!D19="","",'Z0.4.a ProgrammaInvest_Spesa'!D19) ->  | E19: =IF('Z0.4.a ProgrammaInvest_Spesa'!E19="","",'Z0.4.a ProgrammaInvest_Spesa'!E19) ->  | F19: =IF('Z0.4.a ProgrammaInvest_Spesa'!F19="","",'Z0.4.a ProgrammaInvest_Spesa'!F19) -> 1 | G19: =IF('Z0.4.a ProgrammaInvest_Spesa'!G19="","",'Z0.4.a ProgrammaInvest_Spesa'!G19) -> Intervento 1 | H19: =IF('Z0.4.a ProgrammaInvest_Spesa'!H19="","",'Z0.4.a ProgrammaInvest_Spesa'!H19) -> SIVCA 1 | I19: =IF('Z0.4.a ProgrammaInvest_Spesa'!I19="","",'Z0.4.a ProgrammaInvest_Spesa'!I19) ->  | J19: =IF('Z0.4.a ProgrammaInvest_Spesa'!J19="","",'Z0.4.a ProgrammaInvest_Spesa'!J19) ->  | K19: =IF('Z0.4.a ProgrammaInvest_Spesa'!K19="","",'Z0.4.a ProgrammaInvest_Spesa'!K19) -> (assoggettata ad ammortamento finanziario) | L19: =IF('Z0.4.a ProgrammaInvest_Spesa'!L19="","",'Z0.4.a ProgrammaInvest_Spesa'!L19) -> in corso | M19: =IF('Z0.4.a ProgrammaInvest_Spesa'!M19="","",'Z0.4.a ProgrammaInvest_Spesa'!M19) -> CIN ante | N19: =IF('Z0.4.a ProgrammaInvest_Spesa'!N19="","",'Z0.4.a ProgrammaInvest_Spesa'!N19) -> SAL contabilizzati | O19: =IF('Z0.4.a ProgrammaInvest_Spesa'!O19="","",'Z0.4.a ProgrammaInvest_Spesa'!O19) -> Finanziario | P19: =IF('Z0.4.a ProgrammaInvest_Spesa'!P19="","",'Z0.4.a ProgrammaInvest_Spesa'!P19) ->  | Q19: =IF('Z0.4.a ProgrammaInvest_Spesa'!Q19="","",'Z0.4.a ProgrammaInvest_Spesa'!Q19) -> 0 | R19: =IF('Z0.4.a ProgrammaInvest_Spesa'!R19="","",'Z0.4.a ProgrammaInvest_Spesa'!R19) -> 2000 | S19: =IF('Z0.4.a ProgrammaInvest_Spesa'!S19="","",'Z0.4.a ProgrammaInvest_Spesa'!S19) -> 20 | W19: 2000
B20: x | C20: =IF('Z0.4.a ProgrammaInvest_Spesa'!C20="","",'Z0.4.a ProgrammaInvest_Spesa'!C20) ->  | D20: =IF('Z0.4.a ProgrammaInvest_Spesa'!D20="","",'Z0.4.a ProgrammaInvest_Spesa'!D20) ->  | E20: =IF('Z0.4.a ProgrammaInvest_Spesa'!E20="","",'Z0.4.a ProgrammaInvest_Spesa'!E20) ->  | F20: =IF('Z0.4.a ProgrammaInvest_Spesa'!F20="","",'Z0.4.a ProgrammaInvest_Spesa'!F20) -> 2 | G20: =IF('Z0.4.a ProgrammaInvest_Spesa'!G20="","",'Z0.4.a ProgrammaInvest_Spesa'!G20) -> Intervento 2 | H20: =IF('Z0.4.a ProgrammaInvest_Spesa'!H20="","",'Z0.4.a ProgrammaInvest_Spesa'!H20) -> SIVCA 2 | I20: =IF('Z0.4.a ProgrammaInvest_Spesa'!I20="","",'Z0.4.a ProgrammaInvest_Spesa'!I20) ->  | J20: =IF('Z0.4.a ProgrammaInvest_Spesa'!J20="","",'Z0.4.a ProgrammaInvest_Spesa'!J20) ->  | K20: =IF('Z0.4.a ProgrammaInvest_Spesa'!K20="","",'Z0.4.a ProgrammaInvest_Spesa'!K20) -> (assoggettata ad ammortamento finanziario) | L20: =IF('Z0.4.a ProgrammaInvest_Spesa'!L20="","",'Z0.4.a ProgrammaInvest_Spesa'!L20) -> in corso | M20: =IF('Z0.4.a ProgrammaInvest_Spesa'!M20="","",'Z0.4.a ProgrammaInvest_Spesa'!M20) -> CIN ante | N20: =IF('Z0.4.a ProgrammaInvest_Spesa'!N20="","",'Z0.4.a ProgrammaInvest_Spesa'!N20) -> SAL da contabilizzare | O20: =IF('Z0.4.a ProgrammaInvest_Spesa'!O20="","",'Z0.4.a ProgrammaInvest_Spesa'!O20) -> Finanziario | P20: =IF('Z0.4.a ProgrammaInvest_Spesa'!P20="","",'Z0.4.a ProgrammaInvest_Spesa'!P20) ->  | Q20: =IF('Z0.4.a ProgrammaInvest_Spesa'!Q20="","",'Z0.4.a ProgrammaInvest_Spesa'!Q20) -> 20000 | R20: =IF('Z0.4.a ProgrammaInvest_Spesa'!R20="","",'Z0.4.a ProgrammaInvest_Spesa'!R20) -> 1000 | S20: =IF('Z0.4.a ProgrammaInvest_Spesa'!S20="","",'Z0.4.a ProgrammaInvest_Spesa'!S20) -> 20 | W20: 1000
B21: x | C21: =IF('Z0.4.a ProgrammaInvest_Spesa'!C21="","",'Z0.4.a ProgrammaInvest_Spesa'!C21) ->  | D21: =IF('Z0.4.a ProgrammaInvest_Spesa'!D21="","",'Z0.4.a ProgrammaInvest_Spesa'!D21) ->  | E21: =IF('Z0.4.a ProgrammaInvest_Spesa'!E21="","",'Z0.4.a ProgrammaInvest_Spesa'!E21) ->  | F21: =IF('Z0.4.a ProgrammaInvest_Spesa'!F21="","",'Z0.4.a ProgrammaInvest_Spesa'!F21) -> 3 | G21: =IF('Z0.4.a ProgrammaInvest_Spesa'!G21="","",'Z0.4.a ProgrammaInvest_Spesa'!G21) -> Intervento 2 | H21: =IF('Z0.4.a ProgrammaInvest_Spesa'!H21="","",'Z0.4.a ProgrammaInvest_Spesa'!H21) -> SIVCA 2 | I21: =IF('Z0.4.a ProgrammaInvest_Spesa'!I21="","",'Z0.4.a ProgrammaInvest_Spesa'!I21) ->  | J21: =IF('Z0.4.a ProgrammaInvest_Spesa'!J21="","",'Z0.4.a ProgrammaInvest_Spesa'!J21) ->  | K21: =IF('Z0.4.a ProgrammaInvest_Spesa'!K21="","",'Z0.4.a ProgrammaInvest_Spesa'!K21) -> (assoggettata ad ammortamento finanziario) | L21: =IF('Z0.4.a ProgrammaInvest_Spesa'!L21="","",'Z0.4.a ProgrammaInvest_Spesa'!L21) -> in corso | M21: =IF('Z0.4.a ProgrammaInvest_Spesa'!M21="","",'Z0.4.a ProgrammaInvest_Spesa'!M21) -> CIN pre2026 | N21: =IF('Z0.4.a ProgrammaInvest_Spesa'!N21="","",'Z0.4.a ProgrammaInvest_Spesa'!N21) ->  | O21: =IF('Z0.4.a ProgrammaInvest_Spesa'!O21="","",'Z0.4.a ProgrammaInvest_Spesa'!O21) -> Finanziario | P21: =IF('Z0.4.a ProgrammaInvest_Spesa'!P21="","",'Z0.4.a ProgrammaInvest_Spesa'!P21) ->  | Q21: =IF('Z0.4.a ProgrammaInvest_Spesa'!Q21="","",'Z0.4.a ProgrammaInvest_Spesa'!Q21) -> 20000 | R21: =IF('Z0.4.a ProgrammaInvest_Spesa'!R21="","",'Z0.4.a ProgrammaInvest_Spesa'!R21) -> 1000 | S21: =IF('Z0.4.a ProgrammaInvest_Spesa'!S21="","",'Z0.4.a ProgrammaInvest_Spesa'!S21) -> 20 | W21: 1000
B22: x | C22: =IF('Z0.4.a ProgrammaInvest_Spesa'!C22="","",'Z0.4.a ProgrammaInvest_Spesa'!C22) ->  | D22: =IF('Z0.4.a ProgrammaInvest_Spesa'!D22="","",'Z0.4.a ProgrammaInvest_Spesa'!D22) ->  | E22: =IF('Z0.4.a ProgrammaInvest_Spesa'!E22="","",'Z0.4.a ProgrammaInvest_Spesa'!E22) ->  | F22: =IF('Z0.4.a ProgrammaInvest_Spesa'!F22="","",'Z0.4.a ProgrammaInvest_Spesa'!F22) -> 4 | G22: =IF('Z0.4.a ProgrammaInvest_Spesa'!G22="","",'Z0.4.a ProgrammaInvest_Spesa'!G22) -> Intervento 2 | H22: =IF('Z0.4.a ProgrammaInvest_Spesa'!H22="","",'Z0.4.a ProgrammaInvest_Spesa'!H22) -> SIVCA 2 | I22: =IF('Z0.4.a ProgrammaInvest_Spesa'!I22="","",'Z0.4.a ProgrammaInvest_Spesa'!I22) ->  | J22: =IF('Z0.4.a ProgrammaInvest_Spesa'!J22="","",'Z0.4.a ProgrammaInvest_Spesa'!J22) ->  | K22: =IF('Z0.4.a ProgrammaInvest_Spesa'!K22="","",'Z0.4.a ProgrammaInvest_Spesa'!K22) -> (assoggettata ad ammortamento finanziario) | L22: =IF('Z0.4.a ProgrammaInvest_Spesa'!L22="","",'Z0.4.a ProgrammaInvest_Spesa'!L22) -> in corso | M22: =IF('Z0.4.a ProgrammaInvest_Spesa'!M22="","",'Z0.4.a ProgrammaInvest_Spesa'!M22) -> CIN post2026 | N22: =IF('Z0.4.a ProgrammaInvest_Spesa'!N22="","",'Z0.4.a ProgrammaInvest_Spesa'!N22) ->  | O22: =IF('Z0.4.a ProgrammaInvest_Spesa'!O22="","",'Z0.4.a ProgrammaInvest_Spesa'!O22) -> Finanziario | P22: =IF('Z0.4.a ProgrammaInvest_Spesa'!P22="","",'Z0.4.a ProgrammaInvest_Spesa'!P22) ->  | Q22: =IF('Z0.4.a ProgrammaInvest_Spesa'!Q22="","",'Z0.4.a ProgrammaInvest_Spesa'!Q22) -> 100000 | R22: =IF('Z0.4.a ProgrammaInvest_Spesa'!R22="","",'Z0.4.a ProgrammaInvest_Spesa'!R22) -> 1000 | S22: =IF('Z0.4.a ProgrammaInvest_Spesa'!S22="","",'Z0.4.a ProgrammaInvest_Spesa'!S22) -> 20 | W22: 1000
B23: x | C23: =IF('Z0.4.a ProgrammaInvest_Spesa'!C23="","",'Z0.4.a ProgrammaInvest_Spesa'!C23) ->  | D23: =IF('Z0.4.a ProgrammaInvest_Spesa'!D23="","",'Z0.4.a ProgrammaInvest_Spesa'!D23) ->  | E23: =IF('Z0.4.a ProgrammaInvest_Spesa'!E23="","",'Z0.4.a ProgrammaInvest_Spesa'!E23) ->  | F23: =IF('Z0.4.a ProgrammaInvest_Spesa'!F23="","",'Z0.4.a ProgrammaInvest_Spesa'!F23) -> 5 | G23: =IF('Z0.4.a ProgrammaInvest_Spesa'!G23="","",'Z0.4.a ProgrammaInvest_Spesa'!G23) -> Intervento 3 | H23: =IF('Z0.4.a ProgrammaInvest_Spesa'!H23="","",'Z0.4.a ProgrammaInvest_Spesa'!H23) -> SIVCA 3 | I23: =IF('Z0.4.a ProgrammaInvest_Spesa'!I23="","",'Z0.4.a ProgrammaInvest_Spesa'!I23) ->  | J23: =IF('Z0.4.a ProgrammaInvest_Spesa'!J23="","",'Z0.4.a ProgrammaInvest_Spesa'!J23) ->  | K23: =IF('Z0.4.a ProgrammaInvest_Spesa'!K23="","",'Z0.4.a ProgrammaInvest_Spesa'!K23) -> Viadotti/Ponti/Cavalcavia | L23: =IF('Z0.4.a ProgrammaInvest_Spesa'!L23="","",'Z0.4.a ProgrammaInvest_Spesa'!L23) -> in corso | M23: =IF('Z0.4.a ProgrammaInvest_Spesa'!M23="","",'Z0.4.a ProgrammaInvest_Spesa'!M23) -> CIN post2026 | N23: =IF('Z0.4.a ProgrammaInvest_Spesa'!N23="","",'Z0.4.a ProgrammaInvest_Spesa'!N23) ->  | O23: =IF('Z0.4.a ProgrammaInvest_Spesa'!O23="","",'Z0.4.a ProgrammaInvest_Spesa'!O23) -> Vite utili 1 | P23: =IF('Z0.4.a ProgrammaInvest_Spesa'!P23="","",'Z0.4.a ProgrammaInvest_Spesa'!P23) -> 2028 | Q23: =IF('Z0.4.a ProgrammaInvest_Spesa'!Q23="","",'Z0.4.a ProgrammaInvest_Spesa'!Q23) -> 200 | R23: =IF('Z0.4.a ProgrammaInvest_Spesa'!R23="","",'Z0.4.a ProgrammaInvest_Spesa'!R23) -> 20 | S23: =IF('Z0.4.a ProgrammaInvest_Spesa'!S23="","",'Z0.4.a ProgrammaInvest_Spesa'!S23) -> 10 | X23: 20
B24: x | C24: =IF('Z0.4.a ProgrammaInvest_Spesa'!C24="","",'Z0.4.a ProgrammaInvest_Spesa'!C24) ->  | D24: =IF('Z0.4.a ProgrammaInvest_Spesa'!D24="","",'Z0.4.a ProgrammaInvest_Spesa'!D24) ->  | E24: =IF('Z0.4.a ProgrammaInvest_Spesa'!E24="","",'Z0.4.a ProgrammaInvest_Spesa'!E24) ->  | F24: =IF('Z0.4.a ProgrammaInvest_Spesa'!F24="","",'Z0.4.a ProgrammaInvest_Spesa'!F24) -> 6 | G24: =IF('Z0.4.a ProgrammaInvest_Spesa'!G24="","",'Z0.4.a ProgrammaInvest_Spesa'!G24) -> Intervento 4 | H24: =IF('Z0.4.a ProgrammaInvest_Spesa'!H24="","",'Z0.4.a ProgrammaInvest_Spesa'!H24) -> SIVCA 4 | I24: =IF('Z0.4.a ProgrammaInvest_Spesa'!I24="","",'Z0.4.a ProgrammaInvest_Spesa'!I24) ->  | J24: =IF('Z0.4.a ProgrammaInvest_Spesa'!J24="","",'Z0.4.a ProgrammaInvest_Spesa'!J24) ->  | K24: =IF('Z0.4.a ProgrammaInvest_Spesa'!K24="","",'Z0.4.a ProgrammaInvest_Spesa'!K24) -> Gallerie | L24: =IF('Z0.4.a ProgrammaInvest_Spesa'!L24="","",'Z0.4.a ProgrammaInvest_Spesa'!L24) -> in corso | M24: =IF('Z0.4.a ProgrammaInvest_Spesa'!M24="","",'Z0.4.a ProgrammaInvest_Spesa'!M24) -> CIN post2026 | N24: =IF('Z0.4.a ProgrammaInvest_Spesa'!N24="","",'Z0.4.a ProgrammaInvest_Spesa'!N24) ->  | O24: =IF('Z0.4.a ProgrammaInvest_Spesa'!O24="","",'Z0.4.a ProgrammaInvest_Spesa'!O24) -> Vite utili 1 | P24: =IF('Z0.4.a ProgrammaInvest_Spesa'!P24="","",'Z0.4.a ProgrammaInvest_Spesa'!P24) -> 2029 | Q24: =IF('Z0.4.a ProgrammaInvest_Spesa'!Q24="","",'Z0.4.a ProgrammaInvest_Spesa'!Q24) -> 200 | R24: =IF('Z0.4.a ProgrammaInvest_Spesa'!R24="","",'Z0.4.a ProgrammaInvest_Spesa'!R24) -> 20 | S24: =IF('Z0.4.a ProgrammaInvest_Spesa'!S24="","",'Z0.4.a ProgrammaInvest_Spesa'!S24) -> 10 | Y24: 20
B25: x | C25: =IF('Z0.4.a ProgrammaInvest_Spesa'!C25="","",'Z0.4.a ProgrammaInvest_Spesa'!C25) ->  | D25: =IF('Z0.4.a ProgrammaInvest_Spesa'!D25="","",'Z0.4.a ProgrammaInvest_Spesa'!D25) ->  | E25: =IF('Z0.4.a ProgrammaInvest_Spesa'!E25="","",'Z0.4.a ProgrammaInvest_Spesa'!E25) ->  | F25: =IF('Z0.4.a ProgrammaInvest_Spesa'!F25="","",'Z0.4.a ProgrammaInvest_Spesa'!F25) -> 7 | G25: =IF('Z0.4.a ProgrammaInvest_Spesa'!G25="","",'Z0.4.a ProgrammaInvest_Spesa'!G25) -> Intervento 5 | H25: =IF('Z0.4.a ProgrammaInvest_Spesa'!H25="","",'Z0.4.a ProgrammaInvest_Spesa'!H25) -> SIVCA 5 | I25: =IF('Z0.4.a ProgrammaInvest_Spesa'!I25="","",'Z0.4.a ProgrammaInvest_Spesa'!I25) ->  | J25: =IF('Z0.4.a ProgrammaInvest_Spesa'!J25="","",'Z0.4.a ProgrammaInvest_Spesa'!J25) ->  | K25: =IF('Z0.4.a ProgrammaInvest_Spesa'!K25="","",'Z0.4.a ProgrammaInvest_Spesa'!K25) -> Barriere | L25: =IF('Z0.4.a ProgrammaInvest_Spesa'!L25="","",'Z0.4.a ProgrammaInvest_Spesa'!L25) -> in corso | M25: =IF('Z0.4.a ProgrammaInvest_Spesa'!M25="","",'Z0.4.a ProgrammaInvest_Spesa'!M25) -> CIN post2026 | N25: =IF('Z0.4.a ProgrammaInvest_Spesa'!N25="","",'Z0.4.a ProgrammaInvest_Spesa'!N25) ->  | O25: =IF('Z0.4.a ProgrammaInvest_Spesa'!O25="","",'Z0.4.a ProgrammaInvest_Spesa'!O25) -> Vite utili 1 | P25: =IF('Z0.4.a ProgrammaInvest_Spesa'!P25="","",'Z0.4.a ProgrammaInvest_Spesa'!P25) -> 2030 | Q25: =IF('Z0.4.a ProgrammaInvest_Spesa'!Q25="","",'Z0.4.a ProgrammaInvest_Spesa'!Q25) -> 200 | R25: =IF('Z0.4.a ProgrammaInvest_Spesa'!R25="","",'Z0.4.a ProgrammaInvest_Spesa'!R25) -> 20 | S25: =IF('Z0.4.a ProgrammaInvest_Spesa'!S25="","",'Z0.4.a ProgrammaInvest_Spesa'!S25) -> 10 | Z25: 20
B26: x | C26: =IF('Z0.4.a ProgrammaInvest_Spesa'!C26="","",'Z0.4.a ProgrammaInvest_Spesa'!C26) ->  | D26: =IF('Z0.4.a ProgrammaInvest_Spesa'!D26="","",'Z0.4.a ProgrammaInvest_Spesa'!D26) ->  | E26: =IF('Z0.4.a ProgrammaInvest_Spesa'!E26="","",'Z0.4.a ProgrammaInvest_Spesa'!E26) ->  | F26: =IF('Z0.4.a ProgrammaInvest_Spesa'!F26="","",'Z0.4.a ProgrammaInvest_Spesa'!F26) -> 8 | G26: =IF('Z0.4.a ProgrammaInvest_Spesa'!G26="","",'Z0.4.a ProgrammaInvest_Spesa'!G26) -> Intervento 6 | H26: =IF('Z0.4.a ProgrammaInvest_Spesa'!H26="","",'Z0.4.a ProgrammaInvest_Spesa'!H26) -> SIVCA 6 | I26: =IF('Z0.4.a ProgrammaInvest_Spesa'!I26="","",'Z0.4.a ProgrammaInvest_Spesa'!I26) ->  | J26: =IF('Z0.4.a ProgrammaInvest_Spesa'!J26="","",'Z0.4.a ProgrammaInvest_Spesa'!J26) ->  | K26: =IF('Z0.4.a ProgrammaInvest_Spesa'!K26="","",'Z0.4.a ProgrammaInvest_Spesa'!K26) -> Corpo autostradale, opere sul territorio | L26: =IF('Z0.4.a ProgrammaInvest_Spesa'!L26="","",'Z0.4.a ProgrammaInvest_Spesa'!L26) -> in corso | M26: =IF('Z0.4.a ProgrammaInvest_Spesa'!M26="","",'Z0.4.a ProgrammaInvest_Spesa'!M26) -> CIN post2026 | N26: =IF('Z0.4.a ProgrammaInvest_Spesa'!N26="","",'Z0.4.a ProgrammaInvest_Spesa'!N26) ->  | O26: =IF('Z0.4.a ProgrammaInvest_Spesa'!O26="","",'Z0.4.a ProgrammaInvest_Spesa'!O26) -> Vite utili 1 | P26: =IF('Z0.4.a ProgrammaInvest_Spesa'!P26="","",'Z0.4.a ProgrammaInvest_Spesa'!P26) -> 2031 | Q26: =IF('Z0.4.a ProgrammaInvest_Spesa'!Q26="","",'Z0.4.a ProgrammaInvest_Spesa'!Q26) -> 200 | R26: =IF('Z0.4.a ProgrammaInvest_Spesa'!R26="","",'Z0.4.a ProgrammaInvest_Spesa'!R26) -> 20 | S26: =IF('Z0.4.a ProgrammaInvest_Spesa'!S26="","",'Z0.4.a ProgrammaInvest_Spesa'!S26) -> 10 | AA26: 20
B27: x | C27: =IF('Z0.4.a ProgrammaInvest_Spesa'!C27="","",'Z0.4.a ProgrammaInvest_Spesa'!C27) ->  | D27: =IF('Z0.4.a ProgrammaInvest_Spesa'!D27="","",'Z0.4.a ProgrammaInvest_Spesa'!D27) ->  | E27: =IF('Z0.4.a ProgrammaInvest_Spesa'!E27="","",'Z0.4.a ProgrammaInvest_Spesa'!E27) ->  | F27: =IF('Z0.4.a ProgrammaInvest_Spesa'!F27="","",'Z0.4.a ProgrammaInvest_Spesa'!F27) -> 9 | G27: =IF('Z0.4.a ProgrammaInvest_Spesa'!G27="","",'Z0.4.a ProgrammaInvest_Spesa'!G27) -> Intervento 7 | H27: =IF('Z0.4.a ProgrammaInvest_Spesa'!H27="","",'Z0.4.a ProgrammaInvest_Spesa'!H27) -> SIVCA 7 | I27: =IF('Z0.4.a ProgrammaInvest_Spesa'!I27="","",'Z0.4.a ProgrammaInvest_Spesa'!I27) ->  | J27: =IF('Z0.4.a ProgrammaInvest_Spesa'!J27="","",'Z0.4.a ProgrammaInvest_Spesa'!J27) ->  | K27: =IF('Z0.4.a ProgrammaInvest_Spesa'!K27="","",'Z0.4.a ProgrammaInvest_Spesa'!K27) -> Reti recinzione | L27: =IF('Z0.4.a ProgrammaInvest_Spesa'!L27="","",'Z0.4.a ProgrammaInvest_Spesa'!L27) -> in corso | M27: =IF('Z0.4.a ProgrammaInvest_Spesa'!M27="","",'Z0.4.a ProgrammaInvest_Spesa'!M27) -> CIN post2026 | N27: =IF('Z0.4.a ProgrammaInvest_Spesa'!N27="","",'Z0.4.a ProgrammaInvest_Spesa'!N27) ->  | O27: =IF('Z0.4.a ProgrammaInvest_Spesa'!O27="","",'Z0.4.a ProgrammaInvest_Spesa'!O27) -> Vite utili 1 | P27: =IF('Z0.4.a ProgrammaInvest_Spesa'!P27="","",'Z0.4.a ProgrammaInvest_Spesa'!P27) -> 2032 | Q27: =IF('Z0.4.a ProgrammaInvest_Spesa'!Q27="","",'Z0.4.a ProgrammaInvest_Spesa'!Q27) -> 200 | R27: =IF('Z0.4.a ProgrammaInvest_Spesa'!R27="","",'Z0.4.a ProgrammaInvest_Spesa'!R27) -> 20 | S27: =IF('Z0.4.a ProgrammaInvest_Spesa'!S27="","",'Z0.4.a ProgrammaInvest_Spesa'!S27) -> 10 | AB27: 20
B28: x | C28: =IF('Z0.4.a ProgrammaInvest_Spesa'!C28="","",'Z0.4.a ProgrammaInvest_Spesa'!C28) ->  | D28: =IF('Z0.4.a ProgrammaInvest_Spesa'!D28="","",'Z0.4.a ProgrammaInvest_Spesa'!D28) ->  | E28: =IF('Z0.4.a ProgrammaInvest_Spesa'!E28="","",'Z0.4.a ProgrammaInvest_Spesa'!E28) ->  | F28: =IF('Z0.4.a ProgrammaInvest_Spesa'!F28="","",'Z0.4.a ProgrammaInvest_Spesa'!F28) -> 10 | G28: =IF('Z0.4.a ProgrammaInvest_Spesa'!G28="","",'Z0.4.a ProgrammaInvest_Spesa'!G28) -> Intervento 8 | H28: =IF('Z0.4.a ProgrammaInvest_Spesa'!H28="","",'Z0.4.a ProgrammaInvest_Spesa'!H28) -> SIVCA 8 | I28: =IF('Z0.4.a ProgrammaInvest_Spesa'!I28="","",'Z0.4.a ProgrammaInvest_Spesa'!I28) ->  | J28: =IF('Z0.4.a ProgrammaInvest_Spesa'!J28="","",'Z0.4.a ProgrammaInvest_Spesa'!J28) ->  | K28: =IF('Z0.4.a ProgrammaInvest_Spesa'!K28="","",'Z0.4.a ProgrammaInvest_Spesa'!K28) -> Portali e segnaletica | L28: =IF('Z0.4.a ProgrammaInvest_Spesa'!L28="","",'Z0.4.a ProgrammaInvest_Spesa'!L28) -> in corso | M28: =IF('Z0.4.a ProgrammaInvest_Spesa'!M28="","",'Z0.4.a ProgrammaInvest_Spesa'!M28) -> CIN post2026 | N28: =IF('Z0.4.a ProgrammaInvest_Spesa'!N28="","",'Z0.4.a ProgrammaInvest_Spesa'!N28) ->  | O28: =IF('Z0.4.a ProgrammaInvest_Spesa'!O28="","",'Z0.4.a ProgrammaInvest_Spesa'!O28) -> Vite utili 1 | P28: =IF('Z0.4.a ProgrammaInvest_Spesa'!P28="","",'Z0.4.a ProgrammaInvest_Spesa'!P28) -> 2033 | Q28: =IF('Z0.4.a ProgrammaInvest_Spesa'!Q28="","",'Z0.4.a ProgrammaInvest_Spesa'!Q28) -> 200 | R28: =IF('Z0.4.a ProgrammaInvest_Spesa'!R28="","",'Z0.4.a ProgrammaInvest_Spesa'!R28) -> 20 | S28: =IF('Z0.4.a ProgrammaInvest_Spesa'!S28="","",'Z0.4.a ProgrammaInvest_Spesa'!S28) -> 10 | AC28: 20
B29: x | C29: =IF('Z0.4.a ProgrammaInvest_Spesa'!C29="","",'Z0.4.a ProgrammaInvest_Spesa'!C29) ->  | D29: =IF('Z0.4.a ProgrammaInvest_Spesa'!D29="","",'Z0.4.a ProgrammaInvest_Spesa'!D29) ->  | E29: =IF('Z0.4.a ProgrammaInvest_Spesa'!E29="","",'Z0.4.a ProgrammaInvest_Spesa'!E29) ->  | F29: =IF('Z0.4.a ProgrammaInvest_Spesa'!F29="","",'Z0.4.a ProgrammaInvest_Spesa'!F29) -> 11 | G29: =IF('Z0.4.a ProgrammaInvest_Spesa'!G29="","",'Z0.4.a ProgrammaInvest_Spesa'!G29) -> Intervento 9 | H29: =IF('Z0.4.a ProgrammaInvest_Spesa'!H29="","",'Z0.4.a ProgrammaInvest_Spesa'!H29) -> SIVCA 9 | I29: =IF('Z0.4.a ProgrammaInvest_Spesa'!I29="","",'Z0.4.a ProgrammaInvest_Spesa'!I29) ->  | J29: =IF('Z0.4.a ProgrammaInvest_Spesa'!J29="","",'Z0.4.a ProgrammaInvest_Spesa'!J29) ->  | K29: =IF('Z0.4.a ProgrammaInvest_Spesa'!K29="","",'Z0.4.a ProgrammaInvest_Spesa'!K29) -> Pavimentazioni | L29: =IF('Z0.4.a ProgrammaInvest_Spesa'!L29="","",'Z0.4.a ProgrammaInvest_Spesa'!L29) -> in corso | M29: =IF('Z0.4.a ProgrammaInvest_Spesa'!M29="","",'Z0.4.a ProgrammaInvest_Spesa'!M29) -> CIN post2026 | N29: =IF('Z0.4.a ProgrammaInvest_Spesa'!N29="","",'Z0.4.a ProgrammaInvest_Spesa'!N29) ->  | O29: =IF('Z0.4.a ProgrammaInvest_Spesa'!O29="","",'Z0.4.a ProgrammaInvest_Spesa'!O29) -> Vite utili 1 | P29: =IF('Z0.4.a ProgrammaInvest_Spesa'!P29="","",'Z0.4.a ProgrammaInvest_Spesa'!P29) -> 2034 | Q29: =IF('Z0.4.a ProgrammaInvest_Spesa'!Q29="","",'Z0.4.a ProgrammaInvest_Spesa'!Q29) -> 200 | R29: =IF('Z0.4.a ProgrammaInvest_Spesa'!R29="","",'Z0.4.a ProgrammaInvest_Spesa'!R29) -> 20 | S29: =IF('Z0.4.a ProgrammaInvest_Spesa'!S29="","",'Z0.4.a ProgrammaInvest_Spesa'!S29) -> 10 | AD29: 20
B30: x | C30: =IF('Z0.4.a ProgrammaInvest_Spesa'!C30="","",'Z0.4.a ProgrammaInvest_Spesa'!C30) ->  | D30: =IF('Z0.4.a ProgrammaInvest_Spesa'!D30="","",'Z0.4.a ProgrammaInvest_Spesa'!D30) ->  | E30: =IF('Z0.4.a ProgrammaInvest_Spesa'!E30="","",'Z0.4.a ProgrammaInvest_Spesa'!E30) ->  | F30: =IF('Z0.4.a ProgrammaInvest_Spesa'!F30="","",'Z0.4.a ProgrammaInvest_Spesa'!F30) -> 12 | G30: =IF('Z0.4.a ProgrammaInvest_Spesa'!G30="","",'Z0.4.a ProgrammaInvest_Spesa'!G30) -> Intervento 10 | H30: =IF('Z0.4.a ProgrammaInvest_Spesa'!H30="","",'Z0.4.a ProgrammaInvest_Spesa'!H30) -> SIVCA 10 | I30: =IF('Z0.4.a ProgrammaInvest_Spesa'!I30="","",'Z0.4.a ProgrammaInvest_Spesa'!I30) ->  | J30: =IF('Z0.4.a ProgrammaInvest_Spesa'!J30="","",'Z0.4.a ProgrammaInvest_Spesa'!J30) ->  | K30: =IF('Z0.4.a ProgrammaInvest_Spesa'!K30="","",'Z0.4.a ProgrammaInvest_Spesa'!K30) -> Infrastrutture tecnologiche ed impianti | L30: =IF('Z0.4.a ProgrammaInvest_Spesa'!L30="","",'Z0.4.a ProgrammaInvest_Spesa'!L30) -> in corso | M30: =IF('Z0.4.a ProgrammaInvest_Spesa'!M30="","",'Z0.4.a ProgrammaInvest_Spesa'!M30) -> CIN post2026 | N30: =IF('Z0.4.a ProgrammaInvest_Spesa'!N30="","",'Z0.4.a ProgrammaInvest_Spesa'!N30) ->  | O30: =IF('Z0.4.a ProgrammaInvest_Spesa'!O30="","",'Z0.4.a ProgrammaInvest_Spesa'!O30) -> Vite utili 1 | P30: =IF('Z0.4.a ProgrammaInvest_Spesa'!P30="","",'Z0.4.a ProgrammaInvest_Spesa'!P30) -> 2035 | Q30: =IF('Z0.4.a ProgrammaInvest_Spesa'!Q30="","",'Z0.4.a ProgrammaInvest_Spesa'!Q30) -> 200 | R30: =IF('Z0.4.a ProgrammaInvest_Spesa'!R30="","",'Z0.4.a ProgrammaInvest_Spesa'!R30) -> 20 | S30: =IF('Z0.4.a ProgrammaInvest_Spesa'!S30="","",'Z0.4.a ProgrammaInvest_Spesa'!S30) -> 10 | AE30: 20
B31: x | C31: =IF('Z0.4.a ProgrammaInvest_Spesa'!C31="","",'Z0.4.a ProgrammaInvest_Spesa'!C31) ->  | D31: =IF('Z0.4.a ProgrammaInvest_Spesa'!D31="","",'Z0.4.a ProgrammaInvest_Spesa'!D31) ->  | E31: =IF('Z0.4.a ProgrammaInvest_Spesa'!E31="","",'Z0.4.a ProgrammaInvest_Spesa'!E31) ->  | F31: =IF('Z0.4.a ProgrammaInvest_Spesa'!F31="","",'Z0.4.a ProgrammaInvest_Spesa'!F31) -> 13 | G31: =IF('Z0.4.a ProgrammaInvest_Spesa'!G31="","",'Z0.4.a ProgrammaInvest_Spesa'!G31) -> Intervento 11 | H31: =IF('Z0.4.a ProgrammaInvest_Spesa'!H31="","",'Z0.4.a ProgrammaInvest_Spesa'!H31) -> SIVCA 11 | I31: =IF('Z0.4.a ProgrammaInvest_Spesa'!I31="","",'Z0.4.a ProgrammaInvest_Spesa'!I31) ->  | J31: =IF('Z0.4.a ProgrammaInvest_Spesa'!J31="","",'Z0.4.a ProgrammaInvest_Spesa'!J31) ->  | K31: =IF('Z0.4.a ProgrammaInvest_Spesa'!K31="","",'Z0.4.a ProgrammaInvest_Spesa'!K31) -> Stazioni/Barriere di esazione, fabbricati, aree di servizio | L31: =IF('Z0.4.a ProgrammaInvest_Spesa'!L31="","",'Z0.4.a ProgrammaInvest_Spesa'!L31) -> in corso | M31: =IF('Z0.4.a ProgrammaInvest_Spesa'!M31="","",'Z0.4.a ProgrammaInvest_Spesa'!M31) -> CIN post2026 | N31: =IF('Z0.4.a ProgrammaInvest_Spesa'!N31="","",'Z0.4.a ProgrammaInvest_Spesa'!N31) ->  | O31: =IF('Z0.4.a ProgrammaInvest_Spesa'!O31="","",'Z0.4.a ProgrammaInvest_Spesa'!O31) -> Vite utili 1 | P31: =IF('Z0.4.a ProgrammaInvest_Spesa'!P31="","",'Z0.4.a ProgrammaInvest_Spesa'!P31) -> 2036 | Q31: =IF('Z0.4.a ProgrammaInvest_Spesa'!Q31="","",'Z0.4.a ProgrammaInvest_Spesa'!Q31) -> 200 | R31: =IF('Z0.4.a ProgrammaInvest_Spesa'!R31="","",'Z0.4.a ProgrammaInvest_Spesa'!R31) -> 0 | S31: =IF('Z0.4.a ProgrammaInvest_Spesa'!S31="","",'Z0.4.a ProgrammaInvest_Spesa'!S31) -> 0 | AF31: 20
B32: x | C32: =IF('Z0.4.a ProgrammaInvest_Spesa'!C32="","",'Z0.4.a ProgrammaInvest_Spesa'!C32) ->  | D32: =IF('Z0.4.a ProgrammaInvest_Spesa'!D32="","",'Z0.4.a ProgrammaInvest_Spesa'!D32) ->  | E32: =IF('Z0.4.a ProgrammaInvest_Spesa'!E32="","",'Z0.4.a ProgrammaInvest_Spesa'!E32) ->  | F32: =IF('Z0.4.a ProgrammaInvest_Spesa'!F32="","",'Z0.4.a ProgrammaInvest_Spesa'!F32) -> 14 | G32: =IF('Z0.4.a ProgrammaInvest_Spesa'!G32="","",'Z0.4.a ProgrammaInvest_Spesa'!G32) -> Intervento 12 | H32: =IF('Z0.4.a ProgrammaInvest_Spesa'!H32="","",'Z0.4.a ProgrammaInvest_Spesa'!H32) -> SIVCA 12 | I32: =IF('Z0.4.a ProgrammaInvest_Spesa'!I32="","",'Z0.4.a ProgrammaInvest_Spesa'!I32) ->  | J32: =IF('Z0.4.a ProgrammaInvest_Spesa'!J32="","",'Z0.4.a ProgrammaInvest_Spesa'!J32) ->  | K32: =IF('Z0.4.a ProgrammaInvest_Spesa'!K32="","",'Z0.4.a ProgrammaInvest_Spesa'!K32) -> Altro | L32: =IF('Z0.4.a ProgrammaInvest_Spesa'!L32="","",'Z0.4.a ProgrammaInvest_Spesa'!L32) -> in corso | M32: =IF('Z0.4.a ProgrammaInvest_Spesa'!M32="","",'Z0.4.a ProgrammaInvest_Spesa'!M32) -> CIN post2026 | N32: =IF('Z0.4.a ProgrammaInvest_Spesa'!N32="","",'Z0.4.a ProgrammaInvest_Spesa'!N32) ->  | O32: =IF('Z0.4.a ProgrammaInvest_Spesa'!O32="","",'Z0.4.a ProgrammaInvest_Spesa'!O32) -> Vite utili 1 | P32: =IF('Z0.4.a ProgrammaInvest_Spesa'!P32="","",'Z0.4.a ProgrammaInvest_Spesa'!P32) -> 2037 | Q32: =IF('Z0.4.a ProgrammaInvest_Spesa'!Q32="","",'Z0.4.a ProgrammaInvest_Spesa'!Q32) -> 200 | R32: =IF('Z0.4.a ProgrammaInvest_Spesa'!R32="","",'Z0.4.a ProgrammaInvest_Spesa'!R32) -> 0 | S32: =IF('Z0.4.a ProgrammaInvest_Spesa'!S32="","",'Z0.4.a ProgrammaInvest_Spesa'!S32) -> 0 | AG32: 20
B33: x | C33: =IF('Z0.4.a ProgrammaInvest_Spesa'!C33="","",'Z0.4.a ProgrammaInvest_Spesa'!C33) ->  | D33: =IF('Z0.4.a ProgrammaInvest_Spesa'!D33="","",'Z0.4.a ProgrammaInvest_Spesa'!D33) ->  | E33: =IF('Z0.4.a ProgrammaInvest_Spesa'!E33="","",'Z0.4.a ProgrammaInvest_Spesa'!E33) ->  | F33: =IF('Z0.4.a ProgrammaInvest_Spesa'!F33="","",'Z0.4.a ProgrammaInvest_Spesa'!F33) -> 15 | G33: =IF('Z0.4.a ProgrammaInvest_Spesa'!G33="","",'Z0.4.a ProgrammaInvest_Spesa'!G33) -> Intervento 13 | H33: =IF('Z0.4.a ProgrammaInvest_Spesa'!H33="","",'Z0.4.a ProgrammaInvest_Spesa'!H33) -> SIVCA 13 | I33: =IF('Z0.4.a ProgrammaInvest_Spesa'!I33="","",'Z0.4.a ProgrammaInvest_Spesa'!I33) ->  | J33: =IF('Z0.4.a ProgrammaInvest_Spesa'!J33="","",'Z0.4.a ProgrammaInvest_Spesa'!J33) ->  | K33: =IF('Z0.4.a ProgrammaInvest_Spesa'!K33="","",'Z0.4.a ProgrammaInvest_Spesa'!K33) -> Viadotti/Ponti/Cavalcavia | L33: =IF('Z0.4.a ProgrammaInvest_Spesa'!L33="","",'Z0.4.a ProgrammaInvest_Spesa'!L33) -> in corso | M33: =IF('Z0.4.a ProgrammaInvest_Spesa'!M33="","",'Z0.4.a ProgrammaInvest_Spesa'!M33) -> CIN post2026 | N33: =IF('Z0.4.a ProgrammaInvest_Spesa'!N33="","",'Z0.4.a ProgrammaInvest_Spesa'!N33) ->  | O33: =IF('Z0.4.a ProgrammaInvest_Spesa'!O33="","",'Z0.4.a ProgrammaInvest_Spesa'!O33) -> Vite utili 2 | P33: =IF('Z0.4.a ProgrammaInvest_Spesa'!P33="","",'Z0.4.a ProgrammaInvest_Spesa'!P33) -> 2028 | Q33: =IF('Z0.4.a ProgrammaInvest_Spesa'!Q33="","",'Z0.4.a ProgrammaInvest_Spesa'!Q33) -> 200 | R33: =IF('Z0.4.a ProgrammaInvest_Spesa'!R33="","",'Z0.4.a ProgrammaInvest_Spesa'!R33) -> 0 | S33: =IF('Z0.4.a ProgrammaInvest_Spesa'!S33="","",'Z0.4.a ProgrammaInvest_Spesa'!S33) -> 0 | X33: 20
B34: x | C34: =IF('Z0.4.a ProgrammaInvest_Spesa'!C34="","",'Z0.4.a ProgrammaInvest_Spesa'!C34) ->  | D34: =IF('Z0.4.a ProgrammaInvest_Spesa'!D34="","",'Z0.4.a ProgrammaInvest_Spesa'!D34) ->  | E34: =IF('Z0.4.a ProgrammaInvest_Spesa'!E34="","",'Z0.4.a ProgrammaInvest_Spesa'!E34) ->  | F34: =IF('Z0.4.a ProgrammaInvest_Spesa'!F34="","",'Z0.4.a ProgrammaInvest_Spesa'!F34) -> 16 | G34: =IF('Z0.4.a ProgrammaInvest_Spesa'!G34="","",'Z0.4.a ProgrammaInvest_Spesa'!G34) -> Intervento 14 | H34: =IF('Z0.4.a ProgrammaInvest_Spesa'!H34="","",'Z0.4.a ProgrammaInvest_Spesa'!H34) -> SIVCA 14 | I34: =IF('Z0.4.a ProgrammaInvest_Spesa'!I34="","",'Z0.4.a ProgrammaInvest_Spesa'!I34) ->  | J34: =IF('Z0.4.a ProgrammaInvest_Spesa'!J34="","",'Z0.4.a ProgrammaInvest_Spesa'!J34) ->  | K34: =IF('Z0.4.a ProgrammaInvest_Spesa'!K34="","",'Z0.4.a ProgrammaInvest_Spesa'!K34) -> Gallerie | L34: =IF('Z0.4.a ProgrammaInvest_Spesa'!L34="","",'Z0.4.a ProgrammaInvest_Spesa'!L34) -> in corso | M34: =IF('Z0.4.a ProgrammaInvest_Spesa'!M34="","",'Z0.4.a ProgrammaInvest_Spesa'!M34) -> CIN post2026 | N34: =IF('Z0.4.a ProgrammaInvest_Spesa'!N34="","",'Z0.4.a ProgrammaInvest_Spesa'!N34) ->  | O34: =IF('Z0.4.a ProgrammaInvest_Spesa'!O34="","",'Z0.4.a ProgrammaInvest_Spesa'!O34) -> Vite utili 2 | P34: =IF('Z0.4.a ProgrammaInvest_Spesa'!P34="","",'Z0.4.a ProgrammaInvest_Spesa'!P34) -> 2029 | Q34: =IF('Z0.4.a ProgrammaInvest_Spesa'!Q34="","",'Z0.4.a ProgrammaInvest_Spesa'!Q34) -> 200 | R34: =IF('Z0.4.a ProgrammaInvest_Spesa'!R34="","",'Z0.4.a ProgrammaInvest_Spesa'!R34) -> 0 | S34: =IF('Z0.4.a ProgrammaInvest_Spesa'!S34="","",'Z0.4.a ProgrammaInvest_Spesa'!S34) -> 0 | Y34: 20
B35: x | C35: =IF('Z0.4.a ProgrammaInvest_Spesa'!C35="","",'Z0.4.a ProgrammaInvest_Spesa'!C35) ->  | D35: =IF('Z0.4.a ProgrammaInvest_Spesa'!D35="","",'Z0.4.a ProgrammaInvest_Spesa'!D35) ->  | E35: =IF('Z0.4.a ProgrammaInvest_Spesa'!E35="","",'Z0.4.a ProgrammaInvest_Spesa'!E35) ->  | F35: =IF('Z0.4.a ProgrammaInvest_Spesa'!F35="","",'Z0.4.a ProgrammaInvest_Spesa'!F35) -> 17 | G35: =IF('Z0.4.a ProgrammaInvest_Spesa'!G35="","",'Z0.4.a ProgrammaInvest_Spesa'!G35) -> Intervento 15 | H35: =IF('Z0.4.a ProgrammaInvest_Spesa'!H35="","",'Z0.4.a ProgrammaInvest_Spesa'!H35) -> SIVCA 15 | I35: =IF('Z0.4.a ProgrammaInvest_Spesa'!I35="","",'Z0.4.a ProgrammaInvest_Spesa'!I35) ->  | J35: =IF('Z0.4.a ProgrammaInvest_Spesa'!J35="","",'Z0.4.a ProgrammaInvest_Spesa'!J35) ->  | K35: =IF('Z0.4.a ProgrammaInvest_Spesa'!K35="","",'Z0.4.a ProgrammaInvest_Spesa'!K35) -> Barriere | L35: =IF('Z0.4.a ProgrammaInvest_Spesa'!L35="","",'Z0.4.a ProgrammaInvest_Spesa'!L35) -> in corso | M35: =IF('Z0.4.a ProgrammaInvest_Spesa'!M35="","",'Z0.4.a ProgrammaInvest_Spesa'!M35) -> CIN post2026 | N35: =IF('Z0.4.a ProgrammaInvest_Spesa'!N35="","",'Z0.4.a ProgrammaInvest_Spesa'!N35) ->  | O35: =IF('Z0.4.a ProgrammaInvest_Spesa'!O35="","",'Z0.4.a ProgrammaInvest_Spesa'!O35) -> Vite utili 2 | P35: =IF('Z0.4.a ProgrammaInvest_Spesa'!P35="","",'Z0.4.a ProgrammaInvest_Spesa'!P35) -> 2030 | Q35: =IF('Z0.4.a ProgrammaInvest_Spesa'!Q35="","",'Z0.4.a ProgrammaInvest_Spesa'!Q35) -> 200 | R35: =IF('Z0.4.a ProgrammaInvest_Spesa'!R35="","",'Z0.4.a ProgrammaInvest_Spesa'!R35) -> 0 | S35: =IF('Z0.4.a ProgrammaInvest_Spesa'!S35="","",'Z0.4.a ProgrammaInvest_Spesa'!S35) -> 0 | Z35: 20
B36: x | C36: =IF('Z0.4.a ProgrammaInvest_Spesa'!C36="","",'Z0.4.a ProgrammaInvest_Spesa'!C36) ->  | D36: =IF('Z0.4.a ProgrammaInvest_Spesa'!D36="","",'Z0.4.a ProgrammaInvest_Spesa'!D36) ->  | E36: =IF('Z0.4.a ProgrammaInvest_Spesa'!E36="","",'Z0.4.a ProgrammaInvest_Spesa'!E36) ->  | F36: =IF('Z0.4.a ProgrammaInvest_Spesa'!F36="","",'Z0.4.a ProgrammaInvest_Spesa'!F36) -> 18 | G36: =IF('Z0.4.a ProgrammaInvest_Spesa'!G36="","",'Z0.4.a ProgrammaInvest_Spesa'!G36) -> Intervento 16 | H36: =IF('Z0.4.a ProgrammaInvest_Spesa'!H36="","",'Z0.4.a ProgrammaInvest_Spesa'!H36) -> SIVCA 16 | I36: =IF('Z0.4.a ProgrammaInvest_Spesa'!I36="","",'Z0.4.a ProgrammaInvest_Spesa'!I36) ->  | J36: =IF('Z0.4.a ProgrammaInvest_Spesa'!J36="","",'Z0.4.a ProgrammaInvest_Spesa'!J36) ->  | K36: =IF('Z0.4.a ProgrammaInvest_Spesa'!K36="","",'Z0.4.a ProgrammaInvest_Spesa'!K36) -> Corpo autostradale, opere sul territorio | L36: =IF('Z0.4.a ProgrammaInvest_Spesa'!L36="","",'Z0.4.a ProgrammaInvest_Spesa'!L36) -> in corso | M36: =IF('Z0.4.a ProgrammaInvest_Spesa'!M36="","",'Z0.4.a ProgrammaInvest_Spesa'!M36) -> CIN post2026 | N36: =IF('Z0.4.a ProgrammaInvest_Spesa'!N36="","",'Z0.4.a ProgrammaInvest_Spesa'!N36) ->  | O36: =IF('Z0.4.a ProgrammaInvest_Spesa'!O36="","",'Z0.4.a ProgrammaInvest_Spesa'!O36) -> Vite utili 2 | P36: =IF('Z0.4.a ProgrammaInvest_Spesa'!P36="","",'Z0.4.a ProgrammaInvest_Spesa'!P36) -> 2031 | Q36: =IF('Z0.4.a ProgrammaInvest_Spesa'!Q36="","",'Z0.4.a ProgrammaInvest_Spesa'!Q36) -> 200 | R36: =IF('Z0.4.a ProgrammaInvest_Spesa'!R36="","",'Z0.4.a ProgrammaInvest_Spesa'!R36) -> 0 | S36: =IF('Z0.4.a ProgrammaInvest_Spesa'!S36="","",'Z0.4.a ProgrammaInvest_Spesa'!S36) -> 0 | AA36: 20
B37: x | C37: =IF('Z0.4.a ProgrammaInvest_Spesa'!C37="","",'Z0.4.a ProgrammaInvest_Spesa'!C37) ->  | D37: =IF('Z0.4.a ProgrammaInvest_Spesa'!D37="","",'Z0.4.a ProgrammaInvest_Spesa'!D37) ->  | E37: =IF('Z0.4.a ProgrammaInvest_Spesa'!E37="","",'Z0.4.a ProgrammaInvest_Spesa'!E37) ->  | F37: =IF('Z0.4.a ProgrammaInvest_Spesa'!F37="","",'Z0.4.a ProgrammaInvest_Spesa'!F37) -> 19 | G37: =IF('Z0.4.a ProgrammaInvest_Spesa'!G37="","",'Z0.4.a ProgrammaInvest_Spesa'!G37) -> Intervento 17 | H37: =IF('Z0.4.a ProgrammaInvest_Spesa'!H37="","",'Z0.4.a ProgrammaInvest_Spesa'!H37) -> SIVCA 17 | I37: =IF('Z0.4.a ProgrammaInvest_Spesa'!I37="","",'Z0.4.a ProgrammaInvest_Spesa'!I37) ->  | J37: =IF('Z0.4.a ProgrammaInvest_Spesa'!J37="","",'Z0.4.a ProgrammaInvest_Spesa'!J37) ->  | K37: =IF('Z0.4.a ProgrammaInvest_Spesa'!K37="","",'Z0.4.a ProgrammaInvest_Spesa'!K37) -> Reti recinzione | L37: =IF('Z0.4.a ProgrammaInvest_Spesa'!L37="","",'Z0.4.a ProgrammaInvest_Spesa'!L37) -> in corso | M37: =IF('Z0.4.a ProgrammaInvest_Spesa'!M37="","",'Z0.4.a ProgrammaInvest_Spesa'!M37) -> CIN post2026 | N37: =IF('Z0.4.a ProgrammaInvest_Spesa'!N37="","",'Z0.4.a ProgrammaInvest_Spesa'!N37) ->  | O37: =IF('Z0.4.a ProgrammaInvest_Spesa'!O37="","",'Z0.4.a ProgrammaInvest_Spesa'!O37) -> Vite utili 2 | P37: =IF('Z0.4.a ProgrammaInvest_Spesa'!P37="","",'Z0.4.a ProgrammaInvest_Spesa'!P37) -> 2032 | Q37: =IF('Z0.4.a ProgrammaInvest_Spesa'!Q37="","",'Z0.4.a ProgrammaInvest_Spesa'!Q37) -> 200 | R37: =IF('Z0.4.a ProgrammaInvest_Spesa'!R37="","",'Z0.4.a ProgrammaInvest_Spesa'!R37) -> 0 | S37: =IF('Z0.4.a ProgrammaInvest_Spesa'!S37="","",'Z0.4.a ProgrammaInvest_Spesa'!S37) -> 0 | AB37: 20
B38: x | C38: =IF('Z0.4.a ProgrammaInvest_Spesa'!C38="","",'Z0.4.a ProgrammaInvest_Spesa'!C38) ->  | D38: =IF('Z0.4.a ProgrammaInvest_Spesa'!D38="","",'Z0.4.a ProgrammaInvest_Spesa'!D38) ->  | E38: =IF('Z0.4.a ProgrammaInvest_Spesa'!E38="","",'Z0.4.a ProgrammaInvest_Spesa'!E38) ->  | F38: =IF('Z0.4.a ProgrammaInvest_Spesa'!F38="","",'Z0.4.a ProgrammaInvest_Spesa'!F38) -> 20 | G38: =IF('Z0.4.a ProgrammaInvest_Spesa'!G38="","",'Z0.4.a ProgrammaInvest_Spesa'!G38) -> Intervento 18 | H38: =IF('Z0.4.a ProgrammaInvest_Spesa'!H38="","",'Z0.4.a ProgrammaInvest_Spesa'!H38) -> SIVCA 18 | I38: =IF('Z0.4.a ProgrammaInvest_Spesa'!I38="","",'Z0.4.a ProgrammaInvest_Spesa'!I38) ->  | J38: =IF('Z0.4.a ProgrammaInvest_Spesa'!J38="","",'Z0.4.a ProgrammaInvest_Spesa'!J38) ->  | K38: =IF('Z0.4.a ProgrammaInvest_Spesa'!K38="","",'Z0.4.a ProgrammaInvest_Spesa'!K38) -> Portali e segnaletica | L38: =IF('Z0.4.a ProgrammaInvest_Spesa'!L38="","",'Z0.4.a ProgrammaInvest_Spesa'!L38) -> in corso | M38: =IF('Z0.4.a ProgrammaInvest_Spesa'!M38="","",'Z0.4.a ProgrammaInvest_Spesa'!M38) -> CIN post2026 | N38: =IF('Z0.4.a ProgrammaInvest_Spesa'!N38="","",'Z0.4.a ProgrammaInvest_Spesa'!N38) ->  | O38: =IF('Z0.4.a ProgrammaInvest_Spesa'!O38="","",'Z0.4.a ProgrammaInvest_Spesa'!O38) -> Vite utili 2 | P38: =IF('Z0.4.a ProgrammaInvest_Spesa'!P38="","",'Z0.4.a ProgrammaInvest_Spesa'!P38) -> 2033 | Q38: =IF('Z0.4.a ProgrammaInvest_Spesa'!Q38="","",'Z0.4.a ProgrammaInvest_Spesa'!Q38) -> 200 | R38: =IF('Z0.4.a ProgrammaInvest_Spesa'!R38="","",'Z0.4.a ProgrammaInvest_Spesa'!R38) -> 0 | S38: =IF('Z0.4.a ProgrammaInvest_Spesa'!S38="","",'Z0.4.a ProgrammaInvest_Spesa'!S38) -> 0 | AC38: 20
B39: x | C39: =IF('Z0.4.a ProgrammaInvest_Spesa'!C39="","",'Z0.4.a ProgrammaInvest_Spesa'!C39) ->  | D39: =IF('Z0.4.a ProgrammaInvest_Spesa'!D39="","",'Z0.4.a ProgrammaInvest_Spesa'!D39) ->  | E39: =IF('Z0.4.a ProgrammaInvest_Spesa'!E39="","",'Z0.4.a ProgrammaInvest_Spesa'!E39) ->  | F39: =IF('Z0.4.a ProgrammaInvest_Spesa'!F39="","",'Z0.4.a ProgrammaInvest_Spesa'!F39) -> 21 | G39: =IF('Z0.4.a ProgrammaInvest_Spesa'!G39="","",'Z0.4.a ProgrammaInvest_Spesa'!G39) -> Intervento 19 | H39: =IF('Z0.4.a ProgrammaInvest_Spesa'!H39="","",'Z0.4.a ProgrammaInvest_Spesa'!H39) -> SIVCA 19 | I39: =IF('Z0.4.a ProgrammaInvest_Spesa'!I39="","",'Z0.4.a ProgrammaInvest_Spesa'!I39) ->  | J39: =IF('Z0.4.a ProgrammaInvest_Spesa'!J39="","",'Z0.4.a ProgrammaInvest_Spesa'!J39) ->  | K39: =IF('Z0.4.a ProgrammaInvest_Spesa'!K39="","",'Z0.4.a ProgrammaInvest_Spesa'!K39) -> Pavimentazioni | L39: =IF('Z0.4.a ProgrammaInvest_Spesa'!L39="","",'Z0.4.a ProgrammaInvest_Spesa'!L39) -> in corso | M39: =IF('Z0.4.a ProgrammaInvest_Spesa'!M39="","",'Z0.4.a ProgrammaInvest_Spesa'!M39) -> CIN post2026 | N39: =IF('Z0.4.a ProgrammaInvest_Spesa'!N39="","",'Z0.4.a ProgrammaInvest_Spesa'!N39) ->  | O39: =IF('Z0.4.a ProgrammaInvest_Spesa'!O39="","",'Z0.4.a ProgrammaInvest_Spesa'!O39) -> Vite utili 2 | P39: =IF('Z0.4.a ProgrammaInvest_Spesa'!P39="","",'Z0.4.a ProgrammaInvest_Spesa'!P39) -> 2034 | Q39: =IF('Z0.4.a ProgrammaInvest_Spesa'!Q39="","",'Z0.4.a ProgrammaInvest_Spesa'!Q39) -> 200 | R39: =IF('Z0.4.a ProgrammaInvest_Spesa'!R39="","",'Z0.4.a ProgrammaInvest_Spesa'!R39) -> 0 | S39: =IF('Z0.4.a ProgrammaInvest_Spesa'!S39="","",'Z0.4.a ProgrammaInvest_Spesa'!S39) -> 0 | AD39: 20
B40: x | C40: =IF('Z0.4.a ProgrammaInvest_Spesa'!C40="","",'Z0.4.a ProgrammaInvest_Spesa'!C40) ->  | D40: =IF('Z0.4.a ProgrammaInvest_Spesa'!D40="","",'Z0.4.a ProgrammaInvest_Spesa'!D40) ->  | E40: =IF('Z0.4.a ProgrammaInvest_Spesa'!E40="","",'Z0.4.a ProgrammaInvest_Spesa'!E40) ->  | F40: =IF('Z0.4.a ProgrammaInvest_Spesa'!F40="","",'Z0.4.a ProgrammaInvest_Spesa'!F40) -> 22 | G40: =IF('Z0.4.a ProgrammaInvest_Spesa'!G40="","",'Z0.4.a ProgrammaInvest_Spesa'!G40) -> Intervento 20 | H40: =IF('Z0.4.a ProgrammaInvest_Spesa'!H40="","",'Z0.4.a ProgrammaInvest_Spesa'!H40) -> SIVCA 20 | I40: =IF('Z0.4.a ProgrammaInvest_Spesa'!I40="","",'Z0.4.a ProgrammaInvest_Spesa'!I40) ->  | J40: =IF('Z0.4.a ProgrammaInvest_Spesa'!J40="","",'Z0.4.a ProgrammaInvest_Spesa'!J40) ->  | K40: =IF('Z0.4.a ProgrammaInvest_Spesa'!K40="","",'Z0.4.a ProgrammaInvest_Spesa'!K40) -> Infrastrutture tecnologiche ed impianti | L40: =IF('Z0.4.a ProgrammaInvest_Spesa'!L40="","",'Z0.4.a ProgrammaInvest_Spesa'!L40) -> in corso | M40: =IF('Z0.4.a ProgrammaInvest_Spesa'!M40="","",'Z0.4.a ProgrammaInvest_Spesa'!M40) -> CIN post2026 | N40: =IF('Z0.4.a ProgrammaInvest_Spesa'!N40="","",'Z0.4.a ProgrammaInvest_Spesa'!N40) ->  | O40: =IF('Z0.4.a ProgrammaInvest_Spesa'!O40="","",'Z0.4.a ProgrammaInvest_Spesa'!O40) -> Vite utili 2 | P40: =IF('Z0.4.a ProgrammaInvest_Spesa'!P40="","",'Z0.4.a ProgrammaInvest_Spesa'!P40) -> 2035 | Q40: =IF('Z0.4.a ProgrammaInvest_Spesa'!Q40="","",'Z0.4.a ProgrammaInvest_Spesa'!Q40) -> 200 | R40: =IF('Z0.4.a ProgrammaInvest_Spesa'!R40="","",'Z0.4.a ProgrammaInvest_Spesa'!R40) -> 0 | S40: =IF('Z0.4.a ProgrammaInvest_Spesa'!S40="","",'Z0.4.a ProgrammaInvest_Spesa'!S40) -> 0 | AE40: 20
B41: x | C41: =IF('Z0.4.a ProgrammaInvest_Spesa'!C41="","",'Z0.4.a ProgrammaInvest_Spesa'!C41) ->  | D41: =IF('Z0.4.a ProgrammaInvest_Spesa'!D41="","",'Z0.4.a ProgrammaInvest_Spesa'!D41) ->  | E41: =IF('Z0.4.a ProgrammaInvest_Spesa'!E41="","",'Z0.4.a ProgrammaInvest_Spesa'!E41) ->  | F41: =IF('Z0.4.a ProgrammaInvest_Spesa'!F41="","",'Z0.4.a ProgrammaInvest_Spesa'!F41) -> 23 | G41: =IF('Z0.4.a ProgrammaInvest_Spesa'!G41="","",'Z0.4.a ProgrammaInvest_Spesa'!G41) -> Intervento 21 | H41: =IF('Z0.4.a ProgrammaInvest_Spesa'!H41="","",'Z0.4.a ProgrammaInvest_Spesa'!H41) -> SIVCA 21 | I41: =IF('Z0.4.a ProgrammaInvest_Spesa'!I41="","",'Z0.4.a ProgrammaInvest_Spesa'!I41) ->  | J41: =IF('Z0.4.a ProgrammaInvest_Spesa'!J41="","",'Z0.4.a ProgrammaInvest_Spesa'!J41) ->  | K41: =IF('Z0.4.a ProgrammaInvest_Spesa'!K41="","",'Z0.4.a ProgrammaInvest_Spesa'!K41) -> Stazioni/Barriere di esazione, fabbricati, aree di servizio | L41: =IF('Z0.4.a ProgrammaInvest_Spesa'!L41="","",'Z0.4.a ProgrammaInvest_Spesa'!L41) -> in corso | M41: =IF('Z0.4.a ProgrammaInvest_Spesa'!M41="","",'Z0.4.a ProgrammaInvest_Spesa'!M41) -> CIN post2026 | N41: =IF('Z0.4.a ProgrammaInvest_Spesa'!N41="","",'Z0.4.a ProgrammaInvest_Spesa'!N41) ->  | O41: =IF('Z0.4.a ProgrammaInvest_Spesa'!O41="","",'Z0.4.a ProgrammaInvest_Spesa'!O41) -> Vite utili 2 | P41: =IF('Z0.4.a ProgrammaInvest_Spesa'!P41="","",'Z0.4.a ProgrammaInvest_Spesa'!P41) -> 2036 | Q41: =IF('Z0.4.a ProgrammaInvest_Spesa'!Q41="","",'Z0.4.a ProgrammaInvest_Spesa'!Q41) -> 200 | R41: =IF('Z0.4.a ProgrammaInvest_Spesa'!R41="","",'Z0.4.a ProgrammaInvest_Spesa'!R41) -> 0 | S41: =IF('Z0.4.a ProgrammaInvest_Spesa'!S41="","",'Z0.4.a ProgrammaInvest_Spesa'!S41) -> 0 | AF41: 20
B42: x | C42: =IF('Z0.4.a ProgrammaInvest_Spesa'!C42="","",'Z0.4.a ProgrammaInvest_Spesa'!C42) ->  | D42: =IF('Z0.4.a ProgrammaInvest_Spesa'!D42="","",'Z0.4.a ProgrammaInvest_Spesa'!D42) ->  | E42: =IF('Z0.4.a ProgrammaInvest_Spesa'!E42="","",'Z0.4.a ProgrammaInvest_Spesa'!E42) ->  | F42: =IF('Z0.4.a ProgrammaInvest_Spesa'!F42="","",'Z0.4.a ProgrammaInvest_Spesa'!F42) -> 24 | G42: =IF('Z0.4.a ProgrammaInvest_Spesa'!G42="","",'Z0.4.a ProgrammaInvest_Spesa'!G42) -> Intervento 22 | H42: =IF('Z0.4.a ProgrammaInvest_Spesa'!H42="","",'Z0.4.a ProgrammaInvest_Spesa'!H42) -> SIVCA 22 | I42: =IF('Z0.4.a ProgrammaInvest_Spesa'!I42="","",'Z0.4.a ProgrammaInvest_Spesa'!I42) ->  | J42: =IF('Z0.4.a ProgrammaInvest_Spesa'!J42="","",'Z0.4.a ProgrammaInvest_Spesa'!J42) ->  | K42: =IF('Z0.4.a ProgrammaInvest_Spesa'!K42="","",'Z0.4.a ProgrammaInvest_Spesa'!K42) -> Altro | L42: =IF('Z0.4.a ProgrammaInvest_Spesa'!L42="","",'Z0.4.a ProgrammaInvest_Spesa'!L42) -> in corso | M42: =IF('Z0.4.a ProgrammaInvest_Spesa'!M42="","",'Z0.4.a ProgrammaInvest_Spesa'!M42) -> CIN post2026 | N42: =IF('Z0.4.a ProgrammaInvest_Spesa'!N42="","",'Z0.4.a ProgrammaInvest_Spesa'!N42) ->  | O42: =IF('Z0.4.a ProgrammaInvest_Spesa'!O42="","",'Z0.4.a ProgrammaInvest_Spesa'!O42) -> Vite utili 2 | P42: =IF('Z0.4.a ProgrammaInvest_Spesa'!P42="","",'Z0.4.a ProgrammaInvest_Spesa'!P42) -> 2037 | Q42: =IF('Z0.4.a ProgrammaInvest_Spesa'!Q42="","",'Z0.4.a ProgrammaInvest_Spesa'!Q42) -> 200 | R42: =IF('Z0.4.a ProgrammaInvest_Spesa'!R42="","",'Z0.4.a ProgrammaInvest_Spesa'!R42) -> 0 | S42: =IF('Z0.4.a ProgrammaInvest_Spesa'!S42="","",'Z0.4.a ProgrammaInvest_Spesa'!S42) -> 0 | AG42: 20

Sheet Z0.4.c ProgrammaInvest_Dismiss
C2: Programma degli Investimenti (3/6) - da ultimo aggiornamento approvato
R4: Anno | U4: 2024 | V4: 2025 | W4: 2026 | X4: 2027 | Y4: 2028 | Z4: 2029 | AA4: 2030 | AB4: 2031 | AC4: 2032 | AD4: 2033 | AE4: 2034 | AF4: 2035 | AG4: 2036 | AH4: 2037 | AI4: 2038
R6: Anno base | U6: 1 | V6: 0 | W6: 0 | X6: 0 | Y6: 1 | Z6: 0 | AA6: 0 | AB6: 0 | AC6: 0 | AD6: 1 | AE6: 0 | AF6: 0 | AG6: 0 | AH6: 0 | AI6: 0
R7: Anno ponte | U7: 0 | V7: 1 | W7: 0 | X7: 0 | Y7: 0 | Z7: 1 | AA7: 0 | AB7: 0 | AC7: 0 | AD7: 0 | AE7: 1 | AF7: 0 | AG7: 0 | AH7: 0 | AI7: 0
R8: Periodo regolatorio | U8: 0 | V8: 0 | W8: 1 | X8: 1 | Y8: 1 | Z8: 1 | AA8: 2 | AB8: 2 | AC8: 2 | AD8: 2 | AE8: 2 | AF8: 3 | AG8: 3 | AH8: 3 | AI8: 3
R9: Anno del periodo regolatorio | U9: 0 | V9: 0 | W9: 1 | X9: 2 | Y9: 3 | Z9: 4 | AA9: 1 | AB9: 2 | AC9: 3 | AD9: 4 | AE9: 5 | AF9: 1 | AG9: 2 | AH9: 3 | AI9: 4
R10: Frazione di anno significativa | W10: 1 | X10: 1 | Y10: 1 | Z10: 1 | AA10: 1 | AB10: 1 | AC10: 1 | AD10: 1 | AE10: 1 | AF10: 1 | AG10: 1 | AH10: 1 | AI10: 1
V12: Ultimo adattamento schema: 03/11/2025 14:32:38
C14: Programmazione ammissibile in tariffa: Importo annuo eventuali dismissioni
C15: Tabella da alimentare solo con spese per beni reversibili, autorizzati e ammissibili in tariffa
C17: Atto convenzionale di riferimento | D17: Rif. macro intervento | E17: Rif. lett. art. | F17: Codice univoco intervento | G17: Descrizione intervento | H17: Codice SIVCA | I17: Tratta autostradale da convenzione | J17: Macro tipologia intervento | K17: Tipologia intervento | L17: Stato lavori | M17: Tipologia CIN | N17: Stati di avanzamento CIN ante | O17: Criterio di ammortamento | P17: Data presunta entrata in esercizio (anno) | Q17: Spesa programmata totale | R17: Contributo a fondo perduto | S17: Eventuali dismissioni | V17: ="Dismissioni " & V4 -> Dismissioni 2025 | W17: Dismissioni 2026 | X17: ="Dismissioni " & X4 -> Dismissioni 2027 | Y17: Dismissioni 2028 | Z17: Dismissioni 2029 | AA17: Dismissioni 2030 | AB17: Dismissioni 2031 | AC17: Dismissioni 2032 | AD17: Dismissioni 2033 | AE17: Dismissioni 2034 | AF17: Dismissioni 2035 | AG17: Dismissioni 2036 | AH17: Dismissioni 2037 | AI17: Dismissioni 2038
B19: x | C19: =IF('Z0.4.a ProgrammaInvest_Spesa'!C19="","",'Z0.4.a ProgrammaInvest_Spesa'!C19) ->  | D19: =IF('Z0.4.a ProgrammaInvest_Spesa'!D19="","",'Z0.4.a ProgrammaInvest_Spesa'!D19) ->  | E19: =IF('Z0.4.a ProgrammaInvest_Spesa'!E19="","",'Z0.4.a ProgrammaInvest_Spesa'!E19) ->  | F19: =IF('Z0.4.a ProgrammaInvest_Spesa'!F19="","",'Z0.4.a ProgrammaInvest_Spesa'!F19) -> 1 | G19: =IF('Z0.4.a ProgrammaInvest_Spesa'!G19="","",'Z0.4.a ProgrammaInvest_Spesa'!G19) -> Intervento 1 | H19: =IF('Z0.4.a ProgrammaInvest_Spesa'!H19="","",'Z0.4.a ProgrammaInvest_Spesa'!H19) -> SIVCA 1 | I19: =IF('Z0.4.a ProgrammaInvest_Spesa'!I19="","",'Z0.4.a ProgrammaInvest_Spesa'!I19) ->  | J19: =IF('Z0.4.a ProgrammaInvest_Spesa'!J19="","",'Z0.4.a ProgrammaInvest_Spesa'!J19) ->  | K19: =IF('Z0.4.a ProgrammaInvest_Spesa'!K19="","",'Z0.4.a ProgrammaInvest_Spesa'!K19) -> (assoggettata ad ammortamento finanziario) | L19: =IF('Z0.4.a ProgrammaInvest_Spesa'!L19="","",'Z0.4.a ProgrammaInvest_Spesa'!L19) -> in corso | M19: =IF('Z0.4.a ProgrammaInvest_Spesa'!M19="","",'Z0.4.a ProgrammaInvest_Spesa'!M19) -> CIN ante | N19: =IF('Z0.4.a ProgrammaInvest_Spesa'!N19="","",'Z0.4.a ProgrammaInvest_Spesa'!N19) -> SAL contabilizzati | O19: =IF('Z0.4.a ProgrammaInvest_Spesa'!O19="","",'Z0.4.a ProgrammaInvest_Spesa'!O19) -> Finanziario | P19: =IF('Z0.4.a ProgrammaInvest_Spesa'!P19="","",'Z0.4.a ProgrammaInvest_Spesa'!P19) ->  | Q19: =IF('Z0.4.a ProgrammaInvest_Spesa'!Q19="","",'Z0.4.a ProgrammaInvest_Spesa'!Q19) -> 0 | R19: =IF('Z0.4.a ProgrammaInvest_Spesa'!R19="","",'Z0.4.a ProgrammaInvest_Spesa'!R19) -> 2000 | S19: =IF('Z0.4.a ProgrammaInvest_Spesa'!S19="","",'Z0.4.a ProgrammaInvest_Spesa'!S19) -> 20 | AH19: 20
B20: x | C20: =IF('Z0.4.a ProgrammaInvest_Spesa'!C20="","",'Z0.4.a ProgrammaInvest_Spesa'!C20) ->  | D20: =IF('Z0.4.a ProgrammaInvest_Spesa'!D20="","",'Z0.4.a ProgrammaInvest_Spesa'!D20) ->  | E20: =IF('Z0.4.a ProgrammaInvest_Spesa'!E20="","",'Z0.4.a ProgrammaInvest_Spesa'!E20) ->  | F20: =IF('Z0.4.a ProgrammaInvest_Spesa'!F20="","",'Z0.4.a ProgrammaInvest_Spesa'!F20) -> 2 | G20: =IF('Z0.4.a ProgrammaInvest_Spesa'!G20="","",'Z0.4.a ProgrammaInvest_Spesa'!G20) -> Intervento 2 | H20: =IF('Z0.4.a ProgrammaInvest_Spesa'!H20="","",'Z0.4.a ProgrammaInvest_Spesa'!H20) -> SIVCA 2 | I20: =IF('Z0.4.a ProgrammaInvest_Spesa'!I20="","",'Z0.4.a ProgrammaInvest_Spesa'!I20) ->  | J20: =IF('Z0.4.a ProgrammaInvest_Spesa'!J20="","",'Z0.4.a ProgrammaInvest_Spesa'!J20) ->  | K20: =IF('Z0.4.a ProgrammaInvest_Spesa'!K20="","",'Z0.4.a ProgrammaInvest_Spesa'!K20) -> (assoggettata ad ammortamento finanziario) | L20: =IF('Z0.4.a ProgrammaInvest_Spesa'!L20="","",'Z0.4.a ProgrammaInvest_Spesa'!L20) -> in corso | M20: =IF('Z0.4.a ProgrammaInvest_Spesa'!M20="","",'Z0.4.a ProgrammaInvest_Spesa'!M20) -> CIN ante | N20: =IF('Z0.4.a ProgrammaInvest_Spesa'!N20="","",'Z0.4.a ProgrammaInvest_Spesa'!N20) -> SAL da contabilizzare | O20: =IF('Z0.4.a ProgrammaInvest_Spesa'!O20="","",'Z0.4.a ProgrammaInvest_Spesa'!O20) -> Finanziario | P20: =IF('Z0.4.a ProgrammaInvest_Spesa'!P20="","",'Z0.4.a ProgrammaInvest_Spesa'!P20) ->  | Q20: =IF('Z0.4.a ProgrammaInvest_Spesa'!Q20="","",'Z0.4.a ProgrammaInvest_Spesa'!Q20) -> 20000 | R20: =IF('Z0.4.a ProgrammaInvest_Spesa'!R20="","",'Z0.4.a ProgrammaInvest_Spesa'!R20) -> 1000 | S20: =IF('Z0.4.a ProgrammaInvest_Spesa'!S20="","",'Z0.4.a ProgrammaInvest_Spesa'!S20) -> 20 | AH20: 20
B21: x | C21: =IF('Z0.4.a ProgrammaInvest_Spesa'!C21="","",'Z0.4.a ProgrammaInvest_Spesa'!C21) ->  | D21: =IF('Z0.4.a ProgrammaInvest_Spesa'!D21="","",'Z0.4.a ProgrammaInvest_Spesa'!D21) ->  | E21: =IF('Z0.4.a ProgrammaInvest_Spesa'!E21="","",'Z0.4.a ProgrammaInvest_Spesa'!E21) ->  | F21: =IF('Z0.4.a ProgrammaInvest_Spesa'!F21="","",'Z0.4.a ProgrammaInvest_Spesa'!F21) -> 3 | G21: =IF('Z0.4.a ProgrammaInvest_Spesa'!G21="","",'Z0.4.a ProgrammaInvest_Spesa'!G21) -> Intervento 2 | H21: =IF('Z0.4.a ProgrammaInvest_Spesa'!H21="","",'Z0.4.a ProgrammaInvest_Spesa'!H21) -> SIVCA 2 | I21: =IF('Z0.4.a ProgrammaInvest_Spesa'!I21="","",'Z0.4.a ProgrammaInvest_Spesa'!I21) ->  | J21: =IF('Z0.4.a ProgrammaInvest_Spesa'!J21="","",'Z0.4.a ProgrammaInvest_Spesa'!J21) ->  | K21: =IF('Z0.4.a ProgrammaInvest_Spesa'!K21="","",'Z0.4.a ProgrammaInvest_Spesa'!K21) -> (assoggettata ad ammortamento finanziario) | L21: =IF('Z0.4.a ProgrammaInvest_Spesa'!L21="","",'Z0.4.a ProgrammaInvest_Spesa'!L21) -> in corso | M21: =IF('Z0.4.a ProgrammaInvest_Spesa'!M21="","",'Z0.4.a ProgrammaInvest_Spesa'!M21) -> CIN pre2026 | N21: =IF('Z0.4.a ProgrammaInvest_Spesa'!N21="","",'Z0.4.a ProgrammaInvest_Spesa'!N21) ->  | O21: =IF('Z0.4.a ProgrammaInvest_Spesa'!O21="","",'Z0.4.a ProgrammaInvest_Spesa'!O21) -> Finanziario | P21: =IF('Z0.4.a ProgrammaInvest_Spesa'!P21="","",'Z0.4.a ProgrammaInvest_Spesa'!P21) ->  | Q21: =IF('Z0.4.a ProgrammaInvest_Spesa'!Q21="","",'Z0.4.a ProgrammaInvest_Spesa'!Q21) -> 20000 | R21: =IF('Z0.4.a ProgrammaInvest_Spesa'!R21="","",'Z0.4.a ProgrammaInvest_Spesa'!R21) -> 1000 | S21: =IF('Z0.4.a ProgrammaInvest_Spesa'!S21="","",'Z0.4.a ProgrammaInvest_Spesa'!S21) -> 20 | AH21: 20
B22: x | C22: =IF('Z0.4.a ProgrammaInvest_Spesa'!C22="","",'Z0.4.a ProgrammaInvest_Spesa'!C22) ->  | D22: =IF('Z0.4.a ProgrammaInvest_Spesa'!D22="","",'Z0.4.a ProgrammaInvest_Spesa'!D22) ->  | E22: =IF('Z0.4.a ProgrammaInvest_Spesa'!E22="","",'Z0.4.a ProgrammaInvest_Spesa'!E22) ->  | F22: =IF('Z0.4.a ProgrammaInvest_Spesa'!F22="","",'Z0.4.a ProgrammaInvest_Spesa'!F22) -> 4 | G22: =IF('Z0.4.a ProgrammaInvest_Spesa'!G22="","",'Z0.4.a ProgrammaInvest_Spesa'!G22) -> Intervento 2 | H22: =IF('Z0.4.a ProgrammaInvest_Spesa'!H22="","",'Z0.4.a ProgrammaInvest_Spesa'!H22) -> SIVCA 2 | I22: =IF('Z0.4.a ProgrammaInvest_Spesa'!I22="","",'Z0.4.a ProgrammaInvest_Spesa'!I22) ->  | J22: =IF('Z0.4.a ProgrammaInvest_Spesa'!J22="","",'Z0.4.a ProgrammaInvest_Spesa'!J22) ->  | K22: =IF('Z0.4.a ProgrammaInvest_Spesa'!K22="","",'Z0.4.a ProgrammaInvest_Spesa'!K22) -> (assoggettata ad ammortamento finanziario) | L22: =IF('Z0.4.a ProgrammaInvest_Spesa'!L22="","",'Z0.4.a ProgrammaInvest_Spesa'!L22) -> in corso | M22: =IF('Z0.4.a ProgrammaInvest_Spesa'!M22="","",'Z0.4.a ProgrammaInvest_Spesa'!M22) -> CIN post2026 | N22: =IF('Z0.4.a ProgrammaInvest_Spesa'!N22="","",'Z0.4.a ProgrammaInvest_Spesa'!N22) ->  | O22: =IF('Z0.4.a ProgrammaInvest_Spesa'!O22="","",'Z0.4.a ProgrammaInvest_Spesa'!O22) -> Finanziario | P22: =IF('Z0.4.a ProgrammaInvest_Spesa'!P22="","",'Z0.4.a ProgrammaInvest_Spesa'!P22) ->  | Q22: =IF('Z0.4.a ProgrammaInvest_Spesa'!Q22="","",'Z0.4.a ProgrammaInvest_Spesa'!Q22) -> 100000 | R22: =IF('Z0.4.a ProgrammaInvest_Spesa'!R22="","",'Z0.4.a ProgrammaInvest_Spesa'!R22) -> 1000 | S22: =IF('Z0.4.a ProgrammaInvest_Spesa'!S22="","",'Z0.4.a ProgrammaInvest_Spesa'!S22) -> 20 | AH22: 20
B23: x | C23: =IF('Z0.4.a ProgrammaInvest_Spesa'!C23="","",'Z0.4.a ProgrammaInvest_Spesa'!C23) ->  | D23: =IF('Z0.4.a ProgrammaInvest_Spesa'!D23="","",'Z0.4.a ProgrammaInvest_Spesa'!D23) ->  | E23: =IF('Z0.4.a ProgrammaInvest_Spesa'!E23="","",'Z0.4.a ProgrammaInvest_Spesa'!E23) ->  | F23: =IF('Z0.4.a ProgrammaInvest_Spesa'!F23="","",'Z0.4.a ProgrammaInvest_Spesa'!F23) -> 5 | G23: =IF('Z0.4.a ProgrammaInvest_Spesa'!G23="","",'Z0.4.a ProgrammaInvest_Spesa'!G23) -> Intervento 3 | H23: =IF('Z0.4.a ProgrammaInvest_Spesa'!H23="","",'Z0.4.a ProgrammaInvest_Spesa'!H23) -> SIVCA 3 | I23: =IF('Z0.4.a ProgrammaInvest_Spesa'!I23="","",'Z0.4.a ProgrammaInvest_Spesa'!I23) ->  | J23: =IF('Z0.4.a ProgrammaInvest_Spesa'!J23="","",'Z0.4.a ProgrammaInvest_Spesa'!J23) ->  | K23: =IF('Z0.4.a ProgrammaInvest_Spesa'!K23="","",'Z0.4.a ProgrammaInvest_Spesa'!K23) -> Viadotti/Ponti/Cavalcavia | L23: =IF('Z0.4.a ProgrammaInvest_Spesa'!L23="","",'Z0.4.a ProgrammaInvest_Spesa'!L23) -> in corso | M23: =IF('Z0.4.a ProgrammaInvest_Spesa'!M23="","",'Z0.4.a ProgrammaInvest_Spesa'!M23) -> CIN post2026 | N23: =IF('Z0.4.a ProgrammaInvest_Spesa'!N23="","",'Z0.4.a ProgrammaInvest_Spesa'!N23) ->  | O23: =IF('Z0.4.a ProgrammaInvest_Spesa'!O23="","",'Z0.4.a ProgrammaInvest_Spesa'!O23) -> Vite utili 1 | P23: =IF('Z0.4.a ProgrammaInvest_Spesa'!P23="","",'Z0.4.a ProgrammaInvest_Spesa'!P23) -> 2028 | Q23: =IF('Z0.4.a ProgrammaInvest_Spesa'!Q23="","",'Z0.4.a ProgrammaInvest_Spesa'!Q23) -> 200 | R23: =IF('Z0.4.a ProgrammaInvest_Spesa'!R23="","",'Z0.4.a ProgrammaInvest_Spesa'!R23) -> 20 | S23: =IF('Z0.4.a ProgrammaInvest_Spesa'!S23="","",'Z0.4.a ProgrammaInvest_Spesa'!S23) -> 10 | AI23: 10
B24: x | C24: =IF('Z0.4.a ProgrammaInvest_Spesa'!C24="","",'Z0.4.a ProgrammaInvest_Spesa'!C24) ->  | D24: =IF('Z0.4.a ProgrammaInvest_Spesa'!D24="","",'Z0.4.a ProgrammaInvest_Spesa'!D24) ->  | E24: =IF('Z0.4.a ProgrammaInvest_Spesa'!E24="","",'Z0.4.a ProgrammaInvest_Spesa'!E24) ->  | F24: =IF('Z0.4.a ProgrammaInvest_Spesa'!F24="","",'Z0.4.a ProgrammaInvest_Spesa'!F24) -> 6 | G24: =IF('Z0.4.a ProgrammaInvest_Spesa'!G24="","",'Z0.4.a ProgrammaInvest_Spesa'!G24) -> Intervento 4 | H24: =IF('Z0.4.a ProgrammaInvest_Spesa'!H24="","",'Z0.4.a ProgrammaInvest_Spesa'!H24) -> SIVCA 4 | I24: =IF('Z0.4.a ProgrammaInvest_Spesa'!I24="","",'Z0.4.a ProgrammaInvest_Spesa'!I24) ->  | J24: =IF('Z0.4.a ProgrammaInvest_Spesa'!J24="","",'Z0.4.a ProgrammaInvest_Spesa'!J24) ->  | K24: =IF('Z0.4.a ProgrammaInvest_Spesa'!K24="","",'Z0.4.a ProgrammaInvest_Spesa'!K24) -> Gallerie | L24: =IF('Z0.4.a ProgrammaInvest_Spesa'!L24="","",'Z0.4.a ProgrammaInvest_Spesa'!L24) -> in corso | M24: =IF('Z0.4.a ProgrammaInvest_Spesa'!M24="","",'Z0.4.a ProgrammaInvest_Spesa'!M24) -> CIN post2026 | N24: =IF('Z0.4.a ProgrammaInvest_Spesa'!N24="","",'Z0.4.a ProgrammaInvest_Spesa'!N24) ->  | O24: =IF('Z0.4.a ProgrammaInvest_Spesa'!O24="","",'Z0.4.a ProgrammaInvest_Spesa'!O24) -> Vite utili 1 | P24: =IF('Z0.4.a ProgrammaInvest_Spesa'!P24="","",'Z0.4.a ProgrammaInvest_Spesa'!P24) -> 2029 | Q24: =IF('Z0.4.a ProgrammaInvest_Spesa'!Q24="","",'Z0.4.a ProgrammaInvest_Spesa'!Q24) -> 200 | R24: =IF('Z0.4.a ProgrammaInvest_Spesa'!R24="","",'Z0.4.a ProgrammaInvest_Spesa'!R24) -> 20 | S24: =IF('Z0.4.a ProgrammaInvest_Spesa'!S24="","",'Z0.4.a ProgrammaInvest_Spesa'!S24) -> 10 | AI24: 10
B25: x | C25: =IF('Z0.4.a ProgrammaInvest_Spesa'!C25="","",'Z0.4.a ProgrammaInvest_Spesa'!C25) ->  | D25: =IF('Z0.4.a ProgrammaInvest_Spesa'!D25="","",'Z0.4.a ProgrammaInvest_Spesa'!D25) ->  | E25: =IF('Z0.4.a ProgrammaInvest_Spesa'!E25="","",'Z0.4.a ProgrammaInvest_Spesa'!E25) ->  | F25: =IF('Z0.4.a ProgrammaInvest_Spesa'!F25="","",'Z0.4.a ProgrammaInvest_Spesa'!F25) -> 7 | G25: =IF('Z0.4.a ProgrammaInvest_Spesa'!G25="","",'Z0.4.a ProgrammaInvest_Spesa'!G25) -> Intervento 5 | H25: =IF('Z0.4.a ProgrammaInvest_Spesa'!H25="","",'Z0.4.a ProgrammaInvest_Spesa'!H25) -> SIVCA 5 | I25: =IF('Z0.4.a ProgrammaInvest_Spesa'!I25="","",'Z0.4.a ProgrammaInvest_Spesa'!I25) ->  | J25: =IF('Z0.4.a ProgrammaInvest_Spesa'!J25="","",'Z0.4.a ProgrammaInvest_Spesa'!J25) ->  | K25: =IF('Z0.4.a ProgrammaInvest_Spesa'!K25="","",'Z0.4.a ProgrammaInvest_Spesa'!K25) -> Barriere | L25: =IF('Z0.4.a ProgrammaInvest_Spesa'!L25="","",'Z0.4.a ProgrammaInvest_Spesa'!L25) -> in corso | M25: =IF('Z0.4.a ProgrammaInvest_Spesa'!M25="","",'Z0.4.a ProgrammaInvest_Spesa'!M25) -> CIN post2026 | N25: =IF('Z0.4.a ProgrammaInvest_Spesa'!N25="","",'Z0.4.a ProgrammaInvest_Spesa'!N25) ->  | O25: =IF('Z0.4.a ProgrammaInvest_Spesa'!O25="","",'Z0.4.a ProgrammaInvest_Spesa'!O25) -> Vite utili 1 | P25: =IF('Z0.4.a ProgrammaInvest_Spesa'!P25="","",'Z0.4.a ProgrammaInvest_Spesa'!P25) -> 2030 | Q25: =IF('Z0.4.a ProgrammaInvest_Spesa'!Q25="","",'Z0.4.a ProgrammaInvest_Spesa'!Q25) -> 200 | R25: =IF('Z0.4.a ProgrammaInvest_Spesa'!R25="","",'Z0.4.a ProgrammaInvest_Spesa'!R25) -> 20 | S25: =IF('Z0.4.a ProgrammaInvest_Spesa'!S25="","",'Z0.4.a ProgrammaInvest_Spesa'!S25) -> 10 | AI25: 10
B26: x | C26: =IF('Z0.4.a ProgrammaInvest_Spesa'!C26="","",'Z0.4.a ProgrammaInvest_Spesa'!C26) ->  | D26: =IF('Z0.4.a ProgrammaInvest_Spesa'!D26="","",'Z0.4.a ProgrammaInvest_Spesa'!D26) ->  | E26: =IF('Z0.4.a ProgrammaInvest_Spesa'!E26="","",'Z0.4.a ProgrammaInvest_Spesa'!E26) ->  | F26: =IF('Z0.4.a ProgrammaInvest_Spesa'!F26="","",'Z0.4.a ProgrammaInvest_Spesa'!F26) -> 8 | G26: =IF('Z0.4.a ProgrammaInvest_Spesa'!G26="","",'Z0.4.a ProgrammaInvest_Spesa'!G26) -> Intervento 6 | H26: =IF('Z0.4.a ProgrammaInvest_Spesa'!H26="","",'Z0.4.a ProgrammaInvest_Spesa'!H26) -> SIVCA 6 | I26: =IF('Z0.4.a ProgrammaInvest_Spesa'!I26="","",'Z0.4.a ProgrammaInvest_Spesa'!I26) ->  | J26: =IF('Z0.4.a ProgrammaInvest_Spesa'!J26="","",'Z0.4.a ProgrammaInvest_Spesa'!J26) ->  | K26: =IF('Z0.4.a ProgrammaInvest_Spesa'!K26="","",'Z0.4.a ProgrammaInvest_Spesa'!K26) -> Corpo autostradale, opere sul territorio | L26: =IF('Z0.4.a ProgrammaInvest_Spesa'!L26="","",'Z0.4.a ProgrammaInvest_Spesa'!L26) -> in corso | M26: =IF('Z0.4.a ProgrammaInvest_Spesa'!M26="","",'Z0.4.a ProgrammaInvest_Spesa'!M26) -> CIN post2026 | N26: =IF('Z0.4.a ProgrammaInvest_Spesa'!N26="","",'Z0.4.a ProgrammaInvest_Spesa'!N26) ->  | O26: =IF('Z0.4.a ProgrammaInvest_Spesa'!O26="","",'Z0.4.a ProgrammaInvest_Spesa'!O26) -> Vite utili 1 | P26: =IF('Z0.4.a ProgrammaInvest_Spesa'!P26="","",'Z0.4.a ProgrammaInvest_Spesa'!P26) -> 2031 | Q26: =IF('Z0.4.a ProgrammaInvest_Spesa'!Q26="","",'Z0.4.a ProgrammaInvest_Spesa'!Q26) -> 200 | R26: =IF('Z0.4.a ProgrammaInvest_Spesa'!R26="","",'Z0.4.a ProgrammaInvest_Spesa'!R26) -> 20 | S26: =IF('Z0.4.a ProgrammaInvest_Spesa'!S26="","",'Z0.4.a ProgrammaInvest_Spesa'!S26) -> 10 | AI26: 10
B27: x | C27: =IF('Z0.4.a ProgrammaInvest_Spesa'!C27="","",'Z0.4.a ProgrammaInvest_Spesa'!C27) ->  | D27: =IF('Z0.4.a ProgrammaInvest_Spesa'!D27="","",'Z0.4.a ProgrammaInvest_Spesa'!D27) ->  | E27: =IF('Z0.4.a ProgrammaInvest_Spesa'!E27="","",'Z0.4.a ProgrammaInvest_Spesa'!E27) ->  | F27: =IF('Z0.4.a ProgrammaInvest_Spesa'!F27="","",'Z0.4.a ProgrammaInvest_Spesa'!F27) -> 9 | G27: =IF('Z0.4.a ProgrammaInvest_Spesa'!G27="","",'Z0.4.a ProgrammaInvest_Spesa'!G27) -> Intervento 7 | H27: =IF('Z0.4.a ProgrammaInvest_Spesa'!H27="","",'Z0.4.a ProgrammaInvest_Spesa'!H27) -> SIVCA 7 | I27: =IF('Z0.4.a ProgrammaInvest_Spesa'!I27="","",'Z0.4.a ProgrammaInvest_Spesa'!I27) ->  | J27: =IF('Z0.4.a ProgrammaInvest_Spesa'!J27="","",'Z0.4.a ProgrammaInvest_Spesa'!J27) ->  | K27: =IF('Z0.4.a ProgrammaInvest_Spesa'!K27="","",'Z0.4.a ProgrammaInvest_Spesa'!K27) -> Reti recinzione | L27: =IF('Z0.4.a ProgrammaInvest_Spesa'!L27="","",'Z0.4.a ProgrammaInvest_Spesa'!L27) -> in corso | M27: =IF('Z0.4.a ProgrammaInvest_Spesa'!M27="","",'Z0.4.a ProgrammaInvest_Spesa'!M27) -> CIN post2026 | N27: =IF('Z0.4.a ProgrammaInvest_Spesa'!N27="","",'Z0.4.a ProgrammaInvest_Spesa'!N27) ->  | O27: =IF('Z0.4.a ProgrammaInvest_Spesa'!O27="","",'Z0.4.a ProgrammaInvest_Spesa'!O27) -> Vite utili 1 | P27: =IF('Z0.4.a ProgrammaInvest_Spesa'!P27="","",'Z0.4.a ProgrammaInvest_Spesa'!P27) -> 2032 | Q27: =IF('Z0.4.a ProgrammaInvest_Spesa'!Q27="","",'Z0.4.a ProgrammaInvest_Spesa'!Q27) -> 200 | R27: =IF('Z0.4.a ProgrammaInvest_Spesa'!R27="","",'Z0.4.a ProgrammaInvest_Spesa'!R27) -> 20 | S27: =IF('Z0.4.a ProgrammaInvest_Spesa'!S27="","",'Z0.4.a ProgrammaInvest_Spesa'!S27) -> 10 | AI27: 10
B28: x | C28: =IF('Z0.4.a ProgrammaInvest_Spesa'!C28="","",'Z0.4.a ProgrammaInvest_Spesa'!C28) ->  | D28: =IF('Z0.4.a ProgrammaInvest_Spesa'!D28="","",'Z0.4.a ProgrammaInvest_Spesa'!D28) ->  | E28: =IF('Z0.4.a ProgrammaInvest_Spesa'!E28="","",'Z0.4.a ProgrammaInvest_Spesa'!E28) ->  | F28: =IF('Z0.4.a ProgrammaInvest_Spesa'!F28="","",'Z0.4.a ProgrammaInvest_Spesa'!F28) -> 10 | G28: =IF('Z0.4.a ProgrammaInvest_Spesa'!G28="","",'Z0.4.a ProgrammaInvest_Spesa'!G28) -> Intervento 8 | H28: =IF('Z0.4.a ProgrammaInvest_Spesa'!H28="","",'Z0.4.a ProgrammaInvest_Spesa'!H28) -> SIVCA 8 | I28: =IF('Z0.4.a ProgrammaInvest_Spesa'!I28="","",'Z0.4.a ProgrammaInvest_Spesa'!I28) ->  | J28: =IF('Z0.4.a ProgrammaInvest_Spesa'!J28="","",'Z0.4.a ProgrammaInvest_Spesa'!J28) ->  | K28: =IF('Z0.4.a ProgrammaInvest_Spesa'!K28="","",'Z0.4.a ProgrammaInvest_Spesa'!K28) -> Portali e segnaletica | L28: =IF('Z0.4.a ProgrammaInvest_Spesa'!L28="","",'Z0.4.a ProgrammaInvest_Spesa'!L28) -> in corso | M28: =IF('Z0.4.a ProgrammaInvest_Spesa'!M28="","",'Z0.4.a ProgrammaInvest_Spesa'!M28) -> CIN post2026 | N28: =IF('Z0.4.a ProgrammaInvest_Spesa'!N28="","",'Z0.4.a ProgrammaInvest_Spesa'!N28) ->  | O28: =IF('Z0.4.a ProgrammaInvest_Spesa'!O28="","",'Z0.4.a ProgrammaInvest_Spesa'!O28) -> Vite utili 1 | P28: =IF('Z0.4.a ProgrammaInvest_Spesa'!P28="","",'Z0.4.a ProgrammaInvest_Spesa'!P28) -> 2033 | Q28: =IF('Z0.4.a ProgrammaInvest_Spesa'!Q28="","",'Z0.4.a ProgrammaInvest_Spesa'!Q28) -> 200 | R28: =IF('Z0.4.a ProgrammaInvest_Spesa'!R28="","",'Z0.4.a ProgrammaInvest_Spesa'!R28) -> 20 | S28: =IF('Z0.4.a ProgrammaInvest_Spesa'!S28="","",'Z0.4.a ProgrammaInvest_Spesa'!S28) -> 10 | AI28: 10
B29: x | C29: =IF('Z0.4.a ProgrammaInvest_Spesa'!C29="","",'Z0.4.a ProgrammaInvest_Spesa'!C29) ->  | D29: =IF('Z0.4.a ProgrammaInvest_Spesa'!D29="","",'Z0.4.a ProgrammaInvest_Spesa'!D29) ->  | E29: =IF('Z0.4.a ProgrammaInvest_Spesa'!E29="","",'Z0.4.a ProgrammaInvest_Spesa'!E29) ->  | F29: =IF('Z0.4.a ProgrammaInvest_Spesa'!F29="","",'Z0.4.a ProgrammaInvest_Spesa'!F29) -> 11 | G29: =IF('Z0.4.a ProgrammaInvest_Spesa'!G29="","",'Z0.4.a ProgrammaInvest_Spesa'!G29) -> Intervento 9 | H29: =IF('Z0.4.a ProgrammaInvest_Spesa'!H29="","",'Z0.4.a ProgrammaInvest_Spesa'!H29) -> SIVCA 9 | I29: =IF('Z0.4.a ProgrammaInvest_Spesa'!I29="","",'Z0.4.a ProgrammaInvest_Spesa'!I29) ->  | J29: =IF('Z0.4.a ProgrammaInvest_Spesa'!J29="","",'Z0.4.a ProgrammaInvest_Spesa'!J29) ->  | K29: =IF('Z0.4.a ProgrammaInvest_Spesa'!K29="","",'Z0.4.a ProgrammaInvest_Spesa'!K29) -> Pavimentazioni | L29: =IF('Z0.4.a ProgrammaInvest_Spesa'!L29="","",'Z0.4.a ProgrammaInvest_Spesa'!L29) -> in corso | M29: =IF('Z0.4.a ProgrammaInvest_Spesa'!M29="","",'Z0.4.a ProgrammaInvest_Spesa'!M29) -> CIN post2026 | N29: =IF('Z0.4.a ProgrammaInvest_Spesa'!N29="","",'Z0.4.a ProgrammaInvest_Spesa'!N29) ->  | O29: =IF('Z0.4.a ProgrammaInvest_Spesa'!O29="","",'Z0.4.a ProgrammaInvest_Spesa'!O29) -> Vite utili 1 | P29: =IF('Z0.4.a ProgrammaInvest_Spesa'!P29="","",'Z0.4.a ProgrammaInvest_Spesa'!P29) -> 2034 | Q29: =IF('Z0.4.a ProgrammaInvest_Spesa'!Q29="","",'Z0.4.a ProgrammaInvest_Spesa'!Q29) -> 200 | R29: =IF('Z0.4.a ProgrammaInvest_Spesa'!R29="","",'Z0.4.a ProgrammaInvest_Spesa'!R29) -> 20 | S29: =IF('Z0.4.a ProgrammaInvest_Spesa'!S29="","",'Z0.4.a ProgrammaInvest_Spesa'!S29) -> 10 | AI29: 10
B30: x | C30: =IF('Z0.4.a ProgrammaInvest_Spesa'!C30="","",'Z0.4.a ProgrammaInvest_Spesa'!C30) ->  | D30: =IF('Z0.4.a ProgrammaInvest_Spesa'!D30="","",'Z0.4.a ProgrammaInvest_Spesa'!D30) ->  | E30: =IF('Z0.4.a ProgrammaInvest_Spesa'!E30="","",'Z0.4.a ProgrammaInvest_Spesa'!E30) ->  | F30: =IF('Z0.4.a ProgrammaInvest_Spesa'!F30="","",'Z0.4.a ProgrammaInvest_Spesa'!F30) -> 12 | G30: =IF('Z0.4.a ProgrammaInvest_Spesa'!G30="","",'Z0.4.a ProgrammaInvest_Spesa'!G30) -> Intervento 10 | H30: =IF('Z0.4.a ProgrammaInvest_Spesa'!H30="","",'Z0.4.a ProgrammaInvest_Spesa'!H30) -> SIVCA 10 | I30: =IF('Z0.4.a ProgrammaInvest_Spesa'!I30="","",'Z0.4.a ProgrammaInvest_Spesa'!I30) ->  | J30: =IF('Z0.4.a ProgrammaInvest_Spesa'!J30="","",'Z0.4.a ProgrammaInvest_Spesa'!J30) ->  | K30: =IF('Z0.4.a ProgrammaInvest_Spesa'!K30="","",'Z0.4.a ProgrammaInvest_Spesa'!K30) -> Infrastrutture tecnologiche ed impianti | L30: =IF('Z0.4.a ProgrammaInvest_Spesa'!L30="","",'Z0.4.a ProgrammaInvest_Spesa'!L30) -> in corso | M30: =IF('Z0.4.a ProgrammaInvest_Spesa'!M30="","",'Z0.4.a ProgrammaInvest_Spesa'!M30) -> CIN post2026 | N30: =IF('Z0.4.a ProgrammaInvest_Spesa'!N30="","",'Z0.4.a ProgrammaInvest_Spesa'!N30) ->  | O30: =IF('Z0.4.a ProgrammaInvest_Spesa'!O30="","",'Z0.4.a ProgrammaInvest_Spesa'!O30) -> Vite utili 1 | P30: =IF('Z0.4.a ProgrammaInvest_Spesa'!P30="","",'Z0.4.a ProgrammaInvest_Spesa'!P30) -> 2035 | Q30: =IF('Z0.4.a ProgrammaInvest_Spesa'!Q30="","",'Z0.4.a ProgrammaInvest_Spesa'!Q30) -> 200 | R30: =IF('Z0.4.a ProgrammaInvest_Spesa'!R30="","",'Z0.4.a ProgrammaInvest_Spesa'!R30) -> 20 | S30: =IF('Z0.4.a ProgrammaInvest_Spesa'!S30="","",'Z0.4.a ProgrammaInvest_Spesa'!S30) -> 10 | AI30: 10
B31: x | C31: =IF('Z0.4.a ProgrammaInvest_Spesa'!C31="","",'Z0.4.a ProgrammaInvest_Spesa'!C31) ->  | D31: =IF('Z0.4.a ProgrammaInvest_Spesa'!D31="","",'Z0.4.a ProgrammaInvest_Spesa'!D31) ->  | E31: =IF('Z0.4.a ProgrammaInvest_Spesa'!E31="","",'Z0.4.a ProgrammaInvest_Spesa'!E31) ->  | F31: =IF('Z0.4.a ProgrammaInvest_Spesa'!F31="","",'Z0.4.a ProgrammaInvest_Spesa'!F31) -> 13 | G31: =IF('Z0.4.a ProgrammaInvest_Spesa'!G31="","",'Z0.4.a ProgrammaInvest_Spesa'!G31) -> Intervento 11 | H31: =IF('Z0.4.a ProgrammaInvest_Spesa'!H31="","",'Z0.4.a ProgrammaInvest_Spesa'!H31) -> SIVCA 11 | I31: =IF('Z0.4.a ProgrammaInvest_Spesa'!I31="","",'Z0.4.a ProgrammaInvest_Spesa'!I31) ->  | J31: =IF('Z0.4.a ProgrammaInvest_Spesa'!J31="","",'Z0.4.a ProgrammaInvest_Spesa'!J31) ->  | K31: =IF('Z0.4.a ProgrammaInvest_Spesa'!K31="","",'Z0.4.a ProgrammaInvest_Spesa'!K31) -> Stazioni/Barriere di esazione, fabbricati, aree di servizio | L31: =IF('Z0.4.a ProgrammaInvest_Spesa'!L31="","",'Z0.4.a ProgrammaInvest_Spesa'!L31) -> in corso | M31: =IF('Z0.4.a ProgrammaInvest_Spesa'!M31="","",'Z0.4.a ProgrammaInvest_Spesa'!M31) -> CIN post2026 | N31: =IF('Z0.4.a ProgrammaInvest_Spesa'!N31="","",'Z0.4.a ProgrammaInvest_Spesa'!N31) ->  | O31: =IF('Z0.4.a ProgrammaInvest_Spesa'!O31="","",'Z0.4.a ProgrammaInvest_Spesa'!O31) -> Vite utili 1 | P31: =IF('Z0.4.a ProgrammaInvest_Spesa'!P31="","",'Z0.4.a ProgrammaInvest_Spesa'!P31) -> 2036 | Q31: =IF('Z0.4.a ProgrammaInvest_Spesa'!Q31="","",'Z0.4.a ProgrammaInvest_Spesa'!Q31) -> 200 | R31: =IF('Z0.4.a ProgrammaInvest_Spesa'!R31="","",'Z0.4.a ProgrammaInvest_Spesa'!R31) -> 0 | S31: =IF('Z0.4.a ProgrammaInvest_Spesa'!S31="","",'Z0.4.a ProgrammaInvest_Spesa'!S31) -> 0 | AI31: 10
B32: x | C32: =IF('Z0.4.a ProgrammaInvest_Spesa'!C32="","",'Z0.4.a ProgrammaInvest_Spesa'!C32) ->  | D32: =IF('Z0.4.a ProgrammaInvest_Spesa'!D32="","",'Z0.4.a ProgrammaInvest_Spesa'!D32) ->  | E32: =IF('Z0.4.a ProgrammaInvest_Spesa'!E32="","",'Z0.4.a ProgrammaInvest_Spesa'!E32) ->  | F32: =IF('Z0.4.a ProgrammaInvest_Spesa'!F32="","",'Z0.4.a ProgrammaInvest_Spesa'!F32) -> 14 | G32: =IF('Z0.4.a ProgrammaInvest_Spesa'!G32="","",'Z0.4.a ProgrammaInvest_Spesa'!G32) -> Intervento 12 | H32: =IF('Z0.4.a ProgrammaInvest_Spesa'!H32="","",'Z0.4.a ProgrammaInvest_Spesa'!H32) -> SIVCA 12 | I32: =IF('Z0.4.a ProgrammaInvest_Spesa'!I32="","",'Z0.4.a ProgrammaInvest_Spesa'!I32) ->  | J32: =IF('Z0.4.a ProgrammaInvest_Spesa'!J32="","",'Z0.4.a ProgrammaInvest_Spesa'!J32) ->  | K32: =IF('Z0.4.a ProgrammaInvest_Spesa'!K32="","",'Z0.4.a ProgrammaInvest_Spesa'!K32) -> Altro | L32: =IF('Z0.4.a ProgrammaInvest_Spesa'!L32="","",'Z0.4.a ProgrammaInvest_Spesa'!L32) -> in corso | M32: =IF('Z0.4.a ProgrammaInvest_Spesa'!M32="","",'Z0.4.a ProgrammaInvest_Spesa'!M32) -> CIN post2026 | N32: =IF('Z0.4.a ProgrammaInvest_Spesa'!N32="","",'Z0.4.a ProgrammaInvest_Spesa'!N32) ->  | O32: =IF('Z0.4.a ProgrammaInvest_Spesa'!O32="","",'Z0.4.a ProgrammaInvest_Spesa'!O32) -> Vite utili 1 | P32: =IF('Z0.4.a ProgrammaInvest_Spesa'!P32="","",'Z0.4.a ProgrammaInvest_Spesa'!P32) -> 2037 | Q32: =IF('Z0.4.a ProgrammaInvest_Spesa'!Q32="","",'Z0.4.a ProgrammaInvest_Spesa'!Q32) -> 200 | R32: =IF('Z0.4.a ProgrammaInvest_Spesa'!R32="","",'Z0.4.a ProgrammaInvest_Spesa'!R32) -> 0 | S32: =IF('Z0.4.a ProgrammaInvest_Spesa'!S32="","",'Z0.4.a ProgrammaInvest_Spesa'!S32) -> 0 | AI32: 10
B33: x | C33: =IF('Z0.4.a ProgrammaInvest_Spesa'!C33="","",'Z0.4.a ProgrammaInvest_Spesa'!C33) ->  | D33: =IF('Z0.4.a ProgrammaInvest_Spesa'!D33="","",'Z0.4.a ProgrammaInvest_Spesa'!D33) ->  | E33: =IF('Z0.4.a ProgrammaInvest_Spesa'!E33="","",'Z0.4.a ProgrammaInvest_Spesa'!E33) ->  | F33: =IF('Z0.4.a ProgrammaInvest_Spesa'!F33="","",'Z0.4.a ProgrammaInvest_Spesa'!F33) -> 15 | G33: =IF('Z0.4.a ProgrammaInvest_Spesa'!G33="","",'Z0.4.a ProgrammaInvest_Spesa'!G33) -> Intervento 13 | H33: =IF('Z0.4.a ProgrammaInvest_Spesa'!H33="","",'Z0.4.a ProgrammaInvest_Spesa'!H33) -> SIVCA 13 | I33: =IF('Z0.4.a ProgrammaInvest_Spesa'!I33="","",'Z0.4.a ProgrammaInvest_Spesa'!I33) ->  | J33: =IF('Z0.4.a ProgrammaInvest_Spesa'!J33="","",'Z0.4.a ProgrammaInvest_Spesa'!J33) ->  | K33: =IF('Z0.4.a ProgrammaInvest_Spesa'!K33="","",'Z0.4.a ProgrammaInvest_Spesa'!K33) -> Viadotti/Ponti/Cavalcavia | L33: =IF('Z0.4.a ProgrammaInvest_Spesa'!L33="","",'Z0.4.a ProgrammaInvest_Spesa'!L33) -> in corso | M33: =IF('Z0.4.a ProgrammaInvest_Spesa'!M33="","",'Z0.4.a ProgrammaInvest_Spesa'!M33) -> CIN post2026 | N33: =IF('Z0.4.a ProgrammaInvest_Spesa'!N33="","",'Z0.4.a ProgrammaInvest_Spesa'!N33) ->  | O33: =IF('Z0.4.a ProgrammaInvest_Spesa'!O33="","",'Z0.4.a ProgrammaInvest_Spesa'!O33) -> Vite utili 2 | P33: =IF('Z0.4.a ProgrammaInvest_Spesa'!P33="","",'Z0.4.a ProgrammaInvest_Spesa'!P33) -> 2028 | Q33: =IF('Z0.4.a ProgrammaInvest_Spesa'!Q33="","",'Z0.4.a ProgrammaInvest_Spesa'!Q33) -> 200 | R33: =IF('Z0.4.a ProgrammaInvest_Spesa'!R33="","",'Z0.4.a ProgrammaInvest_Spesa'!R33) -> 0 | S33: =IF('Z0.4.a ProgrammaInvest_Spesa'!S33="","",'Z0.4.a ProgrammaInvest_Spesa'!S33) -> 0 | AI33: 10
B34: x | C34: =IF('Z0.4.a ProgrammaInvest_Spesa'!C34="","",'Z0.4.a ProgrammaInvest_Spesa'!C34) ->  | D34: =IF('Z0.4.a ProgrammaInvest_Spesa'!D34="","",'Z0.4.a ProgrammaInvest_Spesa'!D34) ->  | E34: =IF('Z0.4.a ProgrammaInvest_Spesa'!E34="","",'Z0.4.a ProgrammaInvest_Spesa'!E34) ->  | F34: =IF('Z0.4.a ProgrammaInvest_Spesa'!F34="","",'Z0.4.a ProgrammaInvest_Spesa'!F34) -> 16 | G34: =IF('Z0.4.a ProgrammaInvest_Spesa'!G34="","",'Z0.4.a ProgrammaInvest_Spesa'!G34) -> Intervento 14 | H34: =IF('Z0.4.a ProgrammaInvest_Spesa'!H34="","",'Z0.4.a ProgrammaInvest_Spesa'!H34) -> SIVCA 14 | I34: =IF('Z0.4.a ProgrammaInvest_Spesa'!I34="","",'Z0.4.a ProgrammaInvest_Spesa'!I34) ->  | J34: =IF('Z0.4.a ProgrammaInvest_Spesa'!J34="","",'Z0.4.a ProgrammaInvest_Spesa'!J34) ->  | K34: =IF('Z0.4.a ProgrammaInvest_Spesa'!K34="","",'Z0.4.a ProgrammaInvest_Spesa'!K34) -> Gallerie | L34: =IF('Z0.4.a ProgrammaInvest_Spesa'!L34="","",'Z0.4.a ProgrammaInvest_Spesa'!L34) -> in corso | M34: =IF('Z0.4.a ProgrammaInvest_Spesa'!M34="","",'Z0.4.a ProgrammaInvest_Spesa'!M34) -> CIN post2026 | N34: =IF('Z0.4.a ProgrammaInvest_Spesa'!N34="","",'Z0.4.a ProgrammaInvest_Spesa'!N34) ->  | O34: =IF('Z0.4.a ProgrammaInvest_Spesa'!O34="","",'Z0.4.a ProgrammaInvest_Spesa'!O34) -> Vite utili 2 | P34: =IF('Z0.4.a ProgrammaInvest_Spesa'!P34="","",'Z0.4.a ProgrammaInvest_Spesa'!P34) -> 2029 | Q34: =IF('Z0.4.a ProgrammaInvest_Spesa'!Q34="","",'Z0.4.a ProgrammaInvest_Spesa'!Q34) -> 200 | R34: =IF('Z0.4.a ProgrammaInvest_Spesa'!R34="","",'Z0.4.a ProgrammaInvest_Spesa'!R34) -> 0 | S34: =IF('Z0.4.a ProgrammaInvest_Spesa'!S34="","",'Z0.4.a ProgrammaInvest_Spesa'!S34) -> 0 | AI34: 10
B35: x | C35: =IF('Z0.4.a ProgrammaInvest_Spesa'!C35="","",'Z0.4.a ProgrammaInvest_Spesa'!C35) ->  | D35: =IF('Z0.4.a ProgrammaInvest_Spesa'!D35="","",'Z0.4.a ProgrammaInvest_Spesa'!D35) ->  | E35: =IF('Z0.4.a ProgrammaInvest_Spesa'!E35="","",'Z0.4.a ProgrammaInvest_Spesa'!E35) ->  | F35: =IF('Z0.4.a ProgrammaInvest_Spesa'!F35="","",'Z0.4.a ProgrammaInvest_Spesa'!F35) -> 17 | G35: =IF('Z0.4.a ProgrammaInvest_Spesa'!G35="","",'Z0.4.a ProgrammaInvest_Spesa'!G35) -> Intervento 15 | H35: =IF('Z0.4.a ProgrammaInvest_Spesa'!H35="","",'Z0.4.a ProgrammaInvest_Spesa'!H35) -> SIVCA 15 | I35: =IF('Z0.4.a ProgrammaInvest_Spesa'!I35="","",'Z0.4.a ProgrammaInvest_Spesa'!I35) ->  | J35: =IF('Z0.4.a ProgrammaInvest_Spesa'!J35="","",'Z0.4.a ProgrammaInvest_Spesa'!J35) ->  | K35: =IF('Z0.4.a ProgrammaInvest_Spesa'!K35="","",'Z0.4.a ProgrammaInvest_Spesa'!K35) -> Barriere | L35: =IF('Z0.4.a ProgrammaInvest_Spesa'!L35="","",'Z0.4.a ProgrammaInvest_Spesa'!L35) -> in corso | M35: =IF('Z0.4.a ProgrammaInvest_Spesa'!M35="","",'Z0.4.a ProgrammaInvest_Spesa'!M35) -> CIN post2026 | N35: =IF('Z0.4.a ProgrammaInvest_Spesa'!N35="","",'Z0.4.a ProgrammaInvest_Spesa'!N35) ->  | O35: =IF('Z0.4.a ProgrammaInvest_Spesa'!O35="","",'Z0.4.a ProgrammaInvest_Spesa'!O35) -> Vite utili 2 | P35: =IF('Z0.4.a ProgrammaInvest_Spesa'!P35="","",'Z0.4.a ProgrammaInvest_Spesa'!P35) -> 2030 | Q35: =IF('Z0.4.a ProgrammaInvest_Spesa'!Q35="","",'Z0.4.a ProgrammaInvest_Spesa'!Q35) -> 200 | R35: =IF('Z0.4.a ProgrammaInvest_Spesa'!R35="","",'Z0.4.a ProgrammaInvest_Spesa'!R35) -> 0 | S35: =IF('Z0.4.a ProgrammaInvest_Spesa'!S35="","",'Z0.4.a ProgrammaInvest_Spesa'!S35) -> 0 | AI35: 10
B36: x | C36: =IF('Z0.4.a ProgrammaInvest_Spesa'!C36="","",'Z0.4.a ProgrammaInvest_Spesa'!C36) ->  | D36: =IF('Z0.4.a ProgrammaInvest_Spesa'!D36="","",'Z0.4.a ProgrammaInvest_Spesa'!D36) ->  | E36: =IF('Z0.4.a ProgrammaInvest_Spesa'!E36="","",'Z0.4.a ProgrammaInvest_Spesa'!E36) ->  | F36: =IF('Z0.4.a ProgrammaInvest_Spesa'!F36="","",'Z0.4.a ProgrammaInvest_Spesa'!F36) -> 18 | G36: =IF('Z0.4.a ProgrammaInvest_Spesa'!G36="","",'Z0.4.a ProgrammaInvest_Spesa'!G36) -> Intervento 16 | H36: =IF('Z0.4.a ProgrammaInvest_Spesa'!H36="","",'Z0.4.a ProgrammaInvest_Spesa'!H36) -> SIVCA 16 | I36: =IF('Z0.4.a ProgrammaInvest_Spesa'!I36="","",'Z0.4.a ProgrammaInvest_Spesa'!I36) ->  | J36: =IF('Z0.4.a ProgrammaInvest_Spesa'!J36="","",'Z0.4.a ProgrammaInvest_Spesa'!J36) ->  | K36: =IF('Z0.4.a ProgrammaInvest_Spesa'!K36="","",'Z0.4.a ProgrammaInvest_Spesa'!K36) -> Corpo autostradale, opere sul territorio | L36: =IF('Z0.4.a ProgrammaInvest_Spesa'!L36="","",'Z0.4.a ProgrammaInvest_Spesa'!L36) -> in corso | M36: =IF('Z0.4.a ProgrammaInvest_Spesa'!M36="","",'Z0.4.a ProgrammaInvest_Spesa'!M36) -> CIN post2026 | N36: =IF('Z0.4.a ProgrammaInvest_Spesa'!N36="","",'Z0.4.a ProgrammaInvest_Spesa'!N36) ->  | O36: =IF('Z0.4.a ProgrammaInvest_Spesa'!O36="","",'Z0.4.a ProgrammaInvest_Spesa'!O36) -> Vite utili 2 | P36: =IF('Z0.4.a ProgrammaInvest_Spesa'!P36="","",'Z0.4.a ProgrammaInvest_Spesa'!P36) -> 2031 | Q36: =IF('Z0.4.a ProgrammaInvest_Spesa'!Q36="","",'Z0.4.a ProgrammaInvest_Spesa'!Q36) -> 200 | R36: =IF('Z0.4.a ProgrammaInvest_Spesa'!R36="","",'Z0.4.a ProgrammaInvest_Spesa'!R36) -> 0 | S36: =IF('Z0.4.a ProgrammaInvest_Spesa'!S36="","",'Z0.4.a ProgrammaInvest_Spesa'!S36) -> 0 | AI36: 10
B37: x | C37: =IF('Z0.4.a ProgrammaInvest_Spesa'!C37="","",'Z0.4.a ProgrammaInvest_Spesa'!C37) ->  | D37: =IF('Z0.4.a ProgrammaInvest_Spesa'!D37="","",'Z0.4.a ProgrammaInvest_Spesa'!D37) ->  | E37: =IF('Z0.4.a ProgrammaInvest_Spesa'!E37="","",'Z0.4.a ProgrammaInvest_Spesa'!E37) ->  | F37: =IF('Z0.4.a ProgrammaInvest_Spesa'!F37="","",'Z0.4.a ProgrammaInvest_Spesa'!F37) -> 19 | G37: =IF('Z0.4.a ProgrammaInvest_Spesa'!G37="","",'Z0.4.a ProgrammaInvest_Spesa'!G37) -> Intervento 17 | H37: =IF('Z0.4.a ProgrammaInvest_Spesa'!H37="","",'Z0.4.a ProgrammaInvest_Spesa'!H37) -> SIVCA 17 | I37: =IF('Z0.4.a ProgrammaInvest_Spesa'!I37="","",'Z0.4.a ProgrammaInvest_Spesa'!I37) ->  | J37: =IF('Z0.4.a ProgrammaInvest_Spesa'!J37="","",'Z0.4.a ProgrammaInvest_Spesa'!J37) ->  | K37: =IF('Z0.4.a ProgrammaInvest_Spesa'!K37="","",'Z0.4.a ProgrammaInvest_Spesa'!K37) -> Reti recinzione | L37: =IF('Z0.4.a ProgrammaInvest_Spesa'!L37="","",'Z0.4.a ProgrammaInvest_Spesa'!L37) -> in corso | M37: =IF('Z0.4.a ProgrammaInvest_Spesa'!M37="","",'Z0.4.a ProgrammaInvest_Spesa'!M37) -> CIN post2026 | N37: =IF('Z0.4.a ProgrammaInvest_Spesa'!N37="","",'Z0.4.a ProgrammaInvest_Spesa'!N37) ->  | O37: =IF('Z0.4.a ProgrammaInvest_Spesa'!O37="","",'Z0.4.a ProgrammaInvest_Spesa'!O37) -> Vite utili 2 | P37: =IF('Z0.4.a ProgrammaInvest_Spesa'!P37="","",'Z0.4.a ProgrammaInvest_Spesa'!P37) -> 2032 | Q37: =IF('Z0.4.a ProgrammaInvest_Spesa'!Q37="","",'Z0.4.a ProgrammaInvest_Spesa'!Q37) -> 200 | R37: =IF('Z0.4.a ProgrammaInvest_Spesa'!R37="","",'Z0.4.a ProgrammaInvest_Spesa'!R37) -> 0 | S37: =IF('Z0.4.a ProgrammaInvest_Spesa'!S37="","",'Z0.4.a ProgrammaInvest_Spesa'!S37) -> 0 | AI37: 10
B38: x | C38: =IF('Z0.4.a ProgrammaInvest_Spesa'!C38="","",'Z0.4.a ProgrammaInvest_Spesa'!C38) ->  | D38: =IF('Z0.4.a ProgrammaInvest_Spesa'!D38="","",'Z0.4.a ProgrammaInvest_Spesa'!D38) ->  | E38: =IF('Z0.4.a ProgrammaInvest_Spesa'!E38="","",'Z0.4.a ProgrammaInvest_Spesa'!E38) ->  | F38: =IF('Z0.4.a ProgrammaInvest_Spesa'!F38="","",'Z0.4.a ProgrammaInvest_Spesa'!F38) -> 20 | G38: =IF('Z0.4.a ProgrammaInvest_Spesa'!G38="","",'Z0.4.a ProgrammaInvest_Spesa'!G38) -> Intervento 18 | H38: =IF('Z0.4.a ProgrammaInvest_Spesa'!H38="","",'Z0.4.a ProgrammaInvest_Spesa'!H38) -> SIVCA 18 | I38: =IF('Z0.4.a ProgrammaInvest_Spesa'!I38="","",'Z0.4.a ProgrammaInvest_Spesa'!I38) ->  | J38: =IF('Z0.4.a ProgrammaInvest_Spesa'!J38="","",'Z0.4.a ProgrammaInvest_Spesa'!J38) ->  | K38: =IF('Z0.4.a ProgrammaInvest_Spesa'!K38="","",'Z0.4.a ProgrammaInvest_Spesa'!K38) -> Portali e segnaletica | L38: =IF('Z0.4.a ProgrammaInvest_Spesa'!L38="","",'Z0.4.a ProgrammaInvest_Spesa'!L38) -> in corso | M38: =IF('Z0.4.a ProgrammaInvest_Spesa'!M38="","",'Z0.4.a ProgrammaInvest_Spesa'!M38) -> CIN post2026 | N38: =IF('Z0.4.a ProgrammaInvest_Spesa'!N38="","",'Z0.4.a ProgrammaInvest_Spesa'!N38) ->  | O38: =IF('Z0.4.a ProgrammaInvest_Spesa'!O38="","",'Z0.4.a ProgrammaInvest_Spesa'!O38) -> Vite utili 2 | P38: =IF('Z0.4.a ProgrammaInvest_Spesa'!P38="","",'Z0.4.a ProgrammaInvest_Spesa'!P38) -> 2033 | Q38: =IF('Z0.4.a ProgrammaInvest_Spesa'!Q38="","",'Z0.4.a ProgrammaInvest_Spesa'!Q38) -> 200 | R38: =IF('Z0.4.a ProgrammaInvest_Spesa'!R38="","",'Z0.4.a ProgrammaInvest_Spesa'!R38) -> 0 | S38: =IF('Z0.4.a ProgrammaInvest_Spesa'!S38="","",'Z0.4.a ProgrammaInvest_Spesa'!S38) -> 0 | AI38: 10
B39: x | C39: =IF('Z0.4.a ProgrammaInvest_Spesa'!C39="","",'Z0.4.a ProgrammaInvest_Spesa'!C39) ->  | D39: =IF('Z0.4.a ProgrammaInvest_Spesa'!D39="","",'Z0.4.a ProgrammaInvest_Spesa'!D39) ->  | E39: =IF('Z0.4.a ProgrammaInvest_Spesa'!E39="","",'Z0.4.a ProgrammaInvest_Spesa'!E39) ->  | F39: =IF('Z0.4.a ProgrammaInvest_Spesa'!F39="","",'Z0.4.a ProgrammaInvest_Spesa'!F39) -> 21 | G39: =IF('Z0.4.a ProgrammaInvest_Spesa'!G39="","",'Z0.4.a ProgrammaInvest_Spesa'!G39) -> Intervento 19 | H39: =IF('Z0.4.a ProgrammaInvest_Spesa'!H39="","",'Z0.4.a ProgrammaInvest_Spesa'!H39) -> SIVCA 19 | I39: =IF('Z0.4.a ProgrammaInvest_Spesa'!I39="","",'Z0.4.a ProgrammaInvest_Spesa'!I39) ->  | J39: =IF('Z0.4.a ProgrammaInvest_Spesa'!J39="","",'Z0.4.a ProgrammaInvest_Spesa'!J39) ->  | K39: =IF('Z0.4.a ProgrammaInvest_Spesa'!K39="","",'Z0.4.a ProgrammaInvest_Spesa'!K39) -> Pavimentazioni | L39: =IF('Z0.4.a ProgrammaInvest_Spesa'!L39="","",'Z0.4.a ProgrammaInvest_Spesa'!L39) -> in corso | M39: =IF('Z0.4.a ProgrammaInvest_Spesa'!M39="","",'Z0.4.a ProgrammaInvest_Spesa'!M39) -> CIN post2026 | N39: =IF('Z0.4.a ProgrammaInvest_Spesa'!N39="","",'Z0.4.a ProgrammaInvest_Spesa'!N39) ->  | O39: =IF('Z0.4.a ProgrammaInvest_Spesa'!O39="","",'Z0.4.a ProgrammaInvest_Spesa'!O39) -> Vite utili 2 | P39: =IF('Z0.4.a ProgrammaInvest_Spesa'!P39="","",'Z0.4.a ProgrammaInvest_Spesa'!P39) -> 2034 | Q39: =IF('Z0.4.a ProgrammaInvest_Spesa'!Q39="","",'Z0.4.a ProgrammaInvest_Spesa'!Q39) -> 200 | R39: =IF('Z0.4.a ProgrammaInvest_Spesa'!R39="","",'Z0.4.a ProgrammaInvest_Spesa'!R39) -> 0 | S39: =IF('Z0.4.a ProgrammaInvest_Spesa'!S39="","",'Z0.4.a ProgrammaInvest_Spesa'!S39) -> 0 | AI39: 10
B40: x | C40: =IF('Z0.4.a ProgrammaInvest_Spesa'!C40="","",'Z0.4.a ProgrammaInvest_Spesa'!C40) ->  | D40: =IF('Z0.4.a ProgrammaInvest_Spesa'!D40="","",'Z0.4.a ProgrammaInvest_Spesa'!D40) ->  | E40: =IF('Z0.4.a ProgrammaInvest_Spesa'!E40="","",'Z0.4.a ProgrammaInvest_Spesa'!E40) ->  | F40: =IF('Z0.4.a ProgrammaInvest_Spesa'!F40="","",'Z0.4.a ProgrammaInvest_Spesa'!F40) -> 22 | G40: =IF('Z0.4.a ProgrammaInvest_Spesa'!G40="","",'Z0.4.a ProgrammaInvest_Spesa'!G40) -> Intervento 20 | H40: =IF('Z0.4.a ProgrammaInvest_Spesa'!H40="","",'Z0.4.a ProgrammaInvest_Spesa'!H40) -> SIVCA 20 | I40: =IF('Z0.4.a ProgrammaInvest_Spesa'!I40="","",'Z0.4.a ProgrammaInvest_Spesa'!I40) ->  | J40: =IF('Z0.4.a ProgrammaInvest_Spesa'!J40="","",'Z0.4.a ProgrammaInvest_Spesa'!J40) ->  | K40: =IF('Z0.4.a ProgrammaInvest_Spesa'!K40="","",'Z0.4.a ProgrammaInvest_Spesa'!K40) -> Infrastrutture tecnologiche ed impianti | L40: =IF('Z0.4.a ProgrammaInvest_Spesa'!L40="","",'Z0.4.a ProgrammaInvest_Spesa'!L40) -> in corso | M40: =IF('Z0.4.a ProgrammaInvest_Spesa'!M40="","",'Z0.4.a ProgrammaInvest_Spesa'!M40) -> CIN post2026 | N40: =IF('Z0.4.a ProgrammaInvest_Spesa'!N40="","",'Z0.4.a ProgrammaInvest_Spesa'!N40) ->  | O40: =IF('Z0.4.a ProgrammaInvest_Spesa'!O40="","",'Z0.4.a ProgrammaInvest_Spesa'!O40) -> Vite utili 2 | P40: =IF('Z0.4.a ProgrammaInvest_Spesa'!P40="","",'Z0.4.a ProgrammaInvest_Spesa'!P40) -> 2035 | Q40: =IF('Z0.4.a ProgrammaInvest_Spesa'!Q40="","",'Z0.4.a ProgrammaInvest_Spesa'!Q40) -> 200 | R40: =IF('Z0.4.a ProgrammaInvest_Spesa'!R40="","",'Z0.4.a ProgrammaInvest_Spesa'!R40) -> 0 | S40: =IF('Z0.4.a ProgrammaInvest_Spesa'!S40="","",'Z0.4.a ProgrammaInvest_Spesa'!S40) -> 0 | AI40: 10
B41: x | C41: =IF('Z0.4.a ProgrammaInvest_Spesa'!C41="","",'Z0.4.a ProgrammaInvest_Spesa'!C41) ->  | D41: =IF('Z0.4.a ProgrammaInvest_Spesa'!D41="","",'Z0.4.a ProgrammaInvest_Spesa'!D41) ->  | E41: =IF('Z0.4.a ProgrammaInvest_Spesa'!E41="","",'Z0.4.a ProgrammaInvest_Spesa'!E41) ->  | F41: =IF('Z0.4.a ProgrammaInvest_Spesa'!F41="","",'Z0.4.a ProgrammaInvest_Spesa'!F41) -> 23 | G41: =IF('Z0.4.a ProgrammaInvest_Spesa'!G41="","",'Z0.4.a ProgrammaInvest_Spesa'!G41) -> Intervento 21 | H41: =IF('Z0.4.a ProgrammaInvest_Spesa'!H41="","",'Z0.4.a ProgrammaInvest_Spesa'!H41) -> SIVCA 21 | I41: =IF('Z0.4.a ProgrammaInvest_Spesa'!I41="","",'Z0.4.a ProgrammaInvest_Spesa'!I41) ->  | J41: =IF('Z0.4.a ProgrammaInvest_Spesa'!J41="","",'Z0.4.a ProgrammaInvest_Spesa'!J41) ->  | K41: =IF('Z0.4.a ProgrammaInvest_Spesa'!K41="","",'Z0.4.a ProgrammaInvest_Spesa'!K41) -> Stazioni/Barriere di esazione, fabbricati, aree di servizio | L41: =IF('Z0.4.a ProgrammaInvest_Spesa'!L41="","",'Z0.4.a ProgrammaInvest_Spesa'!L41) -> in corso | M41: =IF('Z0.4.a ProgrammaInvest_Spesa'!M41="","",'Z0.4.a ProgrammaInvest_Spesa'!M41) -> CIN post2026 | N41: =IF('Z0.4.a ProgrammaInvest_Spesa'!N41="","",'Z0.4.a ProgrammaInvest_Spesa'!N41) ->  | O41: =IF('Z0.4.a ProgrammaInvest_Spesa'!O41="","",'Z0.4.a ProgrammaInvest_Spesa'!O41) -> Vite utili 2 | P41: =IF('Z0.4.a ProgrammaInvest_Spesa'!P41="","",'Z0.4.a ProgrammaInvest_Spesa'!P41) -> 2036 | Q41: =IF('Z0.4.a ProgrammaInvest_Spesa'!Q41="","",'Z0.4.a ProgrammaInvest_Spesa'!Q41) -> 200 | R41: =IF('Z0.4.a ProgrammaInvest_Spesa'!R41="","",'Z0.4.a ProgrammaInvest_Spesa'!R41) -> 0 | S41: =IF('Z0.4.a ProgrammaInvest_Spesa'!S41="","",'Z0.4.a ProgrammaInvest_Spesa'!S41) -> 0 | AI41: 10
B42: x | C42: =IF('Z0.4.a ProgrammaInvest_Spesa'!C42="","",'Z0.4.a ProgrammaInvest_Spesa'!C42) ->  | D42: =IF('Z0.4.a ProgrammaInvest_Spesa'!D42="","",'Z0.4.a ProgrammaInvest_Spesa'!D42) ->  | E42: =IF('Z0.4.a ProgrammaInvest_Spesa'!E42="","",'Z0.4.a ProgrammaInvest_Spesa'!E42) ->  | F42: =IF('Z0.4.a ProgrammaInvest_Spesa'!F42="","",'Z0.4.a ProgrammaInvest_Spesa'!F42) -> 24 | G42: =IF('Z0.4.a ProgrammaInvest_Spesa'!G42="","",'Z0.4.a ProgrammaInvest_Spesa'!G42) -> Intervento 22 | H42: =IF('Z0.4.a ProgrammaInvest_Spesa'!H42="","",'Z0.4.a ProgrammaInvest_Spesa'!H42) -> SIVCA 22 | I42: =IF('Z0.4.a ProgrammaInvest_Spesa'!I42="","",'Z0.4.a ProgrammaInvest_Spesa'!I42) ->  | J42: =IF('Z0.4.a ProgrammaInvest_Spesa'!J42="","",'Z0.4.a ProgrammaInvest_Spesa'!J42) ->  | K42: =IF('Z0.4.a ProgrammaInvest_Spesa'!K42="","",'Z0.4.a ProgrammaInvest_Spesa'!K42) -> Altro | L42: =IF('Z0.4.a ProgrammaInvest_Spesa'!L42="","",'Z0.4.a ProgrammaInvest_Spesa'!L42) -> in corso | M42: =IF('Z0.4.a ProgrammaInvest_Spesa'!M42="","",'Z0.4.a ProgrammaInvest_Spesa'!M42) -> CIN post2026 | N42: =IF('Z0.4.a ProgrammaInvest_Spesa'!N42="","",'Z0.4.a ProgrammaInvest_Spesa'!N42) ->  | O42: =IF('Z0.4.a ProgrammaInvest_Spesa'!O42="","",'Z0.4.a ProgrammaInvest_Spesa'!O42) -> Vite utili 2 | P42: =IF('Z0.4.a ProgrammaInvest_Spesa'!P42="","",'Z0.4.a ProgrammaInvest_Spesa'!P42) -> 2037 | Q42: =IF('Z0.4.a ProgrammaInvest_Spesa'!Q42="","",'Z0.4.a ProgrammaInvest_Spesa'!Q42) -> 200 | R42: =IF('Z0.4.a ProgrammaInvest_Spesa'!R42="","",'Z0.4.a ProgrammaInvest_Spesa'!R42) -> 0 | S42: =IF('Z0.4.a ProgrammaInvest_Spesa'!S42="","",'Z0.4.a ProgrammaInvest_Spesa'!S42) -> 0 | AI42: 10

Sheet Z0.5.a InvestNoTar_Spesa
C2: Programma degli Investimenti (4/6) - da ultimo aggiornamento approvato
Q4: Anno | T4: 2024 | U4: 2025 | V4: 2026 | W4: 2027 | X4: 2028 | Y4: 2029 | Z4: 2030 | AA4: 2031 | AB4: 2032 | AC4: 2033 | AD4: 2034 | AE4: 2035 | AF4: 2036 | AG4: 2037 | AH4: 2038
Q6: Anno base | T6: 1 | U6: 0 | V6: 0 | W6: 0 | X6: 1 | Y6: 0 | Z6: 0 | AA6: 0 | AB6: 0 | AC6: 1 | AD6: 0 | AE6: 0 | AF6: 0 | AG6: 0 | AH6: 0
Q7: Anno ponte | T7: 0 | U7: 1 | V7: 0 | W7: 0 | X7: 0 | Y7: 1 | Z7: 0 | AA7: 0 | AB7: 0 | AC7: 0 | AD7: 1 | AE7: 0 | AF7: 0 | AG7: 0 | AH7: 0
Q8: Periodo regolatorio | T8: 0 | U8: 0 | V8: 1 | W8: 1 | X8: 1 | Y8: 1 | Z8: 2 | AA8: 2 | AB8: 2 | AC8: 2 | AD8: 2 | AE8: 3 | AF8: 3 | AG8: 3 | AH8: 3
Q9: Anno del periodo regolatorio | T9: 0 | U9: 0 | V9: 1 | W9: 2 | X9: 3 | Y9: 4 | Z9: 1 | AA9: 2 | AB9: 3 | AC9: 4 | AD9: 5 | AE9: 1 | AF9: 2 | AG9: 3 | AH9: 4
Q10: Frazione di anno significativa | V10: 1 | W10: 1 | X10: 1 | Y10: 1 | Z10: 1 | AA10: 1 | AB10: 1 | AC10: 1 | AD10: 1 | AE10: 1 | AF10: 1 | AG10: 1 | AH10: 1
U12: Ultimo adattamento schema: 03/11/2025 14:32:40
C14: Programmazione non ammissibile in tariffa: Importo della spesa annua complessiva (al lordo di eventuali contributi in c/impianti e in c/capitale)
C15: Tabella da alimentare solo con spese per beni reversibili, autorizzati ma non ammissibili in tariffa
C17: Atto convenzionale di riferimento | D17: Rif. macro intervento | E17: Rif. lett. art. | F17: Codice univoco intervento | G17: Descrizione intervento | H17: Codice SIVCA | I17: Tratta autostradale da convenzione | J17: Macro tipologia intervento | K17: Tipologia intervento | L17: Stato lavori | M17: Tipologia remunerazione | N17: Criterio di ammortamento | O17: Data presunta entrata in esercizio (anno) | P17: Spesa programmata totale | Q17: Contributo a fondo perduto | R17: Eventuali dismissioni | U17: ="Spesa programmata " & U4 -> Spesa programmata 2025 | V17: Spesa programmata 2026 | W17: ="Spesa programmata " & W4 -> Spesa programmata 2027 | X17: Spesa programmata 2028 | Y17: Spesa programmata 2029 | Z17: Spesa programmata 2030 | AA17: Spesa programmata 2031 | AB17: Spesa programmata 2032 | AC17: Spesa programmata 2033 | AD17: Spesa programmata 2034 | AE17: Spesa programmata 2035 | AF17: Spesa programmata 2036 | AG17: Spesa programmata 2037 | AH17: Spesa programmata 2038
B19: x | P19: =SUM(OFFSET(T19,0,0,1,ScadenzaConcessione-AnnoBase+1)) -> 0 | Q19: =SUM(OFFSET('Z0.5.b InvestNoTar_Contrib'!T19,0,0,1,ScadenzaConcessione-AnnoBase+1)) -> 0 | R19: =SUM(OFFSET('Z0.5.c InvestNoTar_Dismiss'!T19,0,0,1,ScadenzaConcessione-AnnoBase+1)) -> 0

Sheet Z0.5.b InvestNoTar_Contrib
C2: Programma degli Investimenti (5/6) - da ultimo aggiornamento approvato
Q4: Anno | T4: 2024 | U4: 2025 | V4: 2026 | W4: 2027 | X4: 2028 | Y4: 2029 | Z4: 2030 | AA4: 2031 | AB4: 2032 | AC4: 2033 | AD4: 2034 | AE4: 2035 | AF4: 2036 | AG4: 2037 | AH4: 2038
Q6: Anno base | T6: 1 | U6: 0 | V6: 0 | W6: 0 | X6: 1 | Y6: 0 | Z6: 0 | AA6: 0 | AB6: 0 | AC6: 1 | AD6: 0 | AE6: 0 | AF6: 0 | AG6: 0 | AH6: 0
Q7: Anno ponte | T7: 0 | U7: 1 | V7: 0 | W7: 0 | X7: 0 | Y7: 1 | Z7: 0 | AA7: 0 | AB7: 0 | AC7: 0 | AD7: 1 | AE7: 0 | AF7: 0 | AG7: 0 | AH7: 0
Q8: Periodo regolatorio | T8: 0 | U8: 0 | V8: 1 | W8: 1 | X8: 1 | Y8: 1 | Z8: 2 | AA8: 2 | AB8: 2 | AC8: 2 | AD8: 2 | AE8: 3 | AF8: 3 | AG8: 3 | AH8: 3
Q9: Anno del periodo regolatorio | T9: 0 | U9: 0 | V9: 1 | W9: 2 | X9: 3 | Y9: 4 | Z9: 1 | AA9: 2 | AB9: 3 | AC9: 4 | AD9: 5 | AE9: 1 | AF9: 2 | AG9: 3 | AH9: 4
Q10: Frazione di anno significativa | V10: 1 | W10: 1 | X10: 1 | Y10: 1 | Z10: 1 | AA10: 1 | AB10: 1 | AC10: 1 | AD10: 1 | AE10: 1 | AF10: 1 | AG10: 1 | AH10: 1
U12: Ultimo adattamento schema: 03/11/2025 14:32:41
C14: Programmazione non ammissibile in tariffa: Importo annuo eventuali contributi in c/impianti o in c/capitale
C15: Tabella da alimentare solo con spese per beni reversibili, autorizzati ma non ammissibili in tariffa
C17: Atto convenzionale di riferimento | D17: Rif. macro intervento | E17: Rif. lett. art. | F17: Codice univoco intervento | G17: Descrizione intervento | H17: Codice SIVCA | I17: Tratta autostradale da convenzione | J17: Macro tipologia intervento | K17: Tipologia intervento | L17: Stato lavori | M17: Tipologia remunerazione | N17: Criterio di ammortamento | O17: Data presunta entrata in esercizio (anno) | P17: Spesa programmata totale | Q17: Contributo a fondo perduto | R17: Eventuali dismissioni | U17: ="Contributo programmato " & U4 -> Contributo programmato 2025 | V17: Contributo programmato 2026 | W17: ="Contributo programmato " & W4 -> Contributo programmato 2027 | X17: Contributo programmato 2028 | Y17: Contributo programmato 2029 | Z17: Contributo programmato 2030 | AA17: Contributo programmato 2031 | AB17: Contributo programmato 2032 | AC17: Contributo programmato 2033 | AD17: Contributo programmato 2034 | AE17: Contributo programmato 2035 | AF17: Contributo programmato 2036 | AG17: Contributo programmato 2037 | AH17: Contributo programmato 2038
B19: x | C19: =IF('Z0.5.a InvestNoTar_Spesa'!C19="","",'Z0.5.a InvestNoTar_Spesa'!C19) ->  | D19: =IF('Z0.5.a InvestNoTar_Spesa'!D19="","",'Z0.5.a InvestNoTar_Spesa'!D19) ->  | E19: =IF('Z0.5.a InvestNoTar_Spesa'!E19="","",'Z0.5.a InvestNoTar_Spesa'!E19) ->  | F19: =IF('Z0.5.a InvestNoTar_Spesa'!F19="","",'Z0.5.a InvestNoTar_Spesa'!F19) ->  | G19: =IF('Z0.5.a InvestNoTar_Spesa'!G19="","",'Z0.5.a InvestNoTar_Spesa'!G19) ->  | H19: =IF('Z0.5.a InvestNoTar_Spesa'!H19="","",'Z0.5.a InvestNoTar_Spesa'!H19) ->  | I19: =IF('Z0.5.a InvestNoTar_Spesa'!I19="","",'Z0.5.a InvestNoTar_Spesa'!I19) ->  | J19: =IF('Z0.5.a InvestNoTar_Spesa'!J19="","",'Z0.5.a InvestNoTar_Spesa'!J19) ->  | K19: =IF('Z0.5.a InvestNoTar_Spesa'!K19="","",'Z0.5.a InvestNoTar_Spesa'!K19) ->  | L19: =IF('Z0.5.a InvestNoTar_Spesa'!L19="","",'Z0.5.a InvestNoTar_Spesa'!L19) ->  | M19: =IF('Z0.5.a InvestNoTar_Spesa'!M19="","",'Z0.5.a InvestNoTar_Spesa'!M19) ->  | N19: =IF('Z0.5.a InvestNoTar_Spesa'!N19="","",'Z0.5.a InvestNoTar_Spesa'!N19) ->  | O19: =IF('Z0.5.a InvestNoTar_Spesa'!O19="","",'Z0.5.a InvestNoTar_Spesa'!O19) ->  | P19: =IF('Z0.5.a InvestNoTar_Spesa'!P19="","",'Z0.5.a InvestNoTar_Spesa'!P19) -> 0 | Q19: =IF('Z0.5.a InvestNoTar_Spesa'!Q19="","",'Z0.5.a InvestNoTar_Spesa'!Q19) -> 0 | R19: =IF('Z0.5.a InvestNoTar_Spesa'!R19="","",'Z0.5.a InvestNoTar_Spesa'!R19) -> 0

Sheet Z0.5.c InvestNoTar_Dismiss
C2: Programma degli Investimenti (6/6) - da ultimo aggiornamento approvato
Q4: Anno | T4: 2024 | U4: 2025 | V4: 2026 | W4: 2027 | X4: 2028 | Y4: 2029 | Z4: 2030 | AA4: 2031 | AB4: 2032 | AC4: 2033 | AD4: 2034 | AE4: 2035 | AF4: 2036 | AG4: 2037 | AH4: 2038
Q6: Anno base | T6: 1 | U6: 0 | V6: 0 | W6: 0 | X6: 1 | Y6: 0 | Z6: 0 | AA6: 0 | AB6: 0 | AC6: 1 | AD6: 0 | AE6: 0 | AF6: 0 | AG6: 0 | AH6: 0
Q7: Anno ponte | T7: 0 | U7: 1 | V7: 0 | W7: 0 | X7: 0 | Y7: 1 | Z7: 0 | AA7: 0 | AB7: 0 | AC7: 0 | AD7: 1 | AE7: 0 | AF7: 0 | AG7: 0 | AH7: 0
Q8: Periodo regolatorio | T8: 0 | U8: 0 | V8: 1 | W8: 1 | X8: 1 | Y8: 1 | Z8: 2 | AA8: 2 | AB8: 2 | AC8: 2 | AD8: 2 | AE8: 3 | AF8: 3 | AG8: 3 | AH8: 3
Q9: Anno del periodo regolatorio | T9: 0 | U9: 0 | V9: 1 | W9: 2 | X9: 3 | Y9: 4 | Z9: 1 | AA9: 2 | AB9: 3 | AC9: 4 | AD9: 5 | AE9: 1 | AF9: 2 | AG9: 3 | AH9: 4
Q10: Frazione di anno significativa | V10: 1 | W10: 1 | X10: 1 | Y10: 1 | Z10: 1 | AA10: 1 | AB10: 1 | AC10: 1 | AD10: 1 | AE10: 1 | AF10: 1 | AG10: 1 | AH10: 1
U12: Ultimo adattamento schema: 03/11/2025 14:32:43
C14: Programmazione non ammissibile in tariffa: Importo annuo eventuali dismissioni
C15: Tabella da alimentare solo con spese per beni reversibili, autorizzati ma non ammissibili in tariffa
C17: Atto convenzionale di riferimento | D17: Rif. macro intervento | E17: Rif. lett. art. | F17: Codice univoco intervento | G17: Descrizione intervento | H17: Codice SIVCA | I17: Tratta autostradale da convenzione | J17: Macro tipologia intervento | K17: Tipologia intervento | L17: Stato lavori | M17: Tipologia remunerazione | N17: Criterio di ammortamento | O17: Data presunta entrata in esercizio (anno) | P17: Spesa programmata totale | Q17: Contributo a fondo perduto | R17: Eventuali dismissioni | U17: ="Dismissioni " & U4 -> Dismissioni 2025 | V17: Dismissioni 2026 | W17: ="Dismissioni " & W4 -> Dismissioni 2027 | X17: Dismissioni 2028 | Y17: Dismissioni 2029 | Z17: Dismissioni 2030 | AA17: Dismissioni 2031 | AB17: Dismissioni 2032 | AC17: Dismissioni 2033 | AD17: Dismissioni 2034 | AE17: Dismissioni 2035 | AF17: Dismissioni 2036 | AG17: Dismissioni 2037 | AH17: Dismissioni 2038
B19: x | C19: =IF('Z0.5.a InvestNoTar_Spesa'!C19="","",'Z0.5.a InvestNoTar_Spesa'!C19) ->  | D19: =IF('Z0.5.a InvestNoTar_Spesa'!D19="","",'Z0.5.a InvestNoTar_Spesa'!D19) ->  | E19: =IF('Z0.5.a InvestNoTar_Spesa'!E19="","",'Z0.5.a InvestNoTar_Spesa'!E19) ->  | F19: =IF('Z0.5.a InvestNoTar_Spesa'!F19="","",'Z0.5.a InvestNoTar_Spesa'!F19) ->  | G19: =IF('Z0.5.a InvestNoTar_Spesa'!G19="","",'Z0.5.a InvestNoTar_Spesa'!G19) ->  | H19: =IF('Z0.5.a InvestNoTar_Spesa'!H19="","",'Z0.5.a InvestNoTar_Spesa'!H19) ->  | I19: =IF('Z0.5.a InvestNoTar_Spesa'!I19="","",'Z0.5.a InvestNoTar_Spesa'!I19) ->  | J19: =IF('Z0.5.a InvestNoTar_Spesa'!J19="","",'Z0.5.a InvestNoTar_Spesa'!J19) ->  | K19: =IF('Z0.5.a InvestNoTar_Spesa'!K19="","",'Z0.5.a InvestNoTar_Spesa'!K19) ->  | L19: =IF('Z0.5.a InvestNoTar_Spesa'!L19="","",'Z0.5.a InvestNoTar_Spesa'!L19) ->  | M19: =IF('Z0.5.a InvestNoTar_Spesa'!M19="","",'Z0.5.a InvestNoTar_Spesa'!M19) ->  | N19: =IF('Z0.5.a InvestNoTar_Spesa'!N19="","",'Z0.5.a InvestNoTar_Spesa'!N19) ->  | O19: =IF('Z0.5.a InvestNoTar_Spesa'!O19="","",'Z0.5.a InvestNoTar_Spesa'!O19) ->  | P19: =IF('Z0.5.a InvestNoTar_Spesa'!P19="","",'Z0.5.a InvestNoTar_Spesa'!P19) -> 0 | Q19: =IF('Z0.5.a InvestNoTar_Spesa'!Q19="","",'Z0.5.a InvestNoTar_Spesa'!Q19) -> 0 | R19: =IF('Z0.5.a InvestNoTar_Spesa'!R19="","",'Z0.5.a InvestNoTar_Spesa'!R19) -> 0

Sheet Z0.6.a ProgInvest_Spesa agg
C2: Programma degli Investimenti - aggiornamento (1/6)
U4: Anno | X4: 2024 | Y4: 2025 | Z4: 2026 | AA4: 2027 | AB4: 2028 | AC4: 2029 | AD4: 2030 | AE4: 2031 | AF4: 2032 | AG4: 2033 | AH4: 2034 | AI4: 2035 | AJ4: 2036 | AK4: 2037 | AL4: 2038
U6: Anno base | X6: 1 | Y6: 0 | Z6: 0 | AA6: 0 | AB6: 1 | AC6: 0 | AD6: 0 | AE6: 0 | AF6: 0 | AG6: 1 | AH6: 0 | AI6: 0 | AJ6: 0 | AK6: 0 | AL6: 0
U7: Anno ponte | X7: 0 | Y7: 1 | Z7: 0 | AA7: 0 | AB7: 0 | AC7: 1 | AD7: 0 | AE7: 0 | AF7: 0 | AG7: 0 | AH7: 1 | AI7: 0 | AJ7: 0 | AK7: 0 | AL7: 0
U8: Periodo regolatorio | X8: 0 | Y8: 0 | Z8: 1 | AA8: 1 | AB8: 1 | AC8: 1 | AD8: 2 | AE8: 2 | AF8: 2 | AG8: 2 | AH8: 2 | AI8: 3 | AJ8: 3 | AK8: 3 | AL8: 3
U9: Anno del periodo regolatorio | X9: 0 | Y9: 0 | Z9: 1 | AA9: 2 | AB9: 3 | AC9: 4 | AD9: 1 | AE9: 2 | AF9: 3 | AG9: 4 | AH9: 5 | AI9: 1 | AJ9: 2 | AK9: 3 | AL9: 4
U10: Frazione di anno significativa | Z10: 1 | AA10: 1 | AB10: 1 | AC10: 1 | AD10: 1 | AE10: 1 | AF10: 1 | AG10: 1 | AH10: 1 | AI10: 1 | AJ10: 1 | AK10: 1 | AL10: 1
Y12: Ultimo adattamento schema: 03/11/2025 14:32:45
C14: Programmazione ammissibile in tariffa: Importo della spesa annua complessiva (al lordo di eventuali contributi in c/impianti e in c/capitale)
C15: Tabella da alimentare solo con spese per beni reversibili, autorizzati e ammissibili in tariffa
C17: Atto convenzionale di riferimento | D17: Rif. macro intervento | E17: Rif. lett. art. | F17: Codice univoco intervento | G17: Descrizione intervento | H17: Codice SIVCA | I17: Tratta autostradale da convenzione | J17: Macro tipologia intervento | K17: Tipologia intervento | L17: Stato lavori | M17: Tipologia CIN | N17: Stati di avanzamento CIN ante | O17: Criterio di ammortamento | P17: Data presunta entrata in esercizio (anno) | Q17: Status intervento | R17: Responsabilità della variazione | S17: Spesa programmata totale | T17: Contributo a fondo perduto | U17: Eventuali dismissioni | V17: Variazione importi programmati | Y17: ="Spesa programmata aggiornata " & Y4 -> Spesa programmata aggiornata 2025 | Z17: ="Spesa programmata aggiornata " & Z4 -> Spesa programmata aggiornata 2026 | AA17: ="Spesa programmata aggiornata " & AA4 -> Spesa programmata aggiornata 2027 | AB17: Spesa programmata aggiornata 2028 | AC17: Spesa programmata aggiornata 2029 | AD17: Spesa programmata aggiornata 2030 | AE17: Spesa programmata aggiornata 2031 | AF17: Spesa programmata aggiornata 2032 | AG17: Spesa programmata aggiornata 2033 | AH17: Spesa programmata aggiornata 2034 | AI17: Spesa programmata aggiornata 2035 | AJ17: Spesa programmata aggiornata 2036 | AK17: Spesa programmata aggiornata 2037 | AL17: Spesa programmata aggiornata 2038
B19: x | F19: 1 | G19: Intervento 1 | H19: SIVCA 1 | K19: (assoggettata ad ammortamento finanziario) | L19: in corso | M19: CIN ante | N19: SAL contabilizzati | O19: Finanziario | Q19: =IF(ISNA(INDEX('Z0.4.a ProgrammaInvest_Spesa'!F:F,MATCH(F19,'Z0.4.a ProgrammaInvest_Spesa'!F:F,0))),"nuovo, urgente","pianificato") -> pianificato | S19: =SUM(OFFSET(X19,0,0,1,ScadenzaConcessione-AnnoBase+1)) -> 0 | T19: =SUM(OFFSET('Z0.6.b ProgInvest_Contr agg'!X19,0,0,1,ScadenzaConcessione-AnnoBase+1)) -> 2000 | U19: =SUM(OFFSET('Z0.6.c ProgInvest_Dism agg'!X19,0,0,1,ScadenzaConcessione-AnnoBase+1)) -> 20 | V19: FALSE
B20: x | F20: 2 | G20: Intervento 2 | H20: SIVCA 2 | K20: (assoggettata ad ammortamento finanziario) | L20: in corso | M20: CIN ante | N20: SAL da contabilizzare | O20: Finanziario | Q20: =IF(ISNA(INDEX('Z0.4.a ProgrammaInvest_Spesa'!F:F,MATCH(F20,'Z0.4.a ProgrammaInvest_Spesa'!F:F,0))),"nuovo, urgente","pianificato") -> pianificato | S20: 20000 | T20: =SUM(OFFSET('Z0.6.b ProgInvest_Contr agg'!X20,0,0,1,ScadenzaConcessione-AnnoBase+1)) -> 1000 | U20: =SUM(OFFSET('Z0.6.c ProgInvest_Dism agg'!X20,0,0,1,ScadenzaConcessione-AnnoBase+1)) -> 20 | V20: FALSE | Z20: 10000 | AA20: 10000
B21: x | F21: 3 | G21: Intervento 2 | H21: SIVCA 2 | K21: (assoggettata ad ammortamento finanziario) | L21: in corso | M21: CIN pre2026 | O21: Finanziario | Q21: =IF(ISNA(INDEX('Z0.4.a ProgrammaInvest_Spesa'!F:F,MATCH(F21,'Z0.4.a ProgrammaInvest_Spesa'!F:F,0))),"nuovo, urgente","pianificato") -> pianificato | S21: 20000 | T21: =SUM(OFFSET('Z0.6.b ProgInvest_Contr agg'!X21,0,0,1,ScadenzaConcessione-AnnoBase+1)) -> 1000 | U21: =SUM(OFFSET('Z0.6.c ProgInvest_Dism agg'!X21,0,0,1,ScadenzaConcessione-AnnoBase+1)) -> 20 | V21: FALSE | Z21: 10000 | AA21: 10000
B22: x | F22: 4 | G22: Intervento 2 | H22: SIVCA 2 | K22: (assoggettata ad ammortamento finanziario) | L22: in corso | M22: CIN post2026 | O22: Finanziario | Q22: =IF(ISNA(INDEX('Z0.4.a ProgrammaInvest_Spesa'!F:F,MATCH(F22,'Z0.4.a ProgrammaInvest_Spesa'!F:F,0))),"nuovo, urgente","pianificato") -> pianificato | S22: 100000 | T22: =SUM(OFFSET('Z0.6.b ProgInvest_Contr agg'!X22,0,0,1,ScadenzaConcessione-AnnoBase+1)) -> 1000 | U22: =SUM(OFFSET('Z0.6.c ProgInvest_Dism agg'!X22,0,0,1,ScadenzaConcessione-AnnoBase+1)) -> 20 | V22: FALSE | Z22: 50000 | AA22: 50000
B23: x | F23: 5 | G23: Intervento 3 | H23: SIVCA 3 | K23: Viadotti/Ponti/Cavalcavia | L23: in corso | M23: CIN post2026 | O23: Vite utili 1 | P23: 2028 | Q23: =IF(ISNA(INDEX('Z0.4.a ProgrammaInvest_Spesa'!F:F,MATCH(F23,'Z0.4.a ProgrammaInvest_Spesa'!F:F,0))),"nuovo, urgente","pianificato") -> pianificato | S23: 200 | T23: =SUM(OFFSET('Z0.6.b ProgInvest_Contr agg'!X23,0,0,1,ScadenzaConcessione-AnnoBase+1)) -> 20 | U23: =SUM(OFFSET('Z0.6.c ProgInvest_Dism agg'!X23,0,0,1,ScadenzaConcessione-AnnoBase+1)) -> 10 | V23: FALSE | AA23: 100 | AB23: 100
B24: x | F24: 6 | G24: Intervento 4 | H24: SIVCA 4 | K24: Gallerie | L24: in corso | M24: CIN post2026 | O24: Vite utili 1 | P24: 2029 | Q24: =IF(ISNA(INDEX('Z0.4.a ProgrammaInvest_Spesa'!F:F,MATCH(F24,'Z0.4.a ProgrammaInvest_Spesa'!F:F,0))),"nuovo, urgente","pianificato") -> pianificato | S24: 200 | T24: =SUM(OFFSET('Z0.6.b ProgInvest_Contr agg'!X24,0,0,1,ScadenzaConcessione-AnnoBase+1)) -> 20 | U24: =SUM(OFFSET('Z0.6.c ProgInvest_Dism agg'!X24,0,0,1,ScadenzaConcessione-AnnoBase+1)) -> 10 | V24: FALSE | AB24: 100 | AC24: 100
B25: x | F25: 7 | G25: Intervento 5 | H25: SIVCA 5 | K25: Barriere | L25: in corso | M25: CIN post2026 | O25: Vite utili 1 | P25: 2030 | Q25: =IF(ISNA(INDEX('Z0.4.a ProgrammaInvest_Spesa'!F:F,MATCH(F25,'Z0.4.a ProgrammaInvest_Spesa'!F:F,0))),"nuovo, urgente","pianificato") -> pianificato | S25: 200 | T25: =SUM(OFFSET('Z0.6.b ProgInvest_Contr agg'!X25,0,0,1,ScadenzaConcessione-AnnoBase+1)) -> 20 | U25: =SUM(OFFSET('Z0.6.c ProgInvest_Dism agg'!X25,0,0,1,ScadenzaConcessione-AnnoBase+1)) -> 10 | V25: FALSE | AC25: 100 | AD25: 100
B26: x | F26: 8 | G26: Intervento 6 | H26: SIVCA 6 | K26: Corpo autostradale, opere sul territorio | L26: in corso | M26: CIN post2026 | O26: Vite utili 1 | P26: 2031 | Q26: =IF(ISNA(INDEX('Z0.4.a ProgrammaInvest_Spesa'!F:F,MATCH(F26,'Z0.4.a ProgrammaInvest_Spesa'!F:F,0))),"nuovo, urgente","pianificato") -> pianificato | S26: 200 | T26: =SUM(OFFSET('Z0.6.b ProgInvest_Contr agg'!X26,0,0,1,ScadenzaConcessione-AnnoBase+1)) -> 20 | U26: =SUM(OFFSET('Z0.6.c ProgInvest_Dism agg'!X26,0,0,1,ScadenzaConcessione-AnnoBase+1)) -> 10 | V26: FALSE | AD26: 100 | AE26: 100
B27: x | F27: 9 | G27: Intervento 7 | H27: SIVCA 7 | K27: Reti recinzione | L27: in corso | M27: CIN post2026 | O27: Vite utili 1 | P27: 2032 | Q27: =IF(ISNA(INDEX('Z0.4.a ProgrammaInvest_Spesa'!F:F,MATCH(F27,'Z0.4.a ProgrammaInvest_Spesa'!F:F,0))),"nuovo, urgente","pianificato") -> pianificato | S27: 200 | T27: =SUM(OFFSET('Z0.6.b ProgInvest_Contr agg'!X27,0,0,1,ScadenzaConcessione-AnnoBase+1)) -> 20 | U27: =SUM(OFFSET('Z0.6.c ProgInvest_Dism agg'!X27,0,0,1,ScadenzaConcessione-AnnoBase+1)) -> 10 | V27: FALSE | AE27: 100 | AF27: 100
B28: x | F28: 10 | G28: Intervento 8 | H28: SIVCA 8 | K28: Portali e segnaletica | L28: in corso | M28: CIN post2026 | O28: Vite utili 1 | P28: 2033 | Q28: =IF(ISNA(INDEX('Z0.4.a ProgrammaInvest_Spesa'!F:F,MATCH(F28,'Z0.4.a ProgrammaInvest_Spesa'!F:F,0))),"nuovo, urgente","pianificato") -> pianificato | S28: 200 | T28: =SUM(OFFSET('Z0.6.b ProgInvest_Contr agg'!X28,0,0,1,ScadenzaConcessione-AnnoBase+1)) -> 20 | U28: =SUM(OFFSET('Z0.6.c ProgInvest_Dism agg'!X28,0,0,1,ScadenzaConcessione-AnnoBase+1)) -> 10 | V28: FALSE | AF28: 100 | AG28: 100
B29: x | F29: 11 | G29: Intervento 9 | H29: SIVCA 9 | K29: Pavimentazioni | L29: in corso | M29: CIN post2026 | O29: Vite utili 1 | P29: 2034 | Q29: =IF(ISNA(INDEX('Z0.4.a ProgrammaInvest_Spesa'!F:F,MATCH(F29,'Z0.4.a ProgrammaInvest_Spesa'!F:F,0))),"nuovo, urgente","pianificato") -> pianificato | S29: 200 | T29: =SUM(OFFSET('Z0.6.b ProgInvest_Contr agg'!X29,0,0,1,ScadenzaConcessione-AnnoBase+1)) -> 20 | U29: =SUM(OFFSET('Z0.6.c ProgInvest_Dism agg'!X29,0,0,1,ScadenzaConcessione-AnnoBase+1)) -> 10 | V29: FALSE | AG29: 100 | AH29: 100
B30: x | F30: 12 | G30: Intervento 10 | H30: SIVCA 10 | K30: Infrastrutture tecnologiche ed impianti | L30: in corso | M30: CIN post2026 | O30: Vite utili 1 | P30: 2035 | Q30: =IF(ISNA(INDEX('Z0.4.a ProgrammaInvest_Spesa'!F:F,MATCH(F30,'Z0.4.a ProgrammaInvest_Spesa'!F:F,0))),"nuovo, urgente","pianificato") -> pianificato | S30: 200 | T30: =SUM(OFFSET('Z0.6.b ProgInvest_Contr agg'!X30,0,0,1,ScadenzaConcessione-AnnoBase+1)) -> 20 | U30: =SUM(OFFSET('Z0.6.c ProgInvest_Dism agg'!X30,0,0,1,ScadenzaConcessione-AnnoBase+1)) -> 10 | V30: FALSE | AH30: 100 | AI30: 100
B31: x | F31: 13 | G31: Intervento 11 | H31: SIVCA 11 | K31: Stazioni/Barriere di esazione, fabbricati, aree di servizio | L31: in corso | M31: CIN post2026 | O31: Vite utili 1 | P31: 2036 | Q31: =IF(ISNA(INDEX('Z0.4.a ProgrammaInvest_Spesa'!F:F,MATCH(F31,'Z0.4.a ProgrammaInvest_Spesa'!F:F,0))),"nuovo, urgente","pianificato") -> pianificato | S31: 200 | T31: =SUM(OFFSET('Z0.6.b ProgInvest_Contr agg'!X31,0,0,1,ScadenzaConcessione-AnnoBase+1)) -> 20 | U31: =SUM(OFFSET('Z0.6.c ProgInvest_Dism agg'!X31,0,0,1,ScadenzaConcessione-AnnoBase+1)) -> 10 | V31: FALSE | AI31: 100 | AJ31: 100
B32: x | F32: 14 | G32: Intervento 12 | H32: SIVCA 12 | K32: Altro | L32: in corso | M32: CIN post2026 | O32: Vite utili 1 | P32: 2037 | Q32: =IF(ISNA(INDEX('Z0.4.a ProgrammaInvest_Spesa'!F:F,MATCH(F32,'Z0.4.a ProgrammaInvest_Spesa'!F:F,0))),"nuovo, urgente","pianificato") -> pianificato | S32: =SUM(OFFSET(X32,0,0,1,ScadenzaConcessione-AnnoBase+1)) -> 200 | T32: =SUM(OFFSET('Z0.6.b ProgInvest_Contr agg'!X32,0,0,1,ScadenzaConcessione-AnnoBase+1)) -> 20 | U32: =SUM(OFFSET('Z0.6.c ProgInvest_Dism agg'!X32,0,0,1,ScadenzaConcessione-AnnoBase+1)) -> 10 | V32: FALSE | AJ32: 100 | AK32: 100
B33: x | F33: 15 | G33: Intervento 13 | H33: SIVCA 13 | K33: Viadotti/Ponti/Cavalcavia | L33: in corso | M33: CIN post2026 | O33: Vite utili 2 | P33: 2028 | Q33: =IF(ISNA(INDEX('Z0.4.a ProgrammaInvest_Spesa'!F:F,MATCH(F33,'Z0.4.a ProgrammaInvest_Spesa'!F:F,0))),"nuovo, urgente","pianificato") -> pianificato | S33: 200 | T33: =SUM(OFFSET('Z0.6.b ProgInvest_Contr agg'!X33,0,0,1,ScadenzaConcessione-AnnoBase+1)) -> 20 | U33: =SUM(OFFSET('Z0.6.c ProgInvest_Dism agg'!X33,0,0,1,ScadenzaConcessione-AnnoBase+1)) -> 10 | V33: FALSE | AA33: 100 | AB33: 100
B34: x | F34: 16 | G34: Intervento 14 | H34: SIVCA 14 | K34: Gallerie | L34: in corso | M34: CIN post2026 | O34: Vite utili 2 | P34: 2029 | Q34: =IF(ISNA(INDEX('Z0.4.a ProgrammaInvest_Spesa'!F:F,MATCH(F34,'Z0.4.a ProgrammaInvest_Spesa'!F:F,0))),"nuovo, urgente","pianificato") -> pianificato | S34: =SUM(OFFSET(X34,0,0,1,ScadenzaConcessione-AnnoBase+1)) -> 200 | T34: =SUM(OFFSET('Z0.6.b ProgInvest_Contr agg'!X34,0,0,1,ScadenzaConcessione-AnnoBase+1)) -> 20 | U34: =SUM(OFFSET('Z0.6.c ProgInvest_Dism agg'!X34,0,0,1,ScadenzaConcessione-AnnoBase+1)) -> 10 | V34: FALSE | AB34: 100 | AC34: 100
B35: x | F35: 17 | G35: Intervento 15 | H35: SIVCA 15 | K35: Barriere | L35: in corso | M35: CIN post2026 | O35: Vite utili 2 | P35: 2030 | Q35: =IF(ISNA(INDEX('Z0.4.a ProgrammaInvest_Spesa'!F:F,MATCH(F35,'Z0.4.a ProgrammaInvest_Spesa'!F:F,0))),"nuovo, urgente","pianificato") -> pianificato | S35: 200 | T35: =SUM(OFFSET('Z0.6.b ProgInvest_Contr agg'!X35,0,0,1,ScadenzaConcessione-AnnoBase+1)) -> 20 | U35: =SUM(OFFSET('Z0.6.c ProgInvest_Dism agg'!X35,0,0,1,ScadenzaConcessione-AnnoBase+1)) -> 10 | V35: FALSE | AC35: 100 | AD35: 100
B36: x | F36: 18 | G36: Intervento 16 | H36: SIVCA 16 | K36: Corpo autostradale, opere sul territorio | L36: in corso | M36: CIN post2026 | O36: Vite utili 2 | P36: 2031 | Q36: =IF(ISNA(INDEX('Z0.4.a ProgrammaInvest_Spesa'!F:F,MATCH(F36,'Z0.4.a ProgrammaInvest_Spesa'!F:F,0))),"nuovo, urgente","pianificato") -> pianificato | S36: 200 | T36: =SUM(OFFSET('Z0.6.b ProgInvest_Contr agg'!X36,0,0,1,ScadenzaConcessione-AnnoBase+1)) -> 20 | U36: =SUM(OFFSET('Z0.6.c ProgInvest_Dism agg'!X36,0,0,1,ScadenzaConcessione-AnnoBase+1)) -> 10 | V36: FALSE | AD36: 100 | AE36: 100
B37: x | F37: 19 | G37: Intervento 17 | H37: SIVCA 17 | K37: Reti recinzione | L37: in corso | M37: CIN post2026 | O37: Vite utili 2 | P37: 2032 | Q37: =IF(ISNA(INDEX('Z0.4.a ProgrammaInvest_Spesa'!F:F,MATCH(F37,'Z0.4.a ProgrammaInvest_Spesa'!F:F,0))),"nuovo, urgente","pianificato") -> pianificato | S37: 200 | T37: =SUM(OFFSET('Z0.6.b ProgInvest_Contr agg'!X37,0,0,1,ScadenzaConcessione-AnnoBase+1)) -> 20 | U37: =SUM(OFFSET('Z0.6.c ProgInvest_Dism agg'!X37,0,0,1,ScadenzaConcessione-AnnoBase+1)) -> 10 | V37: FALSE | AE37: 100 | AF37: 100
B38: x | F38: 20 | G38: Intervento 18 | H38: SIVCA 18 | K38: Portali e segnaletica | L38: in corso | M38: CIN post2026 | O38: Vite utili 2 | P38: 2033 | Q38: =IF(ISNA(INDEX('Z0.4.a ProgrammaInvest_Spesa'!F:F,MATCH(F38,'Z0.4.a ProgrammaInvest_Spesa'!F:F,0))),"nuovo, urgente","pianificato") -> pianificato | S38: 200 | T38: =SUM(OFFSET('Z0.6.b ProgInvest_Contr agg'!X38,0,0,1,ScadenzaConcessione-AnnoBase+1)) -> 20 | U38: =SUM(OFFSET('Z0.6.c ProgInvest_Dism agg'!X38,0,0,1,ScadenzaConcessione-AnnoBase+1)) -> 10 | V38: FALSE | AF38: 100 | AG38: 100
B39: x | F39: 21 | G39: Intervento 19 | H39: SIVCA 19 | K39: Pavimentazioni | L39: in corso | M39: CIN post2026 | O39: Vite utili 2 | P39: 2034 | Q39: =IF(ISNA(INDEX('Z0.4.a ProgrammaInvest_Spesa'!F:F,MATCH(F39,'Z0.4.a ProgrammaInvest_Spesa'!F:F,0))),"nuovo, urgente","pianificato") -> pianificato | S39: 200 | T39: =SUM(OFFSET('Z0.6.b ProgInvest_Contr agg'!X39,0,0,1,ScadenzaConcessione-AnnoBase+1)) -> 20 | U39: =SUM(OFFSET('Z0.6.c ProgInvest_Dism agg'!X39,0,0,1,ScadenzaConcessione-AnnoBase+1)) -> 10 | V39: FALSE | AG39: 100 | AH39: 100
B40: x | F40: 22 | G40: Intervento 20 | H40: SIVCA 20 | K40: Infrastrutture tecnologiche ed impianti | L40: in corso | M40: CIN post2026 | O40: Vite utili 2 | P40: 2035 | Q40: =IF(ISNA(INDEX('Z0.4.a ProgrammaInvest_Spesa'!F:F,MATCH(F40,'Z0.4.a ProgrammaInvest_Spesa'!F:F,0))),"nuovo, urgente","pianificato") -> pianificato | S40: 200 | T40: =SUM(OFFSET('Z0.6.b ProgInvest_Contr agg'!X40,0,0,1,ScadenzaConcessione-AnnoBase+1)) -> 20 | U40: =SUM(OFFSET('Z0.6.c ProgInvest_Dism agg'!X40,0,0,1,ScadenzaConcessione-AnnoBase+1)) -> 10 | V40: FALSE | AH40: 100 | AI40: 100
B41: x | F41: 23 | G41: Intervento 21 | H41: SIVCA 21 | K41: Stazioni/Barriere di esazione, fabbricati, aree di servizio | L41: in corso | M41: CIN post2026 | O41: Vite utili 2 | P41: 2036 | Q41: =IF(ISNA(INDEX('Z0.4.a ProgrammaInvest_Spesa'!F:F,MATCH(F41,'Z0.4.a ProgrammaInvest_Spesa'!F:F,0))),"nuovo, urgente","pianificato") -> pianificato | S41: 200 | T41: =SUM(OFFSET('Z0.6.b ProgInvest_Contr agg'!X41,0,0,1,ScadenzaConcessione-AnnoBase+1)) -> 20 | U41: =SUM(OFFSET('Z0.6.c ProgInvest_Dism agg'!X41,0,0,1,ScadenzaConcessione-AnnoBase+1)) -> 10 | V41: FALSE | AI41: 100 | AJ41: 100
B42: x | F42: 24 | G42: Intervento 22 | H42: SIVCA 22 | K42: Altro | L42: in corso | M42: CIN post2026 | O42: Vite utili 2 | P42: 2037 | Q42: =IF(ISNA(INDEX('Z0.4.a ProgrammaInvest_Spesa'!F:F,MATCH(F42,'Z0.4.a ProgrammaInvest_Spesa'!F:F,0))),"nuovo, urgente","pianificato") -> pianificato | S42: 200 | T42: =SUM(OFFSET('Z0.6.b ProgInvest_Contr agg'!X42,0,0,1,ScadenzaConcessione-AnnoBase+1)) -> 20 | U42: =SUM(OFFSET('Z0.6.c ProgInvest_Dism agg'!X42,0,0,1,ScadenzaConcessione-AnnoBase+1)) -> 10 | V42: FALSE | AJ42: 100 | AK42: 100
B43: x | F43: 25 | G43: Intervento 23 | H43: SIVCA 23 | K43: (assoggettata ad ammortamento finanziario) | L43: in corso | M43: CIN post2026 | O43: Finanziario | Q43: =IF(ISNA(INDEX('Z0.4.a ProgrammaInvest_Spesa'!F:F,MATCH(F43,'Z0.4.a ProgrammaInvest_Spesa'!F:F,0))),"nuovo, urgente","pianificato") -> nuovo, urgente | S43: =SUM(OFFSET(X43,0,0,1,ScadenzaConcessione-AnnoBase+1)) -> 0 | T43: =SUM(OFFSET('Z0.6.b ProgInvest_Contr agg'!X43,0,0,1,ScadenzaConcessione-AnnoBase+1)) -> 0 | U43: =SUM(OFFSET('Z0.6.c ProgInvest_Dism agg'!X43,0,0,1,ScadenzaConcessione-AnnoBase+1)) -> 0 | V43: TRUE | AA43: 0 | AB43: 0
B44: x | F44: 26 | G44: Intervento 24 | H44: SIVCA 24 | K44: Viadotti/Ponti/Cavalcavia | L44: in corso | M44: CIN post2026 | O44: Vite utili 2 | P44: 2029 | Q44: =IF(ISNA(INDEX('Z0.4.a ProgrammaInvest_Spesa'!F:F,MATCH(F44,'Z0.4.a ProgrammaInvest_Spesa'!F:F,0))),"nuovo, urgente","pianificato") -> nuovo, urgente | S44: 0 | T44: =SUM(OFFSET('Z0.6.b ProgInvest_Contr agg'!X44,0,0,1,ScadenzaConcessione-AnnoBase+1)) -> 0 | U44: =SUM(OFFSET('Z0.6.c ProgInvest_Dism agg'!X44,0,0,1,ScadenzaConcessione-AnnoBase+1)) -> 0 | V44: TRUE | AA44: 0 | AB44: 0

Sheet Z0.6.b ProgInvest_Contr agg
C2: Programma degli Investimenti - aggiornamento (2/6)
U4: Anno | X4: 2024 | Y4: 2025 | Z4: 2026 | AA4: 2027 | AB4: 2028 | AC4: 2029 | AD4: 2030 | AE4: 2031 | AF4: 2032 | AG4: 2033 | AH4: 2034 | AI4: 2035 | AJ4: 2036 | AK4: 2037 | AL4: 2038
U6: Anno base | X6: 1 | Y6: 0 | Z6: 0 | AA6: 0 | AB6: 1 | AC6: 0 | AD6: 0 | AE6: 0 | AF6: 0 | AG6: 1 | AH6: 0 | AI6: 0 | AJ6: 0 | AK6: 0 | AL6: 0
U7: Anno ponte | X7: 0 | Y7: 1 | Z7: 0 | AA7: 0 | AB7: 0 | AC7: 1 | AD7: 0 | AE7: 0 | AF7: 0 | AG7: 0 | AH7: 1 | AI7: 0 | AJ7: 0 | AK7: 0 | AL7: 0
U8: Periodo regolatorio | X8: 0 | Y8: 0 | Z8: 1 | AA8: 1 | AB8: 1 | AC8: 1 | AD8: 2 | AE8: 2 | AF8: 2 | AG8: 2 | AH8: 2 | AI8: 3 | AJ8: 3 | AK8: 3 | AL8: 3
U9: Anno del periodo regolatorio | X9: 0 | Y9: 0 | Z9: 1 | AA9: 2 | AB9: 3 | AC9: 4 | AD9: 1 | AE9: 2 | AF9: 3 | AG9: 4 | AH9: 5 | AI9: 1 | AJ9: 2 | AK9: 3 | AL9: 4
U10: Frazione di anno significativa | Z10: 1 | AA10: 1 | AB10: 1 | AC10: 1 | AD10: 1 | AE10: 1 | AF10: 1 | AG10: 1 | AH10: 1 | AI10: 1 | AJ10: 1 | AK10: 1 | AL10: 1
Y12: Ultimo adattamento schema: 03/11/2025 14:32:46
C14: Programmazione ammissibile in tariffa: Importo annuo eventuali contributi in c/impianti o in c/capitale
C15: Tabella da alimentare solo con spese per beni reversibili, autorizzati e ammissibili in tariffa
C17: Atto convenzionale di riferimento | D17: Rif. macro intervento | E17: Rif. lett. art. | F17: Codice univoco intervento | G17: Descrizione intervento | H17: Codice SIVCA | I17: Tratta autostradale da convenzione | J17: Macro tipologia intervento | K17: Tipologia intervento | L17: Stato lavori | M17: Tipologia CIN | N17: Stati di avanzamento CIN ante | O17: Criterio di ammortamento | P17: Data presunta entrata in esercizio (anno) | Q17: Status intervento | R17: Responsabilità della variazione | S17: Spesa programmata totale | T17: Contributo a fondo perduto | U17: Eventuali dismissioni | V17: Variazione importi programmati | Y17: ="Contributo programmato aggiornato " & Y4 -> Contributo programmato aggiornato 2025 | Z17: ="Contributo programmato aggiornato " & Z4 -> Contributo programmato aggiornato 2026 | AA17: ="Contributo programmato aggiornato " & AA4 -> Contributo programmato aggiornato 2027 | AB17: Contributo programmato aggiornato 2028 | AC17: Contributo programmato aggiornato 2029 | AD17: Contributo programmato aggiornato 2030 | AE17: Contributo programmato aggiornato 2031 | AF17: Contributo programmato aggiornato 2032 | AG17: Contributo programmato aggiornato 2033 | AH17: Contributo programmato aggiornato 2034 | AI17: Contributo programmato aggiornato 2035 | AJ17: Contributo programmato aggiornato 2036 | AK17: Contributo programmato aggiornato 2037 | AL17: Contributo programmato aggiornato 2038
B19: x | C19: =IF('Z0.6.a ProgInvest_Spesa agg'!C19="","",'Z0.6.a ProgInvest_Spesa agg'!C19) ->  | D19: =IF('Z0.6.a ProgInvest_Spesa agg'!D19="","",'Z0.6.a ProgInvest_Spesa agg'!D19) ->  | E19: =IF('Z0.6.a ProgInvest_Spesa agg'!E19="","",'Z0.6.a ProgInvest_Spesa agg'!E19) ->  | F19: =IF('Z0.6.a ProgInvest_Spesa agg'!F19="","",'Z0.6.a ProgInvest_Spesa agg'!F19) -> 1 | G19: =IF('Z0.6.a ProgInvest_Spesa agg'!G19="","",'Z0.6.a ProgInvest_Spesa agg'!G19) -> Intervento 1 | H19: =IF('Z0.6.a ProgInvest_Spesa agg'!H19="","",'Z0.6.a ProgInvest_Spesa agg'!H19) -> SIVCA 1 | I19: =IF('Z0.6.a ProgInvest_Spesa agg'!I19="","",'Z0.6.a ProgInvest_Spesa agg'!I19) ->  | J19: =IF('Z0.6.a ProgInvest_Spesa agg'!J19="","",'Z0.6.a ProgInvest_Spesa agg'!J19) ->  | K19: =IF('Z0.6.a ProgInvest_Spesa agg'!K19="","",'Z0.6.a ProgInvest_Spesa agg'!K19) -> (assoggettata ad ammortamento finanziario) | L19: =IF('Z0.6.a ProgInvest_Spesa agg'!L19="","",'Z0.6.a ProgInvest_Spesa agg'!L19) -> in corso | M19: =IF('Z0.6.a ProgInvest_Spesa agg'!M19="","",'Z0.6.a ProgInvest_Spesa agg'!M19) -> CIN ante | N19: =IF('Z0.6.a ProgInvest_Spesa agg'!N19="","",'Z0.6.a ProgInvest_Spesa agg'!N19) -> SAL contabilizzati | O19: =IF('Z0.6.a ProgInvest_Spesa agg'!O19="","",'Z0.6.a ProgInvest_Spesa agg'!O19) -> Finanziario | P19: =IF('Z0.6.a ProgInvest_Spesa agg'!P19="","",'Z0.6.a ProgInvest_Spesa agg'!P19) ->  | Q19: =IF('Z0.6.a ProgInvest_Spesa agg'!Q19="","",'Z0.6.a ProgInvest_Spesa agg'!Q19) -> pianificato | R19: =IF('Z0.6.a ProgInvest_Spesa agg'!R19="","",'Z0.6.a ProgInvest_Spesa agg'!R19) ->  | S19: =IF('Z0.6.a ProgInvest_Spesa agg'!S19="","",'Z0.6.a ProgInvest_Spesa agg'!S19) -> 0 | T19: =IF('Z0.6.a ProgInvest_Spesa agg'!T19="","",'Z0.6.a ProgInvest_Spesa agg'!T19) -> 2000 | U19: =IF('Z0.6.a ProgInvest_Spesa agg'!U19="","",'Z0.6.a ProgInvest_Spesa agg'!U19) -> 20 | V19: FALSE | Z19: 2000
B20: x | C20: =IF('Z0.6.a ProgInvest_Spesa agg'!C20="","",'Z0.6.a ProgInvest_Spesa agg'!C20) ->  | D20: =IF('Z0.6.a ProgInvest_Spesa agg'!D20="","",'Z0.6.a ProgInvest_Spesa agg'!D20) ->  | E20: =IF('Z0.6.a ProgInvest_Spesa agg'!E20="","",'Z0.6.a ProgInvest_Spesa agg'!E20) ->  | F20: =IF('Z0.6.a ProgInvest_Spesa agg'!F20="","",'Z0.6.a ProgInvest_Spesa agg'!F20) -> 2 | G20: =IF('Z0.6.a ProgInvest_Spesa agg'!G20="","",'Z0.6.a ProgInvest_Spesa agg'!G20) -> Intervento 2 | H20: =IF('Z0.6.a ProgInvest_Spesa agg'!H20="","",'Z0.6.a ProgInvest_Spesa agg'!H20) -> SIVCA 2 | I20: =IF('Z0.6.a ProgInvest_Spesa agg'!I20="","",'Z0.6.a ProgInvest_Spesa agg'!I20) ->  | J20: =IF('Z0.6.a ProgInvest_Spesa agg'!J20="","",'Z0.6.a ProgInvest_Spesa agg'!J20) ->  | K20: =IF('Z0.6.a ProgInvest_Spesa agg'!K20="","",'Z0.6.a ProgInvest_Spesa agg'!K20) -> (assoggettata ad ammortamento finanziario) | L20: =IF('Z0.6.a ProgInvest_Spesa agg'!L20="","",'Z0.6.a ProgInvest_Spesa agg'!L20) -> in corso | M20: =IF('Z0.6.a ProgInvest_Spesa agg'!M20="","",'Z0.6.a ProgInvest_Spesa agg'!M20) -> CIN ante | N20: =IF('Z0.6.a ProgInvest_Spesa agg'!N20="","",'Z0.6.a ProgInvest_Spesa agg'!N20) -> SAL da contabilizzare | O20: =IF('Z0.6.a ProgInvest_Spesa agg'!O20="","",'Z0.6.a ProgInvest_Spesa agg'!O20) -> Finanziario | P20: =IF('Z0.6.a ProgInvest_Spesa agg'!P20="","",'Z0.6.a ProgInvest_Spesa agg'!P20) ->  | Q20: =IF('Z0.6.a ProgInvest_Spesa agg'!Q20="","",'Z0.6.a ProgInvest_Spesa agg'!Q20) -> pianificato | R20: =IF('Z0.6.a ProgInvest_Spesa agg'!R20="","",'Z0.6.a ProgInvest_Spesa agg'!R20) ->  | S20: =IF('Z0.6.a ProgInvest_Spesa agg'!S20="","",'Z0.6.a ProgInvest_Spesa agg'!S20) -> 20000 | T20: =IF('Z0.6.a ProgInvest_Spesa agg'!T20="","",'Z0.6.a ProgInvest_Spesa agg'!T20) -> 1000 | U20: =IF('Z0.6.a ProgInvest_Spesa agg'!U20="","",'Z0.6.a ProgInvest_Spesa agg'!U20) -> 20 | V20: FALSE | Z20: 1000
B21: x | C21: =IF('Z0.6.a ProgInvest_Spesa agg'!C21="","",'Z0.6.a ProgInvest_Spesa agg'!C21) ->  | D21: =IF('Z0.6.a ProgInvest_Spesa agg'!D21="","",'Z0.6.a ProgInvest_Spesa agg'!D21) ->  | E21: =IF('Z0.6.a ProgInvest_Spesa agg'!E21="","",'Z0.6.a ProgInvest_Spesa agg'!E21) ->  | F21: =IF('Z0.6.a ProgInvest_Spesa agg'!F21="","",'Z0.6.a ProgInvest_Spesa agg'!F21) -> 3 | G21: =IF('Z0.6.a ProgInvest_Spesa agg'!G21="","",'Z0.6.a ProgInvest_Spesa agg'!G21) -> Intervento 2 | H21: =IF('Z0.6.a ProgInvest_Spesa agg'!H21="","",'Z0.6.a ProgInvest_Spesa agg'!H21) -> SIVCA 2 | I21: =IF('Z0.6.a ProgInvest_Spesa agg'!I21="","",'Z0.6.a ProgInvest_Spesa agg'!I21) ->  | J21: =IF('Z0.6.a ProgInvest_Spesa agg'!J21="","",'Z0.6.a ProgInvest_Spesa agg'!J21) ->  | K21: =IF('Z0.6.a ProgInvest_Spesa agg'!K21="","",'Z0.6.a ProgInvest_Spesa agg'!K21) -> (assoggettata ad ammortamento finanziario) | L21: =IF('Z0.6.a ProgInvest_Spesa agg'!L21="","",'Z0.6.a ProgInvest_Spesa agg'!L21) -> in corso | M21: =IF('Z0.6.a ProgInvest_Spesa agg'!M21="","",'Z0.6.a ProgInvest_Spesa agg'!M21) -> CIN pre2026 | N21: =IF('Z0.6.a ProgInvest_Spesa agg'!N21="","",'Z0.6.a ProgInvest_Spesa agg'!N21) ->  | O21: =IF('Z0.6.a ProgInvest_Spesa agg'!O21="","",'Z0.6.a ProgInvest_Spesa agg'!O21) -> Finanziario | P21: =IF('Z0.6.a ProgInvest_Spesa agg'!P21="","",'Z0.6.a ProgInvest_Spesa agg'!P21) ->  | Q21: =IF('Z0.6.a ProgInvest_Spesa agg'!Q21="","",'Z0.6.a ProgInvest_Spesa agg'!Q21) -> pianificato | R21: =IF('Z0.6.a ProgInvest_Spesa agg'!R21="","",'Z0.6.a ProgInvest_Spesa agg'!R21) ->  | S21: =IF('Z0.6.a ProgInvest_Spesa agg'!S21="","",'Z0.6.a ProgInvest_Spesa agg'!S21) -> 20000 | T21: =IF('Z0.6.a ProgInvest_Spesa agg'!T21="","",'Z0.6.a ProgInvest_Spesa agg'!T21) -> 1000 | U21: =IF('Z0.6.a ProgInvest_Spesa agg'!U21="","",'Z0.6.a ProgInvest_Spesa agg'!U21) -> 20 | V21: FALSE | Z21: 1000
B22: x | C22: =IF('Z0.6.a ProgInvest_Spesa agg'!C22="","",'Z0.6.a ProgInvest_Spesa agg'!C22) ->  | D22: =IF('Z0.6.a ProgInvest_Spesa agg'!D22="","",'Z0.6.a ProgInvest_Spesa agg'!D22) ->  | E22: =IF('Z0.6.a ProgInvest_Spesa agg'!E22="","",'Z0.6.a ProgInvest_Spesa agg'!E22) ->  | F22: =IF('Z0.6.a ProgInvest_Spesa agg'!F22="","",'Z0.6.a ProgInvest_Spesa agg'!F22) -> 4 | G22: =IF('Z0.6.a ProgInvest_Spesa agg'!G22="","",'Z0.6.a ProgInvest_Spesa agg'!G22) -> Intervento 2 | H22: =IF('Z0.6.a ProgInvest_Spesa agg'!H22="","",'Z0.6.a ProgInvest_Spesa agg'!H22) -> SIVCA 2 | I22: =IF('Z0.6.a ProgInvest_Spesa agg'!I22="","",'Z0.6.a ProgInvest_Spesa agg'!I22) ->  | J22: =IF('Z0.6.a ProgInvest_Spesa agg'!J22="","",'Z0.6.a ProgInvest_Spesa agg'!J22) ->  | K22: =IF('Z0.6.a ProgInvest_Spesa agg'!K22="","",'Z0.6.a ProgInvest_Spesa agg'!K22) -> (assoggettata ad ammortamento finanziario) | L22: =IF('Z0.6.a ProgInvest_Spesa agg'!L22="","",'Z0.6.a ProgInvest_Spesa agg'!L22) -> in corso | M22: =IF('Z0.6.a ProgInvest_Spesa agg'!M22="","",'Z0.6.a ProgInvest_Spesa agg'!M22) -> CIN post2026 | N22: =IF('Z0.6.a ProgInvest_Spesa agg'!N22="","",'Z0.6.a ProgInvest_Spesa agg'!N22) ->  | O22: =IF('Z0.6.a ProgInvest_Spesa agg'!O22="","",'Z0.6.a ProgInvest_Spesa agg'!O22) -> Finanziario | P22: =IF('Z0.6.a ProgInvest_Spesa agg'!P22="","",'Z0.6.a ProgInvest_Spesa agg'!P22) ->  | Q22: =IF('Z0.6.a ProgInvest_Spesa agg'!Q22="","",'Z0.6.a ProgInvest_Spesa agg'!Q22) -> pianificato | R22: =IF('Z0.6.a ProgInvest_Spesa agg'!R22="","",'Z0.6.a ProgInvest_Spesa agg'!R22) ->  | S22: =IF('Z0.6.a ProgInvest_Spesa agg'!S22="","",'Z0.6.a ProgInvest_Spesa agg'!S22) -> 100000 | T22: =IF('Z0.6.a ProgInvest_Spesa agg'!T22="","",'Z0.6.a ProgInvest_Spesa agg'!T22) -> 1000 | U22: =IF('Z0.6.a ProgInvest_Spesa agg'!U22="","",'Z0.6.a ProgInvest_Spesa agg'!U22) -> 20 | V22: FALSE | Z22: 1000
B23: x | C23: =IF('Z0.6.a ProgInvest_Spesa agg'!C23="","",'Z0.6.a ProgInvest_Spesa agg'!C23) ->  | D23: =IF('Z0.6.a ProgInvest_Spesa agg'!D23="","",'Z0.6.a ProgInvest_Spesa agg'!D23) ->  | E23: =IF('Z0.6.a ProgInvest_Spesa agg'!E23="","",'Z0.6.a ProgInvest_Spesa agg'!E23) ->  | F23: =IF('Z0.6.a ProgInvest_Spesa agg'!F23="","",'Z0.6.a ProgInvest_Spesa agg'!F23) -> 5 | G23: =IF('Z0.6.a ProgInvest_Spesa agg'!G23="","",'Z0.6.a ProgInvest_Spesa agg'!G23) -> Intervento 3 | H23: =IF('Z0.6.a ProgInvest_Spesa agg'!H23="","",'Z0.6.a ProgInvest_Spesa agg'!H23) -> SIVCA 3 | I23: =IF('Z0.6.a ProgInvest_Spesa agg'!I23="","",'Z0.6.a ProgInvest_Spesa agg'!I23) ->  | J23: =IF('Z0.6.a ProgInvest_Spesa agg'!J23="","",'Z0.6.a ProgInvest_Spesa agg'!J23) ->  | K23: =IF('Z0.6.a ProgInvest_Spesa agg'!K23="","",'Z0.6.a ProgInvest_Spesa agg'!K23) -> Viadotti/Ponti/Cavalcavia | L23: =IF('Z0.6.a ProgInvest_Spesa agg'!L23="","",'Z0.6.a ProgInvest_Spesa agg'!L23) -> in corso | M23: =IF('Z0.6.a ProgInvest_Spesa agg'!M23="","",'Z0.6.a ProgInvest_Spesa agg'!M23) -> CIN post2026 | N23: =IF('Z0.6.a ProgInvest_Spesa agg'!N23="","",'Z0.6.a ProgInvest_Spesa agg'!N23) ->  | O23: =IF('Z0.6.a ProgInvest_Spesa agg'!O23="","",'Z0.6.a ProgInvest_Spesa agg'!O23) -> Vite utili 1 | P23: =IF('Z0.6.a ProgInvest_Spesa agg'!P23="","",'Z0.6.a ProgInvest_Spesa agg'!P23) -> 2028 | Q23: =IF('Z0.6.a ProgInvest_Spesa agg'!Q23="","",'Z0.6.a ProgInvest_Spesa agg'!Q23) -> pianificato | R23: =IF('Z0.6.a ProgInvest_Spesa agg'!R23="","",'Z0.6.a ProgInvest_Spesa agg'!R23) ->  | S23: =IF('Z0.6.a ProgInvest_Spesa agg'!S23="","",'Z0.6.a ProgInvest_Spesa agg'!S23) -> 200 | T23: =IF('Z0.6.a ProgInvest_Spesa agg'!T23="","",'Z0.6.a ProgInvest_Spesa agg'!T23) -> 20 | U23: =IF('Z0.6.a ProgInvest_Spesa agg'!U23="","",'Z0.6.a ProgInvest_Spesa agg'!U23) -> 10 | V23: FALSE | AA23: 20
B24: x | C24: =IF('Z0.6.a ProgInvest_Spesa agg'!C24="","",'Z0.6.a ProgInvest_Spesa agg'!C24) ->  | D24: =IF('Z0.6.a ProgInvest_Spesa agg'!D24="","",'Z0.6.a ProgInvest_Spesa agg'!D24) ->  | E24: =IF('Z0.6.a ProgInvest_Spesa agg'!E24="","",'Z0.6.a ProgInvest_Spesa agg'!E24) ->  | F24: =IF('Z0.6.a ProgInvest_Spesa agg'!F24="","",'Z0.6.a ProgInvest_Spesa agg'!F24) -> 6 | G24: =IF('Z0.6.a ProgInvest_Spesa agg'!G24="","",'Z0.6.a ProgInvest_Spesa agg'!G24) -> Intervento 4 | H24: =IF('Z0.6.a ProgInvest_Spesa agg'!H24="","",'Z0.6.a ProgInvest_Spesa agg'!H24) -> SIVCA 4 | I24: =IF('Z0.6.a ProgInvest_Spesa agg'!I24="","",'Z0.6.a ProgInvest_Spesa agg'!I24) ->  | J24: =IF('Z0.6.a ProgInvest_Spesa agg'!J24="","",'Z0.6.a ProgInvest_Spesa agg'!J24) ->  | K24: =IF('Z0.6.a ProgInvest_Spesa agg'!K24="","",'Z0.6.a ProgInvest_Spesa agg'!K24) -> Gallerie | L24: =IF('Z0.6.a ProgInvest_Spesa agg'!L24="","",'Z0.6.a ProgInvest_Spesa agg'!L24) -> in corso | M24: =IF('Z0.6.a ProgInvest_Spesa agg'!M24="","",'Z0.6.a ProgInvest_Spesa agg'!M24) -> CIN post2026 | N24: =IF('Z0.6.a ProgInvest_Spesa agg'!N24="","",'Z0.6.a ProgInvest_Spesa agg'!N24) ->  | O24: =IF('Z0.6.a ProgInvest_Spesa agg'!O24="","",'Z0.6.a ProgInvest_Spesa agg'!O24) -> Vite utili 1 | P24: =IF('Z0.6.a ProgInvest_Spesa agg'!P24="","",'Z0.6.a ProgInvest_Spesa agg'!P24) -> 2029 | Q24: =IF('Z0.6.a ProgInvest_Spesa agg'!Q24="","",'Z0.6.a ProgInvest_Spesa agg'!Q24) -> pianificato | R24: =IF('Z0.6.a ProgInvest_Spesa agg'!R24="","",'Z0.6.a ProgInvest_Spesa agg'!R24) ->  | S24: =IF('Z0.6.a ProgInvest_Spesa agg'!S24="","",'Z0.6.a ProgInvest_Spesa agg'!S24) -> 200 | T24: =IF('Z0.6.a ProgInvest_Spesa agg'!T24="","",'Z0.6.a ProgInvest_Spesa agg'!T24) -> 20 | U24: =IF('Z0.6.a ProgInvest_Spesa agg'!U24="","",'Z0.6.a ProgInvest_Spesa agg'!U24) -> 10 | V24: FALSE | AB24: 20
B25: x | C25: =IF('Z0.6.a ProgInvest_Spesa agg'!C25="","",'Z0.6.a ProgInvest_Spesa agg'!C25) ->  | D25: =IF('Z0.6.a ProgInvest_Spesa agg'!D25="","",'Z0.6.a ProgInvest_Spesa agg'!D25) ->  | E25: =IF('Z0.6.a ProgInvest_Spesa agg'!E25="","",'Z0.6.a ProgInvest_Spesa agg'!E25) ->  | F25: =IF('Z0.6.a ProgInvest_Spesa agg'!F25="","",'Z0.6.a ProgInvest_Spesa agg'!F25) -> 7 | G25: =IF('Z0.6.a ProgInvest_Spesa agg'!G25="","",'Z0.6.a ProgInvest_Spesa agg'!G25) -> Intervento 5 | H25: =IF('Z0.6.a ProgInvest_Spesa agg'!H25="","",'Z0.6.a ProgInvest_Spesa agg'!H25) -> SIVCA 5 | I25: =IF('Z0.6.a ProgInvest_Spesa agg'!I25="","",'Z0.6.a ProgInvest_Spesa agg'!I25) ->  | J25: =IF('Z0.6.a ProgInvest_Spesa agg'!J25="","",'Z0.6.a ProgInvest_Spesa agg'!J25) ->  | K25: =IF('Z0.6.a ProgInvest_Spesa agg'!K25="","",'Z0.6.a ProgInvest_Spesa agg'!K25) -> Barriere | L25: =IF('Z0.6.a ProgInvest_Spesa agg'!L25="","",'Z0.6.a ProgInvest_Spesa agg'!L25) -> in corso | M25: =IF('Z0.6.a ProgInvest_Spesa agg'!M25="","",'Z0.6.a ProgInvest_Spesa agg'!M25) -> CIN post2026 | N25: =IF('Z0.6.a ProgInvest_Spesa agg'!N25="","",'Z0.6.a ProgInvest_Spesa agg'!N25) ->  | O25: =IF('Z0.6.a ProgInvest_Spesa agg'!O25="","",'Z0.6.a ProgInvest_Spesa agg'!O25) -> Vite utili 1 | P25: =IF('Z0.6.a ProgInvest_Spesa agg'!P25="","",'Z0.6.a ProgInvest_Spesa agg'!P25) -> 2030 | Q25: =IF('Z0.6.a ProgInvest_Spesa agg'!Q25="","",'Z0.6.a ProgInvest_Spesa agg'!Q25) -> pianificato | R25: =IF('Z0.6.a ProgInvest_Spesa agg'!R25="","",'Z0.6.a ProgInvest_Spesa agg'!R25) ->  | S25: =IF('Z0.6.a ProgInvest_Spesa agg'!S25="","",'Z0.6.a ProgInvest_Spesa agg'!S25) -> 200 | T25: =IF('Z0.6.a ProgInvest_Spesa agg'!T25="","",'Z0.6.a ProgInvest_Spesa agg'!T25) -> 20 | U25: =IF('Z0.6.a ProgInvest_Spesa agg'!U25="","",'Z0.6.a ProgInvest_Spesa agg'!U25) -> 10 | V25: FALSE | AC25: 20
B26: x | C26: =IF('Z0.6.a ProgInvest_Spesa agg'!C26="","",'Z0.6.a ProgInvest_Spesa agg'!C26) ->  | D26: =IF('Z0.6.a ProgInvest_Spesa agg'!D26="","",'Z0.6.a ProgInvest_Spesa agg'!D26) ->  | E26: =IF('Z0.6.a ProgInvest_Spesa agg'!E26="","",'Z0.6.a ProgInvest_Spesa agg'!E26) ->  | F26: =IF('Z0.6.a ProgInvest_Spesa agg'!F26="","",'Z0.6.a ProgInvest_Spesa agg'!F26) -> 8 | G26: =IF('Z0.6.a ProgInvest_Spesa agg'!G26="","",'Z0.6.a ProgInvest_Spesa agg'!G26) -> Intervento 6 | H26: =IF('Z0.6.a ProgInvest_Spesa agg'!H26="","",'Z0.6.a ProgInvest_Spesa agg'!H26) -> SIVCA 6 | I26: =IF('Z0.6.a ProgInvest_Spesa agg'!I26="","",'Z0.6.a ProgInvest_Spesa agg'!I26) ->  | J26: =IF('Z0.6.a ProgInvest_Spesa agg'!J26="","",'Z0.6.a ProgInvest_Spesa agg'!J26) ->  | K26: =IF('Z0.6.a ProgInvest_Spesa agg'!K26="","",'Z0.6.a ProgInvest_Spesa agg'!K26) -> Corpo autostradale, opere sul territorio | L26: =IF('Z0.6.a ProgInvest_Spesa agg'!L26="","",'Z0.6.a ProgInvest_Spesa agg'!L26) -> in corso | M26: =IF('Z0.6.a ProgInvest_Spesa agg'!M26="","",'Z0.6.a ProgInvest_Spesa agg'!M26) -> CIN post2026 | N26: =IF('Z0.6.a ProgInvest_Spesa agg'!N26="","",'Z0.6.a ProgInvest_Spesa agg'!N26) ->  | O26: =IF('Z0.6.a ProgInvest_Spesa agg'!O26="","",'Z0.6.a ProgInvest_Spesa agg'!O26) -> Vite utili 1 | P26: =IF('Z0.6.a ProgInvest_Spesa agg'!P26="","",'Z0.6.a ProgInvest_Spesa agg'!P26) -> 2031 | Q26: =IF('Z0.6.a ProgInvest_Spesa agg'!Q26="","",'Z0.6.a ProgInvest_Spesa agg'!Q26) -> pianificato | R26: =IF('Z0.6.a ProgInvest_Spesa agg'!R26="","",'Z0.6.a ProgInvest_Spesa agg'!R26) ->  | S26: =IF('Z0.6.a ProgInvest_Spesa agg'!S26="","",'Z0.6.a ProgInvest_Spesa agg'!S26) -> 200 | T26: =IF('Z0.6.a ProgInvest_Spesa agg'!T26="","",'Z0.6.a ProgInvest_Spesa agg'!T26) -> 20 | U26: =IF('Z0.6.a ProgInvest_Spesa agg'!U26="","",'Z0.6.a ProgInvest_Spesa agg'!U26) -> 10 | V26: FALSE | AD26: 20
B27: x | C27: =IF('Z0.6.a ProgInvest_Spesa agg'!C27="","",'Z0.6.a ProgInvest_Spesa agg'!C27) ->  | D27: =IF('Z0.6.a ProgInvest_Spesa agg'!D27="","",'Z0.6.a ProgInvest_Spesa agg'!D27) ->  | E27: =IF('Z0.6.a ProgInvest_Spesa agg'!E27="","",'Z0.6.a ProgInvest_Spesa agg'!E27) ->  | F27: =IF('Z0.6.a ProgInvest_Spesa agg'!F27="","",'Z0.6.a ProgInvest_Spesa agg'!F27) -> 9 | G27: =IF('Z0.6.a ProgInvest_Spesa agg'!G27="","",'Z0.6.a ProgInvest_Spesa agg'!G27) -> Intervento 7 | H27: =IF('Z0.6.a ProgInvest_Spesa agg'!H27="","",'Z0.6.a ProgInvest_Spesa agg'!H27) -> SIVCA 7 | I27: =IF('Z0.6.a ProgInvest_Spesa agg'!I27="","",'Z0.6.a ProgInvest_Spesa agg'!I27) ->  | J27: =IF('Z0.6.a ProgInvest_Spesa agg'!J27="","",'Z0.6.a ProgInvest_Spesa agg'!J27) ->  | K27: =IF('Z0.6.a ProgInvest_Spesa agg'!K27="","",'Z0.6.a ProgInvest_Spesa agg'!K27) -> Reti recinzione | L27: =IF('Z0.6.a ProgInvest_Spesa agg'!L27="","",'Z0.6.a ProgInvest_Spesa agg'!L27) -> in corso | M27: =IF('Z0.6.a ProgInvest_Spesa agg'!M27="","",'Z0.6.a ProgInvest_Spesa agg'!M27) -> CIN post2026 | N27: =IF('Z0.6.a ProgInvest_Spesa agg'!N27="","",'Z0.6.a ProgInvest_Spesa agg'!N27) ->  | O27: =IF('Z0.6.a ProgInvest_Spesa agg'!O27="","",'Z0.6.a ProgInvest_Spesa agg'!O27) -> Vite utili 1 | P27: =IF('Z0.6.a ProgInvest_Spesa agg'!P27="","",'Z0.6.a ProgInvest_Spesa agg'!P27) -> 2032 | Q27: =IF('Z0.6.a ProgInvest_Spesa agg'!Q27="","",'Z0.6.a ProgInvest_Spesa agg'!Q27) -> pianificato | R27: =IF('Z0.6.a ProgInvest_Spesa agg'!R27="","",'Z0.6.a ProgInvest_Spesa agg'!R27) ->  | S27: =IF('Z0.6.a ProgInvest_Spesa agg'!S27="","",'Z0.6.a ProgInvest_Spesa agg'!S27) -> 200 | T27: =IF('Z0.6.a ProgInvest_Spesa agg'!T27="","",'Z0.6.a ProgInvest_Spesa agg'!T27) -> 20 | U27: =IF('Z0.6.a ProgInvest_Spesa agg'!U27="","",'Z0.6.a ProgInvest_Spesa agg'!U27) -> 10 | V27: FALSE | AE27: 20
B28: x | C28: =IF('Z0.6.a ProgInvest_Spesa agg'!C28="","",'Z0.6.a ProgInvest_Spesa agg'!C28) ->  | D28: =IF('Z0.6.a ProgInvest_Spesa agg'!D28="","",'Z0.6.a ProgInvest_Spesa agg'!D28) ->  | E28: =IF('Z0.6.a ProgInvest_Spesa agg'!E28="","",'Z0.6.a ProgInvest_Spesa agg'!E28) ->  | F28: =IF('Z0.6.a ProgInvest_Spesa agg'!F28="","",'Z0.6.a ProgInvest_Spesa agg'!F28) -> 10 | G28: =IF('Z0.6.a ProgInvest_Spesa agg'!G28="","",'Z0.6.a ProgInvest_Spesa agg'!G28) -> Intervento 8 | H28: =IF('Z0.6.a ProgInvest_Spesa agg'!H28="","",'Z0.6.a ProgInvest_Spesa agg'!H28) -> SIVCA 8 | I28: =IF('Z0.6.a ProgInvest_Spesa agg'!I28="","",'Z0.6.a ProgInvest_Spesa agg'!I28) ->  | J28: =IF('Z0.6.a ProgInvest_Spesa agg'!J28="","",'Z0.6.a ProgInvest_Spesa agg'!J28) ->  | K28: =IF('Z0.6.a ProgInvest_Spesa agg'!K28="","",'Z0.6.a ProgInvest_Spesa agg'!K28) -> Portali e segnaletica | L28: =IF('Z0.6.a ProgInvest_Spesa agg'!L28="","",'Z0.6.a ProgInvest_Spesa agg'!L28) -> in corso | M28: =IF('Z0.6.a ProgInvest_Spesa agg'!M28="","",'Z0.6.a ProgInvest_Spesa agg'!M28) -> CIN post2026 | N28: =IF('Z0.6.a ProgInvest_Spesa agg'!N28="","",'Z0.6.a ProgInvest_Spesa agg'!N28) ->  | O28: =IF('Z0.6.a ProgInvest_Spesa agg'!O28="","",'Z0.6.a ProgInvest_Spesa agg'!O28) -> Vite utili 1 | P28: =IF('Z0.6.a ProgInvest_Spesa agg'!P28="","",'Z0.6.a ProgInvest_Spesa agg'!P28) -> 2033 | Q28: =IF('Z0.6.a ProgInvest_Spesa agg'!Q28="","",'Z0.6.a ProgInvest_Spesa agg'!Q28) -> pianificato | R28: =IF('Z0.6.a ProgInvest_Spesa agg'!R28="","",'Z0.6.a ProgInvest_Spesa agg'!R28) ->  | S28: =IF('Z0.6.a ProgInvest_Spesa agg'!S28="","",'Z0.6.a ProgInvest_Spesa agg'!S28) -> 200 | T28: =IF('Z0.6.a ProgInvest_Spesa agg'!T28="","",'Z0.6.a ProgInvest_Spesa agg'!T28) -> 20 | U28: =IF('Z0.6.a ProgInvest_Spesa agg'!U28="","",'Z0.6.a ProgInvest_Spesa agg'!U28) -> 10 | V28: FALSE | AF28: 20
B29: x | C29: =IF('Z0.6.a ProgInvest_Spesa agg'!C29="","",'Z0.6.a ProgInvest_Spesa agg'!C29) ->  | D29: =IF('Z0.6.a ProgInvest_Spesa agg'!D29="","",'Z0.6.a ProgInvest_Spesa agg'!D29) ->  | E29: =IF('Z0.6.a ProgInvest_Spesa agg'!E29="","",'Z0.6.a ProgInvest_Spesa agg'!E29) ->  | F29: =IF('Z0.6.a ProgInvest_Spesa agg'!F29="","",'Z0.6.a ProgInvest_Spesa agg'!F29) -> 11 | G29: =IF('Z0.6.a ProgInvest_Spesa agg'!G29="","",'Z0.6.a ProgInvest_Spesa agg'!G29) -> Intervento 9 | H29: =IF('Z0.6.a ProgInvest_Spesa agg'!H29="","",'Z0.6.a ProgInvest_Spesa agg'!H29) -> SIVCA 9 | I29: =IF('Z0.6.a ProgInvest_Spesa agg'!I29="","",'Z0.6.a ProgInvest_Spesa agg'!I29) ->  | J29: =IF('Z0.6.a ProgInvest_Spesa agg'!J29="","",'Z0.6.a ProgInvest_Spesa agg'!J29) ->  | K29: =IF('Z0.6.a ProgInvest_Spesa agg'!K29="","",'Z0.6.a ProgInvest_Spesa agg'!K29) -> Pavimentazioni | L29: =IF('Z0.6.a ProgInvest_Spesa agg'!L29="","",'Z0.6.a ProgInvest_Spesa agg'!L29) -> in corso | M29: =IF('Z0.6.a ProgInvest_Spesa agg'!M29="","",'Z0.6.a ProgInvest_Spesa agg'!M29) -> CIN post2026 | N29: =IF('Z0.6.a ProgInvest_Spesa agg'!N29="","",'Z0.6.a ProgInvest_Spesa agg'!N29) ->  | O29: =IF('Z0.6.a ProgInvest_Spesa agg'!O29="","",'Z0.6.a ProgInvest_Spesa agg'!O29) -> Vite utili 1 | P29: =IF('Z0.6.a ProgInvest_Spesa agg'!P29="","",'Z0.6.a ProgInvest_Spesa agg'!P29) -> 2034 | Q29: =IF('Z0.6.a ProgInvest_Spesa agg'!Q29="","",'Z0.6.a ProgInvest_Spesa agg'!Q29) -> pianificato | R29: =IF('Z0.6.a ProgInvest_Spesa agg'!R29="","",'Z0.6.a ProgInvest_Spesa agg'!R29) ->  | S29: =IF('Z0.6.a ProgInvest_Spesa agg'!S29="","",'Z0.6.a ProgInvest_Spesa agg'!S29) -> 200 | T29: =IF('Z0.6.a ProgInvest_Spesa agg'!T29="","",'Z0.6.a ProgInvest_Spesa agg'!T29) -> 20 | U29: =IF('Z0.6.a ProgInvest_Spesa agg'!U29="","",'Z0.6.a ProgInvest_Spesa agg'!U29) -> 10 | V29: FALSE | AG29: 20
B30: x | C30: =IF('Z0.6.a ProgInvest_Spesa agg'!C30="","",'Z0.6.a ProgInvest_Spesa agg'!C30) ->  | D30: =IF('Z0.6.a ProgInvest_Spesa agg'!D30="","",'Z0.6.a ProgInvest_Spesa agg'!D30) ->  | E30: =IF('Z0.6.a ProgInvest_Spesa agg'!E30="","",'Z0.6.a ProgInvest_Spesa agg'!E30) ->  | F30: =IF('Z0.6.a ProgInvest_Spesa agg'!F30="","",'Z0.6.a ProgInvest_Spesa agg'!F30) -> 12 | G30: =IF('Z0.6.a ProgInvest_Spesa agg'!G30="","",'Z0.6.a ProgInvest_Spesa agg'!G30) -> Intervento 10 | H30: =IF('Z0.6.a ProgInvest_Spesa agg'!H30="","",'Z0.6.a ProgInvest_Spesa agg'!H30) -> SIVCA 10 | I30: =IF('Z0.6.a ProgInvest_Spesa agg'!I30="","",'Z0.6.a ProgInvest_Spesa agg'!I30) ->  | J30: =IF('Z0.6.a ProgInvest_Spesa agg'!J30="","",'Z0.6.a ProgInvest_Spesa agg'!J30) ->  | K30: =IF('Z0.6.a ProgInvest_Spesa agg'!K30="","",'Z0.6.a ProgInvest_Spesa agg'!K30) -> Infrastrutture tecnologiche ed impianti | L30: =IF('Z0.6.a ProgInvest_Spesa agg'!L30="","",'Z0.6.a ProgInvest_Spesa agg'!L30) -> in corso | M30: =IF('Z0.6.a ProgInvest_Spesa agg'!M30="","",'Z0.6.a ProgInvest_Spesa agg'!M30) -> CIN post2026 | N30: =IF('Z0.6.a ProgInvest_Spesa agg'!N30="","",'Z0.6.a ProgInvest_Spesa agg'!N30) ->  | O30: =IF('Z0.6.a ProgInvest_Spesa agg'!O30="","",'Z0.6.a ProgInvest_Spesa agg'!O30) -> Vite utili 1 | P30: =IF('Z0.6.a ProgInvest_Spesa agg'!P30="","",'Z0.6.a ProgInvest_Spesa agg'!P30) -> 2035 | Q30: =IF('Z0.6.a ProgInvest_Spesa agg'!Q30="","",'Z0.6.a ProgInvest_Spesa agg'!Q30) -> pianificato | R30: =IF('Z0.6.a ProgInvest_Spesa agg'!R30="","",'Z0.6.a ProgInvest_Spesa agg'!R30) ->  | S30: =IF('Z0.6.a ProgInvest_Spesa agg'!S30="","",'Z0.6.a ProgInvest_Spesa agg'!S30) -> 200 | T30: =IF('Z0.6.a ProgInvest_Spesa agg'!T30="","",'Z0.6.a ProgInvest_Spesa agg'!T30) -> 20 | U30: =IF('Z0.6.a ProgInvest_Spesa agg'!U30="","",'Z0.6.a ProgInvest_Spesa agg'!U30) -> 10 | V30: FALSE | AH30: 20
B31: x | C31: =IF('Z0.6.a ProgInvest_Spesa agg'!C31="","",'Z0.6.a ProgInvest_Spesa agg'!C31) ->  | D31: =IF('Z0.6.a ProgInvest_Spesa agg'!D31="","",'Z0.6.a ProgInvest_Spesa agg'!D31) ->  | E31: =IF('Z0.6.a ProgInvest_Spesa agg'!E31="","",'Z0.6.a ProgInvest_Spesa agg'!E31) ->  | F31: =IF('Z0.6.a ProgInvest_Spesa agg'!F31="","",'Z0.6.a ProgInvest_Spesa agg'!F31) -> 13 | G31: =IF('Z0.6.a ProgInvest_Spesa agg'!G31="","",'Z0.6.a ProgInvest_Spesa agg'!G31) -> Intervento 11 | H31: =IF('Z0.6.a ProgInvest_Spesa agg'!H31="","",'Z0.6.a ProgInvest_Spesa agg'!H31) -> SIVCA 11 | I31: =IF('Z0.6.a ProgInvest_Spesa agg'!I31="","",'Z0.6.a ProgInvest_Spesa agg'!I31) ->  | J31: =IF('Z0.6.a ProgInvest_Spesa agg'!J31="","",'Z0.6.a ProgInvest_Spesa agg'!J31) ->  | K31: =IF('Z0.6.a ProgInvest_Spesa agg'!K31="","",'Z0.6.a ProgInvest_Spesa agg'!K31) -> Stazioni/Barriere di esazione, fabbricati, aree di servizio | L31: =IF('Z0.6.a ProgInvest_Spesa agg'!L31="","",'Z0.6.a ProgInvest_Spesa agg'!L31) -> in corso | M31: =IF('Z0.6.a ProgInvest_Spesa agg'!M31="","",'Z0.6.a ProgInvest_Spesa agg'!M31) -> CIN post2026 | N31: =IF('Z0.6.a ProgInvest_Spesa agg'!N31="","",'Z0.6.a ProgInvest_Spesa agg'!N31) ->  | O31: =IF('Z0.6.a ProgInvest_Spesa agg'!O31="","",'Z0.6.a ProgInvest_Spesa agg'!O31) -> Vite utili 1 | P31: =IF('Z0.6.a ProgInvest_Spesa agg'!P31="","",'Z0.6.a ProgInvest_Spesa agg'!P31) -> 2036 | Q31: =IF('Z0.6.a ProgInvest_Spesa agg'!Q31="","",'Z0.6.a ProgInvest_Spesa agg'!Q31) -> pianificato | R31: =IF('Z0.6.a ProgInvest_Spesa agg'!R31="","",'Z0.6.a ProgInvest_Spesa agg'!R31) ->  | S31: =IF('Z0.6.a ProgInvest_Spesa agg'!S31="","",'Z0.6.a ProgInvest_Spesa agg'!S31) -> 200 | T31: =IF('Z0.6.a ProgInvest_Spesa agg'!T31="","",'Z0.6.a ProgInvest_Spesa agg'!T31) -> 20 | U31: =IF('Z0.6.a ProgInvest_Spesa agg'!U31="","",'Z0.6.a ProgInvest_Spesa agg'!U31) -> 10 | V31: FALSE | AI31: 20
B32: x | C32: =IF('Z0.6.a ProgInvest_Spesa agg'!C32="","",'Z0.6.a ProgInvest_Spesa agg'!C32) ->  | D32: =IF('Z0.6.a ProgInvest_Spesa agg'!D32="","",'Z0.6.a ProgInvest_Spesa agg'!D32) ->  | E32: =IF('Z0.6.a ProgInvest_Spesa agg'!E32="","",'Z0.6.a ProgInvest_Spesa agg'!E32) ->  | F32: =IF('Z0.6.a ProgInvest_Spesa agg'!F32="","",'Z0.6.a ProgInvest_Spesa agg'!F32) -> 14 | G32: =IF('Z0.6.a ProgInvest_Spesa agg'!G32="","",'Z0.6.a ProgInvest_Spesa agg'!G32) -> Intervento 12 | H32: =IF('Z0.6.a ProgInvest_Spesa agg'!H32="","",'Z0.6.a ProgInvest_Spesa agg'!H32) -> SIVCA 12 | I32: =IF('Z0.6.a ProgInvest_Spesa agg'!I32="","",'Z0.6.a ProgInvest_Spesa agg'!I32) ->  | J32: =IF('Z0.6.a ProgInvest_Spesa agg'!J32="","",'Z0.6.a ProgInvest_Spesa agg'!J32) ->  | K32: =IF('Z0.6.a ProgInvest_Spesa agg'!K32="","",'Z0.6.a ProgInvest_Spesa agg'!K32) -> Altro | L32: =IF('Z0.6.a ProgInvest_Spesa agg'!L32="","",'Z0.6.a ProgInvest_Spesa agg'!L32) -> in corso | M32: =IF('Z0.6.a ProgInvest_Spesa agg'!M32="","",'Z0.6.a ProgInvest_Spesa agg'!M32) -> CIN post2026 | N32: =IF('Z0.6.a ProgInvest_Spesa agg'!N32="","",'Z0.6.a ProgInvest_Spesa agg'!N32) ->  | O32: =IF('Z0.6.a ProgInvest_Spesa agg'!O32="","",'Z0.6.a ProgInvest_Spesa agg'!O32) -> Vite utili 1 | P32: =IF('Z0.6.a ProgInvest_Spesa agg'!P32="","",'Z0.6.a ProgInvest_Spesa agg'!P32) -> 2037 | Q32: =IF('Z0.6.a ProgInvest_Spesa agg'!Q32="","",'Z0.6.a ProgInvest_Spesa agg'!Q32) -> pianificato | R32: =IF('Z0.6.a ProgInvest_Spesa agg'!R32="","",'Z0.6.a ProgInvest_Spesa agg'!R32) ->  | S32: =IF('Z0.6.a ProgInvest_Spesa agg'!S32="","",'Z0.6.a ProgInvest_Spesa agg'!S32) -> 200 | T32: =IF('Z0.6.a ProgInvest_Spesa agg'!T32="","",'Z0.6.a ProgInvest_Spesa agg'!T32) -> 20 | U32: =IF('Z0.6.a ProgInvest_Spesa agg'!U32="","",'Z0.6.a ProgInvest_Spesa agg'!U32) -> 10 | V32: FALSE | AJ32: 20
B33: x | C33: =IF('Z0.6.a ProgInvest_Spesa agg'!C33="","",'Z0.6.a ProgInvest_Spesa agg'!C33) ->  | D33: =IF('Z0.6.a ProgInvest_Spesa agg'!D33="","",'Z0.6.a ProgInvest_Spesa agg'!D33) ->  | E33: =IF('Z0.6.a ProgInvest_Spesa agg'!E33="","",'Z0.6.a ProgInvest_Spesa agg'!E33) ->  | F33: =IF('Z0.6.a ProgInvest_Spesa agg'!F33="","",'Z0.6.a ProgInvest_Spesa agg'!F33) -> 15 | G33: =IF('Z0.6.a ProgInvest_Spesa agg'!G33="","",'Z0.6.a ProgInvest_Spesa agg'!G33) -> Intervento 13 | H33: =IF('Z0.6.a ProgInvest_Spesa agg'!H33="","",'Z0.6.a ProgInvest_Spesa agg'!H33) -> SIVCA 13 | I33: =IF('Z0.6.a ProgInvest_Spesa agg'!I33="","",'Z0.6.a ProgInvest_Spesa agg'!I33) ->  | J33: =IF('Z0.6.a ProgInvest_Spesa agg'!J33="","",'Z0.6.a ProgInvest_Spesa agg'!J33) ->  | K33: =IF('Z0.6.a ProgInvest_Spesa agg'!K33="","",'Z0.6.a ProgInvest_Spesa agg'!K33) -> Viadotti/Ponti/Cavalcavia | L33: =IF('Z0.6.a ProgInvest_Spesa agg'!L33="","",'Z0.6.a ProgInvest_Spesa agg'!L33) -> in corso | M33: =IF('Z0.6.a ProgInvest_Spesa agg'!M33="","",'Z0.6.a ProgInvest_Spesa agg'!M33) -> CIN post2026 | N33: =IF('Z0.6.a ProgInvest_Spesa agg'!N33="","",'Z0.6.a ProgInvest_Spesa agg'!N33) ->  | O33: =IF('Z0.6.a ProgInvest_Spesa agg'!O33="","",'Z0.6.a ProgInvest_Spesa agg'!O33) -> Vite utili 2 | P33: =IF('Z0.6.a ProgInvest_Spesa agg'!P33="","",'Z0.6.a ProgInvest_Spesa agg'!P33) -> 2028 | Q33: =IF('Z0.6.a ProgInvest_Spesa agg'!Q33="","",'Z0.6.a ProgInvest_Spesa agg'!Q33) -> pianificato | R33: =IF('Z0.6.a ProgInvest_Spesa agg'!R33="","",'Z0.6.a ProgInvest_Spesa agg'!R33) ->  | S33: =IF('Z0.6.a ProgInvest_Spesa agg'!S33="","",'Z0.6.a ProgInvest_Spesa agg'!S33) -> 200 | T33: =IF('Z0.6.a ProgInvest_Spesa agg'!T33="","",'Z0.6.a ProgInvest_Spesa agg'!T33) -> 20 | U33: =IF('Z0.6.a ProgInvest_Spesa agg'!U33="","",'Z0.6.a ProgInvest_Spesa agg'!U33) -> 10 | V33: FALSE | AA33: 20
B34: x | C34: =IF('Z0.6.a ProgInvest_Spesa agg'!C34="","",'Z0.6.a ProgInvest_Spesa agg'!C34) ->  | D34: =IF('Z0.6.a ProgInvest_Spesa agg'!D34="","",'Z0.6.a ProgInvest_Spesa agg'!D34) ->  | E34: =IF('Z0.6.a ProgInvest_Spesa agg'!E34="","",'Z0.6.a ProgInvest_Spesa agg'!E34) ->  | F34: =IF('Z0.6.a ProgInvest_Spesa agg'!F34="","",'Z0.6.a ProgInvest_Spesa agg'!F34) -> 16 | G34: =IF('Z0.6.a ProgInvest_Spesa agg'!G34="","",'Z0.6.a ProgInvest_Spesa agg'!G34) -> Intervento 14 | H34: =IF('Z0.6.a ProgInvest_Spesa agg'!H34="","",'Z0.6.a ProgInvest_Spesa agg'!H34) -> SIVCA 14 | I34: =IF('Z0.6.a ProgInvest_Spesa agg'!I34="","",'Z0.6.a ProgInvest_Spesa agg'!I34) ->  | J34: =IF('Z0.6.a ProgInvest_Spesa agg'!J34="","",'Z0.6.a ProgInvest_Spesa agg'!J34) ->  | K34: =IF('Z0.6.a ProgInvest_Spesa agg'!K34="","",'Z0.6.a ProgInvest_Spesa agg'!K34) -> Gallerie | L34: =IF('Z0.6.a ProgInvest_Spesa agg'!L34="","",'Z0.6.a ProgInvest_Spesa agg'!L34) -> in corso | M34: =IF('Z0.6.a ProgInvest_Spesa agg'!M34="","",'Z0.6.a ProgInvest_Spesa agg'!M34) -> CIN post2026 | N34: =IF('Z0.6.a ProgInvest_Spesa agg'!N34="","",'Z0.6.a ProgInvest_Spesa agg'!N34) ->  | O34: =IF('Z0.6.a ProgInvest_Spesa agg'!O34="","",'Z0.6.a ProgInvest_Spesa agg'!O34) -> Vite utili 2 | P34: =IF('Z0.6.a ProgInvest_Spesa agg'!P34="","",'Z0.6.a ProgInvest_Spesa agg'!P34) -> 2029 | Q34: =IF('Z0.6.a ProgInvest_Spesa agg'!Q34="","",'Z0.6.a ProgInvest_Spesa agg'!Q34) -> pianificato | R34: =IF('Z0.6.a ProgInvest_Spesa agg'!R34="","",'Z0.6.a ProgInvest_Spesa agg'!R34) ->  | S34: =IF('Z0.6.a ProgInvest_Spesa agg'!S34="","",'Z0.6.a ProgInvest_Spesa agg'!S34) -> 200 | T34: =IF('Z0.6.a ProgInvest_Spesa agg'!T34="","",'Z0.6.a ProgInvest_Spesa agg'!T34) -> 20 | U34: =IF('Z0.6.a ProgInvest_Spesa agg'!U34="","",'Z0.6.a ProgInvest_Spesa agg'!U34) -> 10 | V34: FALSE | AB34: 20
B35: x | C35: =IF('Z0.6.a ProgInvest_Spesa agg'!C35="","",'Z0.6.a ProgInvest_Spesa agg'!C35) ->  | D35: =IF('Z0.6.a ProgInvest_Spesa agg'!D35="","",'Z0.6.a ProgInvest_Spesa agg'!D35) ->  | E35: =IF('Z0.6.a ProgInvest_Spesa agg'!E35="","",'Z0.6.a ProgInvest_Spesa agg'!E35) ->  | F35: =IF('Z0.6.a ProgInvest_Spesa agg'!F35="","",'Z0.6.a ProgInvest_Spesa agg'!F35) -> 17 | G35: =IF('Z0.6.a ProgInvest_Spesa agg'!G35="","",'Z0.6.a ProgInvest_Spesa agg'!G35) -> Intervento 15 | H35: =IF('Z0.6.a ProgInvest_Spesa agg'!H35="","",'Z0.6.a ProgInvest_Spesa agg'!H35) -> SIVCA 15 | I35: =IF('Z0.6.a ProgInvest_Spesa agg'!I35="","",'Z0.6.a ProgInvest_Spesa agg'!I35) ->  | J35: =IF('Z0.6.a ProgInvest_Spesa agg'!J35="","",'Z0.6.a ProgInvest_Spesa agg'!J35) ->  | K35: =IF('Z0.6.a ProgInvest_Spesa agg'!K35="","",'Z0.6.a ProgInvest_Spesa agg'!K35) -> Barriere | L35: =IF('Z0.6.a ProgInvest_Spesa agg'!L35="","",'Z0.6.a ProgInvest_Spesa agg'!L35) -> in corso | M35: =IF('Z0.6.a ProgInvest_Spesa agg'!M35="","",'Z0.6.a ProgInvest_Spesa agg'!M35) -> CIN post2026 | N35: =IF('Z0.6.a ProgInvest_Spesa agg'!N35="","",'Z0.6.a ProgInvest_Spesa agg'!N35) ->  | O35: =IF('Z0.6.a ProgInvest_Spesa agg'!O35="","",'Z0.6.a ProgInvest_Spesa agg'!O35) -> Vite utili 2 | P35: =IF('Z0.6.a ProgInvest_Spesa agg'!P35="","",'Z0.6.a ProgInvest_Spesa agg'!P35) -> 2030 | Q35: =IF('Z0.6.a ProgInvest_Spesa agg'!Q35="","",'Z0.6.a ProgInvest_Spesa agg'!Q35) -> pianificato | R35: =IF('Z0.6.a ProgInvest_Spesa agg'!R35="","",'Z0.6.a ProgInvest_Spesa agg'!R35) ->  | S35: =IF('Z0.6.a ProgInvest_Spesa agg'!S35="","",'Z0.6.a ProgInvest_Spesa agg'!S35) -> 200 | T35: =IF('Z0.6.a ProgInvest_Spesa agg'!T35="","",'Z0.6.a ProgInvest_Spesa agg'!T35) -> 20 | U35: =IF('Z0.6.a ProgInvest_Spesa agg'!U35="","",'Z0.6.a ProgInvest_Spesa agg'!U35) -> 10 | V35: FALSE | AC35: 20
B36: x | C36: =IF('Z0.6.a ProgInvest_Spesa agg'!C36="","",'Z0.6.a ProgInvest_Spesa agg'!C36) ->  | D36: =IF('Z0.6.a ProgInvest_Spesa agg'!D36="","",'Z0.6.a ProgInvest_Spesa agg'!D36) ->  | E36: =IF('Z0.6.a ProgInvest_Spesa agg'!E36="","",'Z0.6.a ProgInvest_Spesa agg'!E36) ->  | F36: =IF('Z0.6.a ProgInvest_Spesa agg'!F36="","",'Z0.6.a ProgInvest_Spesa agg'!F36) -> 18 | G36: =IF('Z0.6.a ProgInvest_Spesa agg'!G36="","",'Z0.6.a ProgInvest_Spesa agg'!G36) -> Intervento 16 | H36: =IF('Z0.6.a ProgInvest_Spesa agg'!H36="","",'Z0.6.a ProgInvest_Spesa agg'!H36) -> SIVCA 16 | I36: =IF('Z0.6.a ProgInvest_Spesa agg'!I36="","",'Z0.6.a ProgInvest_Spesa agg'!I36) ->  | J36: =IF('Z0.6.a ProgInvest_Spesa agg'!J36="","",'Z0.6.a ProgInvest_Spesa agg'!J36) ->  | K36: =IF('Z0.6.a ProgInvest_Spesa agg'!K36="","",'Z0.6.a ProgInvest_Spesa agg'!K36) -> Corpo autostradale, opere sul territorio | L36: =IF('Z0.6.a ProgInvest_Spesa agg'!L36="","",'Z0.6.a ProgInvest_Spesa agg'!L36) -> in corso | M36: =IF('Z0.6.a ProgInvest_Spesa agg'!M36="","",'Z0.6.a ProgInvest_Spesa agg'!M36) -> CIN post2026 | N36: =IF('Z0.6.a ProgInvest_Spesa agg'!N36="","",'Z0.6.a ProgInvest_Spesa agg'!N36) ->  | O36: =IF('Z0.6.a ProgInvest_Spesa agg'!O36="","",'Z0.6.a ProgInvest_Spesa agg'!O36) -> Vite utili 2 | P36: =IF('Z0.6.a ProgInvest_Spesa agg'!P36="","",'Z0.6.a ProgInvest_Spesa agg'!P36) -> 2031 | Q36: =IF('Z0.6.a ProgInvest_Spesa agg'!Q36="","",'Z0.6.a ProgInvest_Spesa agg'!Q36) -> pianificato | R36: =IF('Z0.6.a ProgInvest_Spesa agg'!R36="","",'Z0.6.a ProgInvest_Spesa agg'!R36) ->  | S36: =IF('Z0.6.a ProgInvest_Spesa agg'!S36="","",'Z0.6.a ProgInvest_Spesa agg'!S36) -> 200 | T36: =IF('Z0.6.a ProgInvest_Spesa agg'!T36="","",'Z0.6.a ProgInvest_Spesa agg'!T36) -> 20 | U36: =IF('Z0.6.a ProgInvest_Spesa agg'!U36="","",'Z0.6.a ProgInvest_Spesa agg'!U36) -> 10 | V36: FALSE | AD36: 20
B37: x | C37: =IF('Z0.6.a ProgInvest_Spesa agg'!C37="","",'Z0.6.a ProgInvest_Spesa agg'!C37) ->  | D37: =IF('Z0.6.a ProgInvest_Spesa agg'!D37="","",'Z0.6.a ProgInvest_Spesa agg'!D37) ->  | E37: =IF('Z0.6.a ProgInvest_Spesa agg'!E37="","",'Z0.6.a ProgInvest_Spesa agg'!E37) ->  | F37: =IF('Z0.6.a ProgInvest_Spesa agg'!F37="","",'Z0.6.a ProgInvest_Spesa agg'!F37) -> 19 | G37: =IF('Z0.6.a ProgInvest_Spesa agg'!G37="","",'Z0.6.a ProgInvest_Spesa agg'!G37) -> Intervento 17 | H37: =IF('Z0.6.a ProgInvest_Spesa agg'!H37="","",'Z0.6.a ProgInvest_Spesa agg'!H37) -> SIVCA 17 | I37: =IF('Z0.6.a ProgInvest_Spesa agg'!I37="","",'Z0.6.a ProgInvest_Spesa agg'!I37) ->  | J37: =IF('Z0.6.a ProgInvest_Spesa agg'!J37="","",'Z0.6.a ProgInvest_Spesa agg'!J37) ->  | K37: =IF('Z0.6.a ProgInvest_Spesa agg'!K37="","",'Z0.6.a ProgInvest_Spesa agg'!K37) -> Reti recinzione | L37: =IF('Z0.6.a ProgInvest_Spesa agg'!L37="","",'Z0.6.a ProgInvest_Spesa agg'!L37) -> in corso | M37: =IF('Z0.6.a ProgInvest_Spesa agg'!M37="","",'Z0.6.a ProgInvest_Spesa agg'!M37) -> CIN post2026 | N37: =IF('Z0.6.a ProgInvest_Spesa agg'!N37="","",'Z0.6.a ProgInvest_Spesa agg'!N37) ->  | O37: =IF('Z0.6.a ProgInvest_Spesa agg'!O37="","",'Z0.6.a ProgInvest_Spesa agg'!O37) -> Vite utili 2 | P37: =IF('Z0.6.a ProgInvest_Spesa agg'!P37="","",'Z0.6.a ProgInvest_Spesa agg'!P37) -> 2032 | Q37: =IF('Z0.6.a ProgInvest_Spesa agg'!Q37="","",'Z0.6.a ProgInvest_Spesa agg'!Q37) -> pianificato | R37: =IF('Z0.6.a ProgInvest_Spesa agg'!R37="","",'Z0.6.a ProgInvest_Spesa agg'!R37) ->  | S37: =IF('Z0.6.a ProgInvest_Spesa agg'!S37="","",'Z0.6.a ProgInvest_Spesa agg'!S37) -> 200 | T37: =IF('Z0.6.a ProgInvest_Spesa agg'!T37="","",'Z0.6.a ProgInvest_Spesa agg'!T37) -> 20 | U37: =IF('Z0.6.a ProgInvest_Spesa agg'!U37="","",'Z0.6.a ProgInvest_Spesa agg'!U37) -> 10 | V37: FALSE | AE37: 20
B38: x | C38: =IF('Z0.6.a ProgInvest_Spesa agg'!C38="","",'Z0.6.a ProgInvest_Spesa agg'!C38) ->  | D38: =IF('Z0.6.a ProgInvest_Spesa agg'!D38="","",'Z0.6.a ProgInvest_Spesa agg'!D38) ->  | E38: =IF('Z0.6.a ProgInvest_Spesa agg'!E38="","",'Z0.6.a ProgInvest_Spesa agg'!E38) ->  | F38: =IF('Z0.6.a ProgInvest_Spesa agg'!F38="","",'Z0.6.a ProgInvest_Spesa agg'!F38) -> 20 | G38: =IF('Z0.6.a ProgInvest_Spesa agg'!G38="","",'Z0.6.a ProgInvest_Spesa agg'!G38) -> Intervento 18 | H38: =IF('Z0.6.a ProgInvest_Spesa agg'!H38="","",'Z0.6.a ProgInvest_Spesa agg'!H38) -> SIVCA 18 | I38: =IF('Z0.6.a ProgInvest_Spesa agg'!I38="","",'Z0.6.a ProgInvest_Spesa agg'!I38) ->  | J38: =IF('Z0.6.a ProgInvest_Spesa agg'!J38="","",'Z0.6.a ProgInvest_Spesa agg'!J38) ->  | K38: =IF('Z0.6.a ProgInvest_Spesa agg'!K38="","",'Z0.6.a ProgInvest_Spesa agg'!K38) -> Portali e segnaletica | L38: =IF('Z0.6.a ProgInvest_Spesa agg'!L38="","",'Z0.6.a ProgInvest_Spesa agg'!L38) -> in corso | M38: =IF('Z0.6.a ProgInvest_Spesa agg'!M38="","",'Z0.6.a ProgInvest_Spesa agg'!M38) -> CIN post2026 | N38: =IF('Z0.6.a ProgInvest_Spesa agg'!N38="","",'Z0.6.a ProgInvest_Spesa agg'!N38) ->  | O38: =IF('Z0.6.a ProgInvest_Spesa agg'!O38="","",'Z0.6.a ProgInvest_Spesa agg'!O38) -> Vite utili 2 | P38: =IF('Z0.6.a ProgInvest_Spesa agg'!P38="","",'Z0.6.a ProgInvest_Spesa agg'!P38) -> 2033 | Q38: =IF('Z0.6.a ProgInvest_Spesa agg'!Q38="","",'Z0.6.a ProgInvest_Spesa agg'!Q38) -> pianificato | R38: =IF('Z0.6.a ProgInvest_Spesa agg'!R38="","",'Z0.6.a ProgInvest_Spesa agg'!R38) ->  | S38: =IF('Z0.6.a ProgInvest_Spesa agg'!S38="","",'Z0.6.a ProgInvest_Spesa agg'!S38) -> 200 | T38: =IF('Z0.6.a ProgInvest_Spesa agg'!T38="","",'Z0.6.a ProgInvest_Spesa agg'!T38) -> 20 | U38: =IF('Z0.6.a ProgInvest_Spesa agg'!U38="","",'Z0.6.a ProgInvest_Spesa agg'!U38) -> 10 | V38: FALSE | AF38: 20
B39: x | C39: =IF('Z0.6.a ProgInvest_Spesa agg'!C39="","",'Z0.6.a ProgInvest_Spesa agg'!C39) ->  | D39: =IF('Z0.6.a ProgInvest_Spesa agg'!D39="","",'Z0.6.a ProgInvest_Spesa agg'!D39) ->  | E39: =IF('Z0.6.a ProgInvest_Spesa agg'!E39="","",'Z0.6.a ProgInvest_Spesa agg'!E39) ->  | F39: =IF('Z0.6.a ProgInvest_Spesa agg'!F39="","",'Z0.6.a ProgInvest_Spesa agg'!F39) -> 21 | G39: =IF('Z0.6.a ProgInvest_Spesa agg'!G39="","",'Z0.6.a ProgInvest_Spesa agg'!G39) -> Intervento 19 | H39: =IF('Z0.6.a ProgInvest_Spesa agg'!H39="","",'Z0.6.a ProgInvest_Spesa agg'!H39) -> SIVCA 19 | I39: =IF('Z0.6.a ProgInvest_Spesa agg'!I39="","",'Z0.6.a ProgInvest_Spesa agg'!I39) ->  | J39: =IF('Z0.6.a ProgInvest_Spesa agg'!J39="","",'Z0.6.a ProgInvest_Spesa agg'!J39) ->  | K39: =IF('Z0.6.a ProgInvest_Spesa agg'!K39="","",'Z0.6.a ProgInvest_Spesa agg'!K39) -> Pavimentazioni | L39: =IF('Z0.6.a ProgInvest_Spesa agg'!L39="","",'Z0.6.a ProgInvest_Spesa agg'!L39) -> in corso | M39: =IF('Z0.6.a ProgInvest_Spesa agg'!M39="","",'Z0.6.a ProgInvest_Spesa agg'!M39) -> CIN post2026 | N39: =IF('Z0.6.a ProgInvest_Spesa agg'!N39="","",'Z0.6.a ProgInvest_Spesa agg'!N39) ->  | O39: =IF('Z0.6.a ProgInvest_Spesa agg'!O39="","",'Z0.6.a ProgInvest_Spesa agg'!O39) -> Vite utili 2 | P39: =IF('Z0.6.a ProgInvest_Spesa agg'!P39="","",'Z0.6.a ProgInvest_Spesa agg'!P39) -> 2034 | Q39: =IF('Z0.6.a ProgInvest_Spesa agg'!Q39="","",'Z0.6.a ProgInvest_Spesa agg'!Q39) -> pianificato | R39: =IF('Z0.6.a ProgInvest_Spesa agg'!R39="","",'Z0.6.a ProgInvest_Spesa agg'!R39) ->  | S39: =IF('Z0.6.a ProgInvest_Spesa agg'!S39="","",'Z0.6.a ProgInvest_Spesa agg'!S39) -> 200 | T39: =IF('Z0.6.a ProgInvest_Spesa agg'!T39="","",'Z0.6.a ProgInvest_Spesa agg'!T39) -> 20 | U39: =IF('Z0.6.a ProgInvest_Spesa agg'!U39="","",'Z0.6.a ProgInvest_Spesa agg'!U39) -> 10 | V39: FALSE | AG39: 20
B40: x | C40: =IF('Z0.6.a ProgInvest_Spesa agg'!C40="","",'Z0.6.a ProgInvest_Spesa agg'!C40) ->  | D40: =IF('Z0.6.a ProgInvest_Spesa agg'!D40="","",'Z0.6.a ProgInvest_Spesa agg'!D40) ->  | E40: =IF('Z0.6.a ProgInvest_Spesa agg'!E40="","",'Z0.6.a ProgInvest_Spesa agg'!E40) ->  | F40: =IF('Z0.6.a ProgInvest_Spesa agg'!F40="","",'Z0.6.a ProgInvest_Spesa agg'!F40) -> 22 | G40: =IF('Z0.6.a ProgInvest_Spesa agg'!G40="","",'Z0.6.a ProgInvest_Spesa agg'!G40) -> Intervento 20 | H40: =IF('Z0.6.a ProgInvest_Spesa agg'!H40="","",'Z0.6.a ProgInvest_Spesa agg'!H40) -> SIVCA 20 | I40: =IF('Z0.6.a ProgInvest_Spesa agg'!I40="","",'Z0.6.a ProgInvest_Spesa agg'!I40) ->  | J40: =IF('Z0.6.a ProgInvest_Spesa agg'!J40="","",'Z0.6.a ProgInvest_Spesa agg'!J40) ->  | K40: =IF('Z0.6.a ProgInvest_Spesa agg'!K40="","",'Z0.6.a ProgInvest_Spesa agg'!K40) -> Infrastrutture tecnologiche ed impianti | L40: =IF('Z0.6.a ProgInvest_Spesa agg'!L40="","",'Z0.6.a ProgInvest_Spesa agg'!L40) -> in corso | M40: =IF('Z0.6.a ProgInvest_Spesa agg'!M40="","",'Z0.6.a ProgInvest_Spesa agg'!M40) -> CIN post2026 | N40: =IF('Z0.6.a ProgInvest_Spesa agg'!N40="","",'Z0.6.a ProgInvest_Spesa agg'!N40) ->  | O40: =IF('Z0.6.a ProgInvest_Spesa agg'!O40="","",'Z0.6.a ProgInvest_Spesa agg'!O40) -> Vite utili 2 | P40: =IF('Z0.6.a ProgInvest_Spesa agg'!P40="","",'Z0.6.a ProgInvest_Spesa agg'!P40) -> 2035 | Q40: =IF('Z0.6.a ProgInvest_Spesa agg'!Q40="","",'Z0.6.a ProgInvest_Spesa agg'!Q40) -> pianificato | R40: =IF('Z0.6.a ProgInvest_Spesa agg'!R40="","",'Z0.6.a ProgInvest_Spesa agg'!R40) ->  | S40: =IF('Z0.6.a ProgInvest_Spesa agg'!S40="","",'Z0.6.a ProgInvest_Spesa agg'!S40) -> 200 | T40: =IF('Z0.6.a ProgInvest_Spesa agg'!T40="","",'Z0.6.a ProgInvest_Spesa agg'!T40) -> 20 | U40: =IF('Z0.6.a ProgInvest_Spesa agg'!U40="","",'Z0.6.a ProgInvest_Spesa agg'!U40) -> 10 | V40: FALSE | AH40: 20
B41: x | C41: =IF('Z0.6.a ProgInvest_Spesa agg'!C41="","",'Z0.6.a ProgInvest_Spesa agg'!C41) ->  | D41: =IF('Z0.6.a ProgInvest_Spesa agg'!D41="","",'Z0.6.a ProgInvest_Spesa agg'!D41) ->  | E41: =IF('Z0.6.a ProgInvest_Spesa agg'!E41="","",'Z0.6.a ProgInvest_Spesa agg'!E41) ->  | F41: =IF('Z0.6.a ProgInvest_Spesa agg'!F41="","",'Z0.6.a ProgInvest_Spesa agg'!F41) -> 23 | G41: =IF('Z0.6.a ProgInvest_Spesa agg'!G41="","",'Z0.6.a ProgInvest_Spesa agg'!G41) -> Intervento 21 | H41: =IF('Z0.6.a ProgInvest_Spesa agg'!H41="","",'Z0.6.a ProgInvest_Spesa agg'!H41) -> SIVCA 21 | I41: =IF('Z0.6.a ProgInvest_Spesa agg'!I41="","",'Z0.6.a ProgInvest_Spesa agg'!I41) ->  | J41: =IF('Z0.6.a ProgInvest_Spesa agg'!J41="","",'Z0.6.a ProgInvest_Spesa agg'!J41) ->  | K41: =IF('Z0.6.a ProgInvest_Spesa agg'!K41="","",'Z0.6.a ProgInvest_Spesa agg'!K41) -> Stazioni/Barriere di esazione, fabbricati, aree di servizio | L41: =IF('Z0.6.a ProgInvest_Spesa agg'!L41="","",'Z0.6.a ProgInvest_Spesa agg'!L41) -> in corso | M41: =IF('Z0.6.a ProgInvest_Spesa agg'!M41="","",'Z0.6.a ProgInvest_Spesa agg'!M41) -> CIN post2026 | N41: =IF('Z0.6.a ProgInvest_Spesa agg'!N41="","",'Z0.6.a ProgInvest_Spesa agg'!N41) ->  | O41: =IF('Z0.6.a ProgInvest_Spesa agg'!O41="","",'Z0.6.a ProgInvest_Spesa agg'!O41) -> Vite utili 2 | P41: =IF('Z0.6.a ProgInvest_Spesa agg'!P41="","",'Z0.6.a ProgInvest_Spesa agg'!P41) -> 2036 | Q41: =IF('Z0.6.a ProgInvest_Spesa agg'!Q41="","",'Z0.6.a ProgInvest_Spesa agg'!Q41) -> pianificato | R41: =IF('Z0.6.a ProgInvest_Spesa agg'!R41="","",'Z0.6.a ProgInvest_Spesa agg'!R41) ->  | S41: =IF('Z0.6.a ProgInvest_Spesa agg'!S41="","",'Z0.6.a ProgInvest_Spesa agg'!S41) -> 200 | T41: =IF('Z0.6.a ProgInvest_Spesa agg'!T41="","",'Z0.6.a ProgInvest_Spesa agg'!T41) -> 20 | U41: =IF('Z0.6.a ProgInvest_Spesa agg'!U41="","",'Z0.6.a ProgInvest_Spesa agg'!U41) -> 10 | V41: FALSE | AI41: 20
B42: x | C42: =IF('Z0.6.a ProgInvest_Spesa agg'!C42="","",'Z0.6.a ProgInvest_Spesa agg'!C42) ->  | D42: =IF('Z0.6.a ProgInvest_Spesa agg'!D42="","",'Z0.6.a ProgInvest_Spesa agg'!D42) ->  | E42: =IF('Z0.6.a ProgInvest_Spesa agg'!E42="","",'Z0.6.a ProgInvest_Spesa agg'!E42) ->  | F42: =IF('Z0.6.a ProgInvest_Spesa agg'!F42="","",'Z0.6.a ProgInvest_Spesa agg'!F42) -> 24 | G42: =IF('Z0.6.a ProgInvest_Spesa agg'!G42="","",'Z0.6.a ProgInvest_Spesa agg'!G42) -> Intervento 22 | H42: =IF('Z0.6.a ProgInvest_Spesa agg'!H42="","",'Z0.6.a ProgInvest_Spesa agg'!H42) -> SIVCA 22 | I42: =IF('Z0.6.a ProgInvest_Spesa agg'!I42="","",'Z0.6.a ProgInvest_Spesa agg'!I42) ->  | J42: =IF('Z0.6.a ProgInvest_Spesa agg'!J42="","",'Z0.6.a ProgInvest_Spesa agg'!J42) ->  | K42: =IF('Z0.6.a ProgInvest_Spesa agg'!K42="","",'Z0.6.a ProgInvest_Spesa agg'!K42) -> Altro | L42: =IF('Z0.6.a ProgInvest_Spesa agg'!L42="","",'Z0.6.a ProgInvest_Spesa agg'!L42) -> in corso | M42: =IF('Z0.6.a ProgInvest_Spesa agg'!M42="","",'Z0.6.a ProgInvest_Spesa agg'!M42) -> CIN post2026 | N42: =IF('Z0.6.a ProgInvest_Spesa agg'!N42="","",'Z0.6.a ProgInvest_Spesa agg'!N42) ->  | O42: =IF('Z0.6.a ProgInvest_Spesa agg'!O42="","",'Z0.6.a ProgInvest_Spesa agg'!O42) -> Vite utili 2 | P42: =IF('Z0.6.a ProgInvest_Spesa agg'!P42="","",'Z0.6.a ProgInvest_Spesa agg'!P42) -> 2037 | Q42: =IF('Z0.6.a ProgInvest_Spesa agg'!Q42="","",'Z0.6.a ProgInvest_Spesa agg'!Q42) -> pianificato | R42: =IF('Z0.6.a ProgInvest_Spesa agg'!R42="","",'Z0.6.a ProgInvest_Spesa agg'!R42) ->  | S42: =IF('Z0.6.a ProgInvest_Spesa agg'!S42="","",'Z0.6.a ProgInvest_Spesa agg'!S42) -> 200 | T42: =IF('Z0.6.a ProgInvest_Spesa agg'!T42="","",'Z0.6.a ProgInvest_Spesa agg'!T42) -> 20 | U42: =IF('Z0.6.a ProgInvest_Spesa agg'!U42="","",'Z0.6.a ProgInvest_Spesa agg'!U42) -> 10 | V42: FALSE | AJ42: 20
